Workbook

Sheet Design Regulator
A1: LM5165 Low IQ DC/DC Converter Design Tool
O2: http://www.ti.com/product/lm5165
A3: About | C3: xx | F3: = Input Box | O3: Terms Of Use
A5: Step 1: Operating Specifications
D6: Input Voltage - Min, VIN(min) | E6: 6 | F6: V
D7: Input Voltage - Nom, VIN(nom) | E7: 12 | F7: V
D8: Input Voltage - Max, VIN(max) | E8: 20 | F8: V
D9: Output Voltage, VOUT | E9: 3.301 | F9: V
D10: Full Load Current, IOUT | E10: 110 | F10: mA
D11: Mode of Operation
D12: Switching Frequency at VIN(nom) | E12: 250 | F12: kHz
D13: =CHOOSE(MODE, "RT Resistance", "*Connect RT pin to GND") -> RT Resistance | E13: ='Standard Value Calculator'!J4/1000 -> 82.5 | F13: kΩ
A15: Step 2: Filter Inductor
D16: Peak Inductor Current Setting, IL(pk)
D17: Recommended Filter Inductance | E17: =Lopt*1000000 -> 174.0327212 | F17: µH
D18: Inductance, LF | E18: 220 | F18: µH
D19: Inductor DCR | E19: 300 | F19: mΩ
D20: =CHOOSE(MODE, "Pk-to-Pk Ripple Current", "Resulting PFM Switching Frequency") -> Pk-to-Pk Ripple Current | E20: =CHOOSE(MODE, 'Variable Mgmt'!B85*1000, 'Variable Mgmt'!B65) -> 43.84306884 | F20: =CHOOSE(MODE, "mApk-pk", "kHz") -> mApk-pk
D21: =CHOOSE(MODE, 'Variable Mgmt'!H85, 'Variable Mgmt'!H86) -> % Ripple Current at Nom VIN | E21: =IF(MODE=1, 'Variable Mgmt'!B93*100, Ilim/2*1000) -> 39.85733531 | F21: =IF(MODE=1, "%", "mA") -> %
A23: Step 3: Input & Output Capacitors
D24: Minimum Output Capacitance | E24: ='Variable Mgmt'!B116 -> 5.312701465 | F24: µF
D25: Output Capacitance, COUT | E25: 100 | F25: µF
D26: =CHOOSE(MODE, "Recommended ESR", "*Higher Cout Improves Light-Load Eff") -> Recommended ESR | E26: ='Variable Mgmt'!B259 -> >1.23 | F26: =IF(MODE=1, "Ω", "") -> Ω
D27: =CHOOSE(MODE, "Total ESR & Series Resistance", "*PFM Hysteresis Sets Output Ripple") -> Total ESR & Series Resistance | E27: 1.5 | F27: Ω
D28: =CHOOSE(MODE, "Resulting Output Voltage Ripple", "Output Voltage Ripple") -> Resulting Output Voltage Ripple | E28: =CHOOSE(MODE, Vripple2*1000, Vripple_PFM*1000) -> 65.76496862 | F28: mVpk-pk
D29: Minimum Input Capacitance | E29: ='Variable Mgmt'!B142 -> 0.47 | F29: µF
D30: Input Capacitance, CIN | E30: 4.7 | F30: µF
D31: Input Capacitor ESR | E31: 3 | F31: mΩ
D32: Resulting Input Voltage Ripple | E32: =CHOOSE(MODE, Vinripple2*1000, 'Variable Mgmt'!B150*1000) -> 19.16489431 | F32: mVpk-pk
A34: Step 4: Feedback, Soft-start, UVLO
D35: =CHOOSE(MODE_VOUT, "*Connect VOUT pin to Point of Regulation", "Upper Feedback Resistor, R1") -> Upper Feedback Resistor, R1 | E35: 210 | F35: kΩ
D36: =CHOOSE(MODE_VOUT, "", "Lower Feedback Resistor, R2") -> Lower Feedback Resistor, R2 | E36: =IF(Vout=Vref,"OPEN",Rfb2_u/1000) -> 124 | F36: =IF(Vout=Vref,"","kΩ") -> kΩ
D37: Soft-Start Configuration
D38: =CHOOSE(MODE_SS,"Soft-Start Time","*Leave SS pin Open Circuit","*Connect 100kΩ Resistor from SS to GND") -> Soft-Start Time | E38: 6 | F38: ms
D39: Soft-Start Capacitance, CSS | E39: =IF(Tss>0.0001,Css_u*1000000000,"N/A") -> 47 | F39: nF
D40: Input UVLO Configuration
D41: =CHOOSE(MODE_UVLO, "Input Voltage UVLO On", "*Connect EN pin to VIN or Logic HIGH") -> *Connect EN pin to VIN or Logic HIGH | E41: 20 | F41: V
D42: =CHOOSE(MODE_UVLO, "Input Voltage UVLO Off", "*Connect HYS pin to GND") -> *Connect HYS pin to GND | E42: 18 | F42: V
D43: Upper UVLO Resistor, RUV1 | E43: 1 | F43: MΩ
D44: Lower UVLO Resistor, RUV2 | E44: ='Variable Mgmt'!F263 ->  | F44: ='Variable Mgmt'!G263 -> 
D45: UVLO Hysteresis Resistor, RHYS | E45: ='Variable Mgmt'!F264 ->  | F45: ='Variable Mgmt'!G264 -> 
A47: Step 5: Efficiency & Thermals
D48: Estimated Thermal Impedance, JJA | E48: 157 | F48: °C/W
D49: Ambient Temp, TA | E49: 85 | F49: °C
D50: LM5165 Power Dissipation at Full Load, PD | E50: =1000*'Variable Mgmt'!B26 -> 38.65774059 | F50: mW
D51: LM5165 Junction Temp at Full Load, TJ | E51: =E49+E48*'Variable Mgmt'!B26 -> 91.06926527 | F51: °C

Sheet BOM & Schematic
A28: ="VIN = "&Vin&" V, VOUT = "&Vout&" V, IOUT = "&Iout*1000&" mA "&'Variable Mgmt'!B33&" Converter" -> VIN = 12 V, VOUT = 3.301 V, IOUT = 110 mA COT Converter
A29: Low IQ, High Efficiency, Synchronous Buck Converter BOM
A30: Count | B30: Ref Des | C30: Value | D30: Description | G30: Size | H30: Part Number | I30: MFR | J30: Footprint (mm) | K30: Area (mm2)
A31: =ROUNDUP('Design Regulator'!E30/10,0) -> 1 | B31: CIN | C31: =Cin*1000000 -> 4.7 | D31: =IF(VIN_max>35, "Capacitor, Ceramic, "&'Variable Mgmt'!B244&", 100V, X7R, 10%", "Capacitor, Ceramic, "&'Variable Mgmt'!B244&", 50V, X7R, 10%") -> Capacitor, Ceramic, 4.7µF, 50V, X7R, 10% | H31: Std | I31: Std | J31: =CHOOSE(Q31,'Variable Mgmt'!T39,'Variable Mgmt'!T40,'Variable Mgmt'!T41,'Variable Mgmt'!T42,'Variable Mgmt'!T43) -> 3.2 x 1.6 | K31: =CHOOSE(Q31,'Variable Mgmt'!U39,'Variable Mgmt'!U40,'Variable Mgmt'!U41,'Variable Mgmt'!U42,'Variable Mgmt'!U43) -> 5.1 | Q31: 4
A32: =ROUNDUP('Design Regulator'!E25/22,0) -> 5 | B32: COUT | C32: =Cout*1000000 -> 100 | D32: =CHOOSE(Cout_Voltage_Rating, "Capacitor, Ceramic, "&'Variable Mgmt'!B240&", 6.3V, X7R, 10%", "Capacitor, Ceramic, "&'Variable Mgmt'!B240&", 10V, X7R, 10%", "Capacitor, Ceramic, "&'Variable Mgmt'!B240&", 16V, X7R, 10%", "Capacitor, Ceramic, "&'Variable Mgmt'!B240&", 25V, X7R, 10%", "Capacitor, Ceramic, "&'Variable Mgmt'!B240&", 50V, X7R, 10%") -> Capacitor, Ceramic, 100µF, 6.3V, X7R, 10% | H32: Std | I32: Std | J32: =CHOOSE(Q32,'Variable Mgmt'!T39,'Variable Mgmt'!T40,'Variable Mgmt'!T41,'Variable Mgmt'!T42,'Variable Mgmt'!T43) -> 3.2 x 1.6 | K32: =CHOOSE(Q32,'Variable Mgmt'!U39,'Variable Mgmt'!U40,'Variable Mgmt'!U41,'Variable Mgmt'!U42,'Variable Mgmt'!U43) -> 5.1 | Q32: 4
A33: =CHOOSE(MODE_SS, "1", "-", "1") -> 1 | B33: =CHOOSE(MODE_SS, "Css", "-", "Rss") -> Css | C33: =CHOOSE(MODE_SS, 'Standard Value Calculator'!B4*1000000000&"nF", "-", "100k") -> 47nF | D33: =CHOOSE(MODE_SS, "Capacitor, Ceramic, "&'Standard Value Calculator'!B4*1000000000&"nF"&", 16V, X7R, 10%", "-", "Resistor, Chip, 100 kΩ, 1/16W, 1%") -> Capacitor, Ceramic, 47nF, 16V, X7R, 10% | G33: 0603 | H33: =CHOOSE(MODE_SS, "Std", "-", "Std") -> Std | I33: =CHOOSE(MODE_SS, "Std", "-", "Std") -> Std | J33: =CHOOSE(MODE_SS,CHOOSE(Q33,'Variable Mgmt'!T39,'Variable Mgmt'!T40,'Variable Mgmt'!T41),"-",CHOOSE(Q33,'Variable Mgmt'!T39,'Variable Mgmt'!T40,'Variable Mgmt'!T41)) -> 1.0 x 0.5 | K33: =CHOOSE(MODE_SS, CHOOSE(Q33,'Variable Mgmt'!U39,'Variable Mgmt'!U40,'Variable Mgmt'!U41), "-", CHOOSE(Q33,'Variable Mgmt'!U39,'Variable Mgmt'!U40,'Variable Mgmt'!U41)) -> 0.5 | Q33: 1
A34: 1 | B34: LF | C34: ='Design Regulator'!E18 -> 220 | D34: ="Inductor, "&Lf*1000000&" µH, "&Rdcr*1000&" mΩ, >"&ROUNDUP(Ilim*1.2,2)&"A" -> Inductor, 220 µH, 300 mΩ, >0.29A | G34: - | H34: Various | I34: Various | J34: =CHOOSE(Q34,'Variable Mgmt'!T48,'Variable Mgmt'!T49,'Variable Mgmt'!T50,'Variable Mgmt'!T51,'Variable Mgmt'!T52) -> 4.0 x 4.0 | K34: =CHOOSE(Q34,'Variable Mgmt'!U48,'Variable Mgmt'!U49,'Variable Mgmt'!U50,'Variable Mgmt'!U51,'Variable Mgmt'!U52) -> 16 | Q34: 2
A35: =CHOOSE(SHORT_ILIM, "-", "1") -> - | B35: RILIM | C35: =CHOOSE(SHORT_ILIM, "-", 'Variable Mgmt'!C271) -> - | D35: =CHOOSE(SHORT_ILIM, "Tie ILIM to GND", "Resistor, Chip, "&'Variable Mgmt'!C271&" kΩ, 1/16W, 1%") -> Tie ILIM to GND | G35: =CHOOSE(SHORT_ILIM, "-", "0603") -> - | H35: =CHOOSE(SHORT_ILIM, "-", "Std") -> - | I35: =CHOOSE(SHORT_ILIM, "-", "Std") -> - | J35: =CHOOSE(SHORT_ILIM, "-", CHOOSE(Q35,'Variable Mgmt'!T39,'Variable Mgmt'!T40,'Variable Mgmt'!T41)) -> - | K35: =CHOOSE(SHORT_ILIM, "-", CHOOSE(Q35,'Variable Mgmt'!U39,'Variable Mgmt'!U40,'Variable Mgmt'!U41,'Variable Mgmt'!U42,'Variable Mgmt'!U43)) -> - | Q35: 1
A36: =CHOOSE(MODE, "1", "-") -> 1 | B36: RT | C36: =CHOOSE(MODE, 'Design Regulator'!E13, "N/A") -> 82.5 | D36: =CHOOSE(MODE, "Resistor, Chip, "&'Variable Mgmt'!B255&", 1/16W, 1%", "-") -> Resistor, Chip, 82.5kΩ, 1/16W, 1% | G36: 0603 | H36: =CHOOSE(MODE, "Std", "-") -> Std | I36: =CHOOSE(MODE, "Std", "-") -> Std | J36: =CHOOSE(MODE, CHOOSE(Q36,'Variable Mgmt'!T39,'Variable Mgmt'!T40,'Variable Mgmt'!T41), "-") -> 1.0 x 0.5 | K36: =CHOOSE(MODE, CHOOSE(Q36,'Variable Mgmt'!U39,'Variable Mgmt'!U40,'Variable Mgmt'!U41,'Variable Mgmt'!U42,'Variable Mgmt'!U43),"-") -> 0.5 | Q36: 1
A37: =CHOOSE(MODE_VOUT, "-", "1") -> 1 | B37: RFB1 | C37: =IF(MODE_VOUT=2, Rfb1_/1000, "N/A") -> 210 | D37: =CHOOSE(MODE_VOUT, "-", "Resistor, Chip, "&'Variable Mgmt'!B250&", 1/16W, 1%") -> Resistor, Chip, 210kΩ, 1/16W, 1% | G37: 0603 | H37: =CHOOSE(MODE_VOUT, "-", "Std") -> Std | I37: =CHOOSE(MODE_VOUT, "-", "Std") -> Std | J37: =CHOOSE(MODE_VOUT, "-", CHOOSE(Q37,'Variable Mgmt'!T39,'Variable Mgmt'!T40,'Variable Mgmt'!T41)) -> 1.0 x 0.5 | K37: =CHOOSE(MODE_VOUT, "-", CHOOSE(Q37,'Variable Mgmt'!U39,'Variable Mgmt'!U40,'Variable Mgmt'!U41,'Variable Mgmt'!U42,'Variable Mgmt'!U43)) -> 0.5 | Q37: 1
A38: =CHOOSE(MODE_VOUT, "-", "1") -> 1 | B38: RFB2 | C38: =IF(MODE_VOUT=2, Rfb2_u/1000, "N/A") -> 124 | D38: =CHOOSE(MODE_VOUT, "-", "Resistor, Chip, "&'Variable Mgmt'!B251&", 1/16W, 1%") -> Resistor, Chip, 124kΩ, 1/16W, 1% | G38: 0603 | H38: =CHOOSE(MODE_VOUT, "-", "Std") -> Std | I38: =CHOOSE(MODE_VOUT, "-", "Std") -> Std | J38: =CHOOSE(MODE_VOUT, "-", CHOOSE(Q38,'Variable Mgmt'!T39,'Variable Mgmt'!T40,'Variable Mgmt'!T41)) -> 1.0 x 0.5 | K38: =CHOOSE(MODE_VOUT, "-", CHOOSE(Q38,'Variable Mgmt'!U39,'Variable Mgmt'!U40,'Variable Mgmt'!U41,'Variable Mgmt'!U42,'Variable Mgmt'!U43)) -> 0.5 | Q38: 1
A39: =CHOOSE(MODE, "1", "-") -> 1 | B39: RESR | C39: =CHOOSE(MODE, 'Design Regulator'!E27, "N/A") -> 1.5 | D39: =CHOOSE(MODE, "Resistor, Chip, "&'Variable Mgmt'!B258&", 1/16W, 1%", "-") -> Resistor, Chip, 1.5Ω, 1/16W, 1% | G39: 0603 | H39: =CHOOSE(MODE, "Std", "-") -> Std | I39: =CHOOSE(MODE, "Std", "-") -> Std | J39: =CHOOSE(MODE, CHOOSE(Q39,'Variable Mgmt'!T39,'Variable Mgmt'!T40,'Variable Mgmt'!T41), "-") -> 1.0 x 0.5 | K39: =CHOOSE(MODE, CHOOSE(Q39,'Variable Mgmt'!U39,'Variable Mgmt'!U40,'Variable Mgmt'!U41,'Variable Mgmt'!U42,'Variable Mgmt'!U43),"-") -> 0.5 | Q39: 1
A40: 1 | B40: RPGOOD | C40: 10 | D40: =C40 -> 10 | G40: 0603 | H40: Std | I40: Std | J40: =CHOOSE(Q40,'Variable Mgmt'!T39,'Variable Mgmt'!T40,'Variable Mgmt'!T41) -> 1.0 x 0.5 | K40: =CHOOSE(Q40,'Variable Mgmt'!U39,'Variable Mgmt'!U40,'Variable Mgmt'!U41,'Variable Mgmt'!U42,'Variable Mgmt'!U43) -> 0.5 | Q40: 1
A41: =CHOOSE(MODE_UVLO, "1", "-") -> - | B41: RUV1 | C41: =CHOOSE(MODE_UVLO, 'Variable Mgmt'!H262, "N/A") -> N/A | D41: =CHOOSE(MODE_UVLO, "Resistor, Chip, "&'Variable Mgmt'!C262&", 1/16W, 1%", "-") -> - | G41: 0603 | H41: =CHOOSE(MODE_UVLO, "Std", "-") -> - | I41: - | J41: =CHOOSE(MODE_UVLO, CHOOSE(Q41,'Variable Mgmt'!T39,'Variable Mgmt'!T40,'Variable Mgmt'!T41), "-") -> - | K41: =CHOOSE(MODE_UVLO, CHOOSE(Q41,'Variable Mgmt'!U39,'Variable Mgmt'!U40,'Variable Mgmt'!U41,'Variable Mgmt'!U42,'Variable Mgmt'!U43),"-") -> - | Q41: 1
A42: =CHOOSE(MODE_UVLO, "1", "-") -> - | B42: RUV2 | C42: =CHOOSE(MODE_UVLO, 'Variable Mgmt'!H263, "N/A") -> N/A | D42: =CHOOSE(MODE_UVLO, "Resistor, Chip, "&'Variable Mgmt'!C263&", 1/16W, 1%", "-") -> - | G42: 0603 | H42: - | I42: - | J42: =CHOOSE(MODE_UVLO, CHOOSE(Q42,'Variable Mgmt'!T39,'Variable Mgmt'!T40,'Variable Mgmt'!T41), "-") -> - | K42: =CHOOSE(MODE_UVLO, CHOOSE(Q42,'Variable Mgmt'!U39,'Variable Mgmt'!U40,'Variable Mgmt'!U41,'Variable Mgmt'!U42,'Variable Mgmt'!U43),"-") -> - | Q42: 1
A43: =CHOOSE(MODE_UVLO, "1", "-") -> - | B43: RHYS | C43: =CHOOSE(MODE_UVLO, 'Variable Mgmt'!H264, "N/A") -> N/A | D43: =CHOOSE(MODE_UVLO, "Resistor, Chip, "&'Variable Mgmt'!C264&", 1/16W, 1%", "-") -> - | G43: 0603 | H43: - | I43: - | J43: =CHOOSE(MODE_UVLO, CHOOSE(Q43,'Variable Mgmt'!T39,'Variable Mgmt'!T404,'Variable Mgmt'!T41), "-") -> - | K43: =CHOOSE(MODE_UVLO, CHOOSE(Q43,'Variable Mgmt'!U39,'Variable Mgmt'!U40,'Variable Mgmt'!U41,'Variable Mgmt'!U42,'Variable Mgmt'!U43),"-") -> - | Q43: 1
A44: 1 | B44: U1 | C44: LM5165 | D44: IC, LM5165, Low IQ Buck Converter, 3V–65V Input | G44: VSON-10 | H44: =CHOOSE(MODE_VOUT, IF(Vout=5, "LM5165XQDRC", "LM5165YQDRC"), "LM5165QDRC") -> LM5165QDRC | I44: TI | J44: 3.0 x 3.0 | K44: 9
H46: Total Solution Size (buffered by 25%) | K46: =SUM(K31:K44)*1.25 -> 47.75 | L46: mm2 = | M46: =K46/25.4/25.4 -> 0.07401264803 | N46: in2
A48: NOTES:
A49: * Choose an inductor with saturation current rating higher than the peak inductor current setting for all operating temperatures *
A50: ** Appropriately derate effective input and output capacitances for applied voltage and temperature, particularly with ceramics **

Sheet EVM
A1: LM5165 Low IQ DC/DC Converter Design Tool
B6: LM5165EVM-HD PCB Design, 0.6" x 0.5" (15.2mm x 12.7mm) | N6: LM5165EVM-HD 3D image - minimum solution size denoted by yellow border

Sheet Variable Mgmt (hidden)
A1: EXCEL Variables Names/Calculations
B2: Input from user =
B3: Output =
B4: Constant
A5: Variable Name | B5: Value | C5: STD Units | E5: Notes | I5: Iteration
A6: Step 1: Operational Specs
A7: VIN_min | B7: ='Design Regulator'!E6 -> 6 | C7: V | D7: Minimum input voltage | I7: 1
A8: VIN_nom | B8: ='Design Regulator'!E7 -> 12 | C8: V | D8: Nominal input voltage
A9: VIN_max | B9: ='Design Regulator'!E8 -> 20 | C9: V | D9: Maximum input voltage
A11: Vout | B11: ='Design Regulator'!E9 -> 3.301 | C11: V | D11: Output Voltage | I11: 1
A12: Iout | B12: ='Design Regulator'!E10/1000 -> 0.11 | C12: A | D12: Maximum Output Current | I12: 1
A13: Rout | B13: =Vout/Iout -> 30.00909091 | C13: W | D13: Load resistance
A14: Pout | B14: =Vout*Iout -> 0.36311 | C14: W | D14: Output power
A16: Efficiency | B16: 0.9 | D16: Estimate of efficiency
A17: Pin | B17: =Pout/Efficiency -> 0.4034555556 | C17: W | D17: Calculate input power assuming 90% efficiency
A18: Iin_Vinmin | B18: =Pin/VIN_min -> 0.06724259259 | C18: A
A19: Iin_Vinnom | B19: =Pin/VIN_nom -> 0.0336212963 | C19: A | D19: Input currents at min, nom, max Vin
A20: Iin_Vinmax | B20: =Pin/VIN_max -> 0.02017277778 | C20: A
A22: Fsw | B22: ='Design Regulator'!E12*1000 -> 250000 | C22: Hz | D22: Nominal Switching Frequency | I22: 1
A23: Vref | B23: 1.223 | C23: V | D23: Reference Voltage
A24: Rt | B24: ='COT Efficiency'!$D$11 -> 82525 | C24: W | D24: Frequency Set Resistor
K25: =B33&"_"&F33&"_"&F37&"_"&I38&"_"&I33 -> COT_VOUTAdj_UVLOInt_SSAdj_IlimGND
A26: Internal PD at Full Load | B26: =IF(MODE=1, 'COT Efficiency'!AT106, 'PFM Efficiency'!AR106) -> 0.03865774059 | C26: W
K27: ="SCH_"&B33&"_"&F33&"_"&F37&"_"&I38&"_"&I33 -> SCH_COT_VOUTAdj_UVLOInt_SSAdj_IlimGND
A29: Step 2: Circuit Configuration for COT / PFM, Fixed / Adj Vout, ILIM, UVLO, SS
A31: COT/PFM | B31: COT | C31: 1 | E31: VOUT Fixed/Adjustable | F31: Fixed | G31: 1 | I31: ILIM pin shorted if 240mA selected | J31: 1 | K31: =B33&", "&F33&", "&I33&", "&F37&", "&I38 -> COT, VOUTAdj, IlimGND, UVLOInt, SSAdj | Q31: Vout<=5V | R31: 6.3V | S31: 1
B32: PFM | C32: 2 | F32: Adjustable | G32: 2 | I32: ILIM resistor needed (60/120/180mA) | J32: 2 | K32: =C33&", "&G33&", "&J33&", "&G37&", "&J38 -> 1, 2, 1, 2, 1 | Q32: Vout<=8V | R32: 10V | S32: 2
A33: MODE | B33: =CHOOSE(C33, "COT", "PFM") -> COT | C33: 1 | E33: MODE_VOUT | F33: =CHOOSE(G33, "VOUTfixed", "VOUTAdj") -> VOUTAdj | G33: =IF(OR(Vout=3.3,Vout=5),1,2) -> 2 | H33: SHORT_ILIM | I33: =CHOOSE(J33, "IlimGND", "IlimRes") -> IlimGND | J33: =IF(C39=4, 1, 2) -> 1 | K33: =C33&G33&J33&G37&J38 -> 12121 | Q33: Vout<=12V | R33: 16V | S33: 3
Q34: Vout<=20V | R34: 25V | S34: 4
A35: Current Limit | B35: 60 mA | C35: 1 | E35: UVLO | F35: Adjustable | G35: 1 | H35: Soft Start | I35: Adjustable | J35: 1 | Q35: Vout>20V | R35: 50V | S35: 5
B36: 120 mA | C36: 2 | F36: Internal | G36: 2 | I36: 0.9ms Fixed | J36: 2 | L36: Iout Linear Axis | M36: 1 | Q36: Cout Voltage Rating | R36: =CHOOSE(S36,"6.3V","10V","16V","25V","50V") -> 6.3V | S36: =IF(Vout<=5, 1, IF(Vout<=8, 2, IF(Vout<=12, 3, IF(Vout<=20, 4, 5)))) -> 1
B37: 180 mA | C37: 3 | E37: MODE_UVLO | F37: =CHOOSE(G37, "UVLOAdj", "UVLOInt") -> UVLOInt | G37: 2 | I37: None | J37: 3 | L37: Iout Log Axis | M37: 2
B38: 240 mA | C38: 4 | H38: MODE_SS | I38: =CHOOSE(J38, "SSAdj", "SSfix", "SSno") -> SSAdj | J38: 1 | L38: PLOT_TYPE | M38: 1
A39: MODE_ILIM | B39: =CHOOSE(C39, 60.1,120.1,180.1, 240.1) -> 240.1 | C39: 4 | R39: 0402 | S39: 1 | T39: 1.0 x 0.5 | U39: 0.5
R40: 0603 | S40: 2 | T40: 1.6 x 0.8 | U40: 1.3
R41: 0805 | S41: 3 | T41: 2.0 x 1.25 | U41: 2.5
A42: Step 3: Filter Inductor | R42: 1206 | S42: 4 | T42: 3.2 x 1.6 | U42: 5.1
A43: Don1 | B43: =Vout/VIN_nom -> 0.2750833333 | C43: =(Vout-VIN_nom)/Vout -> -2.635262042 | E43: Ideal Duty Cycle at VIN(nom) | I43: 1 | R43: 1210 | S43: 5 | T43: 3.2 x 2.5 | U43: 8
A44: Doff1 | B44: =1-43:43 -> 0.7249166667 | E44: Ideal 1- Duty Cycle at VIN(nom) | I44: 1 | Q44: Component Size | R44: =CHOOSE(S44,"0402","0603","0805","1206","1210") -> 1210 | S44: 5 | T44: =CHOOSE(S44,T39,T40, T41,T42,T43) -> 3.2 x 2.5
A46: Don_Vinmin | B46: =Vout/VIN_min -> 0.5501666667 | C46: =IF(VIN_min>Vout, "BUCK", "BOOST") -> BUCK
A47: Don_Vinnom | B47: =Vout/VIN_nom -> 0.2750833333 | C47: =IF(VIN_nom>Vout, "BUCK", "BOOST") -> BUCK
A48: Don_Vinmax | B48: =Vout/VIN_max -> 0.16505 | C48: =IF(VIN_max>Vout, "BUCK", "BOOST") -> BUCK | R48: 3mm x 3mm | S48: 1 | T48: 3.0 x 3.0 | U48: 9
R49: 4mm x 4mm | S49: 2 | T49: 4.0 x 4.0 | U49: 16
A50: Lf_Vinmin | B50: =(VIN_min-Vout)*Don_Vinmin/(Fsw*Iout*0.4) -> 0.0001349908939 | C50: H | D50: COT | R50: 5mm x 5mm | S50: 3 | T50: 5.0 x 5.0 | U50: 25
A51: Lf_Vinnom | B51: =(VIN_nom-Vout)*Don_Vinnom/(Fsw*Iout*0.4) -> 0.0002175409015 | C51: H | D51: COT | I51: 1 | R51: 6mm x 6mm | S51: 4 | T51: 6.0 x 6.0 | U51: 36
A52: Lf_Vinmax | B52: =(VIN_max-Vout)*Don_Vinmax/(Fsw*Iout*0.7) -> 0.0001431776597 | C52: H | D52: COT | R52: 7mm x 7mm | S52: 5 | T52: 7.0 x 7.0 | U52: 49
Q53: Inductor Size
A54: L_Vinmin_COT | B54: =(VIN_min-Vout)*Don_Vinmin/(Fsw*Iout*0.3) -> 0.0001799878586 | C54: H | D54: COT | E54: Calculated Inductance for 30% ripple at VIN(min)
A55: L_Vinnom_COT | B55: =(VIN_nom-Vout)*Don_Vinnom/(Fsw*Iout*0.5) -> 0.0001740327212 | C55: H | D55: COT | E55: Calculated Inductance for 40% ripple at VIN(nom) | K55: Pk-to-Pk Ripple Current at VIN(nom), DIL
A56: L_Vinmax_COT | B56: =(VIN_max-Vout)*Don_Vinmax/(Fsw*Iout*0.7) -> 0.0001431776597 | C56: H | D56: COT | E56: Calculated Inductance for 70% ripple at VIN(max)
A58: L_PFM | B58: =(Vin-Vout-(Rdcr+Rdson1)*Ioutmax)*PFM_Duty_Cycle/Fsw/IripplePFM -> 4.035917631e-05 | D58: PFM | E58: Calculated Inductance for given pulse frequency at VIN(nom)
A60: Lopt | B60: =CHOOSE(MODE, B55, B58) -> 0.0001740327212 | C60: H
A62: Lf | B62: ='Design Regulator'!E18/1000000 -> 0.00022 | C62: H | E62: Chosen Inductance | I62: 2
A63: Rdcr | B63: ='Design Regulator'!E19/1000 -> 0.3 | C63: W | E63: Chosen Inductor DCR | I63: 1
A65: Actual PFM Pulse Freq (Fsw) at Vin(nom) | B65: =(Vin-Vout-(Rdcr+Rdson1)*Ioutmax)*PFM_Duty_Cycle/Lf/IripplePFM/1000 -> 45.86270035 | C65: kHz
A67: Don2 | B67: =(Vout+Iout*Rdcr)/Vin -> 0.2778333333 | E67: **Edit to add Rdson** | I67: 2
A68: Doff2 | B68: =1-_Don2 -> 0.7221666667 | I68: 2
A70: Rdson1 | B70: 2 | C70: W | D70: PMOS
A71: Rdson2 | B71: =RdsonBot -> 1 | C71: W | D71: NMOS
A73: Don_Vinmin_2 | B73: =(Vout+Iout*(Rdcr+Rdson2))/(VIN_min+Iout*Rdson2) -> 0.5636661211 | E73: Duty cycles adjusted for DCR and shunt voltage drops | I73: 2
A74: Don_Vinnom_2 | B74: =(Vout+Iout*(Rdcr+Rdson2))/(VIN_nom+Iout*Rdson2) -> 0.2843930636 | E74: need to include RDS(on) later
A75: Don_Vinmax_2 | B75: =(Vout+Iout*(Rdcr+Rdson2))/(VIN_max+Iout*Rdson2) -> 0.1712580806
A77: Iripple_Vinmin | B77: =(VIN_min-Vout-Rdson1*Iout)*Don_Vinmin_2/(Fsw*Lf) -> 0.02540596935 | C77: A | D77: COT
A78: Iripple_Vinnom | B78: =(VIN_nom-Vout-Rdson1*Iout)*Don_Vinnom_2/(Fsw*Lf) -> 0.04384306884 | C78: A | D78: COT
A79: Iripple_Vinmax | B79: =(VIN_max-Vout)*Don_Vinmax_2/(Fsw*Lf) -> 0.05199706704 | C79: A | D79: COT
A81: ILpk_Vinmin | B81: =Iout+Iripple_Vinmin/2 -> 0.1227029847 | C81: A | D81: COT
A82: ILpk_Vinnom | B82: =Iout+Iripple_Vinnom/2 -> 0.1319215344 | C82: A | D82: COT
A83: ILpk_Vinmax | B83: =Iout+Iripple_Vinmax/2 -> 0.1359985335 | C83: A | D83: COT
A85: Ripple current | B85: =IF(MODE=1, Iripple_Vinnom, Iripple) -> 0.04384306884 | C85: A | H85: % Ripple Current at Nom VIN
H86: Maximum Load Current
A87: Max inductor ripple current | B87: =MAX(B77:B79) -> 0.05199706704 | C87: A
F88: Ripple I | G88: Iin
A89: % Ripple Current | B89: =B77/Iout -> 0.2309633577 | D89: COT | F89: =B77 -> 0.02540596935 | G89: =Iin_Vinmin -> 0.06724259259
B90: =B78/Iout -> 0.3985733531 | D90: COT | F90: =B78 -> 0.04384306884 | G90: =Iin_Vinnom -> 0.0336212963
B91: =B79/Iout -> 0.4727006095 | D91: COT | F91: =B79 -> 0.05199706704 | G91: =Iin_Vinmax -> 0.02017277778
B93: =IF(MODE=1, B90, Ilim/Iout) -> 0.3985733531
A95: Iripple1 | B95: =(Vin-Vout)*Don_Vinnom_2/(Fsw*Lf) -> 0.04498064109 | C95: A | D95: inductor ripple current with chosen inductance (pk-pk) | I95: 1
A96: Temp | B96: 100
A97: DCR at hot | B97: =Rdcr*(1+0.0039*(B96-25)) -> 0.38775 | C97: W
A101: Step 3: Output Capacitor
A102: Icoutrms_VINmin | B102: =Iripple_Vinmin/SQRT(12) -> 0.007334071622 | C102: A | D102: Output Cap RMS current
A103: Icoutrms_VINnom | B103: =Iripple_Vinnom/SQRT(12) -> 0.0126564038 | C103: A
A104: Icoutrms_VINmax | B104: =Iripple_Vinmax/SQRT(12) -> 0.01501026033 | C104: A | G104: =Vripple1 -> 0.005398201145
A106: Output Ripple Spec (pk-pk) | B106: =Vout/Vref*0.002 -> 0.005398201145 | C106: V | D106: Vout capacitive ripple spec at Vin(nom) = Vripple1 = 2mV at FB
A108: Coutmin | B108: =2/Pi/CoutEsr/Fsw -> 1.697652728e-06 | D108: = 2/Pi*ESR*Fsw
A109: COT | B109: =Iripple_Vinnom/Fsw*100/Vout -> 5.312701465e-06 | C109: F | D109: COT | E109: Min recommended Cout based on ripple spec above | I109: 1 | K109: =Iripple_Vinnom/Fsw*100/Vout -> 5.312701465e-06 | M109: Use 100/Vout as the scale factor
B110: =Lf*B82^2/((1.05*Vout)^2-Vout^2) -> 3.42798691e-06 | C110: F | D110: COT | E110: Min recommended Cout based on 5% load-off transient spec
B111: =MAX(B109:B110, 0.0000022) -> 5.312701465e-06 | C111: F | D111: COT | E111: max of 2 results and 2.2uF
A113: Coutmin
A114: PFM | B114: =MIN(100*L*(IL_peak/Vout)^2, 0.0001) -> 0.0001 | C114: F | D114: PFM | E114: Min recommneded Cout based on 0.5% ripple per switching pulse, max 100uF
A116: Reported Countmin | B116: =CHOOSE(MODE, Coutmin*1000000, B114*1000000) -> 5.312701465 | C116: µF
A118: Cout | B118: ='Design Regulator'!E25/1000000 -> 0.0001 | C118: F | D118: Chosen Output Capacitance | I118: 1
A119: Resrmax | B119: =SQRT((Vripple1/Iripple_Vinnom)^2-(1/(Fsw*Cout*8))^2) -> 0.123023967 | C119: W | D119: Max ESR before ripple exceeds Vripple1 | I119: 1
A120: ESR for sufficient (20mV) COT ripple at FB pin | B120: =0.02*Vout/Vref/Iripple_Vinnom -> 1.231255313 | C120: W | D120: (a)
A122: Output Cap RC Time Constant | B122: =Cout*B126*1000000 -> 123.1255313 | C122: µs
A123: Ton @ Vin(min) | B123: =Vout/VIN_min/(Fsw) -> 2.200666667e-06 | C123: µs | G123: =Vref -> 1.223
A124: ESR so that RC > Ton/2 | B124: =B123/2/Cout -> 0.01100333333 | C124: W | D124: (b)
A126: Need ESR of… | B126: =IF(MODE=1, MAX(B120,B124), 0) -> 1.231255313 | C126: W | D126: Max of (a) and (b) | G126: =Iout -> 0.11
A128: Reported Cout ESR max | B128: =IF(OR(CoutEsrMax>0.5, CoutEsrMax<0, (ISERROR(CoutEsrMax))), "N/A", CoutEsrMax*1000) -> 123.023967 | C128: mW
A130: CoutEsr | B130: ='Design Regulator'!E27 -> 1.5 | C130: W | D130: Chosen ESR | I130: 1
A132: Actual Output Ripple - PFM | B132: =Iout*0.000004/Cout+Vout/123 -> 0.03123739837 | C132: Vp-p | D132: includes 4us wakep delay | G132: =Cout -> 0.0001
A134: Actual Output Ripple - COT | B134: =Iripple_Vinnom*SQRT(CoutEsr^2+(1/(8*Fsw*Cout))^2) -> 0.06576496862 | C134: Vp-p | D134: Vripple2
A137: Step 5: Input Capacitor
A138: Vinripple1 | B138: =0.02*VIN_nom -> 0.24 | C138: Vp-p | D138: Input voltage ripple spec (pk-pk) at Vin(nom) = 20%
A140: Icinrms | B140: =Iout*SQRT(Don_Vinnom_2*(1-Don_Vinnom_2)) -> 0.04962373578 | C140: A
A141: Cinmin | B141: =Iout*Don_Vinnom_2*(1-Don_Vinnom_2)/(Vinripple1*Fsw)*1000000 -> 0.3731083564 | C141: µF
A142: Reported Cinmin | B142: =IF(Cinmin<0.47, 0.47,Cinmin) -> 0.47 | C142: µF
A143: Cin | B143: ='Design Regulator'!E30/1000000 -> 4.7e-06 | C143: F | D143: Input capacitance
A144: CinEsrMax | B144: =-(Iout*Don_Vinnom_2*(1-Don_Vinnom_2)/(Cin*Fsw)-Vinripple1)/(Iout+Iripple_Vinnom/2) -> 1.674841483 | C144: W
A145: RCinEsr | B145: ='Design Regulator'!E31/1000 -> 0.003 | C145: W | D145: Input capacitance series resistance (ESR)
A146: Reported Cin ESR max | B146: =IF(OR(CinEsrMax>12, CinEsrMax<0), "N/A",CinEsrMax*1000) -> 1674.841483 | C146: mΩ
A148: COT input voltage ripple - Vinripple2 | B148: =Iout*Don_Vinnom_2*(1-Don_Vinnom_2)/(Cin*Fsw)+(Iout +Iripple_Vinnom/2)*RCinEsr*Don_Vinnom_2 -> 0.01916489431 | C148: Vp-p | E148: =Iout*Don_Vinmax_2*(1-Don_Vinmax_2)/(Cin*Fsw) -> 0.01328694685 | F148: Vp-p
A150: PFM input voltage ripple | B150: ='PFM Efficiency'!N111*'PFM Efficiency'!N109/Cin -> 0.1722013802 | C150: Vp-p
A153: Step 6: Soft Start
A154: Tss | B154: ='Design Regulator'!E38/1000 -> 0.006 | C154: s | D154: Soft-start time
A155: Iss | B155: 1e-05 | C155: A | D155: Soft-start current
A156: Css | B156: =8.1*Tss/1000000 -> 4.86e-08 | C156: F | D156: Required soft-start cap
A157: Css_u | B157: ='Standard Value Calculator'!B4 -> 4.7e-08 | C157: F | D157: User selected SS cap
A159: Step 7: Other Components - UVLO, HYS, PGOOD
A161: Rising UVLO/EN Threshold | B161: 1.212 | C161: V
A162: Falling UVLO/EN Threshold | B162: 1.144 | C162: V
A163: Voltage Hysteresis | B163: =B161-B162 -> 0.068 | C163: V
A165: VINUVLO_ON | B165: ='Design Regulator'!E41 -> 20 | C165: V
A166: VINUVLO_OFF | B166: ='Design Regulator'!E42 -> 18 | C166: V
A168: RUV1 | B168: ='Design Regulator'!E43*1000 -> 1000 | C168: kΩ | D168: ='Standard Value Calculator'!J16 -> 1000 | E168: kΩ | F168: =IF(Ruvlo1<0,"N/A",D168) -> 1000 | G168: =IF(Ruvlo1<0,"N/A",D168&"kΩ") -> 1000kΩ
A169: RUV2 | B169: =Vuvlo_on*Ruvlo1/(VINuvlo_on-Vuvlo_on) -> 64.50926123 | C169: kΩ | D169: ='Standard Value Calculator'!J17 -> 64.9 | E169: kΩ | F169: =IF(F168="N/A","N/A",D169) -> 64.9 | G169: =IF(G168="N/A","N/A",D169&"kΩ") -> 64.9kΩ
A170: RHYS | B170: =(Vuvlo_off*Ruvlo1-Ruvlo2*(VINuvlo_off-Vuvlo_off))/(VINuvlo_off-Vuvlo_off) -> 3.359746838 | C170: kΩ | D170: =IF(Rhys<0, 0, 'Standard Value Calculator'!J18) -> 3.32 | E170: kΩ | F170: =IF(F169="N/A","N/A",D170) -> 3.32 | G170: =IF(G169="N/A","N/A",D170&"kΩ") -> 3.32kΩ
A173: VINUVLO_ON_ACTUAL | B173: =(D168+D169)/D169*Vuvlo_on -> 19.88688444 | C173: V
A174: VINUVLO_OFF_ACTUAL | B174: =(D168+D169+D170)/(D169+D170)*Vuvlo_off -> 17.91327587 | C174: V
A176: RPG | B176: 10 | C176: kΩ
A179: Step 8: FB Divider
A180: Pi | B180: 3.14159265 | D180: p
A181: Toff_Vinmax | B181: =(1-Don_Vinmax_2)/Fsw -> 3.314967678e-06 | C181: sec
A182: Ton_Vinmin | B182: =IF(VIN_min>Vout, (1-Don_Vinmin_2)/Fsw, Don_Vinmin_2/Fsw) -> 1.745335516e-06 | C182: sec
A184: Rfb1 | B184: ='Design Regulator'!E35*1000 -> 210000 | C184: W | D184: Upper Feedback Resistance - chosen by user | I184: 1
A185: Rfb2 | B185: =IF(Vout=Vref,100000000,Vref*B184/((Vout-Vref))) -> 123594.8027 | C185: W | D185: Lower Feedback Resistance
A186: Rfb2_u | B186: =IF(Vout=Vref,"N/A",'Standard Value Calculator'!J10) -> 124000 | C186: W | D186: Std Value Lower Feedback Resistance
A188: Ifb | B188: =CHOOSE(MODE_VOUT, IF(Vout=5, 0.000007, 0.0000038), Vout/(Rfb1_+Rfb2_u)) -> 9.883233533e-06
A191: Other Input Variables
A192: Rfets | B192: 0 | C192: W | D192: Series resistance due to FETs | H192: =_Don2*RdsonTop+Doff2*RdsonBot+B196*Vin^2*Fsw/2/(((Iripple1/SQRT(3))^2)) -> 134.7259602
A193: Diode loss eq res | B193: =0.00000002*Fsw*0.6*4/Iripple1 -> 0.2667814355
A194: Fet loss eq res | B194: =_Don2*RdsonTop+Doff2*RdsonBot -> 1.277833333
A195: cap loss eq res | B195: =B196*Vin^2*Fsw/2/(((Iripple1/SQRT(3))^2)) -> 133.4481269
A196: Sw cap | B196: 5e-09
A198: Step 8: Efficiency
A200: Design
A201: Ta | B201: 25 | C201: °C | D201: Ambient Temperature
A202: Components
A203: LTc | B203: =4000/1000000 -> 0.004 | C203: %/°C | D203: Inductor DCR Temp Co
A204: θCA | B204: 20 | C204: °C/W | D204: Inductor Core to Ambient Thermal Resistance
A205: RCinEsr | B205: =RCinEsr -> 0.003 | C205: W | D205: Input Capacitor ESR
A206: Part Characteristics
A207: Vcc | B207: 5 | C207: V
A208: Deadtime
A209: Deadtime | B209: 2.5e-08 | C209: s | D209: Total Deadtime | G209: 25ns for LM5165
A210: IQ
A211: IQ | B211: 1.05e-05 | C211: A | D211: Quiescent Current Of Controller (Not Switching!)
A214: IC Power Disipation | B214: Value | C214: Units
A215: Power Dis | B215: =#REF! ->  | C215: W
A216: Temp rise | B216: =B215*ThetaJaCtrl ->  | C216: °C
A217: Current (switching) | B217: =(Qg_Q1+Qg_Q2)*Fsw+Iq ->  | C217: A
A218: Qrr Current | B218: =Qrr_Q2*Fsw ->  | C218: A
A219: Diode Current | B219: =C219/Vin ->  | C219: =Deadtime*Fsw*(Ipp/2)*(Vsd_Q1+Vsd_Q2) -> 
A220: Total Application Switching IQ | B220: =SUM(B217:B219) ->  | C220: A
A223: SCHEMATIC LABELS
A226: ="RUV1 = "&'Design Regulator'!E43&"MΩ" -> RUV1 = 1MΩ | B226: =C262 -> 
A227: ="RUV2 = "&'Design Regulator'!E44&"kΩ" -> RUV2 = kΩ | B227: =C263 -> 
A228: ="Rhys = "&'Design Regulator'!E45&"kΩ" -> Rhys = kΩ | B228: =C264 -> 
A230: ="LF = "&'Design Regulator'!E18&"µH" -> LF = 220µH | B230: ='Design Regulator'!E18&"µH" -> 220µH
A231: ="Rdcr = "&Rdcr*1000&"mΩ" -> Rdcr = 300mΩ | B231: =Rdcr*1000&"mΩ" -> 300mΩ
A232: ="Rt = "&'Design Regulator'!I35&"kΩ" -> Rt = kΩ | B232: ='Design Regulator'!I35&"kΩ" -> kΩ
A233: ="Css = "&ROUND(Css_u*1000000000,1)&"nF" -> Css = 47nF | B233: =ROUND(Css_u*1000000000,1)&"nF" -> 47nF
A235: VIN | B235: =VIN_nom&"V" -> 12V
A236: VIN range | B236: =VIN_min&"V..."&VIN_max&"V" -> 6V...20V
A238: ="VOUT = "&'Design Regulator'!E9&"V" -> VOUT = 3.301V | B238: ='Design Regulator'!E9&"V" -> 3.301V
A240: ="COUT = "&'Design Regulator'!$E$25&"µF" -> COUT = 100µF | B240: ='Design Regulator'!$E$25&"µF" -> 100µF
A241: Capacitance per component (Cout) | B241: ="22µF" -> 22µF
A242: # of output caps | B242: =ROUNDUP(Cout*1000000/22,0)&" x" -> 5 x
A244: CIN | B244: =Cin*1000000&"µF" -> 4.7µF
A245: Capacitance per component (Cin) | B245: ="10µF" -> 10µF
A246: # of input caps | B246: =ROUNDUP(Cin*1000000/10,0)&" x" -> 1 x
A248: Fixed VOUT? | B248: =IF(MODE_VOUT=1, "YES", "NO") -> NO
A249: FB resistor ref des shown or not? | B249: =IF(MODE_VOUT=2, "YES", "NO") -> YES | C249: =IF(MODE_VOUT=2, "R1", "") -> R1 | D249: =IF(MODE_VOUT=2, "R2", "") -> R2
A250: ="RFB1 = "&'Design Regulator'!E35&"kΩ" -> RFB1 = 210kΩ | B250: =IF(MODE_VOUT=1, "", 'Design Regulator'!E35&"kΩ") -> 210kΩ | C250: =IF(MODE=1,'Design Regulator'!E35&"kΩ", "") -> 210kΩ
A251: ="RFB2 = "&IF(Vout=Vref,"OPEN",'Design Regulator'!E36&"kΩ") -> RFB2 = 124kΩ | B251: =IF(MODE_VOUT=1, "", IF(Vout=Vref,"OPEN",Rfb2_u/1000&"kΩ")) -> 124kΩ | C251: =IF(MODE=1, IF(Vout=Vref, "OPEN",Rfb2_u/1000&"kΩ" ), "") -> 124kΩ
A254: Show Rt resistor ref des? | B254: =IF(MODE=1, "YES", "NO") -> YES | C254: =IF(MODE=1,"Rt", "") -> Rt
A255: Rt | B255: =IF(MODE=2, "", 'Standard Value Calculator'!J4/1000&"kΩ") -> 82.5kΩ
A257: Show ESR resistor ref des? | B257: =IF(MODE=1, "YES", "NO") -> YES | C257: =IF(MODE=1,"Resr", "") -> Resr
A258: ="RESR = "&'Design Regulator'!E27&"mΩ" -> RESR = 1.5mΩ | B258: =IF(MODE=1, 'Design Regulator'!E27&"Ω", "") -> 1.5Ω | F258: =B120 -> 1.231255313
A259: Resr | B259: =IF(MODE=1, ">"&ROUND(B120,2), "") -> >1.23
A261: Adjustable UVLO? | B261: =IF(MODE_UVLO=1, "YES", "NO") -> NO | C261: =IF(MODE_UVLO=1, "Ruv1", "") ->  | D261: =IF(MODE_UVLO=1, "Ruv2", "") ->  | E261: =IF(MODE_UVLO=1, "Rhys", "") ->  | F261: Value | G261: Units | H261: BOM display
A262: ="RUV1 = "&C262 -> RUV1 = | B262: ='Design Regulator'!E43&" MΩ" -> 1 MΩ | C262: =IF(MODE_UVLO=1,'Design Regulator'!E43&"MΩ", "") ->  | F262: =IF(MODE_UVLO=1,'Design Regulator'!E43, "") ->  | G262: =IF(MODE_UVLO=1,"MΩ", "") ->  | H262: =IF(MODE_UVLO=1,'Design Regulator'!E43&"M", "") -> 
A263: ="RUV2 = "&C263 -> RUV2 = | B263: =IF(D169>=1000, D169/1000&" MΩ", D169&" kΩ") -> 64.9 kΩ | C263: =IF(MODE_UVLO=1, IF(D169<1, D169*1000&"Ω", IF(D169<1000, D169&"kΩ", D169/1000&"MΩ")), "") ->  | F263: =IF(MODE_UVLO=1, IF(D169<1, D169*1000, IF(D169<1000, D169, D169/1000)), "") ->  | G263: =IF(MODE_UVLO=1, IF(D169<1, "Ω", IF(D169<1000,"kΩ", "MΩ")), "") ->  | H263: =IF(MODE_UVLO=1, IF(D169<1, D169*1000, IF(D169<1000, D169&"k", D169/1000&"M")), "") -> 
A264: ="RHYS = "&C264 -> RHYS = | B264: =IF(D170<1000, D170&" kΩ", D170&" MΩ") -> 3.32 kΩ | C264: =IF(MODE_UVLO=1, IF(D170<1, D170*1000&"Ω", IF(D170<1000, D170&"kΩ", D170/1000&"MΩ")), "") ->  | F264: =IF(MODE_UVLO=1, IF(D170<1, D170*1000, IF(D170<1000, D170, D170/1000)), "") ->  | G264: =IF(MODE_UVLO=1, IF(D170<1, "Ω", IF(D170<1000,"kΩ", "MΩ")), "") ->  | H264: =IF(MODE_UVLO=1, IF(D170<1, D170*1000, IF(D170<1000, D170&"k", D170&"M")), "") -> 
A266: ="Css = "&Css*1000000000&"nF" -> Css = 48.6nF | B266: =Css*1000000000&"nF" -> 48.6nF
A267: Css | B267: =CHOOSE(MODE_SS,'Standard Value Calculator'!B4*1000000000&"nF","","100kΩ") -> 47nF | C267: =CHOOSE(MODE_SS,"Css","","Rss") -> Css | D267: =B267 -> 47nF
C268: =C267 -> Css
A270: Show Rilim resistor ref des? | B270: =IF(SHORT_ILIM, "YES", "NO") -> YES | C270: =IF(SHORT_ILIM=1, "", "R3") ->  | F270: =SHORT_ILIM -> 1
A271: Rilim | B271: =IF(MODE_ILIM=4, "", C271&"kΩ") ->  | C271: =IF(MODE_ILIM=1, 100, IF(MODE_ILIM=2,56.2, IF(MODE_ILIM=3, 24.9, 0))) -> 0
A274: Rpgood | B274: 100kΩ
... 24 more rows

Sheet Schematic Mgmt (hidden)
A2: ='Variable Mgmt'!K27 -> SCH_COT_VOUTAdj_UVLOInt_SSAdj_IlimGND

Sheet Efficiency Plots (hidden)
A2: =IF(PLOT_TYPE=1, "EFF_LINEAR", "EFF_LOG") -> EFF_LINEAR

Sheet PFM Efficiency (hidden)
A1: LM5165 (PFM) Efficiency Calculator
G2: TERMS OF USE | P2: =Iripple -> 0.04224279697 | AO2: =Ifb -> 9.883233533e-06
H4: Currents | K4: Miscellaneous | Q4: Inductor Loss | U4: Cout | X4: Cin | AA4: High-side MOSFET Losses | AI4: Low-side MOSFET Losses | AL4: Diode | AS4: RESULTS | BN4: Consolidated Results
A5: Input Parameters | H5: Step | I5: Iout (A) | J5: Ripple Current pk-pk (A) | K5: Input Current (A) | L5: Off Time (sec) | M5: Burst Mode Low Freq Component (Hz) | N5: Output Charge Time (sec) | O5: Output Discharge Time (sec) | P5: Burst Frequency Duty Cycle | Q5: Irms (A) | R5: Inductor DCR Loss @ 25°C (W) | S5: Inductor Core Loss (W) | T5: Inductor Total Loss (W) | U5: Irms (A) | V5: Cout ESR Loss (W) | W5: Total Cout Loss (W) | X5: Irms (A) | Y5: Cin ESR Loss (W) | Z5: Total Cin Loss (W) | AA5: Irms (A) | AB5: Rdson HS Loss @ 25°C (W) | AC5: HS Gate Qg Loss (W) | AD5: SW Rise Time (ns) | AE5: SW Fall Time (ns) | AF5: HS Switching Loss (W) | AG5: Coss Loss (W) | AH5: Total HS FET Loss (W) | AI5: Irms (A) | AJ5: Rdson LS Loss @ 25°C (W) | AK5: LS Gate Qg Loss (W) | AL5: Leakage Loss (W) | AM5: DeadTime Loss @ 25°C (W) | AN5: Total LS FET Loss (W) | AO5: Quiescent Loss (W) | AP5: LDO + Quiescent Loss (W) | AQ5: Total Gate Drive Loss (W) | AR5: Total Power Loss in IC (W) | AS5: Total Converter Power Loss (W) | AT5: Pout (W) | AU5: EFF (%) | AV5: High-side MOSFET Rdson % | AW5: Low-side MOSFET Rdson % | AX5: Gate Drive (Qg) Loss from Vin % | AY5: High-side MOSFET Switching Loss % | AZ5: Leakage Loss % | BA5: Low-side MOSFET Deadtime Loss % | BB5: Inductor Cu Loss % | BC5: Inductor Core Loss % | BD5: Cin Cout ESR % | BE5: Quiescent Current Loss % | BF5: Total Loss % | BG5: Overall Eff (%) | BH5: Overall Eff | BI5: Current (mA) | BJ5: Keep for "previous" data series | BK5: Keep for "previous" data series | BL5: Burst Mode Frequency (kHz) | BN5: Total Power Loss in IC (mW) | BO5: LDO + Quiescent Loss (mW) | BP5: Total Inductor Loss (mW)
A6: Design | B6: Input Value | C6: Units | D6: Std Units | E6: Description | H6: 0.1 | I6: =IF(PLOT_TYPE=1, H6/100*Iout_maxload_PFM, min_I*EXP(H6*rr/100)) -> 0.00011 | J6: =IripplePFM -> 0.243055 | K6: =I6*D*P6 -> 2.868286113e-08 | L6: =OffTime -> 1.545079797e-05 | M6: =1/(N6+O6) -> 40.7178468 | N6: =Cout*Vout_hys/(Ioutmax-I6) -> 2.197749872e-05 | O6: =Cout*Vout_hys/I6 -> 0.02453727793 | P6: =N6/(N6+O6) -> 0.0008948764257 | Q6: =IripplePFM/SQRT(3)*SQRT(P6) -> 0.004197835983 | R6: =Q6^2*Rdcr -> 5.286548082e-06 | S6: =P6*Fsw^2.5*(IripplePFM/2)^2.5*k_core -> 1.037692162e-07 | T6: =R6+S6 -> 5.390317298e-06 | U6: =SQRT((((I6*(1-P6)/P6)^2+Ilim^2/12)*P6)+I6^2*(1-P6)) -> 0.004219988992 | V6: =RCoutEsr*U6^2 -> 2.671246064e-08 | W6: =V6 -> 2.671246064e-08 | X6: =SQRT((K6^2*(1-D)+(K6-Ilim)^2*D/3))*P6+(K6^2*(1-P6)) -> 6.696192144e-05 | Y6: =RCinEsr*X6^2 -> 1.345169677e-11 | Z6: =Y6 -> 1.345169677e-11 | AA6: =Ilim*SQRT(P6*D/3) -> 0.002238444986 | AB6: =RdsonTop*AA6^2 -> 1.002127191e-05 | AC6: =QgTop*P6*Vdd*Fsw -> 3.693730443e-07 | AD6: 20 | AE6: 10 | AF6: =Vin*Ilim*Tf/2*Fsw*P6 -> 1.182486239e-06 | AG6: =Coss*Vin^2*Fsw*P6/2 -> 1.034244524e-07 | AH6: =AB6+AF6+AG6 -> 1.13071826e-05 | AI6: =Ilim*SQRT(P6*(1-D)/3) -> 0.003490746686 | AJ6: =RdsonBot*AI6^2 -> 1.218531242e-05 | AK6: =QgBot*P6*Vdd*Fsw -> 1.539054351e-07 | AL6: =Vin*Idss -> 0 | AM6: =dead1*P6*Ilim*((Ilim)*BDserR+VSD)*Fsw -> 2.71986616e-07 | AN6: =AJ6+AL6+AM6 -> 1.245729904e-05 | AO6: =Vin*(Iq_active*(N6+Tsleep)+Iq_sleep*(O6-Tsleep))/(N6+O6)+Vout*Ifb/0.7 -> 0.0001747901826 | AP6: =(Vin-Vdd)*Fsw*(QgBot+QgTop)*P6+AO6 -> 0.0001755227725 | AQ6: =AC6+AK6 -> 5.232784794e-07 | AR6: =AH6+AN6+AP6+AQ6 -> 0.0001998105326 | AS6: =SUM(T6,W6,Z6,AR6) -> 0.0002052275758 | AT6: =Vout*I6 -> 0.00036311 | AU6: =100*AT6/(AT6+AS6) -> 63.88984566 | AV6: =AB6/($AT6+$AS6) -> 0.01763260488 | AW6: =AJ6/($AT6+$AS6) -> 0.02144027237 | AX6: =Vin*Fsw*P6*(QgBot+QgTop)/($AT6+$AS6) -> 0.002209722538 | AY6: =(AF6+AG6)/($AT6+$AS6) -> 0.002262582567 | AZ6: =AL6/(AS6+AT6) -> 0 | BA6: =AM6/($AT6+$AS6) -> 0.0004785652535 | BB6: =R6/($AT6+$AS6) -> 0.009301774696 | BC6: =S6/($AT6+$AS6) -> 0.0001825837682 | BD6: =(W6+Z6)/($AT6+$AS6) -> 4.702471467e-05 | BE6: =AO6/($AT6+$AS6) -> 0.3075464126 | BF6: =SUM(AV6:BE6) -> 0.3611015434 | BG6: =AU6/100 -> 0.6388984566 | BH6: =BG6*100 -> 63.88984566 | BI6: =I6*1000 -> 0.11 | BJ6: 47.14385499 | BK6: =BJ6/100 -> 0.4714385499 | BL6: 17.13727728 | BN6: =1000*AR6 -> 0.1998105326 | BO6: =1000*AP6 -> 0.1755227725 | BP6: =1000*T6 -> 0.005390317298
H7: 1 | I7: 0.0011 | J7: 0.243055 | K7: 2.868286113e-06 | L7: 1.545079797e-05 | M7: =1/(N7+O7) -> 403.896161 | N7: 2.21561013e-05 | O7: 0.002453727793 | P7: =N7/(N7+O7) -> 0.008948764257 | Q7: 0.01327472295 | R7: =Q7^2*Rdcr -> 5.286548082e-05 | S7: 1.037692162e-06 | T7: =R7+S7 -> 5.390317298e-05 | U7: 0.01330391187 | V7: =RCoutEsr*U7^2 -> 2.654911064e-07 | W7: =V7 -> 2.654911064e-07 | X7: =SQRT((K7^2*(1-D)+(K7-Ilim)^2*D/3))*P7+(K7^2*(1-P7)) -> 0.0006696113035 | Y7: =RCinEsr*X7^2 -> 1.345137893e-09 | Z7: =Y7 -> 1.345137893e-09 | AA7: =Ilim*SQRT(P7*D/3) -> 0.007078584573 | AB7: =RdsonTop*AA7^2 -> 0.0001002127191 | AC7: =QgTop*P7*Vdd*Fsw -> 3.693730443e-06 | AD7: 20 | AE7: 10 | AF7: =Vin*Ilim*Tf/2*Fsw*P7 -> 1.182486239e-05 | AG7: =Coss*Vin^2*Fsw*P7/2 -> 1.034244524e-06 | AH7: =AB7+AF7+AG7 -> 0.000113071826 | AI7: =Ilim*SQRT(P7*(1-D)/3) -> 0.01103871026 | AJ7: =RdsonBot*AI7^2 -> 0.0001218531242 | AK7: =QgBot*P7*Vdd*Fsw -> 1.539054351e-06 | AL7: 0 | AM7: =dead1*P7*Ilim*((Ilim)*BDserR+VSD)*Fsw -> 2.71986616e-06 | AN7: =AJ7+AL7+AM7 -> 0.0001245729904 | AO7: 0.000194435615 | AP7: =(Vin-Vdd)*Fsw*(QgBot+QgTop)*P7+AO7 -> 0.0002017615137 | AQ7: =AC7+AK7 -> 5.232784794e-06 | AR7: =AH7+AN7+AP7+AQ7 -> 0.0004446391149 | AS7: =SUM(T7,W7,Z7,AR7) -> 0.0004988091241 | AT7: 0.0036311 | AU7: =100*AT7/(AT7+AS7) -> 87.92203147 | AV7: =AB7/($AT7+$AS7) -> 0.02426511483 | AW7: =AJ7/($AT7+$AS7) -> 0.02950503766 | AX7: =Vin*Fsw*P7*(QgBot+QgTop)/($AT7+$AS7) -> 0.003040910375 | AY7: =(AF7+AG7)/($AT7+$AS7) -> 0.003113653722 | AZ7: =AL7/(AS7+AT7) -> 0 | BA7: =AM7/($AT7+$AS7) -> 0.0006585777262 | BB7: 0.01280064021 | BC7: 0.0002512627108 | BD7: =(W7+Z7)/($AT7+$AS7) -> 6.461068181e-05 | BE7: =AO7/($AT7+$AS7) -> 0.04707987734 | BF7: =SUM(AV7:BE7) -> 0.1207796853 | BG7: =AU7/100 -> 0.8792203147 | BH7: =BG7*100 -> 87.92203147 | BI7: 1.1 | BJ7: 84.46203099 | BK7: =BJ7/100 -> 0.8446203099 | BL7: 18.13727728 | BN7: =1000*AR7 -> 0.4446391149 | BO7: =1000*AP7 -> 0.2017615137 | BP7: =1000*T7 -> 0.05390317298
A8: Vin | B8: =Vin -> 12 | C8: V | D8: =B8 -> 12 | E8: Vin | H8: 2 | I8: 0.0022 | J8: 0.243055 | K8: 1.147314445e-05 | L8: 1.545079797e-05 | M8: =1/(N8+O8) -> 800.4983065 | N8: 2.235798423e-05 | O8: 0.001226863897 | P8: =N8/(N8+O8) -> 0.01789752851 | Q8: 0.01877329323 | R8: 0.0001057309616 | S8: 2.075384324e-06 | T8: =R8+S8 -> 0.000107806346 | U8: 0.01875015045 | V8: 5.273522128e-07 | W8: =V8 -> 5.273522128e-07 | X8: 0.001339174734 | Y8: 5.380166904e-09 | Z8: =Y8 -> 5.380166904e-09 | AA8: 0.01001063031 | AB8: 0.0002004254382 | AC8: 7.387460885e-06 | AD8: 20 | AE8: 10 | AF8: 2.364972478e-05 | AG8: 2.068489048e-06 | AH8: =AB8+AF8+AG8 -> 0.0002261436521 | AI8: 0.01561109376 | AJ8: 0.0002437062485 | AK8: 3.078108702e-06 | AL8: 0 | AM8: 5.439732321e-06 | AN8: =AJ8+AL8+AM8 -> 0.0002491459808 | AO8: 0.0002162477002 | AP8: 0.0002308994976 | AQ8: =AC8+AK8 -> 1.046556959e-05 | AR8: =AH8+AN8+AP8+AQ8 -> 0.0007166547 | AS8: 0.0008249937784 | AT8: 0.0072622 | AU8: =100*AT8/(AT8+AS8) -> 89.79876332 | AV8: =AB8/($AT8+$AS8) -> 0.02478306366 | AW8: =AJ8/($AT8+$AS8) -> 0.0301348348 | AX8: 0.003105819855 | AY8: =(AF8+AG8)/($AT8+$AS8) -> 0.003180115938 | AZ8: 0 | BA8: 0.000672635338 | BB8: 0.01307387513 | BC8: 0.0002566260165 | BD8: 6.587357671e-05 | BE8: =AO8/($AT8+$AS8) -> 0.02673952252 | BF8: =SUM(AV8:BE8) -> 0.1020123668 | BG8: 0.8979876332 | BH8: =BG8*100 -> 89.79876332 | BI8: 2.2 | BJ8: 88.34752273 | BK8: =BJ8/100 -> 0.8834752273 | BL8: 19.84152928 | BN8: =1000*AR8 -> 0.7166547 | BO8: =1000*AP8 -> 0.2308994976 | BP8: =1000*T8 -> 0.107806346
A9: Vout | B9: =Vout -> 3.301 | C9: V | D9: =B9 -> 3.301 | E9: Vout | H9: 3 | I9: 0.0033 | J9: 0.243055 | K9: 2.581457502e-05 | L9: 1.545079797e-05 | M9: 1189.806437 | N9: 2.256358005e-05 | O9: 0.0008179092644 | P9: 0.02684629277 | Q9: 0.0229924946 | R9: 0.0001585964424 | S9: 3.113076486e-06 | T9: 0.0001617095189 | U9: 0.02288497789 | V9: 7.855833193e-07 | W9: 7.855833193e-07 | X9: 0.002008642632 | Y9: 1.210393567e-08 | Z9: 1.210393567e-08 | AA9: 0.01226046813 | AB9: 0.0003006381573 | AC9: 1.108119133e-05 | AD9: 20 | AE9: 10 | AF9: 3.547458717e-05 | AG9: 3.102733572e-06 | AH9: 0.0003392154781 | AI9: 0.01911960702 | AJ9: 0.0003655593727 | AK9: 4.617163053e-06 | AL9: 0 | AM9: 8.159598481e-06 | AN9: 0.0003737189712 | AO9: 0.0002380427611 | AP9: 0.0002600204572 | AQ9: 1.569835438e-05 | AR9: 0.0009886532609 | AS9: 0.001151160467 | AT9: 0.0108933 | AU9: 90.44240736 | AV9: 0.02496069942 | AW9: 0.03035083005 | AX9: 0.003128081214 | AY9: 0.003202909823 | AZ9: 0 | BA9: 0.0006774565373 | BB9: 0.01316758379 | BC9: 0.0002584654161 | BD9: 6.622855852e-05 | BE9: 0.01976367159 | BF9: 0.0955759264 | BG9: 0.9044240736 | BH9: 90.44240736 | BI9: 3.3 | BJ9: 89.72356048 | BK9: 0.8972356048 | BL9: 21.30396009 | BN9: 0.9886532609 | BO9: 0.2600204572 | BP9: 0.1617095189
A10: Iout_maxload | B10: =MIN(Iout, ROUND(Ilim/2,3)) -> 0.11 | C10: A | D10: =B10 -> 0.11 | E10: Iout(rated) | H10: 4 | I10: 0.0044 | J10: 0.243055 | K10: 4.589257781e-05 | L10: 1.545079797e-05 | M10: 1571.820551 | N10: 2.277299212e-05 | O10: 0.0006134319483 | P10: 0.03579505703 | Q10: 0.0265494459 | R10: 0.0002114619233 | S10: 4.150768648e-06 | T10: 0.0002156126919 | U10: 0.02633355813 | V10: 1.040184426e-06 | W10: 1.040184426e-06 | X10: 0.002677967603 | Y10: 2.151453145e-08 | Z10: 2.151453145e-08 | AA10: 0.01415716915 | AB10: 0.0004008508765 | AC10: 1.477492177e-05 | AD10: 20 | AE10: 10 | AF10: 4.729944956e-05 | AG10: 4.136978096e-06 | AH10: 0.0004522873041 | AI10: 0.02207742052 | AJ10: 0.0004874124969 | AK10: 6.156217404e-06 | AL10: 0 | AM10: 1.087946464e-05 | AN10: 0.0004982919616 | AO10: 0.0002598207978 | AP10: 0.0002891243927 | AQ10: 2.093113917e-05 | AR10: 0.001260634798 | AS10: 0.001477309188 | AT10: 0.0145244 | AU10: 90.7678038 | AV10: 0.02505050378 | AW10: 0.03046002719 | AX10: 0.003139335519 | AY10: 0.003214433349 | AZ10: 0 | BA10: 0.0006798939109 | BB10: 0.01321495853 | BC10: 0.0002593953308 | BD10: 6.634909713e-05 | BE10: 0.01623706535 | BF10: 0.09232196205 | BG10: 0.907678038 | BH10: 90.7678038 | BI10: 4.4 | BJ10: 90.42792827 | BK10: 0.9042792827 | BL10: 22.83921829 | BN10: 1.260634798 | BO10: 0.2891243927 | BP10: 0.2156126919
A11: FB Hysteresis | B11: 10 | C11: mV | D11: =B11/1000 -> 0.01 | E11: FB hysteresis | H11: 5 | I11: 0.0055 | J11: 0.243055 | K11: 7.170715283e-05 | L11: 1.545079797e-05 | M11: 1946.54065 | N11: 2.298632771e-05 | O11: 0.0004907455586 | P11: 0.04474382129 | Q11: 0.0296831829 | R11: 0.0002643274041 | S11: 5.18846081e-06 | T11: 0.0002695158649 | U11: 0.0293388881 | V11: 1.291155532e-06 | W11: 1.291155532e-06 | X11: 0.003347102547 | Y11: 3.360928637e-08 | Z11: 3.360928637e-08 | AA11: 0.01582819629 | AB11: 0.0005010635956 | AC11: 1.846865221e-05 | AD11: 20 | AE11: 10 | AF11: 5.912431195e-05 | AG11: 5.17122262e-06 | AH11: 0.0005653591301 | AI11: 0.02468330653 | AJ11: 0.0006092656212 | AK11: 7.695271755e-06 | AL11: 0 | AM11: 1.35993308e-05 | AN11: 0.000622864952 | AO11: 0.0002815818103 | AP11: 0.0003182113039 | AQ11: 2.616392397e-05 | AR11: 0.00153259931 | AS11: 0.00180343994 | AT11: 0.0181555 | AU11: 90.96424988 | AV11: 0.02510471984 | AW11: 0.03052595093 | AX11: 0.00314612989 | AY11: 0.003221390252 | AZ11: 0 | BA11: 0.0006813653853 | BB11: 0.01324355927 | BC11: 0.0002599567324 | BD11: 6.637450799e-05 | BE11: 0.01410805439 | BF11: 0.09035750121 | BG11: 0.9096424988 | BH11: 90.96424988 | BI11: 5.5 | BJ11: 90.85600251 | BK11: 0.9085600251 | BL11: 24.44588918 | BN11: 1.53259931 | BO11: 0.3182113039 | BP11: 0.2695158649
A12: ILIM | B12: ='Variable Mgmt'!B39 -> 240.1 | C12: mA | D12: =B12/1000 -> 0.2401 | E12: Current limit setting | H12: 6 | I12: 0.0066 | J12: 0.243055 | K12: 0.0001032583001 | L12: 1.545079797e-05 | M12: 2313.966734 | N12: 2.320369812e-05 | O12: 0.0004089546322 | P12: 0.05369258554 | Q12: 0.0325162977 | R12: 0.0003171928849 | S12: 6.226152972e-06 | T12: 0.0003234190379 | U12: 0.03202599609 | V12: 1.538496639e-06 | W12: 1.538496639e-06 | X12: 0.004016000694 | Y12: 4.838478473e-08 | Z12: 4.838478473e-08 | AA12: 0.01733892031 | AB12: 0.0006012763147 | AC12: 2.216238266e-05 | AD12: 20 | AE12: 10 | AF12: 7.094917434e-05 | AG12: 6.205467143e-06 | AH12: 0.0006784309562 | AI12: 0.02703920756 | AJ12: 0.0007311187454 | AK12: 9.234326106e-06 | AL12: 0 | AM12: 1.631919696e-05 | AN12: 0.0007474379424 | AO12: 0.0003033257986 | AP12: 0.0003472811908 | AQ12: 3.139670876e-05 | AR12: 0.001804546798 | AS12: 0.002129552717 | AT12: 0.0217866 | AU12: 91.09575548 | AV12: 0.02514101335 | AW12: 0.03057008182 | AX12: 0.003150678201 | AY12: 0.003226047366 | AZ12: 0 | BA12: 0.0006823504247 | BB12: 0.01326270528 | BC12: 0.0002603325479 | BD12: 6.635186863e-05 | BE12: 0.01268288433 | BF12: 0.08904244519 | BG12: 0.9109575548 | BH12: 91.09575548 | BI12: 6.6 | BJ12: 91.14374473 | BK12: 0.9114374473 | BL12: 26.1217913 | BN12: 1.804546798 | BO12: 0.3472811908 | BP12: 0.3234190379
A13: Tamb | B13: 25 | C13: °C | D13: =B13 -> 25 | E13: Ambient temperature | H13: 7 | I13: 0.0077 | J13: 0.243055 | K13: 0.0001405460196 | L13: 1.545079797e-05 | M13: 2674.098802 | N13: 2.34252189e-05 | O13: 0.0003505325419 | P13: 0.0626413498 | Q13: 0.03512161565 | R13: 0.0003700583657 | S13: 7.263845134e-06 | T13: 0.0003773222108 | U13: 0.03446938492 | V13: 1.782207745e-06 | W13: 1.782207745e-06 | X13: 0.004684615639 | Y13: 6.583687107e-08 | Z13: 6.583687107e-08 | AA13: 0.01872817441 | AB13: 0.0007014890338 | AC13: 2.58561131e-05 | AD13: 20 | AE13: 10 | AF13: 8.277403673e-05 | AG13: 7.239711667e-06 | AH13: 0.0007915027822 | AI13: 0.02920568215 | AJ13: 0.0008529718696 | AK13: 1.077338046e-05 | AL13: 0 | AM13: 1.903906312e-05 | AN13: 0.0008720109328 | AO13: 0.0003250527626 | AP13: 0.0003763340536 | AQ13: 3.662949356e-05 | AR13: 0.002076477262 | AS13: 0.002455647518 | AT13: 0.0254177 | AU13: 91.1899799 | AV13: 0.02516701782 | AW13: 0.03060170183 | AX13: 0.003153937089 | AY13: 0.003229384212 | AZ13: 0 | BA13: 0.0006830562103 | BB13: 0.01327642349 | BC13: 0.0002606018215 | BD13: 6.630149518e-05 | BE13: 0.01166177699 | BF13: 0.08810020095 | BG13: 0.911899799 | BH13: 91.1899799 | BI13: 7.7 | BJ13: 91.35047996 | BK13: 0.9135047996 | BL13: 27.86394051 | BN13: 2.076477262 | BO13: 0.3763340536 | BP13: 0.3773222108
A14: Vdd | B14: 5 | C14: V | D14: =B14 -> 5 | E14: Gate drive rail | H14: 8 | I14: 0.0088 | J14: 0.243055 | K14: 0.0001835703112 | L14: 1.545079797e-05 | M14: 3026.936854 | N14: 2.365101008e-05 | O14: 0.0003067159741 | P14: 0.07159011406 | Q14: 0.03754658646 | R14: 0.0004229238465 | S14: 8.301537296e-06 | T14: 0.0004312253838 | U14: 0.03671774186 | V14: 2.022288851e-06 | W14: 2.022288851e-06 | X14: 0.005352901372 | Y14: 8.596065928e-08 | Z14: 8.596065928e-08 | AA14: 0.02002126061 | AB14: 0.0008017017529 | AC14: 2.954984354e-05 | AD14: 20 | AE14: 10 | AF14: 9.459889912e-05 | AG14: 8.273956191e-06 | AH14: 0.0009045746082 | AI14: 0.03122218753 | AJ14: 0.0009748249939 | AK14: 1.231243481e-05 | AL14: 0 | AM14: 2.175892928e-05 | AN14: 0.0009965839232 | AO14: 0.0003467627024 | AP14: 0.0004053698921 | AQ14: 4.186227835e-05 | AR14: 0.002348390702 | AS14: 0.002781724335 | AT14: 0.0290488 | AU14: 91.2608278 | AV14: 0.02518657074 | AW14: 0.03062547709 | AX14: 0.003156387466 | AY14: 0.003231893205 | AZ14: 0 | BA14: 0.0006835868946 | BB14: 0.01328673829 | BC14: 0.0002608042899 | BD14: 6.623357782e-05 | BE14: 0.01089403048 | BF14: 0.08739172204 | BG14: 0.912608278 | BH14: 91.2608278 | BI14: 8.8 | BJ14: 91.50622401 | BK14: 0.9150622401 | BL14: 29.66853002 | BN14: 2.348390702 | BO14: 0.4053698921 | BP14: 0.4312253838
A15: Izx | B15: 4 | C15: mA | D15: =B15/1000 -> 0.004 | E15: Zero cross current (DC test) | H15: 9 | I15: 0.0099 | J15: 0.243055 | K15: 0.0002323311752 | L15: 1.545079797e-05 | M15: 3372.480892 | N15: 2.388119634e-05 | O15: 0.0002726364215 | P15: 0.08053887831 | Q15: 0.03982416885 | R15: 0.0004757893273 | S15: 9.339229458e-06 | T15: 0.0004851285568 | U15: 0.03880498214 | V15: 2.258739958e-06 | W15: 2.258739958e-06 | X15: 0.00602081231 | Y15: 1.087505426e-07 | Z15: 1.087505426e-07 | AA15: 0.02123575372 | AB15: 0.000901914472 | AC15: 3.324357398e-05 | AD15: 20 | AE15: 10 | AF15: 0.0001064237615 | AG15: 9.308200715e-06 | AH15: 0.001017646434 | AI15: 0.03311613078 | AJ15: 0.001096678118 | AK15: 1.385148916e-05 | AL15: 0 | AM15: 2.447879544e-05 | AN15: 0.001121156914 | AO15: 0.0003684556179 | AP15: 0.0004343887063 | AQ15: 4.709506314e-05 | AR15: 0.002620287117 | AS15: 0.003107783165 | AT15: 0.0326799 | AU15: 91.31605377 | AV15: 0.02520181225 | AW15: 0.03064400993 | AX15: 0.003158297536 | AY15: 0.003233848967 | AZ15: 0 | BA15: 0.0006840005633 | BB15: 0.01329477869 | BC15: 0.0002609621141 | BD15: 6.615377949e-05 | BE15: 0.01029559852 | BF15: 0.08683946235 | BG15: 0.9131605377 | BH15: 91.31605377 | BI15: 9.9 | BJ15: 91.62779374 | BK15: 0.9162779374 | BL15: 31.53092874 | BN15: 2.620287117 | BO15: 0.4343887063 | BP15: 0.4851285568
A16: Outputs | H16: 10 | I16: 0.011 | J16: 0.243055 | K16: 0.0002868286113 | L16: 1.545079797e-05 | M16: 3710.730913 | N16: 2.411590726e-05 | O16: 0.0002453727793 | P16: 0.08948764257 | Q16: 0.04197835983 | R16: 0.0005286548082 | S16: 1.037692162e-05 | T16: 0.0005390317298 | U16: 0.04075586718 | V16: 2.491561064e-06 | W16: 2.491561064e-06 | X16: 0.006688303338 | Y16: 1.342002046e-07 | Z16: 1.342002046e-07 | AA16: 0.02238444986 | AB16: 0.001002127191 | AC16: 3.693730443e-05 | AD16: 20 | AE16: 10 | AF16: 0.0001182486239 | AG16: 1.034244524e-05 | AH16: 0.00113071826 | AI16: 0.03490746686 | AJ16: 0.001218531242 | AK16: 1.539054351e-05 | AL16: 0 | AM16: 2.71986616e-05 | AN16: 0.001245729904 | AO16: 0.0003901315093 | AP16: 0.0004633904964 | AQ16: 5.232784794e-05 | AR16: 0.002892166509 | AS16: 0.003433824 | AT16: 0.036311 | AU16: 91.36032405 | AV16: 0.02521403016 | AW16: 0.03065886623 | AX16: 0.003159828687 | AY16: 0.003235416746 | AZ16: 0 | BA16: 0.0006843321688 | BB16: 0.01330122403 | BC16: 0.0002610886293 | BD16: 6.606548991e-05 | BE16: 0.009815907331 | BF16: 0.08639675948 | BG16: 0.9136032405 | BH16: 91.36032405 | BI16: 11 | BJ16: 91.72534354 | BK16: 0.9172534354 | BL16: 33.44570015 | BN16: 2.892166509 | BO16: 0.4633904964 | BP16: 0.5390317298
A17: Design | B17: Value | C17: Units | D17: Std Units | E17: Description | H17: 11 | I17: 0.0121 | J17: 0.243055 | K17: 0.0003470626197 | L17: 1.545079797e-05 | M17: 4041.686919 | N17: 2.435527758e-05 | O17: 0.000223066163 | P17: 0.09843640683 | Q17: 0.04402727522 | R17: 0.000581520289 | S17: 1.141461378e-05 | T17: 0.0005929349027 | U17: 0.04258913923 | V17: 2.720752171e-06 | W17: 2.720752171e-06 | X17: 0.007355329835 | Y17: 1.623026309e-07 | Z17: 1.623026309e-07 | AA17: 0.02347700908 | AB17: 0.00110233991 | AC17: 4.063103487e-05 | AD17: 20 | AE17: 10 | AF17: 0.0001300734863 | AG17: 1.137668976e-05 | AH17: 0.001243790086 | AI17: 0.03661126011 | AJ17: 0.001340384367 | AK17: 1.692959786e-05 | AL17: 0 | AM17: 2.991852777e-05 | AN17: 0.001370302894 | AO17: 0.0004117903764 | AP17: 0.0004923752622 | AQ17: 5.756063273e-05 | AR17: 0.003164028876 | AS17: 0.003759846833 | AT17: 0.0399421 | AU17: 91.39661478 | AV17: 0.02522404584 | AW17: 0.03067104474 | AX17: 0.003161083855 | AY17: 0.003236701939 | AZ17: 0 | BA17: 0.0006846040036 | BB17: 0.01330650763 | BC17: 0.0002611923406 | BD17: 6.597085509e-05 | BE17: 0.00942270096 | BF17: 0.08603385216 | BG17: 0.9139661478 | BH17: 91.39661478 | BI17: 12.1 | BJ17: 91.80536736 | BK17: 0.9180536736 | BL17: 35.40664299 | BN17: 3.164028876 | BO17: 0.4923752622 | BP17: 0.5929349027
A18: On-Time | B18: =L*IripplePFM/(Vin-(Rdcr+RdsonTop)*Ioutmax-Vout)*10^6 -> 6.353413125 | C18: µs | D18: =B18/1000000 -> 6.353413125e-06 | E18: On Time - depends on Vin, Vout, L, Ilim, DCR, etc. | H18: 12 | I18: 0.0132 | J18: 0.243055 | K18: 0.0004130332003 | L18: 1.545079797e-05 | M18: 4365.34891 | N18: 2.459944744e-05 | O18: 0.0002044773161 | P18: 0.1073851711 | Q18: 0.04598498921 | R18: 0.0006343857698 | S18: 1.245230594e-05 | T18: 0.0006468380757 | U18: 0.04431939588 | V18: 2.946313277e-06 | W18: 2.946313277e-06 | X18: 0.008021847711 | Y18: 1.930501221e-07 | Z18: 1.930501221e-07 | AA18: 0.02452093625 | AB18: 0.001202552629 | AC18: 4.432476531e-05 | AD18: 20 | AE18: 10 | AF18: 0.0001418983487 | AG18: 1.241093429e-05 | AH18: 0.001356861912 | AI18: 0.03823921405 | AJ18: 0.001462237491 | AK18: 1.846865221e-05 | AL18: 0 | AM18: 3.263839393e-05 | AN18: 0.001494875885 | AO18: 0.0004334322192 | AP18: 0.0005213430038 | AQ18: 6.279341752e-05 | AR18: 0.003435874218 | AS18: 0.004085851657 | AT18: 0.0435732 | AU18: 91.42691364 | AV18: 0.02523240785 | AW18: 0.03068121249 | AX18: 0.003162131784 | AY18: 0.003237774937 | AZ18: 0 | BA18: 0.0006848309564 | BB18: 0.01331091886 | BC18: 0.0002612789284 | BD18: 6.587129391e-05 | BE18: 0.009094436506 | BF18: 0.08573086361 | BG18: 0.9142691364 | BH18: 91.42691364 | BI18: 13.2 | BJ18: 91.87221179 | BK18: 0.9187221179 | BL18: 37.40685411 | BN18: 3.435874218 | BO18: 0.5213430038 | BP18: 0.6468380757
A19: Off Time | B19: =L/(Vout+(Rdcr+RdsonBot)*Ioutmax)*IripplePFM*1000000 -> 15.45079797 | C19: µs | D19: =B19/1000000 -> 1.545079797e-05 | E19: Off Time - depends on Vout, L, Ilim, DCR, etc. | H19: 13 | I19: 0.0143 | J19: 0.243055 | K19: 0.0004847403531 | L19: 1.545079797e-05 | M19: 4681.716885 | N19: 2.484856265e-05 | O19: 0.0001887482918 | P19: 0.1163339353 | Q19: 0.04786269426 | R19: 0.0006872512506 | S19: 1.348999811e-05 | T19: 0.0007007412487 | U19: 0.04595827371 | V19: 3.168244383e-06 | W19: 3.168244383e-06 | X19: 0.008687813441 | Y19: 2.264343072e-07 | Z19: 2.264343072e-07 | AA19: 0.02552219964 | AB19: 0.001302765349 | AC19: 4.801849575e-05 | AD19: 20 | AE19: 10 | AF19: 0.0001537232111 | AG19: 1.344517881e-05 | AH19: 0.001469933738 | AI19: 0.03980063586 | AJ19: 0.001584090615 | AK19: 2.000770656e-05 | AL19: 0 | AM19: 3.535826009e-05 | AN19: 0.001619448875 | AO19: 0.0004550570379 | AP19: 0.0005502937211 | AQ19: 6.802620232e-05 | AR19: 0.003707702537 | AS19: 0.004411838464 | AT19: 0.0472043 | AU19: 91.45259875 | AV19: 0.02523949655 | AW19: 0.03068983194 | AX19: 0.003163020141 | AY19: 0.003238684544 | AZ19: 0 | BA19: 0.00068502335 | BB19: 0.01331465838 | BC19: 0.000261352331 | BD19: 6.576777713e-05 | BE19: 0.008816177486 | BF19: 0.0854740125 | BG19: 0.9145259875 | BH19: 91.45259875 | BI19: 14.3 | BJ19: 91.92889582 | BK19: 0.9192889582 | BL19: 39.43881309 | BN19: 3.707702537 | BO19: 0.5502937211 | BP19: 0.7007412487
A20: Duty Cycle | B20: =B18/(B18+B19) -> 0.2913846823 | E20: Ton/(Ton+Toff) | H20: 14 | I20: 0.0154 | J20: 0.243055 | K20: 0.0005621840782 | L20: 1.545079797e-05 | M20: 4990.790845 | N20: 2.510277499e-05 | O20: 0.0001752662709 | P20: 0.1252826996 | Q20: 0.04966946518 | R20: 0.0007401167314 | S20: 1.452769027e-05 | T20: 0.0007546444217 | U20: 0.04751522907 | V20: 3.38654549e-06 | W20: 3.38654549e-06 | X20: 0.009353184102 | Y20: 2.624461586e-07 | Z20: 2.624461586e-07 | AA20: 0.02648563826 | AB20: 0.001402978068 | AC20: 5.17122262e-05 | AD20: 20 | AE20: 10 | AF20: 0.0001655480735 | AG20: 1.447942333e-05 | AH20: 0.001583005564 | AI20: 0.04130307179 | AJ20: 0.001705943739 | AK20: 2.154676091e-05 | AL20: 0 | AM20: 3.807812625e-05 | AN20: 0.001744021866 | AO20: 0.0004766648323 | AP20: 0.0005792274142 | AQ20: 7.325898711e-05 | AR20: 0.003979513831 | AS20: 0.004737807245 | AT20: 0.0508354 | AU20: 91.47465572 | AV20: 0.02524558393 | AW20: 0.03069723386 | AX20: 0.003163783013 | AY20: 0.003239465666 | AZ20: 0 | BA20: 0.0006851885672 | BB20: 0.01331786967 | BC20: 0.0002614153652 | BD20: 6.566098718e-05 | BE20: 0.00857724173 | BF20: 0.08525344279 | BG20: 0.9147465572 | BH20: 91.47465572 | BI20: 15.4 | BJ20: 91.9775818 | BK20: 0.919775818 | BL20: 41.49448672 | BN20: 3.979513831 | BO20: 0.5792274142 | BP20: 0.7546444217
A21: DIL | B21: =Ilim*1000+(Vin-Vout)/L*0.0001-Izx*1000+Vout/L*0.0002 -> 243.055 | C21: mA | D21: =B21/1000 -> 0.243055 | E21: Inductor pk-pk ripple current | H21: 15 | I21: 0.0165 | J21: 0.243055 | K21: 0.0006453643755 | L21: 1.545079797e-05 | M21: 5292.570789 | N21: 2.536224251e-05 | O21: 0.0001635818529 | P21: 0.1342314639 | Q21: 0.05141278091 | R21: 0.0007929822122 | S21: 1.556538243e-05 | T21: 0.0008085475947 | U21: 0.04899807205 | V21: 3.601216596e-06 | W21: 3.601216596e-06 | X21: 0.0100179174 | Y21: 3.010760072e-07 | Z21: 3.010760072e-07 | AA21: 0.02741524017 | AB21: 0.001503190787 | AC21: 5.540595664e-05 | AD21: 20 | AE21: 10 | AF21: 0.0001773729359 | AG21: 1.551366786e-05 | AH21: 0.00169607739 | AI21: 0.04275274101 | AJ21: 0.001827796864 | AK21: 2.308581527e-05 | AL21: 0 | AM21: 4.079799241e-05 | AN21: 0.001868594856 | AO21: 0.0004982556024 | AP21: 0.0006081440831 | AQ21: 7.84917719e-05 | AR21: 0.004251308101 | AS21: 0.005063757989 | AT21: 0.0544665 | AU21: 91.49380809 | AV21: 0.02525086968 | AW21: 0.03070366105 | AX21: 0.003164445425 | AY21: 0.003240143924 | AZ21: 0 | BA21: 0.0006853320275 | BB21: 0.01332065808 | BC21: 0.0002614700987 | BD21: 6.555141428e-05 | BE21: 0.008369787386 | BF21: 0.08506191909 | BG21: 0.9149380809 | BH21: 91.49380809 | BI21: 16.5 | BJ21: 92.01985912 | BK21: 0.9201985912 | BL21: 43.56545077 | BN21: 4.251308101 | BO21: 0.6081440831 | BP21: 0.8085475947
A22: IL_PEAK | B22: =Ilim*1000+(Vin-Vout)/L*0.00012 -> 244.8449091 | C22: mA | D22: =B22/1000 -> 0.2448449091 | E22: <- PFM peak inductor current - PFM valley inductor current -> | F22: =Izx-Vout/L*0.0000002 -> 0.0009990909091 | G22: A | H22: 16 | I22: 0.0176 | J22: 0.243055 | K22: 0.000734281245 | L22: 1.545079797e-05 | M22: 5587.056718 | N22: 2.562712987e-05 | O22: 0.0001533579871 | P22: 0.1431802281 | Q22: 0.0530988918 | R22: 0.000845847693 | S22: 1.660307459e-05 | T22: 0.0008624507676 | U22: 0.05041334283 | V22: 3.812257703e-06 | W22: 3.812257703e-06 | X22: 0.01068197172 | Y22: 3.423135595e-07 | Z22: 3.423135595e-07 | AA22: 0.02831433829 | AB22: 0.001603403506 | AC22: 5.909968708e-05 | AD22: 20 | AE22: 10 | AF22: 0.0001891977982 | AG22: 1.654791238e-05 | AH22: 0.001809149216 | AI22: 0.04415484105 | AJ22: 0.001949649988 | AK22: 2.462486962e-05 | AL22: 0 | AM22: 4.351785857e-05 | AN22: 0.001993167846 | AO22: 0.0005198293484 | AP22: 0.0006370437277 | AQ22: 8.37245567e-05 | AR22: 0.004523085347 | AS22: 0.005389690686 | AT22: 0.0580976 | AU22: 91.51059901 | AV22: 0.02525550372 | AW22: 0.03070929578 | AX22: 0.003165026164 | AY22: 0.003240738554 | AZ22: 0 | BA22: 0.0006854577995 | BB22: 0.01332310269 | BC22: 0.0002615180836 | BD22: 6.543941657e-05 | BE22: 0.008187927737 | BF22: 0.08489400993 | BG22: 0.9151059901 | BH22: 91.51059901 | BI22: 17.6 | BJ22: 92.05692222 | BK22: 0.9205692222 | BL22: 45.64302528 | BN22: 4.523085347 | BO22: 0.6370437277 | BP22: 0.8624507676
A23: Nominal Sw Freq | B23: =1/((OnTime+OffTime)*1000) -> 45.86270035 | C23: kHz | D23: =B23*1000 -> 45862.70035 | E23: Switching frequency | H23: 17 | I23: 0.0187 | J23: 0.243055 | K23: 0.0008289346867 | L23: 1.545079797e-05 | M23: 5874.248631 | N23: 2.589760868e-05 | O23: 0.000144336929 | P23: 0.1521289924 | Q23: 0.05473308487 | R23: 0.0008987131739 | S23: 1.764076675e-05 | T23: 0.0009163539406 | U23: 0.05176658388 | V23: 4.019668809e-06 | W23: 4.019668809e-06 | X23: 0.01134530614 | Y23: 3.86147914e-07 | Z23: 3.86147914e-07 | AA23: 0.02918575187 | AB23: 0.001703616225 | AC23: 6.279341752e-05 | AD23: 20 | AE23: 10 | AF23: 0.0002010226606 | AG23: 1.758215691e-05 | AH23: 0.001922221043 | AI23: 0.04551376838 | AJ23: 0.002071503112 | AK23: 2.616392397e-05 | AL23: 0 | AM23: 4.623772473e-05 | AN23: 0.002117740837 | AO23: 0.0005413860701 | AP23: 0.0006659263481 | AQ23: 8.895734149e-05 | AR23: 0.004794845569 | AS23: 0.005715605326 | AT23: 0.0617287 | AU23: 91.52544414 | AV23: 0.02525960074 | AW23: 0.03071427754 | AX23: 0.003165539604 | AY23: 0.003241264277 | AZ23: 0 | BA23: 0.0006855689966 | BB23: 0.013325264 | BC23: 0.0002615605079 | BD23: 6.532525914e-05 | BE23: 0.008027157629 | BF23: 0.08474555855 | BG23: 0.9152544414 | BH23: 91.52544414 | BI23: 18.7 | BJ23: 92.08968606 | BK23: 0.9208968606 | BL23: 47.71841886 | BN23: 4.794845569 | BO23: 0.6659263481 | BP23: 0.9163539406
A24: Iout_max | B24: =1000*(IL_peak+IL_valley)/2 -> 122.922 | C24: mA | D24: =B24/1000 -> 0.122922 | E24: Max output current {= ~IL_PEAK/2} | H24: 18 | I24: 0.0198 | J24: 0.243055 | K24: 0.0009293247007 | L24: 1.545079797e-05 | M24: 6154.146529 | N24: 2.617385788e-05 | O24: 0.0001363182107 | P24: 0.1610777566 | Q24: 0.0563198797 | R24: 0.0009515786547 | S24: 1.867845892e-05 | T24: 0.0009702571136 | U24: 0.05306254119 | V24: 4.223449916e-06 | W24: 4.223449916e-06 | X24: 0.01200788048 | Y24: 4.325675806e-07 | Z24: 4.325675806e-07 | AA24: 0.03003189092 | AB24: 0.001803828944 | AC24: 6.648714797e-05 | AD24: 20 | AE24: 10 | AF24: 0.000212847523 | AG24: 1.861640143e-05 | AH24: 0.002035292869 | AI24: 0.04683328129 | AJ24: 0.002193356236 | AK24: 2.770297832e-05 | AL24: 0 | AM24: 4.895759089e-05 | AN24: 0.002242313827 | AO24: 0.0005629257675 | AP24: 0.0006947919443 | AQ24: 9.419012628e-05 | AR24: 0.005066588766 | AS24: 0.006041501897 | AT24: 0.0653598 | AU24: 91.53866703 | AV24: 0.02526325005 | AW24: 0.0307187149 | AX24: 0.003165996937 | AY24: 0.00324173255 | AZ24: 0 | BA24: 0.0006856680423 | BB24: 0.01332718913 | BC24: 0.0002615982961 | BD24: 6.520914006e-05 | BE24: 0.007883970636 | BF24: 0.08461332968 | BG24: 0.9153866703 | BH24: 91.53866703 | BI24: 19.8 | BJ24: 92.11886338 | BK24: 0.9211886338 | BL24: 49.78287696 | BN24: 5.066588766 | BO24: 0.6947919443 | BP24: 0.9702571136
A25: VOUT Hysteresis | B25: =Vout/1.223*FB_hys*1000 -> 26.99100572 | C25: mV | D25: =B25/1000 -> 0.02699100572 | E25: Output hysteresis | H25: 19 | I25: 0.0209 | J25: 0.243055 | K25: 0.001035451287 | L25: 1.545079797e-05 | M25: 6426.750411 | N25: 2.645606411e-05 | O25: 0.0001291435681 | P25: 0.1700265209 | Q25: 0.05786317584 | R25: 0.001004444135 | S25: 1.971615108e-05 | T25: 0.001024160287 | U25: 0.05430531602 | V25: 4.423601022e-06 | W25: 4.423601022e-06 | X25: 0.01266965533 | Y25: 4.815604989e-07 | Z25: 4.815604989e-07 | AA25: 0.03085483482 | AB25: 0.001904041663 | AC25: 7.018087841e-05 | AD25: 20 | AE25: 10 | AF25: 0.0002246723854 | AG25: 1.965064595e-05 | AH25: 0.002148364695 | AI25: 0.0481166225 | AJ25: 0.00231520936 | AK25: 2.924203267e-05 | AL25: 0 | AM25: 5.167745705e-05 | AN25: 0.002366886817 | AO25: 0.0005844484408 | AP25: 0.0007236405163 | AQ25: 9.942291108e-05 | AR25: 0.005338314939 | AS25: 0.006367380387 | AT25: 0.0689909 | AU25: 91.55052324 | AV25: 0.02526652218 | AW25: 0.03072269362 | AX25: 0.003166407001 | AY25: 0.003242152423 | AZ25: 0 | BA25: 0.0006857568509 | BB25: 0.01332891529 | BC25: 0.0002616321787 | BD25: 6.509120823e-05 | BE25: 0.007755596834 | BF25: 0.08449476759 | BG25: 0.9155052324 | BH25: 91.55052324 | BI25: 20.9 | BJ25: 92.14501761 | BK25: 0.9214501761 | BL25: 51.8278288 | BN25: 5.338314939 | BO25: 0.7236405163 | BP25: 1.024160287
A26: Tf | B26: 20 | C26: ns | D26: =B26/1000000000 -> 2e-08 | E26: Switch fall time (for MOSFET turn-off loss calculations) | H26: 20 | I26: 0.022 | J26: 0.243055 | K26: 0.001147314445 | L26: 1.545079797e-05 | M26: 6692.060278 | N26: 2.674442215e-05 | O26: 0.0001226863897 | P26: 0.1789752851 | Q26: 0.05936636579 | R26: 0.001057309616 | S26: 2.075384324e-05 | T26: 0.00107806346 | U26: 0.05549848123 | V26: 4.620122128e-06 | W26: 4.620122128e-06 | X26: 0.01333059212 | Y26: 5.331140589e-07 | Z26: 5.331140589e-07 | AA26: 0.03165639258 | AB26: 0.002004254382 | AC26: 7.387460885e-05 | AD26: 20 | AE26: 10 | AF26: 0.0002364972478 | AG26: 2.068489048e-05 | AH26: 0.002261436521 | AI26: 0.04936661306 | AJ26: 0.002437062485 | AK26: 3.078108702e-05 | AL26: 0 | AM26: 5.439732321e-05 | AN26: 0.002491459808 | AO26: 0.0006059540898 | AP26: 0.000752472064 | AQ26: 0.0001046556959 | AR26: 0.005610024088 | AS26: 0.006693240784 | AT26: 0.072622 | AU26: 91.56121734 | AV26: 0.02526947359 | AW26: 0.03072628237 | AX26: 0.003166776872 | AY26: 0.003242531142 | AZ26: 0 | BA26: 0.0006858369548 | BB26: 0.01333047225 | BC26: 0.0002616627402 | BD26: 6.497157591e-05 | BE26: 0.007639819079 | BF26: 0.08438782658 | BG26: 0.9156121734 | BH26: 91.56121734 | BI26: 22 | BJ26: 92.16860005 | BK26: 0.9216860005 | BL26: 53.84502783 | BN26: 5.610024088 | BO26: 0.752472064 | BP26: 1.07806346
H27: 21 | I27: 0.0231 | J27: 0.243055 | K27: 0.001264914176 | L27: 1.545079797e-05 | M27: 6950.076129 | N27: 2.703913538e-05 | O27: 0.0001168441806 | P27: 0.1879240494 | Q27: 0.06083242275 | R27: 0.001110175097 | S27: 2.17915354e-05 | T27: 0.001131966633 | U27: 0.05664517181 | V27: 4.813013235e-06 | W27: 4.813013235e-06 | X27: 0.01399065309 | Y27: 5.87215122e-07 | Z27: 5.87215122e-07 | AA27: 0.03243814962 | AB27: 0.002104467101 | AC27: 7.756833929e-05 | AD27: 20 | AE27: 10 | AF27: 0.0002483221102 | AG27: 2.1719135e-05 | AH27: 0.002374508347 | AI27: 0.05058572535 | AJ27: 0.002558915609 | AK27: 3.232014137e-05 | AL27: 0 | AM27: 5.711718937e-05 | AN27: 0.002616032798 | AO27: 0.0006274427145 | AP27: 0.0007812865875 | AQ27: 0.0001098884807 | AR27: 0.005881716213 | AS27: 0.007019083074 | AT27: 0.0762531 | AU27: 91.57091502 | AV27: 0.02527215 | AW27: 0.03072953674 | AX27: 0.00316711228 | AY27: 0.003242874574 | AZ27: 0 | BA27: 0.000685909595 | BB27: 0.01333188414 | BC27: 0.0002616904541 | BD27: 6.485032765e-05 | BE27: 0.007534841665 | BF27: 0.08429084977 | BG27: 0.9157091502 | BH27: 91.57091502 | BI27: 23.1 | BJ27: 92.18997642 | BK27: 0.9218997642 | BL27: 55.82668079 | BN27: 5.881716213 | BO27: 0.7812865875 | BP27: 1.131966633
A28: Components | B28: Input Value | C28: Units | D28: Std Units | E28: Description | H28: 22 | I28: 0.0242 | J28: 0.243055 | K28: 0.001388250479 | L28: 1.545079797e-05 | M28: 7200.797965 | N28: 2.734041624e-05 | O28: 0.0001115330815 | P28: 0.1968728137 | Q28: 0.06226396973 | R28: 0.001163040578 | S28: 2.282922756e-05 | T28: 0.001185869805 | U28: 0.05774815634 | V28: 5.002274341e-06 | W28: 5.002274341e-06 | X28: 0.01464980139 | Y28: 6.438500426e-07 | Z28: 6.438500426e-07 | AA28: 0.03320150464 | AB28: 0.002204679821 | AC28: 8.126206974e-05 | AD28: 20 | AE28: 10 | AF28: 0.0002601469726 | AG28: 2.275337953e-05 | AH28: 0.002487580173 | AI28: 0.05177614058 | AJ28: 0.002680768733 | AK28: 3.385919572e-05 | AL28: 0 | AM28: 5.983705553e-05 | AN28: 0.002740605789 | AO28: 0.0006489143151 | AP28: 0.0008100840867 | AQ28: 0.0001151212655 | AR28: 0.006153391314 | AS28: 0.007344907243 | AT28: 0.0798842 | AU28: 91.5797519 | AV28: 0.02527458884 | AW28: 0.03073250223 | AX28: 0.003167417916 | AY28: 0.003243187521 | AZ28: 0 | BA28: 0.0006859757875 | BB28: 0.01333317071 | BC28: 0.000261715708 | BD28: 6.472752688e-05 | BE28: 0.007439194732 | BF28: 0.08420248098 | BG28: 0.915797519 | BH28: 91.5797519 | BI28: 24.2 | BJ28: 92.20944624 | BK28: 0.9220944624 | BL28: 57.76556138 | BN28: 6.153391314 | BO28: 0.8100840867 | BP28: 1.185869805
A29: L | B29: ='Design Regulator'!E18 -> 220 | C29: µH | D29: =B29/1000000 -> 0.00022 | E29: Filter inductance | H29: 23 | I29: 0.0253 | J29: 0.243055 | K29: 0.001517323354 | L29: 1.545079797e-05 | M29: 7444.225786 | N29: 2.764848674e-05 | O29: 0.0001066838171 | P29: 0.2058215779 | Q29: 0.06366333478 | R29: 0.001215906059 | S29: 2.386691973e-05 | T29: 0.001239772978 | U29: 0.058809894 | V29: 5.187905448e-06 | W29: 5.187905448e-06 | X29: 0.01530800109 | Y29: 7.030046918e-07 | Z29: 7.030046918e-07 | AA29: 0.03394769904 | AB29: 0.00230489254 | AC29: 8.495580018e-05 | AD29: 20 | AE29: 10 | AF29: 0.000271971835 | AG29: 2.378762405e-05 | AH29: 0.002600651999 | AI29: 0.05293979465 | AJ29: 0.002802621857 | AK29: 3.539825007e-05 | AL29: 0 | AM29: 6.255692169e-05 | AN29: 0.002865178779 | AO29: 0.0006703688914 | AP29: 0.0008388645617 | AQ29: 0.0001203540503 | AR29: 0.00642504939 | AS29: 0.007670713278 | AT29: 0.0835153 | AU29: 91.58784006 | AV29: 0.02527682105 | AW29: 0.03073521647 | AX29: 0.003167697657 | AY29: 0.003243473954 | AZ29: 0 | BA29: 0.0006860363716 | BB29: 0.01333434827 | BC29: 0.0002617388223 | BD29: 6.460322069e-05 | BE29: 0.007351663564 | BF29: 0.08412159938 | BG29: 0.9158784006 | BH29: 91.58784006 | BI29: 25.3 | BJ29: 92.22725715 | BK29: 0.9222725715 | BL29: 59.65510516 | BN29: 6.42504939 | BO29: 0.8388645617 | BP29: 1.239772978
A30: Rdcr | B30: ='Design Regulator'!E19 -> 300 | C30: mW | D30: =B30/1000 -> 0.3 | E30: Inductor DCR at 25°C | F30: LPS5030-105 | H30: 24 | I30: 0.0264 | J30: 0.243055 | K30: 0.001652132801 | L30: 1.545079797e-05 | M30: 7680.359591 | N30: 2.7963579e-05 | O30: 0.000102238658 | P30: 0.2147703422 | Q30: 0.06503259541 | R30: 0.00126877154 | S30: 2.490461189e-05 | T30: 0.001293676151 | U30: 0.05983258061 | V30: 5.369906554e-06 | W30: 5.369906554e-06 | X30: 0.0159652172 | Y30: 7.646644803e-07 | Z30: 7.646644803e-07 | AA30: 0.03467784061 | AB30: 0.002405105259 | AC30: 8.864953062e-05 | AD30: 20 | AE30: 10 | AF30: 0.0002837966974 | AG30: 2.482186857e-05 | AH30: 0.002713723825 | AI30: 0.05407841512 | AJ30: 0.002924474982 | AK30: 3.693730443e-05 | AL30: 0 | AM30: 6.527678785e-05 | AN30: 0.002989751769 | AO30: 0.0006918064435 | AP30: 0.0008676280125 | AQ30: 0.000125586835 | AR30: 0.006696690442 | AS30: 0.007996501164 | AT30: 0.0871464 | AU30: 91.59527294 | AV30: 0.02527887241 | AW30: 0.03073771081 | AX30: 0.003167954734 | AY30: 0.00324373718 | AZ30: 0 | BA30: 0.0006860920474 | BB30: 0.01333543043 | BC30: 0.0002617600639 | BD30: 6.44774435e-05 | BE30: 0.007271235531 | BF30: 0.08404727065 | BG30: 0.9159527294 | BH30: 91.59527294 | BI30: 26.4 | BJ30: 92.24361571 | BK30: 0.9224361571 | BL30: 61.48948348 | BN30: 6.696690442 | BO30: 0.8676280125 | BP30: 1.293676151
A31: Kcore | B31: 5e-14 | D31: =B31 -> 5e-14 | E31: Core loss constant - consult inductor vendor | H31: 25 | I31: 0.0275 | J31: 0.243055 | K31: 0.001792678821 | L31: 1.545079797e-05 | M31: 7909.19938 | N31: 2.828593587e-05 | O31: 9.814911172e-05 | P31: 0.2237191064 | Q31: 0.06637361475 | R31: 0.00132163702 | S31: 2.594230405e-05 | T31: 0.001347579324 | U31: 0.06081818621 | V31: 5.548277661e-06 | W31: 5.548277661e-06 | X31: 0.01662141574 | Y31: 8.28814384e-07 | Z31: 8.28814384e-07 | AA31: 0.03539292287 | AB31: 0.002505317978 | AC31: 9.234326106e-05 | AD31: 20 | AE31: 10 | AF31: 0.0002956215598 | AG31: 2.58561131e-05 | AH31: 0.002826795651 | AI31: 0.05519355131 | AJ31: 0.003046328106 | AK31: 3.847635878e-05 | AL31: 0 | AM31: 6.799665401e-05 | AN31: 0.00311432476 | AO31: 0.0007132269713 | AP31: 0.0008963744391 | AQ31: 0.0001308196198 | AR31: 0.00696831447 | AS31: 0.008322270886 | AT31: 0.0907775 | AU31: 91.60212903 | AV31: 0.02528076458 | AW31: 0.03074001159 | AX31: 0.003168191862 | AY31: 0.003243979981 | AZ31: 0 | BA31: 0.0006861434028 | BB31: 0.01333642862 | BC31: 0.0002617796572 | BD31: 6.435021986e-05 | BE31: 0.00719705974 | BF31: 0.08397870965 | BG31: 0.9160212903 | BH31: 91.60212903 | BI31: 27.5 | BJ31: 92.25869552 | BK31: 0.9225869552 | BL31: 63.26365539 | BN31: 6.96831447 | BO31: 0.8963744391 | BP31: 1.347579324
A32: Cin | B32: ='Design Regulator'!E30 -> 4.7 | C32: µF | D32: =B32/1000000 -> 4.7e-06 | E32: Input capacitance | H32: 26 | I32: 0.0286 | J32: 0.243055 | K32: 0.001938961413 | L32: 1.545079797e-05 | M32: 8130.745154 | N32: 2.86158115e-05 | O32: 9.437414589e-05 | P32: 0.2326678707 | Q32: 0.06768807136 | R32: 0.001374502501 | S32: 2.697999621e-05 | T32: 0.001401482497 | U32: 0.06176848585 | V32: 5.723018767e-06 | W32: 5.723018767e-06 | X32: 0.01727656379 | Y32: 8.954389693e-07 | Z32: 8.954389693e-07 | AA32: 0.03609384087 | AB32: 0.002605530697 | AC32: 9.603699151e-05 | AD32: 20 | AE32: 10 | AF32: 0.0003074464221 | AG32: 2.689035762e-05 | AH32: 0.002939867477 | AI32: 0.05628659903 | AJ32: 0.00316818123 | AK32: 4.001541313e-05 | AL32: 0 | AM32: 7.071652017e-05 | AN32: 0.00323889775 | AO32: 0.0007346304749 | AP32: 0.0009251038414 | AQ32: 0.0001360524046 | AR32: 0.007239921473 | AS32: 0.008648022428 | AT32: 0.0944086 | AU32: 91.60847481 | AV32: 0.02528251592 | AW32: 0.03074214112 | AX32: 0.00316841134 | AY32: 0.003244204709 | AZ32: 0 | BA32: 0.0006861909357 | BB32: 0.0133373525 | BC32: 0.0002617977921 | BD32: 6.422156656e-05 | BE32: 0.007128415987 | BF32: 0.08391525187 | BG32: 0.9160847481 | BH32: 91.60847481 | BI32: 28.6 | BJ32: 92.27264359 | BK32: 0.9227264359 | BL32: 64.97339739 | BN32: 7.239921473 | BO32: 0.9251038414 | BP32: 1.401482497
A33: RCinESR | B33: ='Design Regulator'!E31 -> 3 | C33: mW | D33: =B33/1000 -> 0.003 | E33: Input capacitor ESR | H33: 27 | I33: 0.0297 | J33: 0.243055 | K33: 0.002090980577 | L33: 1.545079797e-05 | M33: 8344.996912 | N33: 2.895347206e-05 | O33: 9.087880715e-05 | P33: 0.2416166349 | Q33: 0.06897748381 | R33: 0.001427367982 | S33: 2.801768837e-05 | T33: 0.00145538567 | U33: 0.06268508527 | V33: 5.894129873e-06 | W33: 5.894129873e-06 | X33: 0.01793062947 | Y33: 9.645224198e-07 | Z33: 9.645224198e-07 | AA33: 0.03678140438 | AB33: 0.002705743416 | AC33: 9.973072195e-05 | AD33: 20 | AE33: 10 | AF33: 0.0003192712845 | AG33: 2.792460215e-05 | AH33: 0.003052939303 | AI33: 0.05735882107 | AJ33: 0.003290034354 | AK33: 4.155446748e-05 | AL33: 0 | AM33: 7.343638633e-05 | AN33: 0.003363470741 | AO33: 0.0007560169543 | AP33: 0.0009538162195 | AQ33: 0.0001412851894 | AR33: 0.007511511452 | AS33: 0.008973755775 | AT33: 0.0980397 | AU33: 91.61436689 | AV33: 0.02528414204 | AW33: 0.0307441184 | AX33: 0.003168615126 | AY33: 0.00324441337 | AZ33: 0 | BA33: 0.0006862350702 | BB33: 0.01333821034 | BC33: 0.0002618146304 | BD33: 6.409149432e-05 | BE33: 0.007064690593 | BF33: 0.08385633106 | BG33: 0.9161436689 | BH33: 91.61436689 | BI33: 29.7 | BJ33: 92.28558522 | BK33: 0.9228558522 | BL33: 66.61531191 | BN33: 7.511511452 | BO33: 0.9538162195 | BP33: 1.45538567
A34: Cout | B34: ='Design Regulator'!E25 -> 100 | C34: µF | D34: =B34/1000000 -> 0.0001 | E34: Output capacitance | H34: 28 | I34: 0.0308 | J34: 0.243055 | K34: 0.002248736313 | L34: 1.545079797e-05 | M34: 8551.954655 | N34: 2.929919642e-05 | O34: 8.763313547e-05 | P34: 0.2505653992 | Q34: 0.07024323129 | R34: 0.001480233463 | S34: 2.905538054e-05 | T34: 0.001509288843 | U34: 0.06356944224 | V34: 6.06161098e-06 | W34: 6.06161098e-06 | X34: 0.01858358204 | Y34: 1.036048564e-06 | Z34: 1.036048564e-06 | AA34: 0.03745634883 | AB34: 0.002805956135 | AC34: 0.0001034244524 | AD34: 20 | AE34: 10 | AF34: 0.0003310961469 | AG34: 2.895884667e-05 | AH34: 0.003166011129 | AI34: 0.05841136429 | AJ34: 0.003411887479 | AK34: 4.309352183e-05 | AL34: 0 | AM34: 7.615625249e-05 | AN34: 0.003488043731 | AO34: 0.0007773864094 | AP34: 0.0009825115734 | AQ34: 0.0001465179742 | AR34: 0.007783084407 | AS34: 0.00929947091 | AT34: 0.1016708 | AU34: 91.61985383 | AV34: 0.02528565635 | AW34: 0.03074595971 | AX34: 0.003168804899 | AY34: 0.003244607683 | AZ34: 0 | BA34: 0.0006862761699 | BB34: 0.01333900918 | BC34: 0.0002618303109 | BD34: 6.396000916e-05 | BE34: 0.007005357409 | BF34: 0.08380146173 | BG34: 0.9161985383 | BH34: 91.61985383 | BI34: 30.8 | BJ34: 92.2976279 | BK34: 0.922976279 | BL34: 68.1868163 | BN34: 7.783084407 | BO34: 0.9825115734 | BP34: 1.509288843
A35: RCoutESR | B35: ='Design Regulator'!E27 -> 1.5 | C35: mW | D35: =B35/1000 -> 0.0015 | E35: Output capacitor ESR | H35: 29 | I35: 0.0319 | J35: 0.243055 | K35: 0.002412228621 | L35: 1.545079797e-05 | M35: 8751.618383 | N35: 2.965327693e-05 | O35: 8.461130321e-05 | P35: 0.2595141635 | Q35: 0.07148657085 | R35: 0.001533098944 | S35: 3.00930727e-05 | T35: 0.001563192016 | U35: 0.06442288458 | V35: 6.225462086e-06 | W35: 6.225462086e-06 | X35: 0.01923539189 | Y35: 1.110000904e-06 | Z35: 1.110000904e-06 | AA35: 0.03811934453 | AB35: 0.002906168854 | AC35: 0.0001071181828 | AD35: 20 | AE35: 10 | AF35: 0.0003429210093 | AG35: 2.999309119e-05 | AH35: 0.003279082955 | AI35: 0.05944527402 | AJ35: 0.003533740603 | AK35: 4.463257618e-05 | AL35: 0 | AM35: 7.887611865e-05 | AN35: 0.003612616721 | AO35: 0.0007987388404 | AP35: 0.001011189903 | AQ35: 0.000151750759 | AR35: 0.008054640338 | AS35: 0.009625167818 | AT35: 0.1053019 | AU35: 91.62497747 | AV35: 0.0252870704 | AW35: 0.03074767911 | AX35: 0.003168982108 | AY35: 0.003244789131 | AZ35: 0 | BA35: 0.0006863145485 | BB35: 0.01333975514 | BC35: 0.0002618449532 | BD35: 6.38271134e-05 | BE35: 0.006949962751 | BF35: 0.08375022525 | BG35: 0.9162497747 | BH35: 91.62497747 | BI35: 31.9 | BJ35: 92.3088643 | BK35: 0.923088643 | BL35: 69.68611457 | BN35: 8.054640338 | BO35: 1.011189903 | BP35: 1.563192016
A36: Controller | C36: Units | D36: Std Units | E36: Description | H36: 30 | I36: 0.033 | J36: 0.243055 | K36: 0.002581457502 | L36: 1.545079797e-05 | M36: 8943.988095 | N36: 3.001602024e-05 | O36: 8.179092644e-05 | P36: 0.2684629277 | Q36: 0.07270865204 | R36: 0.001585964424 | S36: 3.113076486e-05 | T36: 0.001617095189 | U36: 0.06524662542 | V36: 6.385683193e-06 | W36: 6.385683193e-06 | X36: 0.01988603064 | Y36: 1.186362644e-06 | Z36: 1.186362644e-06 | AA36: 0.03877100446 | AB36: 0.003006381573 | AC36: 0.0001108119133 | AD36: 20 | AE36: 10 | AF36: 0.0003547458717 | AG36: 3.102733572e-05 | AH36: 0.003392154781 | AI36: 0.06046150616 | AJ36: 0.003655593727 | AK36: 4.617163053e-05 | AL36: 0 | AM36: 8.159598481e-05 | AN36: 0.003737189712 | AO36: 0.000820074247 | AP36: 0.001039851208 | AQ36: 0.0001569835438 | AR36: 0.008326179245 | AS36: 0.00995084648 | AT36: 0.108933 | AU36: 91.62977412 | AV36: 0.0252883942 | AW36: 0.03074928878 | AX36: 0.003169148007 | AY36: 0.003244958999 | AZ36: 0 | BA36: 0.0006863504776 | BB36: 0.01334045349 | BC36: 0.000261858661 | BD36: 6.369280656e-05 | BE36: 0.006898113338 | BF36: 0.08370225876 | BG36: 0.9162977412 | BH36: 91.62977412 | BI36: 33 | BJ36: 92.3193748 | BK36: 0.923193748 | BL36: 71.11215481 | BN36: 8.326179245 | BO36: 1.039851208 | BP36: 1.617095189
A37: Deadtime1 | B37: 30 | C37: ns | D37: =B37/1000000000 -> 3e-08 | E37: PMOS off to NMOS on deadtime | H37: 31 | I37: 0.0341 | J37: 0.243055 | K37: 0.002756422955 | L37: 1.545079797e-05 | M37: 9129.063791 | N37: 3.038774822e-05 | O37: 7.915250945e-05 | P37: 0.277411692 | Q37: 0.07391052936 | R37: 0.001638829905 | S37: 3.216845702e-05 | T37: 0.001670998362 | U37: 0.06604177617 | V37: 6.542274299e-06 | W37: 6.542274299e-06 | X37: 0.02053547112 | Y37: 1.265116722e-06 | Z37: 1.265116722e-06 | AA37: 0.03941189093 | AB37: 0.003106594293 | AC37: 0.0001145056437 | AD37: 20 | AE37: 10 | AF37: 0.0003665707341 | AG37: 3.206158024e-05 | AH37: 0.003505226607 | AI37: 0.0614609376 | AJ37: 0.003777446851 | AK37: 4.771068488e-05 | AL37: 0 | AM37: 8.431585098e-05 | AN37: 0.003861762702 | AO37: 0.0008413926295 | AP37: 0.00106849549 | AQ37: 0.0001622163286 | AR37: 0.008597701127 | AS37: 0.01027650688 | AT37: 0.1125641 | AU37: 91.63427539 | AV37: 0.02528963648 | AW37: 0.03075079933 | AX37: 0.00316930369 | AY37: 0.003245118406 | AZ37: 0 | BA37: 0.0006863841943 | BB37: 0.01334110883 | BC37: 0.0002618715247 | BD37: 6.355708605e-05 | BE37: 0.006849466564 | BF37: 0.0836572461 | BG37: 0.9163427539 | BH37: 91.63427539 | BI37: 34.1 | BJ37: 92.32922944 | BK37: 0.9232922944 | BL37: 72.46457502 | BN37: 8.597701127 | BO37: 1.06849549 | BP37: 1.670998362
A38: Deadtime2 | B38: 30 | C38: ns | D38: =B38/1000000000 -> 3e-08 | E38: PMOS off to NMOS on deadtime - not relevant in PFM | H38: 32 | I38: =IF(PLOT_TYPE=1, H38/100*Iout_maxload_PFM, min_I*EXP(H38*rr/100)) -> 0.0352 | J38: =IripplePFM -> 0.243055 | K38: =I38*D*P38 -> 0.00293712498 | L38: 1.545079797e-05 | M38: 9306.845472 | N38: =Cout*Vout_hys/(Ioutmax-I38) -> 3.076879885e-05 | O38: =Cout*Vout_hys/I38 -> 7.667899353e-05 | P38: 0.2863604562 | Q38: =IripplePFM/SQRT(3)*SQRT(P38) -> 0.07509317293 | R38: 0.001691695386 | S38: =P38*Fsw^2.5*(IripplePFM/2)^2.5*k_core -> 3.320614918e-05 | T38: 0.001724901535 | U38: =SQRT((((I38*(1-P38)/P38)^2+Ilim^2/12)*P38)+I38^2*(1-P38)) -> 0.06680935766 | V38: 6.695235406e-06 | W38: 6.695235406e-06 | X38: 0.02118368745 | Y38: 1.346245841e-06 | Z38: 1.346245841e-06 | AA38: 0.04004252122 | AB38: 0.003206807012 | AC38: 0.0001181993742 | AD38: 20 | AE38: 10 | AF38: 0.0003783955965 | AG38: 3.309582477e-05 | AH38: 0.003618298433 | AI38: 0.06244437505 | AJ38: 0.003899299975 | AK38: 4.924973923e-05 | AL38: 0 | AM38: 8.703571714e-05 | AN38: 0.003986335693 | AO38: =Vin*(Iq_active*(N38+Tsleep)+Iq_sleep*(O38-Tsleep))/(N38+O38)+Vout*Ifb/0.7 -> 0.0008626939877 | AP38: 0.001097122746 | AQ38: 0.0001674491134 | AR38: 0.008869205985 | AS38: 0.010602149 | AT38: =Vout*I38 -> 0.1161952 | AU38: 91.63850894 | AV38: 0.02529080487 | AW38: 0.03075222003 | AX38: 0.003169450113 | AY38: 0.003245268332 | AZ38: 0 | BA38: 0.0006864159055 | BB38: =R38/($AT38+$AS38) -> 0.0133417252 | BC38: =S38/($AT38+$AS38) -> 0.0002618836233 | BD38: 6.341994774e-05 | BE38: 0.00680372259 | BF38: 0.08361491061 | BG38: 0.9163850894 | BH38: 91.63850894 | BI38: =I38*1000 -> 35.2 | BJ38: 92.33848952 | BK38: 0.9233848952 | BL38: 73.74364069 | BN38: 8.869205985 | BO38: 1.097122746 | BP38: 1.724901535
A39: Sleep Delay | B39: 1 | C39: µs | D39: =B39/1000000 -> 1e-06 | E39: Delay time to enter sleep mode | H39: 33 | I39: 0.0363 | J39: 0.243055 | K39: 0.003123563577 | L39: =OffTime -> 1.545079797e-05 | M39: 9477.333138 | N39: 3.115952728e-05 | O39: 7.435538767e-05 | P39: 0.2953092205 | Q39: 0.0762574776 | R39: =Q39^2*Rdcr -> 0.001744560867 | S39: 3.424384134e-05 | T39: 0.001778804708 | U39: 0.06755030971 | V39: 6.844566512e-06 | W39: 6.844566512e-06 | X39: =SQRT((K39^2*(1-D)+(K39-Ilim)^2*D/3))*P39+(K39^2*(1-P39)) -> 0.02183065506 | Y39: 1.429732501e-06 | Z39: 1.429732501e-06 | AA39: =Ilim*SQRT(P39*D/3) -> 0.04066337253 | AB39: =RdsonTop*AA39^2 -> 0.003307019731 | AC39: =QgTop*P39*Vdd*Fsw -> 0.0001218931046 | AD39: 20 | AE39: 10 | AF39: =Vin*Ilim*Tf/2*Fsw*P39 -> 0.0003902204589 | AG39: =Coss*Vin^2*Fsw*P39/2 -> 3.413006929e-05 | AH39: 0.003731370259 | AI39: =Ilim*SQRT(P39*(1-D)/3) -> 0.06341256263 | AJ39: =RdsonBot*AI39^2 -> 0.0040211531 | AK39: =QgBot*P39*Vdd*Fsw -> 5.078879358e-05 | AL39: =Vin*Idss -> 0 | AM39: =dead1*P39*Ilim*((Ilim)*BDserR+VSD)*Fsw -> 8.97555833e-05 | AN39: 0.004110908683 | AO39: 0.0008839783217 | AP39: =(Vin-Vdd)*Fsw*(QgBot+QgTop)*P39+AO39 -> 0.001125732979 | AQ39: 0.0001726818982 | AR39: 0.009140693819 | AS39: 0.01092777283 | AT39: 0.1198263 | AU39: 91.64249909 | AV39: 0.02529190609 | AW39: 0.03075355905 | AX39: =Vin*Fsw*P39*(QgBot+QgTop)/($AT39+$AS39) -> 0.003169588118 | AY39: 0.003245409638 | AZ39: 0 | BA39: 0.0006864457937 | BB39: 0.01334230613 | BC39: 0.0002618950263 | BD39: 6.328138645e-05 | BE39: 0.006760617873 | BF39: 0.0835750091 | BG39: 0.9164249909 | BH39: 91.64249909 | BI39: 36.3 | BJ39: 92.34720895 | BK39: 0.9234720895 | BL39: 74.95017672 | BN39: 9.140693819 | BO39: 1.125732979 | BP39: 1.778804708
A40: IQ (active) | B40: 205 | C40: µA | D40: =B40/1000000 -> 0.000205 | E40: LM5165 quiescent current - active state | H40: 34 | I40: 0.0374 | J40: 0.243055 | K40: 0.003315738747 | L40: 1.545079797e-05 | M40: 9640.526788 | N40: 3.156030697e-05 | O40: 7.21684645e-05 | P40: 0.3042579847 | Q40: 0.07740427094 | R40: 0.001797426348 | S40: 3.528153351e-05 | T40: 0.001832707881 | U40: 0.06826549943 | V40: 6.990267618e-06 | W40: 6.990267618e-06 | X40: 0.02247635075 | Y40: 1.515559029e-06 | Z40: 1.515559029e-06 | AA40: 0.04127488613 | AB40: 0.00340723245 | AC40: 0.000125586835 | AD40: 20 | AE40: 10 | AF40: 0.0004020453213 | AG40: 3.516431381e-05 | AH40: 0.003844442085 | AI40: 0.06436618852 | AJ40: 0.004143006224 | AK40: 5.232784794e-05 | AL40: 0 | AM40: 9.247544946e-05 | AN40: 0.004235481673 | AO40: 0.0009052456315 | AP40: 0.001154326188 | AQ40: 0.000177914683 | AR40: 0.009412164629 | AS40: 0.01125337834 | AT40: 0.1234574 | AU40: 91.6462673 | AV40: 0.02529294606 | AW40: 0.03075482359 | AX40: 0.003169718447 | AY40: 0.003245543085 | AZ40: 0 | BA40: 0.0006864740194 | BB40: 0.01334285474 | BC40: 0.0002619057951 | BD40: 6.314139635e-05 | BE40: 0.006719919836 | BF40: 0.08353732697 | BG40: 0.916462673 | BH40: 91.6462673 | BI40: 37.4 | BJ40: 92.35543529 | BK40: 0.9235543529 | BL40: 76.08549663 | BN40: 9.412164629 | BO40: 1.154326188 | BP40: 1.832707881
A41: IQ (sleep) | B41: 10.5 | C41: µA | D41: 1.05e-05 | E41: LM5165 quiescent current - sleep state | H41: 35 | I41: 0.0385 | J41: 0.243055 | K41: 0.003513650489 | L41: 1.545079797e-05 | M41: 9796.426422 | N41: 3.197153079e-05 | O41: 7.010650837e-05 | P41: 0.313206749 | Q41: 0.07853432007 | R41: 0.001850291829 | S41: 3.631922567e-05 | T41: 0.001886611054 | U41: 0.06895572843 | V41: 7.132338725e-06 | W41: 7.132338725e-06 | X41: 0.02312075274 | Y41: 1.603707622e-06 | Z41: 1.603707622e-06 | AA41: 0.04187747109 | AB41: 0.003507445169 | AC41: 0.0001292805655 | AD41: 20 | AE41: 10 | AF41: 0.0004138701837 | AG41: 3.619855834e-05 | AH41: 0.003957513911 | AI41: 0.06530589061 | AJ41: 0.004264859348 | AK41: 5.386690229e-05 | AL41: 0 | AM41: 9.519531562e-05 | AN41: 0.004360054664 | AO41: 0.000926495917 | AP41: 0.001182902372 | AQ41: 0.0001831474678 | AR41: 0.009683618414 | AS41: 0.01157896552 | AT41: 0.1270885 | AU41: 91.64983259 | AV41: 0.02529393002 | AW41: 0.03075602004 | AX41: 0.003169841758 | AY41: 0.003245669345 | AZ41: 0 | BA41: 0.0006865007251 | BB41: 0.01334337382 | BC41: 0.0002619159839 | BD41: 6.299997129e-05 | BE41: 0.006681422449 | BF41: 0.08350167411 | BG41: 0.9164983259 | BH41: 91.64983259 | BI41: 38.5 | BJ41: 92.3632107 | BK41: 0.923632107 | BL41: 77.1513312 | BN41: 9.683618414 | BO41: 1.182902372 | BP41: 1.886611054
A42: High-side P-ch MOSFET | C42: Units | D42: Std Units | E42: Description | H42: 36 | I42: 0.0396 | J42: 0.243055 | K42: 0.003717298803 | L42: 1.545079797e-05 | M42: 9945.032041 | N42: 3.23936124e-05 | O42: 6.815910536e-05 | P42: 0.3221555133 | Q42: 0.0796483377 | R42: 0.001903157309 | S42: 3.735691783e-05 | T42: 0.001940514227 | U42: 0.06962173909 | V42: 7.270779831e-06 | W42: 7.270779831e-06 | X42: 0.02376384068 | Y42: 1.694160371e-06 | Z42: 1.694160371e-06 | AA42: 0.04247150744 | AB42: 0.003607657888 | AC42: 0.0001329742959 | AD42: 20 | AE42: 10 | AF42: 0.000425695046 | AG42: 3.723280286e-05 | AH42: 0.004070585737 | AI42: 0.06623226157 | AJ42: 0.004386712472 | AK42: 5.540595664e-05 | AL42: 0 | AM42: 9.791518178e-05 | AN42: 0.004484627654 | AO42: 0.0009477291783 | AP42: 0.001211461532 | AQ42: 0.0001883802526 | AR42: 0.009955055176 | AS42: 0.01190453434 | AT42: 0.1307196 | AU42: 91.65321185 | AV42: 0.02529486265 | AW42: 0.03075715406 | AX42: 0.003169958635 | AY42: 0.003245789018 | AZ42: 0 | BA42: 0.0006865260373 | BB42: 0.01334386581 | BC42: 0.0002619256411 | BD42: 6.28571051e-05 | BE42: 0.006644942545 | BF42: 0.08346788149 | BG42: 0.9165321185 | BH42: 91.65321185 | BI42: 39.6 | BJ42: 92.37057266 | BK42: 0.9237057266 | BL42: 78.14975863 | BN42: 9.955055176 | BO42: 1.211461532 | BP42: 1.940514227
A43: RdsonTop | B43: 2000 | C43: mW | D43: =B43/1000 -> 2 | E43: Drain-source Resistance of High-side MOSFET @ Vdd, 25°C | H43: 37 | I43: 0.0407 | J43: 0.243055 | K43: 0.003926683689 | L43: 1.545079797e-05 | M43: 10086.34365 | N43: 3.282698757e-05 | O43: 6.631696738e-05 | P43: 0.3311042775 | Q43: 0.08074698736 | R43: 0.00195602279 | S43: 3.839460999e-05 | T43: 0.0019944174 | U43: 0.07026422009 | V43: 7.405590938e-06 | W43: 7.405590938e-06 | X43: 0.02440559571 | Y43: 1.786899306e-06 | Z43: 1.786899306e-06 | AA43: 0.04305734901 | AB43: 0.003707870607 | AC43: 0.0001366680264 | AD43: 20 | AE43: 10 | AF43: 0.0004375199084 | AG43: 3.826704738e-05 | AH43: 0.004183657563 | AI43: 0.06714585316 | AJ43: 0.004508565597 | AK43: 5.694501099e-05 | AL43: 0 | AM43: 0.0001006350479 | AN43: 0.004609200645 | AO43: 0.0009689454153 | AP43: 0.001240003668 | AQ43: 0.0001936130374 | AR43: 0.01022647491 | AS43: 0.0122300848 | AT43: 0.1343507 | AU43: 91.65642016 | AV43: 0.02529574809 | AW43: 0.03075823071 | AX43: 0.003170069599 | AY43: 0.003245902636 | AZ43: 0 | BA43: 0.0006865500691 | BB43: 0.01334433291 | BC43: 0.0002619348098 | BD43: 6.271279183e-05 | BE43: 0.006610316739 | BF43: 0.08343579835 | BG43: 0.9165642016 | BH43: 91.65642016 | BI43: 40.7 | BJ43: 92.37755461 | BK43: 0.9237755461 | BL43: 79.08313781 | BN43: 10.22647491 | BO43: 1.240003668 | BP43: 1.9944174
A44: FOM | C44: mΩ*nC | E44: FOM | H44: 38 | I44: 0.0418 | J44: 0.243055 | K44: 0.004141805148 | L44: 1.545079797e-05 | M44: 10220.36123 | N44: 3.327211573e-05 | O44: 6.457178403e-05 | P44: 0.3400530418 | Q44: 0.08183088803 | R44: 0.002008888271 | S44: 3.943230215e-05 | T44: 0.002048320573 | U44: 0.07088381124 | V44: 7.536772044e-06 | W44: 7.536772044e-06 | X44: 0.02504600054 | Y44: 1.88190643e-06 | Z44: 1.88190643e-06 | AA44: 0.04363532586 | AB44: 0.003808083326 | AC44: 0.0001403617568 | AD44: 20 | AE44: 10 | AF44: 0.0004493447708 | AG44: 3.930129191e-05 | AH44: 0.004296729389 | AI44: 0.06804718011 | AJ44: 0.004630418721 | AK44: 5.848406534e-05 | AL44: 0 | AM44: 0.0001033549141 | AN44: 0.004733773635 | AO44: 0.0009901446282 | AP44: 0.001268528779 | AQ44: 0.0001988458222 | AR44: 0.01049787763 | AS44: 0.01255561688 | AT44: 0.1379818 | AU44: 91.65947102 | AV44: 0.02529659008 | AW44: 0.03075925452 | AX44: 0.003170175117 | AY44: 0.003246010679 | AZ44: 0 | BA44: 0.0006865729215 | BB44: 0.01334477708 | BC44: 0.0002619435285 | BD44: 6.256702599e-05 | BE44: 0.00657739882 | BF44: 0.08340528978 | BG44: 0.9165947102 | BH44: 91.65947102 | BI44: 41.8 | BJ44: 92.38418649 | BK44: 0.9238418649 | BL44: 79.9540458 | BN44: 10.49787763 | BO44: 1.268528779 | BP44: 2.048320573
A45: QgTop | B45: 1.8 | C45: nC | D45: =B45/1000000000 -> 1.8e-09 | E45: Gate Charge of High-side MOSFET @ Vdd | H45: 39 | I45: 0.0429 | J45: 0.243055 | K45: 0.004362663178 | L45: 1.545079797e-05 | M45: 10347.08481 | N45: 3.372948155e-05 | O45: 6.291609726e-05 | P45: 0.349001806 | Q45: 0.08290061825 | R45: 0.002061753752 | S45: 4.046999432e-05 | T45: 0.002102223746 | U45: 0.07148110776 | V45: 7.66432315e-06 | W45: 7.66432315e-06 | X45: 0.02568503944 | Y45: 1.979163753e-06 | Z45: 1.979163753e-06 | AA45: 0.04420574649 | AB45: 0.003908296046 | AC45: 0.0001440554873 | AD45: 20 | AE45: 10 | AF45: 0.0004611696332 | AG45: 4.033553643e-05 | AH45: 0.004409801215 | AI45: 0.06893672349 | AJ45: 0.004752271845 | AK45: 6.002311969e-05 | AL45: 0 | AM45: 0.0001060747803 | AN45: 0.004858346625 | AO45: 0.001011326817 | AP45: 0.001297036866 | AQ45: 0.0002040786069 | AR45: 0.01076926331 | AS45: 0.01288113055 | AT45: 0.1416129 | AU45: 91.66237653 | AV45: 0.02529739196 | AW45: 0.03076022956 | AX45: 0.003170275608 | AY45: 0.003246113574 | AZ45: 0 | BA45: 0.0006865946851 | BB45: 0.0133452001 | BC45: 0.0002619518319 | BD45: 6.241980269e-05 | BE45: 0.006546057561 | BF45: 0.08337623468 | BG45: 0.9166237653 | BH45: 91.66237653 | BI45: 42.9 | BJ45: 92.39049515 | BK45: 0.9239049515 | BL45: 80.76522052 | BN45: 10.76926331 | BO45: 1.297036866 | BP45: 2.102223746
A46: Coss | B46: 35 | C46: pF | D46: =B46/1000000000000 -> 3.5e-11 | E46: Coss | H46: 40 | I46: 0.044 | J46: 0.243055 | K46: 0.004589257781 | L46: 1.545079797e-05 | M46: 10466.51436 | N46: 3.419959672e-05 | O46: 6.134319483e-05 | P46: 0.3579505703 | Q46: 0.08395671966 | R46: 0.002114619233 | S46: 4.150768648e-05 | T46: 0.002156126919 | U46: 0.07205666408 | V46: 7.788244257e-06 | W46: 7.788244257e-06 | X46: 0.02632269831 | Y46: 2.078653339e-06 | Z46: 2.078653339e-06 | AA46: 0.04476889972 | AB46: 0.004008508765 | AC46: 0.0001477492177 | AD46: 20 | AE46: 10 | AF46: 0.0004729944956 | AG46: 4.136978096e-05 | AH46: 0.004522873041 | AI46: 0.06981493371 | AJ46: 0.004874124969 | AK46: 6.156217404e-05 | AL46: 0 | AM46: 0.0001087946464 | AN46: 0.004982919616 | AO46: 0.001032491981 | AP46: 0.00132552793 | AQ46: 0.0002093113917 | AR46: 0.01104063198 | AS46: 0.01320662579 | AT46: 0.145244 | AU46: 91.66514759 | AV46: 0.02529815673 | AW46: 0.03076115948 | AX46: 0.00317037145 | AY46: 0.003246211708 | AZ46: 0 | BA46: 0.0006866154417 | BB46: 0.01334560354 | BC46: 0.000261959751 | BD46: 6.227111788e-05 | BE46: 0.00651617484 | BF46: 0.08334852405 | BG46: 0.9166514759 | BH46: 91.66514759 | BI46: 44 | BJ46: 92.39650478 | BK46: 0.9239650478 | BL46: 81.51950902 | BN46: 11.04063198 | BO46: 1.32552793 | BP46: 2.156126919
A47: Low-side N-ch MOSFET | C47: Units | D47: Std Units | E47: Description | H47: 41 | I47: 0.0451 | J47: 0.243055 | K47: 0.004821588956 | L47: 1.545079797e-05 | M47: 10578.6499 | N47: 3.468300188e-05 | O47: 5.984701934e-05 | P47: 0.3668993345 | Q47: 0.08499970026 | R47: 0.002167484713 | S47: 4.254537864e-05 | T47: 0.002210030092 | U47: 0.07261099716 | V47: 7.908535363e-06 | W47: 7.908535363e-06 | X47: 0.02695896475 | Y47: 2.180357341e-06 | Z47: 2.180357341e-06 | AA47: 0.04532505645 | AB47: 0.004108721484 | AC47: 0.0001514429481 | AD47: 20 | AE47: 10 | AF47: 0.000484819358 | AG47: 4.240402548e-05 | AH47: 0.004635944867 | AI47: 0.07068223322 | AJ47: 0.004995978094 | AK47: 6.310122839e-05 | AL47: 0 | AM47: 0.0001115145126 | AN47: 0.005107492606 | AO47: 0.001053640121 | AP47: 0.001354001968 | AQ47: 0.0002145441765 | AR47: 0.01131198362 | AS47: 0.0135321026 | AT47: 0.1488751 | AU47: 91.66779405 | AV47: 0.02529888711 | AW47: 0.03076204758 | AX47: 0.003170462981 | AY47: 0.003246305429 | AZ47: 0 | BA47: 0.0006866352649 | BB47: 0.01334598884 | BC47: 0.000261967314 | BD47: 6.212096842e-05 | BE47: 0.006487644048 | BF47: 0.08332205953 | BG47: 0.9166779405 | BH47: 91.66779405 | BI47: 45.1 | BJ47: 92.40223722 | BK47: 0.9240223722 | BL47: 82.21982172 | BN47: 11.31198362 | BO47: 1.354001968 | BP47: 2.210030092
A48: RdsonBot | B48: 1000 | C48: mW | D48: =B48/1000 -> 1 | E48: Drain-source resistance of Low-side MOSFET @ Vdd, 25°C | H48: 42 | I48: 0.0462 | J48: 0.243055 | K48: 0.005059656704 | L48: 1.545079797e-05 | M48: 10683.49143 | N48: 3.518026866e-05 | O48: 5.842209031e-05 | P48: 0.3758480988 | Q48: 0.08603003728 | R48: 0.002220350194 | S48: 4.35830708e-05 | T48: 0.002263933265 | U48: 0.07314458955 | V48: 8.02519647e-06 | W48: 8.02519647e-06 | X48: 0.02759382805 | Y48: 2.284258039e-06 | Z48: 2.284258039e-06 | AA48: 0.04587447113 | AB48: 0.004208934203 | AC48: 0.0001551366786 | AD48: 20 | AE48: 10 | AF48: 0.0004966442204 | AG48: 4.343827e-05 | AH48: 0.004749016693 | AI48: 0.07153901885 | AJ48: 0.005117831218 | AK48: 6.464028274e-05 | AL48: 0 | AM48: 0.0001142343787 | AN48: 0.005232065597 | AO48: 0.001074771237 | AP48: 0.001382458983 | AQ48: 0.0002197769613 | AR48: 0.01158331823 | AS48: 0.01385756095 | AT48: 0.1525062 | AU48: 91.67032479 | AV48: 0.02529958555 | AW48: 0.03076289685 | AX48: 0.00317055051 | AY48: 0.003246395052 | AZ48: 0 | BA48: 0.0006866542214 | BB48: 0.01334635729 | BC48: 0.0002619745463 | BD48: 6.196935228e-05 | BE48: 0.006460368718 | BF48: 0.08329675209 | BG48: 0.9167032479 | BH48: 91.67032479 | BI48: 46.2 | BJ48: 92.40771223 | BK48: 0.9240771223 | BL48: 82.86909254 | BN48: 11.58331823 | BO48: 1.382458983 | BP48: 2.263933265
A49: FOM | C49: mΩ*nC | E49: FOM | H49: 43 | I49: 0.0473 | J49: 0.243055 | K49: 0.005303461023 | L49: 1.545079797e-05 | M49: 10781.03894 | N49: 3.569200196e-05 | O49: 5.706343705e-05 | P49: 0.3847968631 | Q49: 0.08704817967 | R49: 0.002273215675 | S49: 4.462076296e-05 | T49: 0.002317836438 | U49: 0.07365789198 | V49: 8.138227576e-06 | W49: 8.138227576e-06 | X49: 0.02822727931 | Y49: 2.390337891e-06 | Z49: 2.390337891e-06 | AA49: 0.04641738318 | AB49: 0.004309146922 | AC49: 0.000158830409 | AD49: 20 | AE49: 10 | AF49: 0.0005084690828 | AG49: 4.447251453e-05 | AH49: 0.004862088519 | AI49: 0.07238566393 | AJ49: 0.005239684342 | AK49: 6.61793371e-05 | AL49: 0 | AM49: 0.0001169542449 | AN49: 0.005356638587 | AO49: 0.001095885329 | AP49: 0.001410898973 | AQ49: 0.0002250097461 | AR49: 0.01185463583 | AS49: 0.01418300083 | AT49: 0.1561373 | AU49: 91.6727479 | AV49: 0.02530025429 | AW49: 0.03076371 | AX49: 0.003170634317 | AY49: 0.003246480863 | AZ49: 0 | BA49: 0.0006866723716 | BB49: 0.01334671007 | BC49: 0.0002619814711 | BD49: 6.181626862e-05 | BE49: 0.00643426135 | BF49: 0.08327252101 | BG49: 0.916727479 | BH49: 91.6727479 | BI49: 47.3 | BJ49: 92.41294772 | BK49: 0.9241294772 | BL49: 83.47024477 | BN49: 11.85463583 | BO49: 1.410898973 | BP49: 2.317836438
A50: QgBot | B50: 0.75 | C50: nC | D50: =B50/1000000000 -> 7.5e-10 | E50: Gate charge of low-side MOSFET @ Vdd | H50: 44 | I50: 0.0484 | J50: 0.243055 | K50: 0.005553001915 | L50: 1.545079797e-05 | M50: 10871.29244 | N50: 3.621884239e-05 | O50: 5.576654075e-05 | P50: 0.3937456273 | Q50: 0.08805455044 | R50: 0.002326081156 | S50: 4.565845513e-05 | T50: 0.002371739611 | U50: 0.07415132583 | V50: 8.247628683e-06 | W50: 8.247628683e-06 | X50: 0.02885931142 | Y50: 2.498579567e-06 | Z50: 2.498579567e-06 | AA50: 0.04695401815 | AB50: 0.004409359641 | AC50: 0.0001625241395 | AD50: 20 | AE50: 10 | AF50: 0.0005202939452 | AG50: 4.550675905e-05 | AH50: 0.004975160345 | AI50: 0.07322252021 | AJ50: 0.005361537466 | AK50: 6.771839145e-05 | AL50: 0 | AM50: 0.0001196741111 | AN50: 0.005481211577 | AO50: 0.001116982396 | AP50: 0.00143932194 | AQ50: 0.0002302425309 | AR50: 0.01212593639 | AS50: 0.01450842221 | AT50: 0.1597684 | AU50: 91.67507071 | AV50: 0.02530089535 | AW50: 0.0307644895 | AX50: 0.003170714655 | AY50: 0.003246563123 | AZ50: 0 | BA50: 0.0006866897706 | BB50: 0.01334704826 | BC50: 0.0002619881092 | BD50: 6.166171791e-05 | BE50: 0.006409242388 | BF50: 0.08324929287 | BG50: 0.9167507071 | BH50: 91.67507071 | BI50: 48.4 | BJ50: 92.41796001 | BK50: 0.9241796001 | BL50: 84.0261625 | BN50: 12.12593639 | BO50: 1.43932194 | BP50: 2.371739611
A51: VSD | B51: 0.8 | C51: V | D51: =B51 -> 0.8 | E51: Body diode forward voltage | H51: 45 | I51: 0.0495 | J51: 0.243055 | K51: 0.005808279379 | L51: 1.545079797e-05 | M51: 10954.25192 | N51: 3.676146894e-05 | O51: 5.452728429e-05 | P51: 0.4026943916 | Q51: 0.08904954869 | R51: 0.002378946637 | S51: 4.669614729e-05 | T51: 0.002425642784 | U51: 0.07462528521 | V51: 8.353399789e-06 | W51: 8.353399789e-06 | X51: 0.02948991917 | Y51: 2.608965998e-06 | Z51: 2.608965998e-06 | AA51: 0.04748458887 | AB51: 0.00450957236 | AC51: 0.0001662178699 | AD51: 20 | AE51: 10 | AF51: 0.0005321188076 | AG51: 4.654100358e-05 | AH51: 0.005088232171 | AI51: 0.07404991958 | AJ51: 0.005483390591 | AK51: 6.92574458e-05 | AL51: 0 | AM51: 0.0001223939772 | AN51: 0.005605784568 | AO51: 0.001138062439 | AP51: 0.001467727881 | AQ51: 0.0002354753157 | AR51: 0.01239721994 | AS51: 0.01483382509 | AT51: 0.1633995 | AU51: 91.67729992 | AV51: 0.02530151058 | AW51: 0.03076523758 | AX51: 0.003170791755 | AY51: 0.003246642068 | AZ51: 0 | BA51: 0.0006867064684 | BB51: 0.01334737281 | BC51: 0.0002619944798 | BD51: 6.150570204e-05 | BE51: 0.006385239342 | BF51: 0.08322700078 | BG51: 0.9167729992 | BH51: 91.67729992 | BI51: 49.5 | BJ51: 92.42276393 | BK51: 0.9242276393 | BL51: 84.53966708 | BN51: 12.39721994 | BO51: 1.467727881 | BP51: 2.425642784
A52: BDserR | B52: 500 | C52: mW | D52: =B52*0.001 -> 0.5 | E52: Series resistance of body diode | H52: 46 | I52: 0.0506 | J52: 0.243055 | K52: 0.006069293416 | L52: 1.545079797e-05 | M52: 11029.91738 | N52: 3.732060192e-05 | O52: 5.334190854e-05 | P52: 0.4116431558 | Q52: 0.09003355148 | R52: 0.002431812117 | S52: 4.773383945e-05 | T52: 0.002479545957 | U52: 0.07508013894 | V52: 8.455540895e-06 | W52: 8.455540895e-06 | X52: 0.03011909925 | Y52: 2.721480418e-06 | Z52: 2.721480418e-06 | AA52: 0.04800929639 | AB52: 0.004609785079 | AC52: 0.0001699116004 | AD52: 20 | AE52: 10 | AF52: 0.0005439436699 | AG52: 4.75752481e-05 | AH52: 0.005201303997 | AI52: 0.07486817558 | AJ52: 0.005605243715 | AK52: 7.079650015e-05 | AL52: 0 | AM52: 0.0001251138434 | AN52: 0.005730357558 | AO52: 0.001159125458 | AP52: 0.001496116799 | AQ52: 0.0002407081005 | AR52: 0.01266848646 | AS52: 0.01515920943 | AT52: 0.1670306 | AU52: 91.67944163 | AV52: 0.02530210166 | AW52: 0.0307659563 | AX52: 0.003170865829 | AY52: 0.003246717914 | AZ52: 0 | BA52: 0.0006867225108 | BB52: 0.01334768462 | BC52: 0.0002620006004 | BD52: 6.134822441e-05 | BE52: 0.006362186019 | BF52: 0.08320558367 | BG52: 0.9167944163 | BH52: 91.67944163 | BI52: 50.6 | BJ52: 92.42737306 | BK52: 0.9242737306 | BL52: 85.01349826 | BN52: 12.66848646 | BO52: 1.496116799 | BP52: 2.479545957
A53: Idss | B53: 0 | C53: μA | D53: =B53/1000000 -> 0 | E53: Leakage current of low-side device | H53: 47 | I53: 0.0517 | J53: 0.243055 | K53: 0.006336044024 | L53: 1.545079797e-05 | M53: 11098.28883 | N53: 3.789700615e-05 | O53: 5.220697432e-05 | P53: 0.4205919201 | Q53: 0.09100691546 | R53: 0.002484677598 | S53: 4.877153161e-05 | T53: 0.00253344913 | U53: 0.07551623226 | V53: 8.554052002e-06 | W53: 8.554052002e-06 | X53: 0.03074685032 | Y53: 2.836106413e-06 | Z53: 2.836106413e-06 | AA53: 0.04852833089 | AB53: 0.004709997798 | AC53: 0.0001736053308 | AD53: 20 | AE53: 10 | AF53: 0.0005557685323 | AG53: 4.860949262e-05 | AH53: 0.005314375823 | AI53: 0.07567758479 | AJ53: 0.005727096839 | AK53: 7.23355545e-05 | AL53: 0 | AM53: 0.0001278337095 | AN53: 0.005854930549 | AO53: 0.001180171453 | AP53: 0.001524488693 | AQ53: 0.0002459408853 | AR53: 0.01293973595 | AS53: 0.01548457524 | AT53: 0.1706617 | AU53: 91.68150143 | AV53: 0.02530267013 | AW53: 0.03076664753 | AX53: 0.003170937071 | AY53: 0.003246790859 | AZ53: 0 | BA53: 0.0006867379397 | BB53: 0.01334798451 | BC53: 0.0002620064868 | BD53: 6.118928998e-05 | BE53: 0.006340021855 | BF53: 0.08318498567 | BG53: 0.9168150143 | BH53: 91.68150143 | BI53: 51.7 | BJ53: 92.43179981 | BK53: 0.9243179981 | BL53: 85.45029948 | BN53: 12.93973595 | BO53: 1.524488693 | BP53: 2.53344913
H54: 48 | I54: 0.0528 | J54: 0.243055 | K54: 0.006608531205 | L54: 1.545079797e-05 | M54: 11159.36626 | N54: 3.849149443e-05 | O54: 5.111932902e-05 | P54: 0.4295406843 | Q54: 0.09196997842 | R54: 0.002537543079 | S54: 4.980922377e-05 | T54: 0.002587352303 | U54: 0.07593388839 | V54: 8.648933108e-06 | W54: 8.648933108e-06 | X54: 0.03137317306 | Y54: 2.952827964e-06 | Z54: 2.952827964e-06 | AA54: 0.0490418725 | AB54: 0.004810210518 | AC54: 0.0001772990612 | AD54: 20 | AE54: 10 | AF54: 0.0005675933947 | AG54: 4.964373715e-05 | AH54: 0.005427447649 | AI54: 0.07647842809 | AJ54: 0.005848949963 | AK54: 7.387460885e-05 | AL54: 0 | AM54: 0.0001305535757 | AN54: 0.005979503539 | AO54: 0.001201200424 | AP54: 0.001552843562 | AQ54: 0.0002511736701 | AR54: 0.01321096842 | AS54: 0.01580992248 | AT54: 0.1742928 | AU54: 91.68348445 | AV54: 0.02530321741 | AW54: 0.03076731299 | AX54: 0.003171005656 | AY54: 0.003246861085 | AZ54: 0 | BA54: 0.0006867527934 | BB54: 0.01334827322 | BC54: 0.0002620121539 | BD54: 6.102890543e-05 | BE54: 0.006318691326 | BF54: 0.08316515554 | BG54: 0.9168348445 | BH54: 91.68348445 | BI54: 52.8 | BJ54: 92.43605555 | BK54: 0.9243605555 | BL54: 85.85260691 | BN54: 13.21096842 | BO54: 1.552843562 | BP54: 2.587352303
H55: 49 | I55: 0.0539 | J55: 0.243055 | K55: 0.006886754958 | L55: 1.545079797e-05 | M55: 11213.14968 | N55: 3.910493136e-05 | O55: 5.007607741e-05 | P55: 0.4384894486 | Q55: 0.09292306065 | R55: 0.00259040856 | S55: 5.084691594e-05 | T55: 0.002641255476 | U55: 0.07633340996 | V55: 8.740184215e-06 | W55: 8.740184215e-06 | X55: 0.03199807025 | Y55: 3.071629499e-06 | Z55: 3.071629499e-06 | AA55: 0.04955009201 | AB55: 0.004910423237 | AC55: 0.0001809927917 | AD55: 20 | AE55: 10 | AF55: 0.0005794182571 | AG55: 5.067798167e-05 | AH55: 0.005540519475 | AI55: 0.07727097183 | AJ55: 0.005970803087 | AK55: 7.54136632e-05 | AL55: 0 | AM55: 0.0001332734419 | AN55: 0.006104076529 | AO55: 0.00122221237 | AP55: 0.001581181407 | AQ55: 0.0002564064549 | AR55: 0.01348218387 | AS55: 0.01613525116 | AT55: 0.1779239 | AU55: 91.68539538 | AV55: 0.0253037448 | AW55: 0.03076795426 | AX55: 0.003171071748 | AY55: 0.003246928759 | AZ55: 0 | BA55: 0.0006867671072 | BB55: 0.01334855143 | BC55: 0.0002620176149 | BD55: 6.086707915e-05 | BE55: 0.006298143441 | BF55: 0.08314604624 | BG55: 0.9168539538 | BH55: 91.68539538 | BI55: 53.9 | BJ55: 92.44015074 | BK55: 0.9244015074 | BL55: 86.22284162 | BN55: 13.48218387 | BO55: 1.581181407 | BP55: 2.641255476
H56: 50 | I56: 0.055 | J56: 0.243055 | K56: 0.007170715283 | L56: 1.545079797e-05 | M56: 11259.63908 | N56: 3.973823757e-05 | O56: 4.907455586e-05 | P56: 0.4474382129 | Q56: 0.09386646616 | R56: 0.002643274041 | S56: 5.18846081e-05 | T56: 0.002695158649 | U56: 0.07671508031 | V56: 8.827805321e-06 | W56: 8.827805321e-06 | X56: 0.03262154675 | Y56: 3.192495938e-06 | Z56: 3.192495938e-06 | AA56: 0.05005315153 | AB56: 0.005010635956 | AC56: 0.0001846865221 | AD56: 20 | AE56: 10 | AF56: 0.0005912431195 | AG56: 5.17122262e-05 | AH56: 0.005653591301 | AI56: 0.07805546881 | AJ56: 0.006092656212 | AK56: 7.695271755e-05 | AL56: 0 | AM56: 0.000135993308 | AN56: 0.00622864952 | AO56: 0.001243207292 | AP56: 0.001609502228 | AQ56: 0.0002616392397 | AR56: 0.01375338229 | AS56: 0.01646056124 | AT56: 0.181555 | AU56: 91.68723855 | AV56: 0.02530425349 | AW56: 0.0307685728 | AX56: 0.003171135497 | AY56: 0.003246994033 | AZ56: 0 | BA56: 0.0006867809134 | BB56: 0.01334881978 | BC56: 0.0002620228823 | BD56: 6.070382137e-05 | BE56: 0.00627833128 | BF56: 0.08312761449 | BG56: 0.9168723855 | BH56: 91.68723855 | BI56: 55 | BJ56: 92.444095 | BK56: 0.92444095 | BL56: 86.5633046 | BN56: 13.75338229 | BO56: 1.609502228 | BP56: 2.695158649
H57: 51 | I57: 0.0561 | J57: 0.243055 | K57: 0.007460412181 | L57: 1.545079797e-05 | M57: 11298.83447 | N57: 4.039239431e-05 | O57: 4.811230967e-05 | P57: 0.4563869771 | Q57: 0.09480048385 | R57: 0.002696139522 | S57: 5.292230026e-05 | T57: 0.002749061822 | U57: 0.07707916462 | V57: 8.911796428e-06 | W57: 8.911796428e-06 | X57: 0.03324360964 | Y57: 3.315412745e-06 | Z57: 3.315412745e-06 | AA57: 0.0505512051 | AB57: 0.005110848675 | AC57: 0.0001883802526 | AD57: 20 | AE57: 10 | AF57: 0.0006030679819 | AG57: 5.274647072e-05 | AH57: 0.005766663128 | AI57: 0.07883215927 | AJ57: 0.006214509336 | AK57: 7.84917719e-05 | AL57: 0 | AM57: 0.0001387131742 | AN57: 0.00635322251 | AO57: 0.00126418519 | AP57: 0.001637806024 | AQ57: 0.0002668720245 | AR57: 0.01402456369 | AS57: 0.01678585272 | AT57: 0.1851861 | AU57: 91.68901796 | AV57: 0.02530474458 | AW57: 0.03076916994 | AX57: 0.003171197041 | AY57: 0.003247057048 | AZ57: 0 | BA57: 0.0006867942421 | BB57: 0.01334907885 | BC57: 0.0002620279675 | BD57: 6.053914421e-05 | BE57: 0.006259211602 | BF57: 0.0831098204 | BG57: 0.9168901796 | BH57: 91.68901796 | BI57: 56.1 | BJ57: 92.44789719 | BK57: 0.9244789719 | BL57: 86.87617409 | BN57: 14.02456369 | BO57: 1.637806024 | BP57: 2.749061822
H58: 52 | I58: 0.0572 | J58: 0.243055 | K58: 0.00775584565 | L58: 1.545079797e-05 | M58: 11330.73584 | N58: 4.10684485e-05 | O58: 4.718707294e-05 | P58: 0.4653357414 | Q58: 0.09572538852 | R58: 0.002749005002 | S58: 5.395999242e-05 | T58: 0.002802964995 | U58: 0.07742591097 | V58: 8.992157534e-06 | W58: 8.992157534e-06 | X58: 0.03386426818 | Y58: 3.440365979e-06 | Z58: 3.440365979e-06 | AA58: 0.05104439927 | AB58: 0.005211061394 | AC58: 0.000192073983 | AD58: 20 | AE58: 10 | AF58: 0.0006148928443 | AG58: 5.378071524e-05 | AH58: 0.005879734954 | AI58: 0.07960127172 | AJ58: 0.00633636246 | AK58: 8.003082625e-05 | AL58: 0 | AM58: 0.0001414330403 | AN58: 0.006477795501 | AO58: 0.001285146063 | AP58: 0.001666092796 | AQ58: 0.0002721048093 | AR58: 0.01429572806 | AS58: 0.01711112558 | AT58: 0.1888172 | AU58: 91.69073728 | AV58: 0.02530521908 | AW58: 0.03076974691 | AX58: 0.003171256506 | AY58: 0.003247117936 | AZ58: 0 | BA58: 0.0006868071206 | BB58: 0.01334932916 | BC58: 0.000262032881 | BD58: 6.037306173e-05 | BE58: 0.006240744491 | BF58: 0.08309262716 | BG58: 0.9169073728 | BH58: 91.69073728 | BI58: 57.2 | BJ58: 92.4515655 | BK58: 0.924515655 | BL58: 87.1635048 | BN58: 14.29572806 | BO58: 1.666092796 | BP58: 2.802964995
H59: 53 | I59: 0.0583 | J59: 0.243055 | K59: 0.008057015692 | L59: 1.545079797e-05 | M59: 11355.3432 | N59: 4.176751837e-05 | O59: 4.629675081e-05 | P59: 0.4742845056 | Q59: 0.09664144182 | R59: 0.002801870483 | S59: 5.499768458e-05 | T59: 0.002856868168 | U59: 0.07775555131 | V59: 9.06888864e-06 | W59: 9.06888864e-06 | X59: 0.03448353396 | Y59: 3.567342344e-06 | Z59: 3.567342344e-06 | AA59: 0.05153287355 | AB59: 0.005311274113 | AC59: 0.0001957677135 | AD59: 20 | AE59: 10 | AF59: 0.0006267177067 | AG59: 5.481495977e-05 | AH59: 0.00599280678 | AI59: 0.08036302374 | AJ59: 0.006458215584 | AK59: 8.156988061e-05 | AL59: 0 | AM59: 0.0001441529065 | AN59: 0.006602368491 | AO59: 0.001306089913 | AP59: 0.001694362544 | AQ59: 0.0002773375941 | AR59: 0.01456687541 | AS59: 0.01743637981 | AT59: 0.1924483 | AU59: 91.69239993 | AV59: 0.02530567795 | AW59: 0.03077030487 | AX59: 0.003171314011 | AY59: 0.003247176817 | AZ59: 0 | BA59: 0.0006868195746 | BB59: 0.01334957123 | BC59: 0.0002620376324 | BD59: 6.020559002e-05 | BE59: 0.006222893038 | BF59: 0.08307600071 | BG59: 0.9169239993 | BH59: 91.69239993 | BI59: 58.3 | BJ59: 92.45510749 | BK59: 0.9245510749 | BL59: 87.42722881 | BN59: 14.56687541 | BO59: 1.694362544 | BP59: 2.856868168
H60: 54 | I60: 0.0594 | J60: 0.243055 | K60: 0.008363922306 | L60: 1.545079797e-05 | M60: 11372.65654 | N60: 4.24907996e-05 | O60: 4.543940358e-05 | P60: 0.4832332699 | Q60: 0.09754889311 | R60: 0.002854735964 | S60: 5.603537675e-05 | T60: 0.002910771341 | U60: 0.07806830235 | V60: 9.141989747e-06 | W60: 9.141989747e-06 | X60: 0.03510142089 | Y60: 3.696329245e-06 | Z60: 3.696329245e-06 | AA60: 0.05201676092 | AB60: 0.005411486832 | AC60: 0.0001994614439 | AD60: 20 | AE60: 10 | AF60: 0.0006385425691 | AG60: 5.584920429e-05 | AH60: 0.006105878606 | AI60: 0.08111762268 | AJ60: 0.006580068709 | AK60: 8.310893496e-05 | AL60: 0 | AM60: 0.0001468727727 | AN60: 0.006726941481 | AO60: 0.001327016738 | AP60: 0.001722615268 | AQ60: 0.0002825703789 | AR60: 0.01483800573 | AS60: 0.01776161539 | AT60: 0.1960794 | AU60: 91.69400905 | AV60: 0.02530612204 | AW60: 0.03077084486 | AX60: 0.003171369665 | AY60: 0.003247233802 | AZ60: 0 | BA60: 0.0006868316277 | BB60: 0.0133498055 | BC60: 0.000262042231 | BD60: 6.003674724e-05 | BE60: 0.006205623067 | BF60: 0.08305990954 | BG60: 0.9169400905 | BH60: 91.69400905 | BI60: 59.4 | BJ60: 92.45853018 | BK60: 0.9245853018 | BL60: 87.66915773 | BN60: 14.83800573 | BO60: 1.722615268 | BP60: 2.910771341
H61: 55 | I61: 0.0605 | J61: 0.243055 | K61: 0.008676565493 | L61: 1.545079797e-05 | M61: 11382.67586 | N61: 4.323957214e-05 | O61: 4.46132326e-05 | P61: 0.4921820341 | Q61: 0.09844798025 | R61: 0.002907601445 | S61: 5.707306891e-05 | T61: 0.002964674514 | U61: 0.07836436628 | V61: 9.211460853e-06 | W61: 9.211460853e-06 | X61: 0.03571794524 | Y61: 3.827314837e-06 | Z61: 3.827314837e-06 | AA61: 0.0524961882 | AB61: 0.005511699551 | AC61: 0.0002031551743 | AD61: 20 | AE61: 10 | AF61: 0.0006503674315 | AG61: 5.688344882e-05 | AH61: 0.006218950432 | AI61: 0.08186526634 | AJ61: 0.006701921833 | AK61: 8.464798931e-05 | AL61: 0 | AM61: 0.0001495926388 | AN61: 0.006851514472 | AO61: 0.001347926539 | AP61: 0.001750850968 | AQ61: 0.0002878031636 | AR61: 0.01510911903 | AS61: 0.01808683232 | AT61: 0.1997105 | AU61: 91.69556756 | AV61: 0.02530655216 | AW61: 0.03077136786 | AX61: 0.003171423568 | AY61: 0.003247288994 | AZ61: 0 | BA61: 0.0006868433017 | BB61: 0.01335003241 | BC61: 0.0002620466849 | BD61: 5.986655369e-05 | BE61: 0.006188902887 | BF61: 0.08304432442 | BG61: 0.9169556756 | BH61: 91.69556756 | BI61: 60.5 | BJ61: 92.46184006 | BK61: 0.9246184006 | BL61: 87.89098588 | BN61: 15.10911903 | BO61: 1.750850968 | BP61: 2.964674514
H62: 56 | I62: 0.0616 | J62: 0.243055 | K62: 0.008994945251 | L62: 1.545079797e-05 | M62: 11385.40117 | N62: 4.401520779e-05 | O62: 4.381656773e-05 | P62: 0.5011307984 | Q62: 0.09933893036 | R62: 0.002960466926 | S62: 5.811076107e-05 | T62: 0.003018577687 | U62: 0.07864393157 | V62: 9.27730196e-06 | W62: 9.27730196e-06 | X62: 0.03633312577 | Y62: 3.960288084e-06 | Z62: 3.960288084e-06 | AA62: 0.05297127651 | AB62: 0.00561191227 | AC62: 0.0002068489048 | AD62: 20 | AE62: 10 | AF62: 0.0006621922938 | AG62: 5.791769334e-05 | AH62: 0.006332022258 | AI62: 0.08260614358 | AJ62: 0.006823774957 | AK62: 8.618704366e-05 | AL62: 0 | AM62: 0.000152312505 | AN62: 0.006976087462 | AO62: 0.001368819315 | AP62: 0.001779069643 | AQ62: 0.0002930359484 | AR62: 0.01538021531 | AS62: 0.01841203059 | AT62: 0.2033416 | AU62: 91.69707818 | AV62: 0.02530696907 | AW62: 0.0307718748 | AX62: 0.003171475815 | AY62: 0.003247342491 | AZ62: 0 | BA62: 0.0006868546169 | BB62: 0.01335025234 | BC62: 0.0002620510019 | BD62: 5.969503186e-05 | BE62: 0.006172703066 | BF62: 0.08302921823 | BG62: 0.9169707818 | BH62: 91.69707818 | BI62: 61.6 | BJ62: 92.46504316 | BK62: 0.9246504316 | BL62: 88.09429419 | BN62: 15.38021531 | BO62: 1.779069643 | BP62: 3.018577687
H63: 57 | I63: 0.0627 | J63: 0.243055 | K63: 0.009319061582 | L63: 1.545079797e-05 | M63: 11380.83247 | N63: 4.481917858e-05 | O63: 4.304785602e-05 | P63: 0.5100795626 | Q63: 0.1002219604 | R63: 0.003013332406 | S63: 5.914845323e-05 | T63: 0.00307248086 | U63: 0.07890717359 | V63: 9.339513066e-06 | W63: 9.339513066e-06 | X63: 0.03694698371 | Y63: 4.095238815e-06 | Z63: 4.095238815e-06 | AA63: 0.05344214156 | AB63: 0.00571212499 | AC63: 0.0002105426352 | AD63: 20 | AE63: 10 | AF63: 0.0006740171562 | AG63: 5.895193786e-05 | AH63: 0.006445094084 | AI63: 0.08334043485 | AJ63: 0.006945628081 | AK63: 8.772609801e-05 | AL63: 0 | AM63: 0.0001550323711 | AN63: 0.007100660452 | AO63: 0.001389695068 | AP63: 0.001807271294 | AQ63: 0.0002982687332 | AR63: 0.01565129456 | AS63: 0.01873721018 | AT63: 0.2069727 | AU63: 91.69854343 | AV63: 0.02530737346 | AW63: 0.03077236651 | AX63: 0.003171526493 | AY63: 0.003247394381 | AZ63: 0 | BA63: 0.0006868655923 | BB63: 0.01335046567 | BC63: 0.0002620551893 | BD63: 5.952220649e-05 | BE63: 0.006156996238 | BF63: 0.08301456573 | BG63: 0.9169854343 | BH63: 91.69854343 | BI63: 62.7 | BJ63: 92.46814511 | BK63: 0.9246814511 | BL63: 88.28055478 | BN63: 15.65129456 | BO63: 1.807271294 | BP63: 3.07248086
H64: 58 | I64: 0.0638 | J64: 0.243055 | K64: 0.009648914485 | L64: 1.545079797e-05 | M64: 11368.96974 | N64: 4.565306607e-05 | O64: 4.23056516e-05 | P64: 0.5190283269 | Q64: 0.101097278 | R64: 0.003066197887 | S64: 6.018614539e-05 | T64: 0.003126384033 | U64: 0.07915425519 | V64: 9.398094172e-06 | W64: 9.398094172e-06 | X64: 0.03755954285 | Y64: 4.232157777e-06 | Z64: 4.232157777e-06 | AA64: 0.05390889402 | AB64: 0.005812337709 | AC64: 0.0002142363657 | AD64: 20 | AE64: 10 | AF64: 0.0006858420186 | AG64: 5.998618239e-05 | AH64: 0.00655816591 | AI64: 0.08406831273 | AJ64: 0.007067481206 | AK64: 8.926515236e-05 | AL64: 0 | AM64: 0.0001577522373 | AN64: 0.007225233443 | AO64: 0.001410553796 | AP64: 0.001835455921 | AQ64: 0.000303501518 | AR64: 0.01592235679 | AS64: 0.01906237108 | AT64: 0.2106038 | AU64: 91.69996566 | AV64: 0.02530776597 | AW64: 0.03077284379 | AX64: 0.003171575682 | AY64: 0.003247444748 | AZ64: 0 | BA64: 0.0006868762455 | BB64: 0.01335067273 | BC64: 0.0002620592537 | BD64: 5.934810462e-05 | BE64: 0.006141756922 | BF64: 0.08300034344 | BG64: 0.9169996566 | BH64: 91.69996566 | BI64: 63.8 | BJ64: 92.47115112 | BK64: 0.9247115112 | BL64: 88.45113586 | BN64: 15.92235679 | BO64: 1.835455921 | BP64: 3.126384033
H65: 59 | I65: 0.0649 | J65: 0.243055 | K65: 0.00998450396 | L65: 1.545079797e-05 | M65: 11349.81301 | N65: 4.651857179e-05 | O65: 4.158860666e-05 | P65: 0.5279770912 | Q65: 0.1019650817 | R65: 0.003119063368 | S65: 6.122383756e-05 | T65: 0.003180287206 | U65: 0.07938532727 | V65: 9.453045279e-06 | W65: 9.453045279e-06 | X65: 0.03817082959 | Y65: 4.371036696e-06 | Z65: 4.371036696e-06 | AA65: 0.05437163979 | AB65: 0.005912550428 | AC65: 0.0002179300961 | AD65: 20 | AE65: 10 | AF65: 0.000697666881 | AG65: 6.102042691e-05 | AH65: 0.006671237736 | AI65: 0.08478994239 | AJ65: 0.00718933433 | AK65: 9.080420671e-05 | AL65: 0 | AM65: 0.0001604721035 | AN65: 0.007349806433 | AO65: 0.0014313955 | AP65: 0.001863623524 | AQ65: 0.0003087343028 | AR65: 0.016193402 | AS65: 0.01938751328 | AT65: 0.2142349 | AU65: 91.70134705 | AV65: 0.02530814721 | AW65: 0.03077330736 | AX65: 0.00317162346 | AY65: 0.003247493668 | AZ65: 0 | BA65: 0.0006868865928 | BB65: 0.01335087385 | BC65: 0.0002620632015 | BD65: 5.917275565e-05 | BE65: 0.006126961364 | BF65: 0.08298652946 | BG65: 0.9170134705 | BH65: 91.70134705 | BI65: 64.9 | BJ65: 92.47406607 | BK65: 0.9247406607 | BL65: 88.60730692 | BN65: 16.193402 | BO65: 1.863623524 | BP65: 3.180287206
F66: Eff (%) | G66: Iout (mA) | H66: 60 | I66: 0.066 | J66: 0.243055 | K66: 0.01032583001 | L66: 1.545079797e-05 | M66: 11323.36225 | N66: 4.741752877e-05 | O66: 4.089546322e-05 | P66: 0.5369258554 | Q66: 0.1028255618 | R66: 0.003171928849 | S66: 6.226152972e-05 | T66: 0.003234190379 | U66: 0.07960052925 | V66: 9.504366385e-06 | W66: 9.504366385e-06 | X66: 0.038780873 | Y66: 4.511868333e-06 | Z66: 4.511868333e-06 | AA66: 0.05483048033 | AB66: 0.006012763147 | AC66: 0.0002216238266 | AD66: 20 | AE66: 10 | AF66: 0.0007094917434 | AG66: 6.205467143e-05 | AH66: 0.006784309562 | AI66: 0.08550548201 | AJ66: 0.007311187454 | AK66: 9.234326106e-05 | AL66: 0 | AM66: 0.0001631919696 | AN66: 0.007474379424 | AO66: 0.00145222018 | AP66: 0.001891774102 | AQ66: 0.0003139670876 | AR66: 0.01646443018 | AS66: 0.01971263679 | AT66: 0.217866 | AU66: 91.70268966 | AV66: 0.02530851775 | AW66: 0.03077375791 | AX66: 0.003171669896 | AY66: 0.003247541215 | AZ66: 0 | BA66: 0.0006868966496 | BB66: 0.01335106932 | BC66: 0.0002620670383 | BD66: 5.899619136e-05 | BE66: 0.006112587391 | BF66: 0.08297310337 | BG66: 0.9170268966 | BH66: 91.70268966 | BI66: 66 | BJ66: 92.47689452 | BK66: 0.9247689452 | BL66: 88.75024406 | BN66: 16.46443018 | BO66: 1.891774102 | BP66: 3.234190379
F67: =AU56 -> 91.68723855 | G67: =I56*1000 -> 55 | H67: 61 | I67: 0.0671 | J67: 0.243055 | K67: 0.01067289263 | L67: 1.545079797e-05 | M67: 11289.61749 | N67: 4.835191452e-05 | O67: 4.022504579e-05 | P67: 0.5458746197 | Q67: 0.1036789006 | R67: 0.00322479433 | S67: 6.329922188e-05 | T67: 0.003288093552 | U67: 0.07979998952 | V67: 9.552057492e-06 | W67: 9.552057492e-06 | X67: 0.03938970487 | Y67: 4.654646549e-06 | Z67: 4.654646549e-06 | AA67: 0.05528551287 | AB67: 0.006112975866 | AC67: 0.000225317557 | AD67: 20 | AE67: 10 | AF67: 0.0007213166058 | AG67: 6.308891596e-05 | AH67: 0.006897381388 | AI67: 0.08621508324 | AJ67: 0.007433040578 | AK67: 9.388231541e-05 | AL67: 0 | AM67: 0.0001659118358 | AN67: 0.007598952414 | AO67: 0.001473027835 | AP67: 0.001919907656 | AQ67: 0.0003191998724 | AR67: 0.01673544133 | AS67: 0.02003774159 | AT67: 0.2214971 | AU67: 91.70399539 | AV67: 0.02530887811 | AW67: 0.03077419609 | AX67: 0.003171715057 | AY67: 0.003247587456 | AZ67: 0 | BA67: 0.0006869064301 | BB67: 0.01335125942 | BC67: 0.0002620707698 | BD67: 5.881844601e-05 | BE67: 0.006098614284 | BF67: 0.08296004607 | BG67: 0.9170399539 | BH67: 91.70399539 | BI67: 67.1 | BJ67: 92.47964069 | BK67: 0.9247964069 | BL67: 88.88103537 | BN67: 16.73544133 | BO67: 1.919907656 | BP67: 3.288093552
F68: =AU81 -> 91.71922897 | G68: =I81*1000 -> 82.5 | H68: 62 | I68: 0.0682 | J68: 0.243055 | K68: 0.01102569182 | L68: 1.545079797e-05 | M68: 11248.5787 | N68: 4.932386558e-05 | O68: 3.957625473e-05 | P68: 0.5548233839 | Q68: 0.104525273 | R68: 0.003277659811 | S68: 6.433691404e-05 | T68: 0.003341996725 | U68: 0.07998382586 | V68: 9.596118598e-06 | W68: 9.596118598e-06 | X68: 0.03999735974 | Y68: 4.799366359e-06 | Z68: 4.799366359e-06 | AA68: 0.05573683067 | AB68: 0.006213188585 | AC68: 0.0002290112874 | AD68: 20 | AE68: 10 | AF68: 0.0007331414682 | AG68: 6.412316048e-05 | AH68: 0.007010453214 | AI68: 0.08691889152 | AJ68: 0.007554893703 | AK68: 9.542136977e-05 | AL68: 0 | AM68: 0.000168631702 | AN68: 0.007723525404 | AO68: 0.001493818466 | AP68: 0.001948024186 | AQ68: 0.0003244326572 | AR68: 0.01700643546 | AS68: 0.02036282767 | AT68: 0.2251282 | AU68: 91.70526603 | AV68: 0.02530922879 | AW68: 0.0307746225 | AX68: 0.003171759003 | AY68: 0.003247632454 | AZ68: 0 | BA68: 0.0006869159478 | BB68: 0.01335144442 | BC68: 0.0002620744011 | BD68: 5.863955638e-05 | BE68: 0.006085022661 | BF68: 0.08294733972 | BG68: 0.9170526603 | BH68: 91.70526603 | BI68: 68.2 | BJ68: 92.48230859 | BK68: 0.9248230859 | BL68: 89.00068627 | BN68: 17.00643546 | BO68: 1.948024186 | BP68: 3.341996725
F69: =AU106 -> 91.73791378 | G69: =I106*1000 -> 110 | H69: 63 | I69: 0.0693 | J69: 0.243055 | K69: 0.01138422758 | L69: 1.545079797e-05 | M69: 11200.2459 | N69: 5.033569379e-05 | O69: 3.894806021e-05 | P69: 0.5637721482 | Q69: 0.1053648469 | R69: 0.003330525291 | S69: 6.53746062e-05 | T69: 0.003395899898 | U69: 0.08015214576 | V69: 9.636549705e-06 | W69: 9.636549705e-06 | X69: 0.04060387502 | Y69: 4.946024e-06 | Z69: 4.946024e-06 | AA69: 0.05618452324 | AB69: 0.006313401304 | AC69: 0.0002327050179 | AD69: 20 | AE69: 10 | AF69: 0.0007449663306 | AG69: 6.515740501e-05 | AH69: 0.00712352504 | AI69: 0.08761704644 | AJ69: 0.007676746827 | AK69: 9.696042412e-05 | AL69: 0 | AM69: 0.0001713515681 | AN69: 0.007848098395 | AO69: 0.001514592073 | AP69: 0.001976123692 | AQ69: 0.000329665442 | AR69: 0.01727741257 | AS69: 0.02068789504 | AT69: 0.2287593 | AU69: 91.70650324 | AV69: 0.02530957024 | AW69: 0.03077503768 | AX69: 0.003171801794 | AY69: 0.003247676269 | AZ69: 0 | BA69: 0.0006869252151 | BB69: 0.01335162454 | BC69: 0.0002620779367 | BD69: 5.845956176e-05 | BE69: 0.006071794366 | BF69: 0.08293496761 | BG69: 0.9170650324 | BH69: 91.70650324 | BI69: 69.3 | BJ69: 92.48490192 | BK69: 0.9248490192 | BL69: 89.11012474 | BN69: 17.27741257 | BO69: 1.976123692 | BP69: 3.395899898
H70: 64 | I70: =IF(PLOT_TYPE=1, H70/100*Iout_maxload_PFM, min_I*EXP(H70*rr/100)) -> 0.0704 | J70: =IripplePFM -> 0.243055 | K70: =I70*D*P70 -> 0.01174849992 | L70: 1.545079797e-05 | M70: 11144.61909 | N70: =Cout*Vout_hys/(Ioutmax-I70) -> 5.138990466e-05 | O70: =Cout*Vout_hys/I70 -> 3.833949677e-05 | P70: 0.5727209124 | Q70: =IripplePFM/SQRT(3)*SQRT(P70) -> 0.1061977836 | R70: 0.003383390772 | S70: =P70*Fsw^2.5*(IripplePFM/2)^2.5*k_core -> 6.641229837e-05 | T70: 0.003449803071 | U70: =SQRT((((I70*(1-P70)/P70)^2+Ilim^2/12)*P70)+I70^2*(1-P70)) -> 0.08030504679 | V70: 9.673350811e-06 | W70: 9.673350811e-06 | X70: 0.04120929098 | Y70: 5.094616989e-06 | Z70: 5.094616989e-06 | AA70: 0.05662867658 | AB70: 0.006413614023 | AC70: 0.0002363987483 | AD70: 20 | AE70: 10 | AF70: 0.000756791193 | AG70: 6.619164953e-05 | AH70: 0.007236596866 | AI70: 0.08830968209 | AJ70: 0.007798599951 | AK70: 9.849947847e-05 | AL70: 0 | AM70: 0.0001740714343 | AN70: 0.007972671385 | AO70: =Vin*(Iq_active*(N70+Tsleep)+Iq_sleep*(O70-Tsleep))/(N70+O70)+Vout*Ifb/0.7 -> 0.001535348656 | AP70: 0.002004206174 | AQ70: 0.0003348982268 | AR70: 0.01754837265 | AS70: 0.02101294369 | AT70: =Vout*I70 -> 0.2323904 | AU70: 91.70770859 | AV70: 0.0253099029 | AW70: 0.03077544218 | AX70: 0.003171843483 | AY70: 0.003247718955 | AZ70: 0 | BA70: 0.0006869342438 | BB70: =R70/($AT70+$AS70) -> 0.01335180003 | BC70: =S70/($AT70+$AS70) -> 0.0002620813814 | BD70: 5.827850408e-05 | BE70: 0.00605891238 | BF70: 0.08292291405 | BG70: 0.9170770859 | BH70: 91.70770859 | BI70: =I70*1000 -> 70.4 | BJ70: 92.48742419 | BK70: 0.9248742419 | BL70: 89.21020648 | BN70: 17.54837265 | BO70: 2.004206174 | BP70: 3.449803071
H71: 65 | I71: 0.0715 | J71: 0.243055 | K71: 0.01211850883 | L71: =OffTime -> 1.545079797e-05 | M71: 11081.69826 | N71: 5.248921808e-05 | O71: 3.774965835e-05 | P71: 0.5816696767 | Q71: 0.107024238 | R71: =Q71^2*Rdcr -> 0.003436256253 | S71: 6.744999053e-05 | T71: 0.003503706244 | U71: 0.08044261689 | V71: =RCoutEsr*U71^2 -> 9.706521917e-06 | W71: 9.706521917e-06 | X71: =SQRT((K71^2*(1-D)+(K71-Ilim)^2*D/3))*P71+(K71^2*(1-P71)) -> 0.04181365084 | Y71: =RCinEsr*X71^2 -> 5.245144189e-06 | Z71: 5.245144189e-06 | AA71: =Ilim*SQRT(P71*D/3) -> 0.05706937332 | AB71: =RdsonTop*AA71^2 -> 0.006513826743 | AC71: =QgTop*P71*Vdd*Fsw -> 0.0002400924788 | AD71: 20 | AE71: 10 | AF71: =Vin*Ilim*Tf/2*Fsw*P71 -> 0.0007686160554 | AG71: =Coss*Vin^2*Fsw*P71/2 -> 6.722589405e-05 | AH71: 0.007349668692 | AI71: =Ilim*SQRT(P71*(1-D)/3) -> 0.08899692734 | AJ71: =RdsonBot*AI71^2 -> 0.007920453075 | AK71: =QgBot*P71*Vdd*Fsw -> 0.0001000385328 | AL71: =Vin*Idss -> 0 | AM71: =dead1*P71*Ilim*((Ilim)*BDserR+VSD)*Fsw -> 0.0001767913004 | AN71: 0.008097244376 | AO71: 0.001556088215 | AP71: =(Vin-Vdd)*Fsw*(QgBot+QgTop)*P71+AO71 -> 0.002032271631 | AQ71: 0.0003401310116 | AR71: 0.01781931571 | AS71: =SUM(T71,W71,Z71,AR71) -> 0.02133797362 | AT71: 0.2360215 | AU71: 91.70888356 | AV71: 0.02531022717 | AW71: 0.03077583647 | AX71: =Vin*Fsw*P71*(QgBot+QgTop)/($AT71+$AS71) -> 0.003171884121 | AY71: 0.003247760565 | AZ71: =AL71/(AS71+AT71) -> 0 | BA71: =AM71/($AT71+$AS71) -> 0.0006869430449 | BB71: 0.0133519711 | BC71: 0.0002620847392 | BD71: =(W71+Z71)/($AT71+$AS71) -> 5.809642791e-05 | BE71: 0.00604636073 | BF71: 0.08291116437 | BG71: =AU71/100 -> 0.9170888356 | BH71: 91.70888356 | BI71: 71.5 | BJ71: 92.48987866 | BK71: 0.9248987866 | BL71: 89.30171979 | BN71: 17.81931571 | BO71: 2.032271631 | BP71: 3.503706244
H72: 66 | I72: 0.0726 | J72: 0.243055 | K72: 0.01249425431 | L72: 1.545079797e-05 | M72: =1/(N72+O72) -> 11011.48341 | N72: 5.36365918e-05 | O72: 3.717769383e-05 | P72: =N72/(N72+O72) -> 0.590618441 | Q72: 0.1078443591 | R72: 0.003489121734 | S72: 6.848768269e-05 | T72: =R72+S72 -> 0.003557609416 | U72: 0.08056493457 | V72: 9.736063024e-06 | W72: =V72 -> 9.736063024e-06 | X72: 0.04241700081 | Y72: 5.397605874e-06 | Z72: =Y72 -> 5.397605874e-06 | AA72: 0.05750669292 | AB72: 0.006614039462 | AC72: 0.0002437862092 | AD72: 20 | AE72: 10 | AF72: 0.0007804409177 | AG72: 6.826013858e-05 | AH72: =AB72+AF72+AG72 -> 0.007462740518 | AI72: 0.0896789061 | AJ72: 0.008042306199 | AK72: 0.0001015775872 | AL72: 0 | AM72: 0.0001795111666 | AN72: =AJ72+AL72+AM72 -> 0.008221817366 | AO72: 0.001576810749 | AP72: 0.002060320064 | AQ72: =AC72+AK72 -> 0.0003453637964 | AR72: =AH72+AN72+AP72+AQ72 -> 0.01809024174 | AS72: 0.02166298483 | AT72: 0.2396526 | AU72: =100*AT72/(AT72+AS72) -> 91.71002952 | AV72: =AB72/($AT72+$AS72) -> 0.02531054344 | AW72: =AJ72/($AT72+$AS72) -> 0.03077622104 | AX72: 0.003171923756 | AY72: =(AF72+AG72)/($AT72+$AS72) -> 0.003247801148 | AZ72: 0 | BA72: 0.0006869516287 | BB72: 0.01335213794 | BC72: 0.0002620880141 | BD72: 5.791338051e-05 | BE72: =AO72/($AT72+$AS72) -> 0.00603412441 | BF72: =SUM(AV72:BE72) -> 0.08289970475 | BG72: 0.9171002952 | BH72: =BG72*100 -> 91.71002952 | BI72: 72.6 | BJ72: 92.49226842 | BK72: =BJ72/100 -> 0.9249226842 | BL72: 89.38539032 | BN72: =1000*AR72 -> 18.09024174 | BO72: =1000*AP72 -> 2.060320064 | BP72: =1000*T72 -> 3.557609416
H73: 67 | I73: 0.0737 | J73: 0.243055 | K73: 0.01287573636 | L73: 1.545079797e-05 | M73: 10933.97455 | N73: 5.48352479e-05 | O73: 3.662280288e-05 | P73: 0.5995672052 | Q73: 0.1086582903 | R73: 0.003541987215 | S73: 6.952537485e-05 | T73: 0.003611512589 | U73: 0.08067206923 | V73: 9.76197413e-06 | W73: 9.76197413e-06 | X73: 0.04301939018 | Y73: 5.552003794e-06 | Z73: 5.552003794e-06 | AA73: 0.05794071186 | AB73: 0.006714252181 | AC73: 0.0002474799396 | AD73: 20 | AE73: 10 | AF73: 0.0007922657801 | AG73: 6.92943831e-05 | AH73: 0.007575812344 | AI73: 0.09035573764 | AJ73: 0.008164159324 | AK73: 0.0001031166415 | AL73: 0 | AM73: 0.0001822310328 | AN73: 0.008346390356 | AO73: 0.001597516259 | AP73: 0.002088351473 | AQ73: 0.0003505965812 | AR73: 0.01836115075 | AS73: 0.02198797732 | AT73: 0.2432837 | AU73: 91.71114778 | AV73: 0.02531085206 | AW73: 0.0307765963 | AX73: 0.003171962432 | AY73: 0.003247840749 | AZ73: 0 | BA73: 0.0006869600049 | BB73: 0.01335230074 | BC73: 0.0002620912099 | BD73: 5.772941189e-05 | BE73: 0.006022189309 | BF73: 0.08288852223 | BG73: 0.9171114778 | BH73: 91.71114778 | BI73: 73.7 | BJ73: 92.49459637 | BK73: 0.9249459637 | BL73: 89.46188561 | BN73: 18.36115075 | BO73: 2.088351473 | BP73: 3.611512589
H74: 68 | I74: 0.0748 | J74: 0.243055 | K74: 0.01326295499 | L74: 1.545079797e-05 | M74: 10849.17168 | N74: 5.608870314e-05 | O74: 3.608423225e-05 | P74: 0.6085159695 | Q74: 0.1094661697 | R74: 0.003594852695 | S74: 7.056306701e-05 | T74: 0.003665415762 | U74: 0.08076408128 | V74: 9.784255237e-06 | W74: 9.784255237e-06 | X74: 0.0436208713 | Y74: 5.70834124e-06 | Z74: 5.70834124e-06 | AA74: 0.05837150375 | AB74: 0.0068144649 | AC74: 0.0002511736701 | AD74: 20 | AE74: 10 | AF74: 0.0008040906425 | AG74: 7.032862763e-05 | AH74: 0.00768888417 | AI74: 0.09102753676 | AJ74: 0.008286012448 | AK74: 0.0001046556959 | AL74: 0 | AM74: 0.0001849508989 | AN74: 0.008470963347 | AO74: 0.001618204745 | AP74: 0.002116365857 | AQ74: 0.000355829366 | AR74: 0.01863204274 | AS74: 0.0223129511 | AT74: 0.2469148 | AU74: 91.71223954 | AV74: 0.02531115337 | AW74: 0.03077696268 | AX74: 0.003172000193 | AY74: 0.003247879413 | AZ74: 0 | BA74: 0.0006869681827 | BB74: 0.0133524597 | BC74: 0.0002620943299 | BD74: 5.754457486e-05 | BE74: 0.006010542147 | BF74: 0.08287760459 | BG74: 0.9171223954 | BH74: 91.71223954 | BI74: 74.8 | BJ74: 92.49686522 | BK74: 0.9249686522 | BL74: 89.53181934 | BN74: 18.63204274 | BO74: 2.116365857 | BP74: 3.665415762
H75: 69 | I75: 0.0759 | J75: 0.243055 | K75: 0.01365591019 | L75: 1.545079797e-05 | M75: 10757.07479 | N75: 5.740080329e-05 | O75: 3.556127236e-05 | P75: 0.6174647337 | Q75: 0.1102681304 | R75: 0.003647718176 | S75: 7.160075918e-05 | T75: 0.003719318935 | U75: 0.08084102236 | V75: 9.802906343e-06 | W75: 9.802906343e-06 | X75: 0.04422149973 | Y75: 5.866623115e-06 | Z75: 5.866623115e-06 | AA75: 0.05879913953 | AB75: 0.006914677619 | AC75: 0.0002548674005 | AD75: 20 | AE75: 10 | AF75: 0.0008159155049 | AG75: 7.136287215e-05 | AH75: 0.007801955996 | AI75: 0.09169441407 | AJ75: 0.008407865572 | AK75: 0.0001061947502 | AL75: 0 | AM75: 0.0001876707651 | AN75: 0.008595536337 | AO75: 0.001638876207 | AP75: 0.002144363218 | AQ75: 0.0003610621508 | AR75: 0.0189029177 | AS75: 0.02263790617 | AT75: 0.2505459 | AU75: 91.71330597 | AV75: 0.02531144769 | AW75: 0.03077732055 | AX75: 0.003172037076 | AY75: 0.003247917179 | AZ75: 0 | BA75: 0.0006869761708 | BB75: 0.01335261496 | BC75: 0.0002620973775 | BD75: 5.735892503e-05 | BE75: 0.005999170411 | BF75: 0.08286694034 | BG75: 0.9171330597 | BH75: 91.71330597 | BI75: 75.9 | BJ75: 92.49907755 | BK75: 0.9249907755 | BL75: 89.59575539 | BN75: 18.9029177 | BO75: 2.144363218 | BP75: 3.719318935
H76: 70 | I76: 0.077 | J76: 0.243055 | K76: 0.01405460196 | L76: 1.545079797e-05 | M76: 10657.68388 | N76: 5.877576265e-05 | O76: 3.505325419e-05 | P76: 0.626413498 | Q76: 0.1110643006 | R76: 0.003700583657 | S76: 7.263845134e-05 | T76: 0.003773222108 | U76: 0.08090293546 | V76: 9.81792745e-06 | W76: 9.81792745e-06 | X76: 0.04482133421 | Y76: 6.026856e-06 | Z76: 6.026856e-06 | AA76: 0.05922368757 | AB76: 0.007014890338 | AC76: 0.000258561131 | AD76: 20 | AE76: 10 | AF76: 0.0008277403673 | AG76: 7.239711667e-05 | AH76: 0.007915027822 | AI76: 0.0923564762 | AJ76: 0.008529718696 | AK76: 0.0001077338046 | AL76: 0 | AM76: 0.0001903906312 | AN76: 0.008720109328 | AO76: 0.001659530644 | AP76: 0.002172343554 | AQ76: 0.0003662949356 | AR76: 0.01917377564 | AS76: 0.02296284253 | AT76: 0.254177 | AU76: 91.71434814 | AV76: 0.02531173531 | AW76: 0.03077767029 | AX76: 0.003172073121 | AY76: 0.003247954086 | AZ76: 0 | BA76: 0.0006869839771 | BB76: 0.01335276669 | BC76: 0.0002621003558 | BD76: 5.717252094e-05 | BE76: 0.005988062304 | BF76: 0.08285651865 | BG76: 0.9171434814 | BH76: 91.71434814 | BI76: 77 | BJ76: 92.50123577 | BK76: 0.9250123577 | BL76: 89.65421169 | BN76: 19.17377564 | BO76: 2.172343554 | BP76: 3.773222108
H77: 71 | I77: 0.0781 | J77: 0.243055 | K77: 0.0144590303 | L77: 1.545079797e-05 | M77: 10550.99896 | N77: 6.021820919e-05 | O77: 3.455954638e-05 | P77: 0.6353622622 | Q77: 0.1118548038 | R77: 0.003753449138 | S77: 7.36761435e-05 | T77: 0.003827125281 | U77: 0.08094985508 | V77: 9.829318556e-06 | W77: 9.829318556e-06 | X77: 0.04542043676 | Y77: 6.189048226e-06 | Z77: 6.189048226e-06 | AA77: 0.05964521379 | AB77: 0.007115103057 | AC77: 0.0002622548614 | AD77: 20 | AE77: 10 | AF77: 0.0008395652297 | AG77: 7.34313612e-05 | AH77: 0.008028099648 | AI77: 0.09301382596 | AJ77: 0.008651571821 | AK77: 0.0001092728589 | AL77: 0 | AM77: 0.0001931104974 | AN77: 0.008844682318 | AO77: 0.001680168057 | AP77: 0.002200306866 | AQ77: 0.0003715277203 | AR77: 0.01944461655 | AS77: 0.0232877602 | AT77: 0.2578081 | AU77: 91.71536707 | AV77: 0.02531201652 | AW77: 0.03077801222 | AX77: 0.003172108363 | AY77: 0.00324799017 | AZ77: 0 | BA77: 0.0006869916094 | BB77: 0.01335291503 | BC77: 0.0002621032677 | BD77: 5.698542401e-05 | BE77: 0.005977206694 | BF77: 0.0828463293 | BG77: 0.9171536707 | BH77: 91.71536707 | BI77: 78.1 | BJ77: 92.50334217 | BK77: 0.9250334217 | BL77: 89.70766374 | BN77: 19.44461655 | BO77: 2.200306866 | BP77: 3.827125281
H78: 72 | I78: 0.0792 | J78: 0.243055 | K78: 0.01486919521 | L78: 1.545079797e-05 | M78: 10437.02002 | N78: 6.173323664e-05 | O78: 3.407955268e-05 | P78: 0.6443110265 | Q78: 0.1126397594 | R78: 0.003806314619 | S78: 7.471383566e-05 | T78: 0.003881028454 | U78: 0.08098180727 | V78: 9.837079662e-06 | W78: 9.837079662e-06 | X78: 0.04601887272 | Y78: 6.35320994e-06 | Z78: 6.35320994e-06 | AA78: 0.06006378183 | AB78: 0.007215315776 | AC78: 0.0002659485919 | AD78: 20 | AE78: 10 | AF78: 0.0008513900921 | AG78: 7.446560572e-05 | AH78: 0.008141171474 | AI78: 0.09366656258 | AJ78: 0.008773424945 | AK78: 0.0001108119133 | AL78: 0 | AM78: 0.0001958303636 | AN78: 0.008969255308 | AO78: 0.001700788446 | AP78: 0.002228253153 | AQ78: 0.0003767605051 | AR78: 0.01971544044 | AS78: 0.02361265918 | AT78: 0.2614392 | AU78: 91.71636373 | AV78: 0.02531229158 | AW78: 0.03077834668 | AX78: 0.003172142834 | AY78: 0.003248025466 | AZ78: 0 | BA78: 0.0006869990749 | BB78: 0.01335306014 | BC78: 0.000262106116 | BD78: 5.679769867e-05 | BE78: 0.005966593065 | BF78: 0.08283636266 | BG78: 0.9171636373 | BH78: 91.71636373 | BI78: 79.2 | BJ78: 92.50539891 | BK78: 0.9250539891 | BL78: 89.75654804 | BN78: 19.71544044 | BO78: 2.228253153 | BP78: 3.881028454
H79: 73 | I79: 0.0803 | J79: 0.243055 | K79: 0.0152850967 | L79: 1.545079797e-05 | M79: 10315.74706 | N79: 6.332646456e-05 | O79: 3.361270949e-05 | P79: 0.6532597908 | Q79: 0.1134192826 | R79: 0.0038591801 | S79: 7.575152782e-05 | T79: 0.003934931627 | U79: 0.08099880974 | V79: 9.841210769e-06 | W79: 9.841210769e-06 | X79: 0.04661671081 | Y79: 6.51935318e-06 | Z79: 6.51935318e-06 | AA79: 0.0604794531 | AB79: 0.007315528495 | AC79: 0.0002696423223 | AD79: 20 | AE79: 10 | AF79: 0.0008632149545 | AG79: 7.549985025e-05 | AH79: 0.0082542433 | AI79: 0.09431478182 | AJ79: 0.008895278069 | AK79: 0.0001123509676 | AL79: 0 | AM79: 0.0001985502297 | AN79: 0.009093828299 | AO79: 0.001721391811 | AP79: 0.002256182417 | AQ79: 0.0003819932899 | AR79: 0.01998624731 | AS79: 0.0239375395 | AT79: 0.2650703 | AU79: 91.71733904 | AV79: 0.02531256075 | AW79: 0.03077867398 | AX79: 0.003172176566 | AY79: 0.003248060005 | AZ79: 0 | BA79: 0.0006870063804 | BB79: 0.01335320214 | BC79: 0.0002621089032 | BD79: 5.660941232e-05 | BE79: 0.005956211478 | BF79: 0.08282660961 | BG79: 0.9171733904 | BH79: 91.71733904 | BI79: 80.3 | BJ79: 92.50740803 | BK79: 0.9250740803 | BL79: 89.80126516 | BN79: 19.98624731 | BO79: 2.256182417 | BP79: 3.934931627
H80: 74 | I80: 0.0814 | J80: 0.243055 | K80: 0.01570673476 | L80: 1.545079797e-05 | M80: 10187.18009 | N80: 6.5004108e-05 | O80: 3.315848369e-05 | P80: 0.662208555 | Q80: 0.1141934846 | R80: 0.00391204558 | S80: 7.678921999e-05 | T80: 0.0039888348 | U80: 0.08100087191 | V80: 9.841711875e-06 | W80: 9.841711875e-06 | X80: 0.04721402316 | Y80: 6.687491948e-06 | Z80: 6.687491948e-06 | AA80: 0.06089228693 | AB80: 0.007415741215 | AC80: 0.0002733360527 | AD80: 20 | AE80: 10 | AF80: 0.0008750398169 | AG80: 7.653409477e-05 | AH80: 0.008367315126 | AI80: 0.0949585762 | AJ80: 0.009017131193 | AK80: 0.000113890022 | AL80: 0 | AM80: 0.0002012700959 | AN80: 0.009218401289 | AO80: 0.001741978151 | AP80: 0.002284094656 | AQ80: 0.0003872260747 | AR80: 0.02025703715 | AS80: 0.02426240115 | AT80: 0.2687014 | AU80: 91.71829385 | AV80: 0.02531282427 | AW80: 0.03077899439 | AX80: 0.003172209589 | AY80: 0.003248093819 | AZ80: 0 | BA80: 0.0006870135323 | BB80: 0.01335334115 | BC80: 0.0002621116318 | BD80: 5.642063544e-05 | BE80: 0.005946052531 | BF80: 0.08281706154 | BG80: 0.9171829385 | BH80: 91.71829385 | BI80: 81.4 | BJ80: 92.50937145 | BK80: 0.9250937145 | BL80: 89.84218272 | BN80: 20.25703715 | BO80: 2.284094656 | BP80: 3.9888348
H81: 75 | I81: 0.0825 | J81: 0.243055 | K81: 0.01613410939 | L81: 1.545079797e-05 | M81: 10051.31911 | N81: 6.677305854e-05 | O81: 3.271637057e-05 | P81: 0.6711573193 | Q81: 0.114962473 | R81: 0.003964911061 | S81: 7.782691215e-05 | T81: 0.004042737973 | U81: 0.08098799492 | V81: 9.838582982e-06 | W81: 9.838582982e-06 | X81: 0.04781088536 | Y81: 6.857642278e-06 | Z81: 6.857642278e-06 | AA81: 0.06130234063 | AB81: 0.007515953934 | AC81: 0.0002770297832 | AD81: 20 | AE81: 10 | AF81: 0.0008868646793 | AG81: 7.756833929e-05 | AH81: 0.008480386952 | AI81: 0.09559803511 | AJ81: 0.009138984318 | AK81: 0.0001154290763 | AL81: 0 | AM81: 0.000203989962 | AN81: 0.00934297428 | AO81: 0.001762547468 | AP81: 0.002311989871 | AQ81: 0.0003924588595 | AR81: 0.02052780996 | AS81: 0.02458724416 | AT81: 0.2723325 | AU81: 91.71922897 | AV81: 0.02531308234 | AW81: 0.0307793082 | AX81: 0.003172241932 | AY81: 0.003248126935 | AZ81: 0 | BA81: 0.0006870205369 | BB81: 0.01335347729 | BC81: 0.0002621143042 | BD81: 5.623144162e-05 | BE81: 0.005936107323 | BF81: 0.08280771031 | BG81: 0.9171922897 | BH81: 91.71922897 | BI81: 82.5 | BJ81: 92.51129101 | BK81: 0.9251129101 | BL81: 89.87963808 | BN81: 20.52780996 | BO81: 2.311989871 | BP81: 4.042737973
H82: 76 | I82: 0.0836 | J82: 0.243055 | K82: 0.01656722059 | L82: 1.545079797e-05 | M82: 9908.164109 | N82: 6.86409789e-05 | O82: 3.228589201e-05 | P82: 0.6801060835 | Q82: 0.1157263517 | R82: 0.004017776542 | S82: 7.886460431e-05 | T82: 0.004096641146 | U82: 0.08096017164 | V82: 9.831824088e-06 | W82: 9.831824088e-06 | X82: 0.04840737656 | Y82: 7.029822317e-06 | Z82: 7.029822317e-06 | AA82: 0.06170966963 | AB82: 0.007616166653 | AC82: 0.0002807235136 | AD82: 20 | AE82: 10 | AF82: 0.0008986895416 | AG82: 7.860258382e-05 | AH82: 0.008593458778 | AI82: 0.09623324499 | AJ82: 0.009260837442 | AK82: 0.0001169681307 | AL82: 0 | AM82: 0.0002067098282 | AN82: 0.00946754727 | AO82: 0.00178309976 | AP82: 0.002339868062 | AQ82: 0.0003976916443 | AR82: 0.02079856575 | AS82: 0.02491206855 | AT82: 0.2759636 | AU82: 91.72014518 | AV82: 0.0253133352 | AW82: 0.03077961567 | AX82: 0.00317227362 | AY82: 0.003248159382 | AZ82: 0 | BA82: 0.0006870273997 | BB82: 0.01335361068 | BC82: 0.0002621169225 | BD82: 5.604190756e-05 | BE82: 0.00592636742 | BF82: 0.08279854821 | BG82: 0.9172014518 | BH82: 91.72014518 | BI82: 83.6 | BJ82: 92.51316843 | BK82: 0.9251316843 | BL82: 89.91394086 | BN82: 20.79856575 | BO82: 2.339868062 | BP82: 4.096641146
H83: 77 | I83: 0.0847 | J83: 0.243055 | K83: 0.01700606837 | L83: 1.545079797e-05 | M83: 9757.715093 | N83: 7.061641391e-05 | O83: 3.186659472e-05 | P83: 0.6890548478 | Q83: 0.1164852211 | R83: 0.004070642023 | S83: 7.990229647e-05 | T83: 0.004150544319 | U83: 0.08091738665 | V83: 9.821435194e-06 | W83: 9.821435194e-06 | X83: 0.04900357944 | Y83: 7.204052393e-06 | Z83: 7.204052393e-06 | AA83: 0.06211432754 | AB83: 0.007716379372 | AC83: 0.0002844172441 | AD83: 20 | AE83: 10 | AF83: 0.000910514404 | AG83: 7.963682834e-05 | AH83: 0.008706530604 | AI83: 0.09686428943 | AJ83: 0.009382690566 | AK83: 0.000118507185 | AL83: 0 | AM83: 0.0002094296944 | AN83: 0.00959212026 | AO83: 0.001803635027 | AP83: 0.002367729228 | AQ83: 0.0004029244291 | AR83: 0.02106930452 | AS83: 0.02523687433 | AT83: 0.2795947 | AU83: 91.72104321 | AV83: 0.02531358305 | AW83: 0.03077991703 | AX83: 0.00317230468 | AY83: 0.003248191184 | AZ83: 0 | BA83: 0.0006870341264 | BB83: 0.01335374143 | BC83: 0.0002621194889 | BD83: 5.585211317e-05 | BE83: 0.005916824828 | BF83: 0.08278956793 | BG83: 0.9172104321 | BH83: 91.72104321 | BI83: 84.7 | BJ83: 92.51500535 | BK83: 0.9251500535 | BL83: 89.94537536 | BN83: 21.06930452 | BO83: 2.367729228 | BP83: 4.150544319
H84: 78 | I84: 0.0858 | J84: 0.243055 | K84: 0.01745065271 | L84: 1.545079797e-05 | M84: 9599.972062 | N84: 7.270892119e-05 | O84: 3.145804863e-05 | P84: 0.698003612 | Q84: 0.1172391787 | R84: 0.004123507504 | S84: 8.093998863e-05 | T84: 0.004204447492 | U84: 0.08085961621 | V84: 9.807416301e-06 | W84: 9.807416301e-06 | X84: 0.04959958029 | Y84: 7.380355096e-06 | Z84: 7.380355096e-06 | AA84: 0.06251636622 | AB84: 0.007816592091 | AC84: 0.0002881109745 | AD84: 20 | AE84: 10 | AF84: 0.0009223392664 | AG84: 8.067107286e-05 | AH84: 0.00881960243 | AI84: 0.0974912493 | AJ84: 0.00950454369 | AK84: 0.0001200462394 | AL84: 0 | AM84: 0.0002121495605 | AN84: 0.009716693251 | AO84: 0.001824153271 | AP84: 0.00239557337 | AQ84: 0.0004081572139 | AR84: 0.02134002627 | AS84: 0.02556166153 | AT84: 0.2832258 | AU84: 91.72192375 | AV84: 0.02531382606 | AW84: 0.03078021252 | AX84: 0.003172335135 | AY84: 0.003248222367 | AZ84: 0 | BA84: 0.000687040722 | BB84: 0.01335386963 | BC84: 0.0002621220053 | BD84: 5.566214157e-05 | BE84: 0.005907471961 | BF84: 0.08278076254 | BG84: 0.9172192375 | BH84: 91.72192375 | BI84: 85.8 | BJ84: 92.51680332 | BK84: 0.9251680332 | BL84: 89.97420266 | BN84: 21.34002627 | BO84: 2.39557337 | BP84: 4.204447492
H85: 79 | I85: 0.0869 | J85: 0.243055 | K85: 0.01790097363 | L85: 1.545079797e-05 | M85: 9434.935015 | N85: 7.492922582e-05 | O85: 3.105984548e-05 | P85: 0.7069523763 | Q85: 0.1179883184 | R85: 0.004176372984 | S85: 8.19776808e-05 | T85: 0.004258350665 | U85: 0.08078682816 | V85: 9.789767407e-06 | W85: 9.789767407e-06 | X85: 0.05019546909 | Y85: 7.558755353e-06 | Z85: 7.558755353e-06 | AA85: 0.06291583588 | AB85: 0.00791680481 | AC85: 0.000291804705 | AD85: 20 | AE85: 10 | AF85: 0.0009341641288 | AG85: 8.170531739e-05 | AH85: 0.008932674256 | AI85: 0.09811420292 | AJ85: 0.009626396814 | AK85: 0.0001215852937 | AL85: 0 | AM85: 0.0002148694267 | AN85: 0.009841266241 | AO85: 0.00184465449 | AP85: 0.002423400488 | AQ85: 0.0004133899987 | AR85: 0.02161073098 | AS85: 0.02588643017 | AT85: 0.2868569 | AU85: 91.72278745 | AV85: 0.02531406443 | AW85: 0.03078050237 | AX85: 0.003172365007 | AY85: 0.003248252954 | AZ85: 0 | BA85: 0.0006870471916 | BB85: 0.01335399537 | BC85: 0.0002621244736 | BD85: 5.547207913e-05 | BE85: 0.005898301617 | BF85: 0.08277212549 | BG85: 0.9172278745 | BH85: 91.72278745 | BI85: 86.9 | BJ85: 92.51856384 | BK85: 0.9251856384 | BL85: 90.00066271 | BN85: 21.61073098 | BO85: 2.423400488 | BP85: 4.258350665
H86: 80 | I86: 0.088 | J86: 0.243055 | K86: 0.01835703112 | L86: 1.545079797e-05 | M86: 9262.603953 | N86: 7.728940417e-05 | O86: 3.067159741e-05 | P86: 0.7159011406 | Q86: 0.1187327316 | R86: 0.004229238465 | S86: 8.301537296e-05 | T86: 0.004312253838 | U86: 0.08069898188 | V86: 9.768488514e-06 | W86: 9.768488514e-06 | X86: 0.05079133949 | Y86: 7.739280502e-06 | Z86: 7.739280502e-06 | AA86: 0.06331278516 | AB86: 0.008017017529 | AC86: 0.0002954984354 | AD86: 20 | AE86: 10 | AF86: 0.0009459889912 | AG86: 8.273956191e-05 | AH86: 0.009045746082 | AI86: 0.09873322611 | AJ86: 0.009748249939 | AK86: 0.0001231243481 | AL86: 0 | AM86: 0.0002175892928 | AN86: 0.009965839232 | AO86: 0.001865138685 | AP86: 0.002451210582 | AQ86: 0.0004186227835 | AR86: 0.02188141868 | AS86: 0.02621118029 | AT86: 0.290488 | AU86: 91.72363494 | AV86: 0.02531429833 | AW86: 0.03078078677 | AX86: 0.003172394319 | AY86: 0.003248282967 | AZ86: 0 | BA86: 0.0006870535397 | BB86: 0.01335411876 | BC86: 0.0002621268956 | BD86: 5.528201557e-05 | BE86: 0.005889306955 | BF86: 0.08276365055 | BG86: 0.9172363494 | BH86: 91.72363494 | BI86: 88 | BJ86: 92.52028829 | BK86: 0.9252028829 | BL86: 90.02497615 | BN86: 21.88141868 | BO86: 2.451210582 | BP86: 4.312253838
H87: 81 | I87: 0.0891 | J87: 0.243055 | K87: 0.01881882519 | L87: 1.545079797e-05 | M87: 9082.978875 | N87: 7.980310367e-05 | O87: 3.029293572e-05 | P87: 0.7248499048 | Q87: 0.1194725065 | R87: 0.004282103946 | S87: 8.405306512e-05 | T87: 0.004366157011 | U87: 0.08059602811 | V87: 9.74357962e-06 | W87: 9.74357962e-06 | X87: 0.05138728889 | Y87: 7.921960377e-06 | Z87: 7.921960377e-06 | AA87: 0.06370726116 | AB87: 0.008117230248 | AC87: 0.0002991921658 | AD87: 20 | AE87: 10 | AF87: 0.0009578138536 | AG87: 8.377380644e-05 | AH87: 0.009158817908 | AI87: 0.09934839235 | AJ87: 0.009870103063 | AK87: 0.0001246634024 | AL87: 0 | AM87: 0.000220309159 | AN87: 0.01009041222 | AO87: 0.001885605856 | AP87: 0.002479003652 | AQ87: 0.0004238555683 | AR87: 0.02215208935 | AS87: 0.0265359119 | AT87: 0.2941191 | AU87: 91.72446682 | AV87: 0.02531452791 | AW87: 0.03078106593 | AX87: 0.003172423091 | AY87: 0.003248312427 | AZ87: 0 | BA87: 0.0006870597709 | BB87: 0.01335423987 | BC87: 0.0002621292729 | BD87: 5.509204391e-05 | BE87: 0.005880481471 | BF87: 0.08275533179 | BG87: 0.9172446682 | BH87: 91.72446682 | BI87: 89.1 | BJ87: 92.52197802 | BK87: 0.9252197802 | BL87: 90.04734611 | BN87: 22.15208935 | BO87: 2.479003652 | BP87: 4.366157011
H88: 82 | I88: 0.0902 | J88: 0.243055 | K88: 0.01928635583 | L88: 1.545079797e-05 | M88: 8896.059782 | N88: 8.248580687e-05 | O88: 2.992350967e-05 | P88: 0.7337986691 | Q88: 0.1202077289 | R88: 0.004334969427 | S88: 8.509075728e-05 | T88: 0.004420060184 | U88: 0.08047790888 | V88: 9.715040727e-06 | W88: 9.715040727e-06 | X88: 0.05198341844 | Y88: 8.106827379e-06 | Z88: 8.106827379e-06 | AA88: 0.06409930954 | AB88: 0.008217442967 | AC88: 0.0003028858963 | AD88: 20 | AE88: 10 | AF88: 0.000969638716 | AG88: 8.480805096e-05 | AH88: 0.009271889734 | AI88: 0.09995977284 | AJ88: 0.009991956187 | AK88: 0.0001262024568 | AL88: 0 | AM88: 0.0002230290252 | AN88: 0.01021498521 | AO88: 0.001906056003 | AP88: 0.002506779697 | AQ88: 0.0004290883531 | AR88: 0.022422743 | AS88: 0.02686062505 | AT88: 0.2977502 | AU88: 91.72528364 | AV88: 0.02531475334 | AW88: 0.03078134004 | AX88: 0.003172451341 | AY88: 0.003248341354 | AZ88: 0 | BA88: 0.0006870658892 | BB88: 0.0133543588 | BC88: 0.0002621316072 | BD88: 5.490226059e-05 | BE88: 0.005871818977 | BF88: 0.08274716361 | BG88: 0.9172528364 | BH88: 91.72528364 | BI88: 90.2 | BJ88: 92.52363429 | BK88: 0.9252363429 | BL88: 90.06795979 | BN88: 22.422743 | BO88: 2.506779697 | BP88: 4.420060184
H89: 83 | I89: 0.0913 | J89: 0.243055 | K89: 0.01975962303 | L89: 1.545079797e-05 | M89: 8701.846673 | N89: 8.53551506e-05 | O89: 2.956298546e-05 | P89: 0.7427474333 | Q89: 0.1209384817 | R89: 0.004387834908 | S89: 8.612844944e-05 | T89: 0.004473963357 | U89: 0.08034455731 | V89: 9.682871833e-06 | W89: 9.682871833e-06 | X89: 0.05257983315 | Y89: 8.293916563e-06 | Z89: 8.293916563e-06 | AA89: 0.06448897459 | AB89: 0.008317655687 | AC89: 0.0003065796267 | AD89: 20 | AE89: 10 | AF89: 0.0009814635784 | AG89: 8.584229548e-05 | AH89: 0.00938496156 | AI89: 0.1005674366 | AJ89: 0.01011380931 | AK89: 0.0001277415111 | AL89: 0 | AM89: 0.0002257488913 | AN89: 0.0103395582 | AO89: 0.001926489125 | AP89: 0.002534538718 | AQ89: 0.0004343211379 | AR89: 0.02269337962 | AS89: 0.02718531976 | AT89: 0.3013813 | AU89: 91.72608594 | AV89: 0.02531497476 | AW89: 0.03078160928 | AX89: 0.00317247909 | AY89: 0.003248369766 | AZ89: 0 | BA89: 0.0006870718988 | BB89: 0.0133544756 | BC89: 0.0002621339 | BD89: 5.471276543e-05 | BE89: 0.005863313585 | BF89: 0.08273914065 | BG89: 0.9172608594 | BH89: 91.72608594 | BI89: 91.3 | BJ89: 92.52525831 | BK89: 0.9252525831 | BL89: 90.08698997 | BN89: 22.69337962 | BO89: 2.534538718 | BP89: 4.473963357
H90: 84 | I90: 0.0924 | J90: 0.243055 | K90: 0.02023862682 | L90: 1.545079797e-05 | M90: 8500.339549 | N90: 8.843131421e-05 | O90: 2.921104516e-05 | P90: 0.7516961976 | Q90: 0.1216648455 | R90: 0.004440700388 | S90: 8.716614161e-05 | T90: 0.00452786653 | U90: 0.0801958974 | V90: 9.647072939e-06 | W90: 9.647072939e-06 | X90: 0.05317664184 | Y90: 8.483265712e-06 | Z90: 8.483265712e-06 | AA90: 0.06487629924 | AB90: 0.008417868406 | AC90: 0.0003102733572 | AD90: 20 | AE90: 10 | AF90: 0.0009932884408 | AG90: 8.687654001e-05 | AH90: 0.009498033386 | AI90: 0.1011714507 | AJ90: 0.01023566244 | AK90: 0.0001292805655 | AL90: 0 | AM90: 0.0002284687575 | AN90: 0.01046413119 | AO90: 0.001946905223 | AP90: 0.002562280715 | AQ90: 0.0004395539227 | AR90: 0.02296399922 | AS90: 0.02750999609 | AT90: 0.3050124 | AU90: 91.72687422 | AV90: 0.02531519231 | AW90: 0.03078187381 | AX90: 0.003172506354 | AY90: 0.003248397682 | AZ90: 0 | BA90: 0.0006870778034 | BB90: 0.01335459037 | BC90: 0.0002621361527 | BD90: 5.452366176e-05 | BE90: 0.005854959684 | BF90: 0.08273125783 | BG90: 0.9172687422 | BH90: 91.72687422 | BI90: 92.4 | BJ90: 92.52685123 | BK90: 0.9252685123 | BL90: 90.10459642 | BN90: 22.96399922 | BO90: 2.562280715 | BP90: 4.52786653
H91: 85 | I91: 0.0935 | J91: 0.243055 | K91: 0.02072336717 | L91: 1.545079797e-05 | M91: 8291.53841 | N91: 9.173749481e-05 | O91: 2.88673858e-05 | P91: 0.7606449618 | Q91: 0.1223868984 | R91: 0.004493565869 | S91: 8.820383377e-05 | T91: 0.004581769703 | U91: 0.08003184385 | V91: 9.607644046e-06 | W91: 9.607644046e-06 | X91: 0.05377395721 | Y91: 8.674915423e-06 | Z91: 8.674915423e-06 | AA91: 0.06526132517 | AB91: 0.008518081125 | AC91: 0.0003139670876 | AD91: 20 | AE91: 10 | AF91: 0.001005113303 | AG91: 8.791078453e-05 | AH91: 0.009611105213 | AI91: 0.10177188 | AJ91: 0.01035751556 | AK91: 0.0001308196198 | AL91: 0 | AM91: 0.0002311886236 | AN91: 0.01058870418 | AO91: 0.001967304297 | AP91: 0.002590005688 | AQ91: 0.0004447867075 | AR91: 0.02323460179 | AS91: 0.02783465405 | AT91: 0.3086435 | AU91: 91.72764897 | AV91: 0.02531540613 | AW91: 0.0307821338 | AX91: 0.00317253315 | AY91: 0.003248425119 | AZ91: 0 | BA91: 0.0006870836066 | BB91: 0.01335470317 | BC91: 0.0002621383668 | BD91: 5.433505637e-05 | BE91: 0.005846751932 | BF91: 0.08272351033 | BG91: 0.9172764897 | BH91: 91.72764897 | BI91: 93.5 | BJ91: 92.52841415 | BK91: 0.9252841415 | BL91: 90.12092716 | BN91: 23.23460179 | BO91: 2.590005688 | BP91: 4.581769703
H92: 86 | I92: 0.0946 | J92: 0.243055 | K92: 0.02121384409 | L92: 1.545079797e-05 | M92: 8075.443255 | N92: 9.530049334e-05 | O92: 2.853171852e-05 | P92: 0.7695937261 | Q92: 0.1231047163 | R92: 0.00454643135 | S92: 8.924152593e-05 | T92: 0.004635672876 | U92: 0.07985230179 | V92: 9.564585152e-06 | W92: 9.564585152e-06 | X92: 0.05437189589 | Y92: 8.868909188e-06 | Z92: 8.868909188e-06 | AA92: 0.06564409282 | AB92: 0.008618293844 | AC92: 0.0003176608181 | AD92: 20 | AE92: 10 | AF92: 0.001016938166 | AG92: 8.894502906e-05 | AH92: 0.009724177039 | AI92: 0.1023687876 | AJ92: 0.01047936868 | AK92: 0.0001323586742 | AL92: 0 | AM92: 0.0002339084898 | AN92: 0.01071327717 | AO92: 0.001987686347 | AP92: 0.002617713636 | AQ92: 0.0004500194922 | AR92: 0.02350518734 | AS92: 0.02815929371 | AT92: 0.3122746 | AU92: 91.72841065 | AV92: 0.02531561634 | AW92: 0.03078238941 | AX92: 0.003172559493 | AY92: 0.003248452093 | AZ92: 0 | BA92: 0.000687089312 | BB92: 0.01335481406 | BC92: 0.0002621405435 | BD92: 5.414705962e-05 | BE92: 0.00583868523 | BF92: 0.08271589354 | BG92: 0.9172841065 | BH92: 91.72841065 | BI92: 94.6 | BJ92: 92.5299481 | BK92: 0.925299481 | BL92: 90.13611972 | BN92: 23.50518734 | BO92: 2.617713636 | BP92: 4.635672876
H93: 87 | I93: 0.0957 | J93: 0.243055 | K93: 0.02171005759 | L93: 1.545079797e-05 | M93: 7852.054084 | N93: 9.915144267e-05 | O93: 2.820376774e-05 | P93: 0.7785424904 | Q93: 0.1238183728 | R93: 0.004599296831 | S93: 9.027921809e-05 | T93: 0.004689576049 | U93: 0.07965716649 | V93: 9.517896259e-06 | W93: 9.517896259e-06 | X93: 0.05497057841 | Y93: 9.065293472e-06 | Z93: 9.065293472e-06 | AA93: 0.06602464147 | AB93: 0.008718506563 | AC93: 0.0003213545485 | AD93: 20 | AE93: 10 | AF93: 0.001028763028 | AG93: 8.997927358e-05 | AH93: 0.009837248865 | AI93: 0.1029622349 | AJ93: 0.01060122181 | AK93: 0.0001338977285 | AL93: 0 | AM93: 0.000236628356 | AN93: 0.01083785016 | AO93: 0.002008051372 | AP93: 0.00264540456 | AQ93: 0.000455252277 | AR93: 0.02377575587 | AS93: 0.0284839151 | AT93: 0.3159057 | AU93: 91.72915969 | AV93: 0.02531582307 | AW93: 0.03078264077 | AX93: 0.0031725854 | AY93: 0.00324847862 | AZ93: 0 | BA93: 0.0006870949227 | BB93: 0.01335492311 | BC93: 0.0002621426841 | BD93: 5.395978542e-05 | BE93: 0.005830754716 | BF93: 0.08270840309 | BG93: 0.9172915969 | BH93: 91.72915969 | BI93: 95.7 | BJ93: 92.5314541 | BK93: 0.925314541 | BL93: 90.15030225 | BN93: 23.77575587 | BO93: 2.64540456 | BP93: 4.689576049
F94: Eff (%) | G94: Iout (mA) | H94: 88 | I94: 0.0968 | J94: 0.243055 | K94: 0.02221200766 | L94: 1.545079797e-05 | M94: 7621.370898 | N94: 0.0001033267197 | O94: 2.788327038e-05 | P94: 0.7874912546 | Q94: 0.1245279395 | R94: 0.004652162312 | S94: 9.131691025e-05 | T94: 0.004743479222 | U94: 0.07944632303 | V94: 9.467577365e-06 | W94: 9.467577365e-06 | X94: 0.05557012927 | Y94: 9.264117803e-06 | Z94: 9.264117803e-06 | AA94: 0.06640300928 | AB94: 0.008818719282 | AC94: 0.0003250482789 | AD94: 20 | AE94: 10 | AF94: 0.00104058789 | AG94: 9.10135181e-05 | AH94: 0.009950320691 | AI94: 0.1035522812 | AJ94: 0.01072307493 | AK94: 0.0001354367829 | AL94: 0 | AM94: 0.0002393482221 | AN94: 0.01096242315 | AO94: 0.002028399374 | AP94: 0.00267307846 | AQ94: 0.0004604850618 | AR94: 0.02404630737 | AS94: 0.02880851828 | AT94: 0.3195368 | AU94: 91.72989652 | AV94: 0.02531602642 | AW94: 0.03078288804 | AX94: 0.003172610885 | AY94: 0.003248504714 | AZ94: 0 | BA94: 0.0006871004419 | BB94: 0.01335503039 | BC94: 0.0002621447898 | BD94: 5.377335128e-05 | BE94: 0.005822955748 | BF94: 0.08270103478 | BG94: 0.9172989652 | BH94: 91.72989652 | BI94: 96.8 | BJ94: 92.53293308 | BK94: 0.9253293308 | BL94: 90.16359459 | BN94: 24.04630737 | BO94: 2.67307846 | BP94: 4.743479222
F95: =AU56 -> 91.68723855 | G95: =I56*1000 -> 55 | H95: 89 | I95: 0.0979 | J95: 0.243055 | K95: 0.0227196943 | L95: 1.545079797e-05 | M95: 7383.393697 | N95: 0.0001078690981 | O95: 2.75699752e-05 | P95: 0.7964400189 | Q95: 0.1252334858 | R95: 0.004705027793 | S95: 9.235460242e-05 | T95: 0.004797382395 | U95: 0.07921964601 | V95: 9.413628472e-06 | W95: 9.413628472e-06 | X95: 0.05617067695 | Y95: 9.465434849e-06 | Z95: 9.465434849e-06 | AA95: 0.0667792333 | AB95: 0.008918932001 | AC95: 0.0003287420094 | AD95: 20 | AE95: 10 | AF95: 0.001052412753 | AG95: 9.204776263e-05 | AH95: 0.01006339252 | AI95: 0.1041389843 | AJ95: 0.01084492806 | AK95: 0.0001369758372 | AL95: 0 | AM95: 0.0002420680883 | AN95: 0.01108699615 | AO95: 0.00204873035 | AP95: 0.002700735336 | AQ95: 0.0004657178466 | AR95: 0.02431684184 | AS95: 0.0291331033 | AT95: 0.3231679 | AU95: 91.73062153 | AV95: 0.02531622652 | AW95: 0.03078313134 | AX95: 0.00317263596 | AY95: 0.003248530389 | AZ95: 0 | BA95: 0.0006871058726 | BB95: 0.01335513594 | BC95: 0.0002621468618 | BD95: 5.358787839e-05 | BE95: 0.005815283894 | BF95: 0.08269378466 | BG95: 0.9173062153 | BH95: 91.73062153 | BI95: 97.9 | BJ95: 92.53438596 | BK95: 0.9253438596 | BL95: 90.17610926 | BN95: 24.31684184 | BO95: 2.700735336 | BP95: 4.797382395
F96: =AU81 -> 91.71922897 | G96: =I81*1000 -> 82.5 | H96: 90 | I96: 0.099 | J96: 0.243055 | K96: 0.02323311752 | L96: 1.545079797e-05 | M96: 7138.12248 | N96: 0.0001128292188 | O96: 2.726364215e-05 | P96: 0.8053887831 | Q96: 0.1259350795 | R96: 0.004757893273 | S96: 9.339229458e-05 | T96: 0.004851285568 | U96: 0.07897699909 | V96: 9.356049578e-06 | W96: 9.356049578e-06 | X96: 0.05677235391 | Y96: 9.669300507e-06 | Z96: 9.669300507e-06 | AA96: 0.06715334958 | AB96: 0.00901914472 | AC96: 0.0003324357398 | AD96: 20 | AE96: 10 | AF96: 0.001064237615 | AG96: 9.308200715e-05 | AH96: 0.01017646434 | AI96: 0.1047224006 | AJ96: 0.01096678118 | AK96: 0.0001385148916 | AL96: 0 | AM96: 0.0002447879544 | AN96: 0.01121156914 | AO96: 0.002069044303 | AP96: 0.002728375187 | AQ96: 0.0004709506314 | AR96: 0.0245873593 | AS96: 0.02945767021 | AT96: 0.326799 | AU96: 91.73133511 | AV96: 0.02531642345 | AW96: 0.03078337081 | AX96: 0.00317266064 | AY96: 0.003248555659 | AZ96: 0 | BA96: 0.0006871112176 | BB96: 0.01335523983 | BC96: 0.000262148901 | BD96: 5.340349157e-05 | BE96: 0.005807734918 | BF96: 0.08268664892 | BG96: 0.9173133511 | BH96: 91.73133511 | BI96: 99 | BJ96: 92.53581361 | BK96: 0.9253581361 | BL96: 90.18795244 | BN96: 24.5873593 | BO96: 2.728375187 | BP96: 4.851285568
F97: =AU106 -> 91.73791378 | G97: =I106*1000 -> 110 | H97: 91 | I97: 0.1001 | J97: 0.243055 | K97: 0.0237522773 | L97: 1.545079797e-05 | M97: 6885.557247 | N97: 0.0001182674863 | O97: 2.696404168e-05 | P97: 0.8143375474 | Q97: 0.1266327861 | R97: 0.004810758754 | S97: 9.442998674e-05 | T97: 0.004905188741 | U97: 0.07871823459 | V97: 9.294840684e-06 | W97: 9.294840684e-06 | X97: 0.05737529662 | Y97: 9.875773986e-06 | Z97: 9.875773986e-06 | AA97: 0.06752539315 | AB97: 0.00911935744 | AC97: 0.0003361294703 | AD97: 20 | AE97: 10 | AF97: 0.001076062477 | AG97: 9.411625168e-05 | AH97: 0.01028953617 | AI97: 0.1053025845 | AJ97: 0.01108863431 | AK97: 0.0001400539459 | AL97: 0 | AM97: 0.0002475078206 | AN97: 0.01133614213 | AO97: 0.002089341232 | AP97: 0.002755998014 | AQ97: 0.0004761834162 | AR97: 0.02485785973 | AS97: 0.02978221908 | AT97: 0.3304301 | AU97: 91.73203761 | AV97: 0.02531661733 | AW97: 0.03078360655 | AX97: 0.003172684937 | AY97: 0.003248580538 | AZ97: 0 | BA97: 0.0006871164796 | BB97: 0.01335534211 | BC97: 0.0002621509086 | BD97: 5.322031939e-05 | BE97: 0.005800304768 | BF97: 0.08267962394 | BG97: 0.9173203761 | BH97: 91.73203761 | BI97: 100.1 | BJ97: 92.53721685 | BK97: 0.9253721685 | BL97: 90.19922484 | BN97: 24.85785973 | BO97: 2.755998014 | BP97: 4.905188741
H98: 92 | I98: 0.1012 | J98: 0.243055 | K98: 0.02427717366 | L98: 1.545079797e-05 | M98: 6625.697999 | N98: 0.0001242565405 | O98: 2.667095427e-05 | P98: 0.8232863116 | Q98: 0.1273266696 | R98: 0.004863624235 | S98: 9.54676789e-05 | T98: 0.004959091914 | U98: 0.07844319299 | V98: 9.230001791e-06 | W98: 9.230001791e-06 | X98: 0.05797964554 | Y98: 1.008491789e-05 | Z98: 1.008491789e-05 | AA98: 0.06789539807 | AB98: 0.009219570159 | AC98: 0.0003398232007 | AD98: 20 | AE98: 10 | AF98: 0.00108788734 | AG98: 9.51504962e-05 | AH98: 0.01040260799 | AI98: 0.1058795893 | AJ98: 0.01121048743 | AK98: 0.0001415930003 | AL98: 0 | AM98: 0.0002502276868 | AN98: 0.01146071512 | AO98: 0.002109621136 | AP98: 0.002783603817 | AQ98: 0.000481416201 | AR98: 0.02512834313 | AS98: 0.03010674996 | AT98: 0.3340612 | AU98: 91.73272937 | AV98: 0.02531680825 | AW98: 0.03078383869 | AX98: 0.003172708863 | AY98: 0.003248605036 | AZ98: 0 | BA98: 0.0006871216613 | BB98: 0.01335544283 | BC98: 0.0002621528855 | BD98: 5.303849414e-05 | BE98: 0.005792989571 | BF98: 0.08267270628 | BG98: 0.9173272937 | BH98: 91.73272937 | BI98: 101.2 | BJ98: 92.53859648 | BK98: 0.9253859648 | BL98: 90.21002253 | BN98: 25.12834313 | BO98: 2.783603817 | BP98: 4.959091914
H99: 93 | I99: 0.1023 | J99: 0.243055 | K99: 0.02480780659 | L99: 1.545079797e-05 | M99: 6358.544736 | N99: 0.00013088452 | O99: 2.638416982e-05 | P99: 0.8322350759 | Q99: 0.1280167921 | R99: 0.004916489716 | S99: 9.650537106e-05 | T99: 0.005012995087 | U99: 0.07815170246 | V99: 9.161532897e-06 | W99: 9.161532897e-06 | X99: 0.05858554517 | Y99: 1.029679831e-05 | Z99: 1.029679831e-05 | AA99: 0.0682633975 | AB99: 0.009319782878 | AC99: 0.0003435169312 | AD99: 20 | AE99: 10 | AF99: 0.001099712202 | AG99: 9.618474072e-05 | AH99: 0.01051567982 | AI99: 0.1064534666 | AJ99: 0.01133234055 | AK99: 0.0001431320546 | AL99: 0 | AM99: 0.0002529475529 | AN99: 0.01158528811 | AO99: 0.002129884016 | AP99: 0.002811192596 | AQ99: 0.0004866489858 | AR99: 0.02539880951 | AS99: 0.03043126293 | AT99: 0.3376923 | AU99: 91.73341074 | AV99: 0.02531699629 | AW99: 0.03078406735 | AX99: 0.003172732429 | AY99: 0.003248629165 | AZ99: 0 | BA99: 0.000687126765 | BB99: 0.01335554203 | BC99: 0.0002621548327 | BD99: 5.28581519e-05 | BE99: 0.005785785618 | BF99: 0.08266589263 | BG99: 0.9173341074 | BH99: 91.73341074 | BI99: 102.3 | BJ99: 92.53995325 | BK99: 0.9253995325 | BL99: 90.22043779 | BN99: 25.39880951 | BO99: 2.811192596 | BP99: 5.012995087
H100: 94 | I100: 0.1034 | J100: 0.243055 | K100: 0.0253441761 | L100: 1.545079797e-05 | M100: 6084.097457 | N100: 0.000138259429 | O100: 2.610348716e-05 | P100: 0.8411838402 | Q100: 0.1287032141 | R100: 0.004969355197 | S100: 9.754306322e-05 | T100: 0.00506689826 | U100: 0.07784357821 | V100: 9.089434004e-06 | W100: 9.089434004e-06 | X100: 0.05919314403 | Y100: 1.05114849e-05 | Z100: 1.05114849e-05 | AA100: 0.06862942371 | AB100: 0.009419995597 | AC100: 0.0003472106616 | AD100: 20 | AE100: 10 | AF100: 0.001111537065 | AG100: 9.721898525e-05 | AH100: 0.01062875165 | AI100: 0.1070242668 | AJ100: 0.01145419368 | AK100: 0.000144671109 | AL100: 0 | AM100: 0.0002556674191 | AN100: 0.0117098611 | AO100: 0.002150129872 | AP100: 0.002838764351 | AQ100: 0.0004918817706 | AR100: 0.02566925887 | AS100: 0.03075575804 | AT100: 0.3413234 | AU100: 91.73408201 | AV100: 0.02531718155 | AW100: 0.03078429262 | AX100: 0.003172755646 | AY100: 0.003248652938 | AZ100: 0 | BA100: 0.0006871317932 | BB100: 0.01335563976 | BC100: 0.0002621567511 | BD100: 5.267943254e-05 | BE100: 0.005778689361 | BF100: 0.08265917985 | BG100: 0.9173408201 | BH100: 91.73408201 | BI100: 103.4 | BJ100: 92.5412879 | BK100: 0.925412879 | BL100: 90.23055984 | BN100: 25.66925887 | BO100: 2.838764351 | BP100: 5.06689826
H101: 95 | I101: 0.1045 | J101: 0.243055 | K101: 0.02588628217 | L101: 1.545079797e-05 | M101: 5802.356162 | N101: 0.0001465150674 | O101: 2.582871361e-05 | P101: 0.8501326044 | Q101: 0.1293859946 | R101: 0.005022220677 | S101: 9.858075539e-05 | T101: 0.005120801433 | U101: 0.07751862189 | V101: 9.01370511e-06 | W101: 9.01370511e-06 | X101: 0.05980259464 | Y101: 1.072905098e-05 | Z101: 1.072905098e-05 | AA101: 0.06899350809 | AB101: 0.009520208316 | AC101: 0.000350904392 | AD101: 20 | AE101: 10 | AF101: 0.001123361927 | AG101: 9.825322977e-05 | AH101: 0.01074182347 | AI101: 0.1075920387 | AJ101: 0.0115760468 | AK101: 0.0001462101634 | AL101: 0 | AM101: 0.0002583872852 | AN101: 0.01183443409 | AO101: 0.002170358704 | AP101: 0.002866319081 | AQ101: 0.0004971145554 | AR101: 0.0259396912 | AS101: 0.03108023539 | AT101: 0.3449545 | AU101: 91.73474351 | AV101: 0.02531736412 | AW101: 0.0307845146 | AX101: 0.003172778525 | AY101: 0.003248676364 | AZ101: 0 | BA101: 0.0006871367481 | BB101: 0.01335573607 | BC101: 0.0002621586415 | BD101: 5.250247977e-05 | BE101: 0.005771697397 | BF101: 0.08265256494 | BG101: 0.9173474351 | BH101: 91.73474351 | BI101: 104.5 | BJ101: 92.54260112 | BK101: 0.9254260112 | BL101: 90.24047546 | BN101: 25.9396912 | BO101: 2.866319081 | BP101: 5.120801433
H102: 96 | I102: =IF(PLOT_TYPE=1, H102/100*Iout_maxload_PFM, min_I*EXP(H102*rr/100)) -> 0.1056 | J102: 0.243055 | K102: 0.02643412482 | L102: 1.545079797e-05 | M102: 5513.320852 | N102: 0.0001558192225 | O102: 2.555966451e-05 | P102: 0.8590813687 | Q102: =IripplePFM/SQRT(3)*SQRT(P102) -> 0.1300651908 | R102: 0.005075086158 | S102: 9.961844755e-05 | T102: 0.005174704606 | U102: 0.07717662088 | V102: 8.934346217e-06 | W102: 8.934346217e-06 | X102: 0.06041405353 | Y102: 1.094957359e-05 | Z102: 1.094957359e-05 | AA102: 0.06935568122 | AB102: 0.009620421035 | AC102: 0.0003545981225 | AD102: 20 | AE102: 10 | AF102: 0.001135186789 | AG102: 9.92874743e-05 | AH102: 0.0108548953 | AI102: 0.1081568302 | AJ102: 0.01169789993 | AK102: 0.0001477492177 | AL102: 0 | AM102: 0.0002611071514 | AN102: 0.01195900708 | AO102: 0.002190570511 | AP102: 0.002893856787 | AQ102: 0.0005023473402 | AR102: 0.0262101065 | AS102: 0.03140469503 | AT102: 0.3485856 | AU102: 91.7353955 | AV102: 0.02531754406 | AW102: 0.0307847334 | AX102: 0.003172801075 | AY102: 0.003248699453 | AZ102: 0 | BA102: 0.0006871416318 | BB102: 0.01335583099 | BC102: 0.0002621605048 | BD102: 5.232744117e-05 | BE102: 0.005764806469 | BF102: 0.08264604502 | BG102: 0.917353955 | BH102: 91.7353955 | BI102: 105.6 | BJ102: 92.54389358 | BK102: 0.9254389358 | BL102: 90.25026964 | BN102: 26.2101065 | BO102: 2.893856787 | BP102: 5.174704606
H103: 97 | I103: 0.1067 | J103: 0.243055 | K103: 0.02698770404 | L103: 1.545079797e-05 | M103: 5216.991527 | N103: 0.0001663851912 | O103: 2.529616282e-05 | P103: 0.8680301329 | Q103: 0.1307408587 | R103: 0.005127951639 | S103: 0.0001006561397 | T103: 0.005228607779 | U103: 0.07681734753 | V103: 8.851357323e-06 | W103: 8.851357323e-06 | X103: 0.06102768123 | Y103: 1.117313363e-05 | Z103: 1.117313363e-05 | AA103: 0.0697159729 | AB103: =RdsonTop*AA103^2 -> 0.009720633754 | AC103: 0.0003582918529 | AD103: 20 | AE103: 10 | AF103: 0.001147011652 | AG103: 0.0001003217188 | AH103: 0.01096796712 | AI103: 0.1087186877 | AJ103: =RdsonBot*AI103^2 -> 0.01181975305 | AK103: 0.0001492882721 | AL103: 0 | AM103: 0.0002638270176 | AN103: 0.01208358007 | AO103: 0.002210765294 | AP103: =(Vin-Vdd)*Fsw*(QgBot+QgTop)*P103+AO103 -> 0.002921377469 | AQ103: 0.000507580125 | AR103: 0.02648050479 | AS103: 0.03172913706 | AT103: 0.3522167 | AU103: 91.73603827 | AV103: 0.02531772145 | AW103: 0.0307849491 | AX103: 0.003172823306 | AY103: 0.003248722216 | AZ103: 0 | BA103: 0.0006871464465 | BB103: 0.01335592457 | BC103: 0.0002621623417 | BD103: 5.21544682e-05 | BE103: 0.005758013451 | BF103: 0.08263961735 | BG103: 0.9173603827 | BH103: 91.73603827 | BI103: 106.7 | BJ103: 92.54516591 | BK103: 0.9254516591 | BL103: 90.26002591 | BN103: 26.48050479 | BO103: 2.921377469 | BP103: 5.228607779
H104: 98 | I104: 0.1078 | J104: 0.243055 | K104: 0.02754701983 | L104: 1.545079797e-05 | M104: 4913.368186 | N104: 0.000178488333 | O104: 2.50380387e-05 | P104: 0.8769788972 | Q104: 0.1314130526 | R104: 0.00518081712 | S104: 0.0001016938319 | T104: 0.005282510952 | U104: 0.0764405583 | V104: 8.764738429e-06 | W104: 8.764738429e-06 | X104: 0.06164364225 | Y104: 1.139981589e-05 | Z104: 1.139981589e-05 | AA104: 0.07007441214 | AB104: =RdsonTop*AA104^2 -> 0.009820846473 | AC104: 0.0003619855834 | AD104: 20 | AE104: 10 | AF104: 0.001158836514 | AG104: 0.0001013559633 | AH104: 0.01108103895 | AI104: 0.1092776563 | AJ104: =RdsonBot*AI104^2 -> 0.01194160617 | AK104: 0.0001508273264 | AL104: 0 | AM104: 0.0002665468837 | AN104: 0.01220815306 | AO104: 0.002230943053 | AP104: 0.002948881127 | AQ104: 0.0005128129098 | AR104: 0.02675088605 | AS104: 0.03205356155 | AT104: 0.3558478 | AU104: 91.73667207 | AV104: 0.02531789637 | AW104: 0.03078516179 | AX104: 0.003172845227 | AY104: 0.003248744662 | AZ104: 0 | BA104: 0.000687151194 | BB104: 0.01335601685 | BC104: 0.0002621641529 | BD104: 5.198371626e-05 | BE104: 0.005751315345 | BF104: 0.08263327931 | BG104: 0.9173667207 | BH104: 91.73667207 | BI104: 107.8 | BJ104: 92.54641873 | BK104: 0.9254641873 | BL104: 90.26982651 | BN104: 26.75088605 | BO104: 2.948881127 | BP104: 5.282510952
H105: 99 | I105: 0.1089 | J105: 0.243055 | K105: 0.0281120722 | L105: 1.545079797e-05 | M105: 4602.45083 | N105: 0.0001924904131 | O105: 2.478512922e-05 | P105: 0.8859276614 | Q105: 0.1320818257 | R105: 0.005233682601 | S105: 0.000102731524 | T105: 0.005336414125 | U105: 0.07604599282 | V105: 8.674489536e-06 | W105: 8.674489536e-06 | X105: 0.06226210505 | Y105: 1.162970917e-05 | Z105: 1.162970917e-05 | AA105: 0.07043102723 | AB105: =RdsonTop*AA105^2 -> 0.009921059192 | AC105: 0.0003656793138 | AD105: 20 | AE105: 10 | AF105: 0.001170661377 | AG105: 0.0001023902079 | AH105: 0.01119411078 | AI105: 0.1098337803 | AJ105: =RdsonBot*AI105^2 -> 0.0120634593 | AK105: 0.0001523663808 | AL105: 0 | AM105: 0.0002692667499 | AN105: 0.01233272605 | AO105: 0.002251103788 | AP105: 0.00297636776 | AQ105: 0.0005180456946 | AR105: 0.02702125028 | AS105: 0.0323779686 | AT105: 0.3594789 | AU105: 91.73729716 | AV105: 0.02531806889 | AW105: 0.03078537156 | AX105: 0.003172866846 | AY105: 0.003248766798 | AZ105: 0 | BA105: 0.0006871558762 | BB105: 0.01335610785 | BC105: 0.0002621659393 | BD105: 5.181534468e-05 | BE105: 0.005744709275 | BF105: 0.08262702838 | BG105: 0.9173729716 | BH105: 91.73729716 | BI105: 108.9 | BJ105: 92.54765263 | BK105: 0.9254765263 | BL105: 90.27975203 | BN105: 27.02125028 | BO105: 2.97636776 | BP105: 5.336414125
H106: 100 | I106: 0.11 | J106: 0.243055 | K106: 0.02868286113 | L106: 1.545079797e-05 | M106: 4284.239458 | N106: 0.0002088763792 | O106: 2.453727793e-05 | P106: 0.8948764257 | Q106: 0.1327472295 | R106: 0.005286548082 | S106: 0.0001037692162 | T106: 0.005390317298 | U106: 0.07563337289 | V106: 8.580610642e-06 | W106: 8.580610642e-06 | X106: 0.06288324203 | Y106: 1.186290638e-05 | Z106: 1.186290638e-05 | AA106: 0.07078584573 | AB106: =RdsonTop*AA106^2 -> 0.01002127191 | AC106: 0.0003693730443 | AD106: 20 | AE106: 10 | AF106: 0.001182486239 | AG106: 0.0001034244524 | AH106: 0.0113071826 | AI106: 0.1103871026 | AJ106: =RdsonBot*AI106^2 -> 0.01218531242 | AK106: 0.0001539054351 | AL106: 0 | AM106: 0.000271986616 | AN106: 0.01245729904 | AO106: 0.002271247498 | AP106: 0.003003837369 | AQ106: 0.0005232784794 | AR106: 0.02729159749 | AS106: =SUM(T106,W106,Z106,AR106) -> 0.03270235831 | AT106: 0.36311 | AU106: 91.73791378 | AV106: 0.02531823906 | AW106: 0.03078557849 | AX106: 0.003172888173 | AY106: 0.003248788635 | AZ106: 0 | BA106: 0.000687160495 | BB106: 0.01335619763 | BC106: 0.0002621677015 | BD106: 5.164951674e-05 | BE106: 0.00573819248 | BF106: 0.08262086218 | BG106: 0.9173791378 | BH106: 91.73791378 | BI106: 110 | BJ106: 92.54886816 | BK106: 0.9254886816 | BL106: 90.28988044 | BN106: 27.29159749 | BO106: 3.003837369 | BP106: 5.390317298
H108: 1e-05 | I108: A | J108: min_I
H109: =Iout_maxload_PFM -> 0.11 | I109: A | J109: max_I | N109: =O106 -> 2.453727793e-05 | O109: OutputDischargeTime_Ioutmax | AU109: 100mA | AV109: =AV106 -> 0.02531823906 | AW109: =AW106 -> 0.03078557849 | AX109: =AX106 -> 0.003172888173 | AY109: =AY106 -> 0.003248788635 | BA109: =BA106 -> 0.000687160495 | BB109: =BB106 -> 0.01335619763 | BC109: =BC106 -> 0.0002621677015 | BE109: =BE106 -> 0.00573819248
H110: =LOG(max_I/min_I,EXP(1)) -> 9.305650552 | J110: rr | N110: =AT106+AS106 -> 0.3958123583 | O110: InputPower_Ioutmax | AU110: 1mA | AV110: =AV56 -> 0.02530425349 | AW110: =AW56 -> 0.0307685728 | AX110: 0.003171135497 | AY110: 0.003246994033 | BA110: 0.0006867809134 | BB110: 0.01334881978 | BC110: 0.0002620228823 | BE110: 0.00627833128
N111: =N110/VIN_nom -> 0.03298436319 | O111: InputCurrent_Ioutmax
AT125: PFM | AU125: 1mA | AV125: 0.01029765717 | AW125: 0.01855747905 | AX125: 0.02188645881 | AY125: 0.02060760298 | AZ125: 0 | BA125: 0.00237000314 | BB125: 0.0127644831 | BC125: 0.02387665161 | BD125: 4.288825889e-05 | BE125: 0.04914671824 | BF125: 0.1595499424
AT126: COT | AU126: 1mA | AV126: 0.003640910409 | AW126: 0.006569224584 | AX126: 0.05439469421 | AY126: 0.004590783752 | AZ126: 0 | BA126: 0.0007375157948 | BB126: 0.007215124618 | BC126: 0.01492912035 | BD126: 5.502443442e-06 | BE126: 0.08255150623
AT131: PFM | AU131: 100mA | AV131: 0.0107574505 | AW131: 0.01938607578 | AX131: 0.02286369544 | AY131: 0.02152773833 | AZ131: 0 | BA131: 0.002475824456 | BB131: 0.01333442091 | BC131: 0.02494275091 | BD131: 3.691557335e-05 | BE131: 0.006698735706
AT132: COT | AU132: 100mA | AV132: 0.008100070902 | AW132: 0.01461480205 | AX132: 0.02483153466 | AY132: 0.009905703983 | AZ132: 0.01163160831 | BA132: 0.00164655428 | BB132: 0.01605176025 | BC132: 0.006815241357 | BD132: 1.751778112e-05 | BE132: 0.01283782987

Sheet COT Efficiency (hidden)
A1: LM5165 (COT) Efficiency Calculator
G2: TERMS OF USE | AC2: 0.01925773854 | AD2: 0.0007417209872 | AE2: 0.001240345057 | AF2: 20 | AG2: 7.152317881 | AH2: 0 | AI2: 0.0008362995431 | AJ2: 0.00157802053 | AL2: =Ifb -> 9.883233533e-06
H4: Currents | K4: Miscellaneous | S4: Inductor | W4: Cout | Z4: Cin | AC4: High-side MOSFET Losses | AK4: Low-side MOSFET Losses | AN4: Diode | AU4: RESULTS
A5: Input Parameters | H5: Step | I5: Iout (A) | J5: Ripple Current pk-pk (A) | K5: Peak Current (A) | L5: Valley Current (A) | M5: Off Time (sec) | N5: Duty Cycle | O5: Switching Frequency (Hz) | P5: Active Mode Duration (sec) | Q5: Sleep Mode Duration (sec) | R5: Operating Quiescent Current (A) | S5: Irms (A) | T5: Inductor DCR Loss @ 25°C (W) | U5: Inductor Core Loss (W) | V5: Total Inductor Loss (W) | W5: Irms (A) | X5: Cout ESR Loss (W) | Y5: Total Cout Loss (W) | Z5: Irms (A) | AA5: Cin ESR Loss (W) | AB5: Total Cin Loss (W) | AC5: Irms (A) | AD5: Rdson HS Loss @ 25°C (W) | AE5: HS Gate Qg Loss (W) | AF5: SW Rise Time (ns) | AG5: SW Fall Time (ns) | AH5: HS Switching Loss (W) | AI5: Coss Loss (W) | AJ5: Total HS FET Loss (W) | AK5: Irms (A) | AL5: Rdson LS Loss @ 25°C (W) | AM5: LS Gate Qg Loss (W) | AN5: Reverse Recovery & Leakage Losses | AO5: DeadTime Loss @ 25°C (W) | AP5: Total LS FET Loss (W) | AQ5: Quiescent Loss (W) | AR5: LDO + Quiescent Loss (W) | AS5: Total Gate Drive Loss (W) | AT5: Total Power Loss in IC (W) | AU5: Total Converter Power Loss (W) | AV5: Pout (W) | AW5: EFF (%) | AX5: High-side MOSFET Rdson % | AY5: Low-side MOSFET Rdson % | AZ5: Gate Drive (Qg) Loss from Vin % | BA5: High-side MOSFET Switching Loss % | BB5: Reverse Recovery & Leakage Loss % | BC5: Deadtime Loss % | BD5: Inductor Cu Loss % | BE5: Inductor Core Loss % | BF5: Cin Cout ESR % | BG5: Quiescent Current Loss % | BH5: Total Loss % | BI5: Overall Eff % | BJ5: Overall Eff | BK5: Current (mA) | BL5: Keep for "previous" data series | BM5: Keep for "previous" data series | BN5: Frequency (kHz) | BP5: Coss | BR5: Total Power Loss in IC (mW) | BS5: LDO + Quiescent Loss (mW) | BT5: Total Inductor Loss (mW) | BW5: COT / PFM Overall Eff | BX5: COT / PFM Total Power Loss in IC (mW) | BY5: COT / PFM LDO + Quiescent Loss (mW) | BZ5: COT / PFM Total Inductor Loss (mW)
A6: Design | B6: Input Value | C6: Units | D6: Std Units | E6: Description | H6: 0.1 | I6: =IF(PLOT_TYPE=1, H6/100*Iout_maxload_COT, min_I*EXP(H6*rr/100)) -> 0.00011 | J6: =IF(I6<Icrit, (Vin-(Rdcr+RdsonTop)*Iripple/2-Vout)/L*OnTime, (Vin-(Rdcr+RdsonTop)*I6-Vout)/L*OnTime) -> 0.04326521062 | K6: =IF(I6<Icrit, (Vin-(Rdcr+RdsonTop)*Iripple/2-Vout)/L*OnTime, I6+((Vin-(Rdcr+RdsonTop)*J6-Vout)/L*OnTime)/2) -> 0.04326521062 | L6: =IF(I6<Icrit, 0, I6-((Vin-(Rdcr+RdsonTop)*K6-Vout)/L*OnTime)/2) -> 0 | M6: =IF(I6<Icrit, L*J6/(Vout+J6/2*(RdsonBot+Rdcr)), L*J6/(Vout+I6*(RdsonBot+Rdcr))) -> 2.859115776e-06 | N6: =OnTime*O6 -> 0.001413101518 | O6: =IF(I6<Icrit,I6/((OnTime+M6)*J6/2),1/(OnTime+M6)) -> 1284.248577 | P6: =IF(1/O6-OnTime-M6>Tsleep, OnTime+M6+Tsleep, 1/O6) -> 4.959449109e-06 | Q6: =IF(1/O6-OnTime-M6>Tsleep, 1/O6-OnTime-M6-Tsleep, 0) -> 0.0007737060037 | R6: =P6*O6*Iq_active+Q6*O6*Iq_sleep -> 1.23438734e-05 | S6: =IF(I6<Icrit,Iripple*SQRT((OnTime+OffTime)*O6/3), SQRT(I6^2+Iripple^2/12)) -> 0.001703484067 | T6: =S6^2*Rdcr -> 8.7055739e-07 | U6: =(O6/Fsw)*Fsw^2.5*(Iripple/2)^2.5*k_core -> 5.203982005e-06 | V6: =T6+U6 -> 6.074539395e-06 | W6: =Iripple/SQRT(12)*SQRT((OnTime+M6)*O6) -> 0.0008695688465 | X6: =RCoutEsr*W6^2 -> 1.134224968e-09 | Y6: =X6 -> 1.134224968e-09 | Z6: =SQRT($N6)*SQRT($I6^2*(1-N6)+(Iripple^2)/12) -> 0.0004584229671 | AA6: =RCinEsr*Z6^2 -> 6.304548503e-10 | AB6: =AA6 -> 6.304548503e-10 | AC6: =IF(I6<Icrit,Iripple*SQRT((OnTime)*O6/3), SQRT(OnTime*O6*(I6^2+Iripple^2/12))) -> 0.0009168086876 | AD6: =RdsonTop*AC6^2 -> 1.681076339e-06 | AE6: =QgTop*O6*Vdd -> 1.15582372e-05 | AF6: 20 | AG6: =IF(I6<Icrit, Csw*Vin/Iripple*1000000000, Csw*Vin/(I6+Iripple/2)*1000000000) -> 9.942523463 | AH6: =IF(I6<Icrit, Vin*(I6+Iripple/2)*AG6/1000000000/2*O6, Vin*(I6-Iripple/2)*AF6/1000000000/2*O6+Vin*(I6+Iripple/2)*AG6/1000000000/2*O6) -> 1.626580531e-06 | AI6: =IF(I6<Icrit, Csw*(Vin)^2*O6/2, Csw*Vin^2*O6/2) -> 3.236306415e-06 | AJ6: =AD6+AH6+AI6 -> 6.543963285e-06 | AK6: =IF(I6<Icrit,Iripple*SQRT((OffTime)*O6/3), SQRT(OffTime*O6*(I6^2+Iripple^2/12))) -> 0.001435729709 | AL6: =RdsonBot*AK6^2 -> 2.061319797e-06 | AM6: =QgBot*O6*Vdd -> 4.815932165e-06 | AN6: =IF(I6<Icrit, Vin*Idss*N6, QrrBot*(I6-Iripple/2)/0.1*O6*Vin+Vin*Idss*N6) -> 0 | AO6: =IF(I6<Icrit, dead1*O6*(I6+Iripple/2)*((I6+Iripple/2)*BDserR+VSD), dead1*O6*(I6+Iripple/2)*((I6+Iripple/2)*BDserR+VSD)+dead2*O6*(I6-Iripple/2)*((I6-Iripple/2)*BDserR+VSD)) -> 6.561301502e-07 | AP6: =AL6+AN6+AO6 -> 2.717449947e-06 | AQ6: =Vin*R6+Vout*Ifb/0.7 -> 0.0001947329864 | AR6: =(Vin-Vdd)*(O6*QgBot+O6*QgTop)+AQ6 -> 0.0002176568235 | AS6: =AE6+AM6 -> 1.637416936e-05 | AT6: =AJ6+AP6+AR6+AS6 -> 0.0002432924061 | AU6: =SUM(V6,Y6,AB6,AT6) -> 0.0002493687102 | AV6: =Vout*I6 -> 0.00036311 | AW6: =AV6/(AV6+AU6) -> 0.59285326 | AX6: =AD6/($AV6+$AU6) -> 0.002744709835 | AY6: =AL6/($AV6+$AU6) -> 0.003365537059 | AZ6: =Vin*O6*(QgBot+QgTop)/($AV6+$AU6) -> 0.06416224077 | BA6: =AH6/($AV6+$AU6) -> 0.002655733993 | BB6: =AN6/(AU6+AV6) -> 0 | BC6: =AO6/($AV6+$AU6) -> 0.001071270134 | BD6: =T6/($AV6+$AU6) -> 0.001421367593 | BE6: =U6/($AV6+$AU6) -> 0.008496592484 | BF6: =(Y6+AB6)/($AV6+$AU6) -> 2.881210056e-06 | BG6: =AQ6/($AV6+$AU6) -> 0.3179424577 | BH6: =AU6/($AV6+$AU6) -> 0.40714674 | BI6: =AW6 -> 0.59285326 | BJ6: =100*BI6 -> 59.285326 | BK6: =CHOOSE(MODE, I6*1000, 'PFM Efficiency'!BI6) -> 0.11 | BL6: 59.70237209 | BM6: =BL6/100 -> 0.5970237209 | BN6: =O6/1000 -> 1.284248577 | BP6: =AI6/($AV6+$AU6) -> 0.00528394924 | BR6: =1000*AT6 -> 0.2432924061 | BS6: =1000*AR6 -> 0.2176568235 | BT6: =1000*V6 -> 0.006074539395 | BW6: =IF(MODE=1, BJ6, 'PFM Efficiency'!BH6) -> 59.285326 | BX6: =IF(MODE=1, BR6, 'PFM Efficiency'!BN6) -> 0.2432924061 | BY6: =IF(MODE=1, BS6, 'PFM Efficiency'!BO6) -> 0.2176568235 | BZ6: =IF(MODE=1, BT6, 'PFM Efficiency'!BP6) -> 0.006074539395
H7: 1 | I7: 0.0011 | J7: 0.04326521062 | K7: 0.04326521062 | L7: 0 | M7: 2.859115776e-06 | N7: =OnTime*O7 -> 0.01413101518 | O7: 12842.48577 | P7: =IF(1/O7-OnTime-M7>Tsleep, OnTime+M7+Tsleep, 1/O7) -> 4.959449109e-06 | Q7: =IF(1/O7-OnTime-M7>Tsleep, 1/O7-OnTime-M7-Tsleep, 0) -> 7.290709617e-05 | R7: =P7*O7*Iq_active+Q7*O7*Iq_sleep -> 2.893873401e-05 | S7: =IF(I7<Icrit,Iripple*SQRT((OnTime+OffTime)*O7/3), SQRT(I7^2+Iripple^2/12)) -> 0.00538688961 | T7: =S7^2*Rdcr -> 8.7055739e-06 | U7: =(O7/Fsw)*Fsw^2.5*(Iripple/2)^2.5*k_core -> 5.203982005e-05 | V7: =T7+U7 -> 6.074539395e-05 | W7: =Iripple/SQRT(12)*SQRT((OnTime+M7)*O7) -> 0.002749818137 | X7: =RCoutEsr*W7^2 -> 1.134224968e-08 | Y7: =X7 -> 1.134224968e-08 | Z7: =SQRT($N7)*SQRT($I7^2*(1-N7)+(Iripple^2)/12) -> 0.001455404525 | AA7: =RCinEsr*Z7^2 -> 6.354606998e-09 | AB7: =AA7 -> 6.354606998e-09 | AC7: =IF(I7<Icrit,Iripple*SQRT((OnTime)*O7/3), SQRT(OnTime*O7*(I7^2+Iripple^2/12))) -> 0.002899203631 | AD7: =RdsonTop*AC7^2 -> 1.681076339e-05 | AE7: =QgTop*O7*Vdd -> 0.000115582372 | AF7: 20 | AG7: 9.942523463 | AH7: 1.70242644e-05 | AI7: 3.236306415e-05 | AJ7: 6.619809194e-05 | AK7: 0.004540175984 | AL7: =RdsonBot*AK7^2 -> 2.061319797e-05 | AM7: 4.815932165e-05 | AN7: 0 | AO7: 6.868096348e-06 | AP7: =AL7+AN7+AO7 -> 2.748129432e-05 | AQ7: 0.0003938713137 | AR7: 0.0006231096848 | AS7: 0.0001637416936 | AT7: =AJ7+AP7+AR7+AS7 -> 0.0008805307646 | AU7: 0.0009412938555 | AV7: 0.0036311 | AW7: =AV7/(AV7+AU7) -> 0.7941354386 | AX7: 0.003676578161 | AY7: =AL7/($AV7+$AU7) -> 0.004508185126 | AZ7: 0.08594624109 | BA7: =AH7/($AV7+$AU7) -> 0.003723271647 | BB7: =AN7/(AU7+AV7) -> 0 | BC7: =AO7/($AV7+$AU7) -> 0.001502078903 | BD7: 0.001903942262 | BE7: 0.01138130741 | BF7: 3.870370147e-06 | BG7: =AQ7/($AV7+$AU7) -> 0.08614116067 | BH7: =AU7/($AV7+$AU7) -> 0.2058645614 | BI7: =AW7 -> 0.7941354386 | BJ7: =100*BI7 -> 79.41354386 | BK7: =CHOOSE(MODE, I7*1000, 'PFM Efficiency'!BI7) -> 1.1 | BL7: 83.68259906 | BM7: =BL7/100 -> 0.8368259906 | BN7: 12.84248577 | BP7: =AI7/($AV7+$AU7) -> 0.007077925737 | BR7: =1000*AT7 -> 0.8805307646 | BS7: =1000*AR7 -> 0.6231096848 | BT7: 0.06074539395 | BW7: =IF(MODE=1, BJ7, 'PFM Efficiency'!BH7) -> 79.41354386 | BX7: =IF(MODE=1, BR7, 'PFM Efficiency'!BN7) -> 0.8805307646 | BY7: =IF(MODE=1, BS7, 'PFM Efficiency'!BO7) -> 0.6231096848 | BZ7: =IF(MODE=1, BT7, 'PFM Efficiency'!BP7) -> 0.06074539395
A8: Vin | B8: =Vin -> 12 | C8: V | D8: =B8 -> 12 | E8: Vin | H8: 2 | I8: 0.0022 | J8: 0.04326521062 | K8: 0.04326521062 | L8: 0 | M8: 2.859115776e-06 | N8: =OnTime*O8 -> 0.02826203036 | O8: 25684.97155 | P8: 4.959449109e-06 | Q8: 3.397382353e-05 | R8: 4.737746803e-05 | S8: 0.007618212345 | T8: 1.74111478e-05 | U8: 0.0001040796401 | V8: =T8+U8 -> 0.0001214907879 | W8: 0.003888830104 | X8: 2.268449936e-08 | Y8: =X8 -> 2.268449936e-08 | Z8: 0.002082213525 | AA8: 1.300683949e-08 | AB8: =AA8 -> 1.300683949e-08 | AC8: 0.004100093096 | AD8: 3.362152678e-05 | AE8: 0.0002311647439 | AF8: 20 | AG8: 9.942523463 | AH8: 3.573399345e-05 | AI8: 6.47261283e-05 | AJ8: 0.0001340816485 | AK8: 0.006420778453 | AL8: 4.122639594e-05 | AM8: 9.63186433e-05 | AN8: 0 | AO8: 1.441813617e-05 | AP8: =AL8+AN8+AO8 -> 5.564453211e-05 | AQ8: 0.0006151361219 | AR8: 0.001073612864 | AS8: 0.0003274833872 | AT8: =AJ8+AP8+AR8+AS8 -> 0.001590822432 | AU8: 0.001712348911 | AV8: 0.0072622 | AW8: =AV8/(AV8+AU8) -> 0.8091994452 | AX8: 0.00374631941 | AY8: =AL8/($AV8+$AU8) -> 0.004593701182 | AZ8: 0.08757656091 | BA8: 0.003981703572 | BB8: 0 | BC8: 0.001606558314 | BD8: 0.001940058266 | BE8: 0.01159720016 | BF8: 3.976950731e-06 | BG8: =AQ8/($AV8+$AU8) -> 0.06854228864 | BH8: 0.1908005548 | BI8: =AW8 -> 0.8091994452 | BJ8: =100*BI8 -> 80.91994452 | BK8: =CHOOSE(MODE, I8*1000, 'PFM Efficiency'!BI8) -> 2.2 | BL8: 85.59130654 | BM8: 0.8559130654 | BN8: 25.68497155 | BP8: =AI8/($AV8+$AU8) -> 0.007212187369 | BR8: =1000*AT8 -> 1.590822432 | BS8: =1000*AR8 -> 1.073612864 | BT8: 0.1214907879 | BW8: =IF(MODE=1, BJ8, 'PFM Efficiency'!BH8) -> 80.91994452 | BX8: =IF(MODE=1, BR8, 'PFM Efficiency'!BN8) -> 1.590822432 | BY8: =IF(MODE=1, BS8, 'PFM Efficiency'!BO8) -> 1.073612864 | BZ8: =IF(MODE=1, BT8, 'PFM Efficiency'!BP8) -> 0.1214907879
A9: Vout | B9: =Vout -> 3.301 | C9: V | D9: =B9 -> 3.301 | E9: Vout | H9: 3 | I9: 0.0033 | J9: 0.04326521062 | K9: 0.04326521062 | L9: 0 | M9: 2.859115776e-06 | N9: 0.04239304554 | O9: 38527.45732 | P9: 4.959449109e-06 | Q9: 2.099606599e-05 | R9: 6.581620204e-05 | S9: 0.009330366498 | T9: 2.61167217e-05 | U9: 0.0001561194602 | V9: 0.0001822361819 | W9: 0.004762824725 | X9: 3.402674905e-08 | Y9: 3.402674905e-08 | Z9: 0.002597330428 | AA9: 2.023837606e-08 | AB9: 2.023837606e-08 | AC9: 0.005021567991 | AD9: 5.043229018e-05 | AE9: 0.0003467471159 | AF9: 20 | AG9: 9.942523463 | AH9: 5.612918716e-05 | AI9: 9.708919245e-05 | AJ9: 0.0002036506698 | AK9: 0.00786381548 | AL9: 6.183959391e-05 | AM9: 0.0001444779649 | AN9: 0 | AO9: 2.265039918e-05 | AP9: 8.448999308e-05 | AQ9: 0.0008364009301 | AR9: 0.001524116043 | AS9: 0.0004912250808 | AT9: 0.002303481787 | AU9: 0.002485772234 | AV9: 0.0108933 | AW9: =AV9/(AV9+AU9) -> 0.8142044388 | AX9: 0.003769490836 | AY9: 0.004622113763 | AZ9: 0.08811823222 | BA9: 0.004195297415 | BB9: 0 | BC9: 0.001692972336 | BD9: 0.001952057754 | BE9: 0.01166893021 | BF9: 4.05597071e-06 | BG9: 0.06251561509 | BH9: 0.1857955612 | BI9: 0.8142044388 | BJ9: 81.42044388 | BK9: =CHOOSE(MODE, I9*1000, 'PFM Efficiency'!BI9) -> 3.3 | BL9: 86.24614342 | BM9: 0.8624614342 | BN9: 38.52745732 | BP9: 0.007256795595 | BR9: 2.303481787 | BS9: 1.524116043 | BT9: 0.1822361819 | BW9: =IF(MODE=1, BJ9, 'PFM Efficiency'!BH9) -> 81.42044388 | BX9: =IF(MODE=1, BR9, 'PFM Efficiency'!BN9) -> 2.303481787 | BY9: =IF(MODE=1, BS9, 'PFM Efficiency'!BO9) -> 1.524116043 | BZ9: =IF(MODE=1, BT9, 'PFM Efficiency'!BP9) -> 0.1822361819
A10: Iout | B10: =MIN(Iout, 0.15) -> 0.11 | C10: A | D10: =B10 -> 0.11 | E10: Iout(max) | H10: 4 | I10: 0.0044 | J10: 0.04326521062 | K10: 0.04326521062 | L10: 0 | M10: 2.859115776e-06 | N10: 0.05652406072 | O10: 51369.94309 | P10: 4.959449109e-06 | Q10: 1.450718721e-05 | R10: 8.425493606e-05 | S10: 0.01077377922 | T10: 3.48222956e-05 | U10: 0.0002081592802 | V10: 0.0002429815758 | W10: 0.005499636275 | X10: 4.536899873e-08 | Y10: 4.536899873e-08 | Z10: 0.003072105614 | AA10: 2.831349871e-08 | AB10: 2.831349871e-08 | AC10: 0.005798407263 | AD10: 6.724305357e-05 | AE10: 0.0004623294878 | AF10: 20 | AG10: 9.942523463 | AH10: 7.820984552e-05 | AI10: 0.0001294522566 | AJ10: 0.0002749051557 | AK10: 0.009080351969 | AL10: 8.245279188e-05 | AM10: 0.0001926372866 | AN10: 0 | AO10: 3.156516508e-05 | AP10: 0.000114017957 | AQ10: 0.001057665738 | AR10: 0.001974619222 | AS10: 0.0006549667744 | AT10: 0.00301850911 | AU10: 0.003261564368 | AV10: 0.0145244 | AW10: 0.8166214493 | AX10: 0.003780680776 | AY10: 0.004635834761 | AZ10: 0.08837981602 | BA10: 0.004397278882 | BB10: 0 | BC10: 0.001774723283 | BD10: 0.001957852545 | BE10: 0.01170357007 | BF10: 4.14273277e-06 | BG10: 0.05946631379 | BH10: 0.1833785507 | BI10: 0.8166214493 | BJ10: 81.66214493 | BK10: =CHOOSE(MODE, I10*1000, 'PFM Efficiency'!BI10) -> 4.4 | BL10: 86.57665577 | BM10: 0.8657665577 | BN10: 51.36994309 | BP10: 0.00727833779 | BR10: 3.01850911 | BS10: 1.974619222 | BT10: 0.2429815758 | BW10: =IF(MODE=1, BJ10, 'PFM Efficiency'!BH10) -> 81.66214493 | BX10: =IF(MODE=1, BR10, 'PFM Efficiency'!BN10) -> 3.01850911 | BY10: =IF(MODE=1, BS10, 'PFM Efficiency'!BO10) -> 1.974619222 | BZ10: =IF(MODE=1, BT10, 'PFM Efficiency'!BP10) -> 0.2429815758
A11: Rt | B11: =Vout/(Fsw/1000)*100000/16 -> 82.525 | C11: kW | D11: =B11*1000 -> 82525 | E11: RT pin resistance to get Fsw | H11: 5 | I11: 0.0055 | J11: 0.04326521062 | K11: 0.04326521062 | L11: 0 | M11: 2.859115776e-06 | N11: 0.0706550759 | O11: 64212.42887 | P11: 4.959449109e-06 | Q11: 1.061385995e-05 | R11: 0.0001026936701 | S11: 0.01204545135 | T11: 4.35278695e-05 | U11: 0.0002601991003 | V11: 0.0003037269698 | W11: 0.006148780281 | X11: 5.671124841e-08 | Y11: 5.671124841e-08 | Z11: 0.003534548194 | AA11: 3.747909282e-08 | AB11: 3.747909282e-08 | AC11: 0.0064828164 | AD11: 8.405381696e-05 | AE11: 0.0005779118598 | AF11: 20 | AG11: 9.942523463 | AH11: 0.0001019759685 | AI11: 0.0001618153207 | AJ11: 0.0003478451062 | AK11: 0.01015214213 | AL11: 0.0001030659898 | AM11: 0.0002407966082 | AN11: 0 | AO11: 4.116271358e-05 | AP11: 0.0001442287034 | AQ11: 0.001278930546 | AR11: 0.002425122402 | AS11: 0.000818708468 | AT11: 0.003735904679 | AU11: 0.004039725839 | AV11: 0.0181555 | AW11: 0.8179912262 | AX11: 0.003787022379 | AY11: 0.004643610774 | AZ11: 0.08852806173 | BA11: 0.004594500154 | BB11: 0 | BC11: 0.001854575118 | BD11: 0.001961136589 | BE11: 0.01172320129 | BF11: 4.243720785e-06 | BG11: 0.05762187579 | BH11: 0.1820087738 | BI11: 0.8179912262 | BJ11: 81.79912262 | BK11: =CHOOSE(MODE, I11*1000, 'PFM Efficiency'!BI11) -> 5.5 | BL11: 86.77563649 | BM11: 0.8677563649 | BN11: 64.21242887 | BP11: 0.00729054626 | BR11: 3.735904679 | BS11: 2.425122402 | BT11: 0.3037269698 | BW11: =IF(MODE=1, BJ11, 'PFM Efficiency'!BH11) -> 81.79912262 | BX11: =IF(MODE=1, BR11, 'PFM Efficiency'!BN11) -> 3.735904679 | BY11: =IF(MODE=1, BS11, 'PFM Efficiency'!BO11) -> 2.425122402 | BZ11: =IF(MODE=1, BT11, 'PFM Efficiency'!BP11) -> 0.3037269698
A12: Tamb | B12: 25 | C12: °C | D12: =B12 -> 25 | E12: Ambient temperature | H12: 6 | I12: 0.0066 | J12: 0.04326521062 | K12: 0.04326521062 | L12: 0 | M12: 2.859115776e-06 | N12: 0.08478609107 | O12: 77054.91464 | P12: 4.959449109e-06 | Q12: 8.018308438e-06 | R12: 0.0001211324041 | S12: 0.01319513084 | T12: 5.22334434e-05 | U12: 0.0003122389203 | V12: 0.0003644723637 | W12: 0.006735651322 | X12: 6.805349809e-08 | Y12: 6.805349809e-08 | Z12: 0.003998526693 | AA12: 4.796464715e-08 | AB12: 4.796464715e-08 | AC12: 0.007101569557 | AD12: 0.0001008645804 | AE12: 0.0006934942318 | AF12: 20 | AG12: 9.942523463 | AH12: 0.0001274275562 | AI12: 0.0001941783849 | AJ12: 0.0004224705214 | AK12: 0.0111211145 | AL12: 0.0001236791878 | AM12: 0.0002889559299 | AN12: 0 | AO12: 5.14433244e-05 | AP12: 0.0001751225122 | AQ12: 0.001500195355 | AR12: 0.002875625581 | AS12: 0.0009824501617 | AT12: 0.004455668776 | AU12: 0.004820257158 | AV12: 0.0217866 | AW12: 0.8188340273 | AX12: 0.003790924263 | AY12: 0.004648395227 | AZ12: 0.08861927487 | BA12: 0.004789275014 | BB12: 0 | BC12: 0.001933461141 | BD12: 0.001963157207 | BE12: 0.01173528006 | BF12: 4.360460334e-06 | BG12: 0.05638378654 | BH12: 0.1811659727 | BI12: 0.8188340273 | BJ12: 81.88340273 | BK12: =CHOOSE(MODE, I12*1000, 'PFM Efficiency'!BI12) -> 6.6 | BL12: 86.9083429 | BM12: 0.869083429 | BN12: 77.05491464 | BP12: 0.007298057931 | BR12: 4.455668776 | BS12: 2.875625581 | BT12: 0.3644723637 | BW12: =IF(MODE=1, BJ12, 'PFM Efficiency'!BH12) -> 81.88340273 | BX12: =IF(MODE=1, BR12, 'PFM Efficiency'!BN12) -> 4.455668776 | BY12: =IF(MODE=1, BS12, 'PFM Efficiency'!BO12) -> 2.875625581 | BZ12: =IF(MODE=1, BT12, 'PFM Efficiency'!BP12) -> 0.3644723637
A13: VDD | B13: 5 | C13: V | D13: =B13 -> 5 | E13: Gate drive rail | H13: 7 | I13: 0.0077 | J13: 0.04326521062 | K13: 0.04326521062 | L13: 0 | M13: 2.859115776e-06 | N13: 0.09891710625 | O13: 89897.40041 | P13: 4.959449109e-06 | Q13: 6.164343074e-06 | R13: 0.0001395711381 | S13: 0.01425237025 | T13: 6.09390173e-05 | U13: 0.0003642787404 | V13: 0.0004252177577 | W13: 0.007275334942 | X13: 7.939574777e-08 | Y13: 7.939574777e-08 | Z13: 0.004471474547 | AA13: 5.998225388e-08 | AB13: 5.998225388e-08 | AC13: 0.007670571809 | AD13: 0.0001176753437 | AE13: 0.0008090766037 | AF13: 20 | AG13: 9.942523463 | AH13: 0.0001545646085 | AI13: 0.000226541449 | AJ13: 0.0004987814013 | AK13: 0.01201217656 | AL13: 0.0001442923858 | AM13: 0.0003371152515 | AN13: 0 | AO13: 6.240727723e-05 | AP13: 0.000206699663 | AQ13: 0.001721460163 | AR13: 0.00332612876 | AS13: 0.001146191855 | AT13: 0.00517780168 | AU13: 0.005603158815 | AV13: 0.0254177 | AW13: 0.819374478 | AX13: 0.003793426367 | AY13: 0.004651463283 | AZ13: 0.08867776579 | BA13: 0.004982602494 | BB13: 0 | BC13: 0.002011784316 | BD13: 0.00196445294 | BE13: 0.01174302564 | BF13: 4.493041359e-06 | BG13: 0.05549363327 | BH13: 0.180625522 | BI13: 0.819374478 | BJ13: 81.9374478 | BK13: =CHOOSE(MODE, I13*1000, 'PFM Efficiency'!BI13) -> 7.7 | BL13: 87.00298962 | BM13: 0.8700298962 | BN13: 89.89740041 | BP13: 0.00730287483 | BR13: 5.17780168 | BS13: 3.32612876 | BT13: 0.4252177577 | BW13: =IF(MODE=1, BJ13, 'PFM Efficiency'!BH13) -> 81.9374478 | BX13: =IF(MODE=1, BR13, 'PFM Efficiency'!BN13) -> 5.17780168 | BY13: =IF(MODE=1, BS13, 'PFM Efficiency'!BO13) -> 3.32612876 | BZ13: =IF(MODE=1, BT13, 'PFM Efficiency'!BP13) -> 0.4252177577
H14: 8 | I14: 0.0088 | J14: 0.04326521062 | K14: 0.04326521062 | L14: 0 | M14: 2.859115776e-06 | N14: 0.1130481214 | O14: 102739.8862 | P14: 4.959449109e-06 | Q14: 4.773869051e-06 | R14: 0.0001580098721 | S14: 0.01523642469 | T14: 6.96445912e-05 | U14: 0.0004163185604 | V14: 0.0004859631516 | W14: 0.007777660208 | X14: 9.073799746e-08 | Y14: 9.073799746e-08 | Z14: 0.004957371903 | AA14: 7.372660855e-08 | AB14: 7.372660855e-08 | AC14: 0.008200186191 | AD14: 0.0001344861071 | AE14: 0.0009246589757 | AF14: 20 | AG14: 9.942523463 | AH14: 0.0001833871255 | AI14: 0.0002589045132 | AJ14: 0.0005767777458 | AK14: 0.01284155691 | AL14: 0.0001649055838 | AM14: 0.0003852745732 | AN14: 0 | AO14: 7.40548518e-05 | AP14: 0.0002389604356 | AQ14: 0.001942724971 | AR14: 0.003776631939 | AS14: 0.001309933549 | AT14: 0.00590230367 | AU14: 0.006388431286 | AV14: 0.0290488 | AW14: 0.8197254398 | AX14: 0.003795051201 | AY14: 0.004653455639 | AZ14: 0.08871574904 | BA14: 0.005174984581 | BB14: 0 | BC14: 0.002089747114 | BD14: 0.001965294372 | BE14: 0.01174805551 | BF14: 4.641011728e-06 | BG14: 0.0548215789 | BH14: 0.1802745602 | BI14: 0.8197254398 | BJ14: 81.97254398 | BK14: =CHOOSE(MODE, I14*1000, 'PFM Efficiency'!BI14) -> 8.8 | BL14: 87.07376589 | BM14: 0.8707376589 | BN14: 102.7398862 | BP14: 0.007306002862 | BR14: 5.90230367 | BS14: 3.776631939 | BT14: 0.4859631516 | BW14: =IF(MODE=1, BJ14, 'PFM Efficiency'!BH14) -> 81.97254398 | BX14: =IF(MODE=1, BR14, 'PFM Efficiency'!BN14) -> 5.90230367 | BY14: =IF(MODE=1, BS14, 'PFM Efficiency'!BO14) -> 3.776631939 | BZ14: =IF(MODE=1, BT14, 'PFM Efficiency'!BP14) -> 0.4859631516
A15: Outputs | H15: 9 | I15: 0.0099 | J15: 0.04326521062 | K15: 0.04326521062 | L15: 0 | M15: 2.859115776e-06 | N15: 0.1271791366 | O15: 115582.372 | P15: 4.959449109e-06 | Q15: 3.692389256e-06 | R15: 0.0001764486061 | S15: 0.01616066883 | T15: 7.83501651e-05 | U15: 0.0004683583805 | V15: 0.0005467085456 | W15: 0.008249454412 | X15: 1.020802471e-07 | Y15: 1.020802471e-07 | Z15: 0.005458174607 | AA15: 8.937501011e-08 | AB15: 8.937501011e-08 | AC15: 0.008697610894 | AD15: 0.0001512968705 | AE15: 0.001040241348 | AF15: 20 | AG15: 9.942523463 | AH15: 0.0002138951071 | AI15: 0.0002912675773 | AJ15: 0.000656459555 | AK15: 0.01362052795 | AL15: 0.0001855187817 | AM15: 0.0004334338948 | AN15: 0 | AO15: 8.638632781e-05 | AP15: 0.0002719051095 | AQ15: 0.002163989779 | AR15: 0.004227135119 | AS15: 0.001473675242 | AT15: 0.006629175026 | AU15: 0.007176075026 | AV15: 0.0326799 | AW15: 0.8199498313 | AX15: 0.003796090058 | AY15: 0.004654729475 | AZ15: 0.08874003408 | BA15: 0.005366701152 | BB15: 0 | BC15: 0.002167462413 | BD15: 0.001965832351 | BE15: 0.01175127143 | BF15: 4.80367767e-06 | BG15: 0.05429524124 | BH15: 0.1800501687 | BI15: 0.8199498313 | BJ15: 81.99498313 | BK15: =CHOOSE(MODE, I15*1000, 'PFM Efficiency'!BI15) -> 9.9 | BL15: 87.12858718 | BM15: 0.8712858718 | BN15: 115.582372 | BP15: 0.007308002806 | BR15: 6.629175026 | BS15: 4.227135119 | BT15: 0.5467085456 | BW15: =IF(MODE=1, BJ15, 'PFM Efficiency'!BH15) -> 81.99498313 | BX15: =IF(MODE=1, BR15, 'PFM Efficiency'!BN15) -> 6.629175026 | BY15: =IF(MODE=1, BS15, 'PFM Efficiency'!BO15) -> 4.227135119 | BZ15: =IF(MODE=1, BT15, 'PFM Efficiency'!BP15) -> 0.5467085456
A16: Design | B16: Value | C16: Units | D16: Std Units | E16: Description | H16: 10 | I16: 0.011 | J16: 0.04326521062 | K16: 0.04326521062 | L16: 0 | M16: 2.859115776e-06 | N16: 0.1413101518 | O16: 128424.8577 | P16: 4.959449109e-06 | Q16: 2.827205419e-06 | R16: 0.0001948873401 | S16: 0.01703484067 | T16: 8.7055739e-05 | U16: 0.0005203982005 | V16: 0.0006074539395 | W16: 0.008695688465 | X16: 1.134224968e-07 | Y16: 1.134224968e-07 | Z16: 0.00597459513 | AA16: 1.070873609e-07 | AB16: 1.070873609e-07 | AC16: 0.009168086876 | AD16: 0.0001681076339 | AE16: 0.00115582372 | AF16: 20 | AG16: 9.942523463 | AH16: 0.0002460885534 | AI16: 0.0003236306415 | AJ16: 0.0007378268288 | AK16: 0.01435729709 | AL16: 0.0002061319797 | AM16: 0.0004815932165 | AN16: 0 | AO16: 9.940198497e-05 | AP16: 0.0003055339647 | AQ16: 0.002385254587 | AR16: 0.004677638298 | AS16: 0.001637416936 | AT16: 0.007358416027 | AU16: 0.007966090477 | AV16: 0.036311 | AW16: 0.8200855027 | AX16: 0.00379671817 | AY16: 0.004655499661 | AZ16: 0.08875471727 | BA16: 0.005557920603 | BB16: 0 | BC16: 0.002244998122 | BD16: 0.001966157624 | BE16: 0.01175321583 | BF16: 4.980224657e-06 | BG16: 0.05387107783 | BH16: 0.1799144973 | BI16: 0.8200855027 | BJ16: 82.00855027 | BK16: =CHOOSE(MODE, I16*1000, 'PFM Efficiency'!BI16) -> 11 | BL16: 87.17221748 | BM16: 0.8717221748 | BN16: 128.4248577 | BP16: 0.00730921201 | BR16: 7.358416027 | BS16: 4.677638298 | BT16: 0.6074539395 | BW16: =IF(MODE=1, BJ16, 'PFM Efficiency'!BH16) -> 82.00855027 | BX16: =IF(MODE=1, BR16, 'PFM Efficiency'!BN16) -> 7.358416027 | BY16: =IF(MODE=1, BS16, 'PFM Efficiency'!BO16) -> 4.677638298 | BZ16: =IF(MODE=1, BT16, 'PFM Efficiency'!BP16) -> 0.6074539395
A17: On-Time | B17: =Vout/Vin/Fsw*1000000 -> 1.100333333 | C17: µs | D17: =B17/1000000 -> 1.100333333e-06 | E17: On Time - fixed | H17: 11 | I17: 0.0121 | J17: 0.04326521062 | K17: 0.04326521062 | L17: 0 | M17: 2.859115776e-06 | N17: 0.155441167 | O17: 141267.3435 | P17: 4.959449109e-06 | Q17: 2.119327735e-06 | R17: 0.0002133260742 | S17: 0.01786629162 | T17: 9.576131289e-05 | U17: 0.0005724380206 | V17: 0.0006681993335 | W17: 0.009120115003 | X17: 1.247647465e-07 | Y17: 1.247647465e-07 | Z17: 0.00650656506 | AA17: 1.270061667e-07 | AB17: 1.270061667e-07 | AC17: 0.009615570636 | AD17: 0.0001849183973 | AE17: 0.001271406092 | AF17: 20 | AG17: 9.942523463 | AH17: 0.0002799674643 | AI17: 0.0003559937056 | AJ17: 0.0008208795673 | AK17: 0.01505806022 | AL17: 0.0002267451777 | AM17: 0.0005297525381 | AN17: 0 | AO17: 0.000113102103 | AP17: 0.0003398472806 | AQ17: 0.002606519395 | AR17: 0.005128141477 | AS17: 0.00180115863 | AT17: 0.008090026955 | AU17: 0.008758478059 | AV17: 0.0399421 | AW17: 0.8201565893 | AX17: 0.003797047277 | AY17: 0.004655903209 | AZ17: 0.08876241071 | BA17: 0.005748750333 | BB17: 0 | BC17: 0.002322397546 | BD17: 0.001966328054 | BE17: 0.01175423462 | BF17: 5.169772582e-06 | BG17: 0.05352132355 | BH17: 0.1798434107 | BI17: 0.8201565893 | BJ17: 82.01565893 | BK17: =CHOOSE(MODE, I17*1000, 'PFM Efficiency'!BI17) -> 12.1 | BL17: 87.20769579 | BM17: 0.8720769579 | BN17: 141.2673435 | BP17: 0.007309845588 | BR17: 8.090026955 | BS17: 5.128141477 | BT17: 0.6681993335 | BW17: =IF(MODE=1, BJ17, 'PFM Efficiency'!BH17) -> 82.01565893 | BX17: =IF(MODE=1, BR17, 'PFM Efficiency'!BN17) -> 8.090026955 | BY17: =IF(MODE=1, BS17, 'PFM Efficiency'!BO17) -> 5.128141477 | BZ17: =IF(MODE=1, BT17, 'PFM Efficiency'!BP17) -> 0.6681993335
A18: Off Time | B18: =L*Iripple*1000000/(Vout+(Rdcr+RdsonBot)*Iout) -> 2.698436508 | C18: µs | D18: =B18/1000000 -> 2.698436508e-06 | E18: Off Time - depends on Vout, L, Iout, DCR, etc. | H18: 12 | I18: 0.0132 | J18: 0.04326521062 | K18: 0.04326521062 | L18: 0 | M18: 2.859115776e-06 | N18: 0.1695721821 | O18: 154109.8293 | P18: 4.959449109e-06 | Q18: 1.529429665e-06 | R18: 0.0002317648082 | S18: 0.018660733 | T18: 0.0001044668868 | U18: 0.0006244778406 | V18: 0.0007289447274 | W18: 0.009525649451 | X18: 1.361069962e-07 | Y18: 1.361069962e-07 | Z18: 0.007053522441 | AA18: 1.492565365e-07 | AB18: 1.492565365e-07 | AC18: 0.01004313598 | AD18: 0.0002017291607 | AE18: 0.001386988464 | AF18: 20 | AG18: 9.942523463 | AH18: 0.0003155318399 | AI18: 0.0003883567698 | AJ18: 0.0009056177704 | AK18: 0.01572763096 | AL18: 0.0002473583756 | AM18: 0.0005779118598 | AN18: 0 | AO18: 0.0001274869616 | AP18: 0.0003748453372 | AQ18: 0.002827784204 | AR18: 0.005578644656 | AS18: 0.001964900323 | AT18: 0.008824008087 | AU18: 0.009553238178 | AV18: 0.0435732 | AW18: 0.8201792082 | AX18: 0.003797151995 | AY18: 0.004656031613 | AZ18: 0.08876485866 | BA18: 0.005939262083 | BB18: 0 | BC18: 0.002399689607 | BD18: 0.001966382283 | BE18: 0.01175455879 | BF18: 5.371403438e-06 | BG18: 0.05322743817 | BH18: 0.1798207918 | BI18: 0.8201792082 | BJ18: 82.01792082 | BK18: =CHOOSE(MODE, I18*1000, 'PFM Efficiency'!BI18) -> 13.2 | BL18: 87.23705199 | BM18: 0.8723705199 | BN18: 154.1098293 | BP18: 0.007310047184 | BR18: 8.824008087 | BS18: 5.578644656 | BT18: 0.7289447274 | BW18: =IF(MODE=1, BJ18, 'PFM Efficiency'!BH18) -> 82.01792082 | BX18: =IF(MODE=1, BR18, 'PFM Efficiency'!BN18) -> 8.824008087 | BY18: =IF(MODE=1, BS18, 'PFM Efficiency'!BO18) -> 5.578644656 | BZ18: =IF(MODE=1, BT18, 'PFM Efficiency'!BP18) -> 0.7289447274
A19: DIL | B19: =(Vin-Vout-(Rdcr+RdsonTop)*Iout)/L*OnTime*1000 -> 42.24279697 | C19: mA | D19: =B19/1000 -> 0.04224279697 | E19: Inductor pk-pk ripple current in CCM | H19: 13 | I19: 0.0143 | J19: 0.04326521062 | K19: 0.04326521062 | L19: 0 | M19: 2.859115776e-06 | N19: 0.1837031973 | O19: 166952.3151 | P19: 4.959449109e-06 | Q19: 1.030285144e-06 | R19: 0.0002502035422 | S19: 0.0194227067 | T19: 0.0001131724607 | U19: 0.0006765176607 | V19: 0.0007896901214 | W19: 0.009914610292 | X19: 1.474492459e-07 | Y19: 1.474492459e-07 | Z19: 0.00761459526 | AA19: 1.739461829e-07 | AB19: 1.739461829e-07 | AC19: 0.01045322735 | AD19: 0.0002185399241 | AE19: 0.001502570835 | AF19: 20 | AG19: 9.942523463 | AH19: 0.0003527816801 | AI19: 0.0004207198339 | AJ19: 0.0009920414382 | AK19: 0.01636983731 | AL19: 0.0002679715736 | AM19: 0.0006260711814 | AN19: 0 | AO19: 0.0001425568404 | AP19: 0.000410528414 | AQ19: 0.003049049012 | AR19: 0.006029147835 | AS19: 0.002128642017 | AT19: 0.009560359705 | AU19: 0.01035037122 | AV19: 0.0472043 | AW19: 0.8201645322 | AX19: 0.00379708405 | AY19: 0.004655948299 | AZ19: 0.08876327033 | BA19: 0.00612950561 | BB19: 0 | BC19: 0.002476894358 | BD19: 0.001966347097 | BE19: 0.01175434845 | BF19: 5.584176262e-06 | BG19: 0.05297656901 | BH19: 0.1798354678 | BI19: 0.8201645322 | BJ19: 82.01645322 | BK19: =CHOOSE(MODE, I19*1000, 'PFM Efficiency'!BI19) -> 14.3 | BL19: 87.26169366 | BM19: 0.8726169366 | BN19: 166.9523151 | BP19: 0.00730991638 | BR19: 9.560359705 | BS19: 6.029147835 | BT19: 0.7896901214 | BW19: =IF(MODE=1, BJ19, 'PFM Efficiency'!BH19) -> 82.01645322 | BX19: =IF(MODE=1, BR19, 'PFM Efficiency'!BN19) -> 9.560359705 | BY19: =IF(MODE=1, BS19, 'PFM Efficiency'!BO19) -> 6.029147835 | BZ19: =IF(MODE=1, BT19, 'PFM Efficiency'!BP19) -> 0.7896901214
A20: CCM Freq | B20: ='Design Regulator'!E12 -> 250 | C20: kHz | D20: =B20*1000 -> 250000 | E20: Frequency in CCM | F20: =0.0000765*Rt/Vin -> 0.526096875 | H20: 14 | I20: 0.0154 | J20: 0.04326521062 | K20: 0.04326521062 | L20: 0 | M20: 2.859115776e-06 | N20: 0.1978342125 | O20: 179794.8008 | P20: 4.959449109e-06 | Q20: 6.024469826e-07 | R20: 0.0002686422762 | S20: 0.0201558953 | T20: 0.0001218780346 | U20: 0.0007285574808 | V20: 0.0008504355154 | W20: 0.01028887735 | X20: 1.587914955e-07 | Y20: 1.587914955e-07 | Z20: 0.008188720328 | AA20: 2.011654218e-07 | AB20: 2.011654218e-07 | AC20: 0.01084782668 | AD20: 0.0002353506875 | AE20: 0.001618153207 | AF20: 20 | AG20: 9.942523463 | AH20: 0.000391716985 | AI20: 0.0004530828981 | AJ20: 0.001080150571 | AK20: 0.01698778301 | AL20: 0.0002885847716 | AM20: 0.0006742305031 | AN20: 0 | AO20: 0.0001583120193 | AP20: 0.0004468967908 | AQ20: 0.00327031382 | AR20: 0.006479651015 | AS20: 0.002292383711 | AT20: 0.01029908209 | AU20: 0.01114987756 | AV20: 0.0508354 | AW20: 0.8201205512 | AX20: 0.003796880433 | AY20: 0.004655698626 | AZ20: 0.08875851044 | BA20: 0.006319516512 | BB20: 0 | BC20: 0.002554026142 | BD20: 0.001966241653 | BE20: 0.01175371813 | BF20: 5.807135687e-06 | BG20: 0.0527595253 | BH20: 0.1798794488 | BI20: 0.8201205512 | BJ20: 82.01205512 | BK20: =CHOOSE(MODE, I20*1000, 'PFM Efficiency'!BI20) -> 15.4 | BL20: 87.28262754 | BM20: 0.8728262754 | BN20: 179.7948008 | BP20: 0.007309524389 | BR20: 10.29908209 | BS20: 6.479651015 | BT20: 0.8504355154 | BW20: =IF(MODE=1, BJ20, 'PFM Efficiency'!BH20) -> 82.01205512 | BX20: =IF(MODE=1, BR20, 'PFM Efficiency'!BN20) -> 10.29908209 | BY20: =IF(MODE=1, BS20, 'PFM Efficiency'!BO20) -> 6.479651015 | BZ20: =IF(MODE=1, BT20, 'PFM Efficiency'!BP20) -> 0.8504355154
A21: Icrit_Skip | B21: =1000*Iripple/2 -> 21.12139848 | C21: mA | D21: =Iripple/2 -> 0.02112139848 | E21: CCM-DCM (critical conduction) boundary | H21: 15 | I21: 0.0165 | J21: 0.04326521062 | K21: 0.04326521062 | L21: 0 | M21: 2.859115776e-06 | N21: 0.2119652277 | O21: 192637.2866 | P21: 4.959449109e-06 | Q21: 2.316539099e-07 | R21: 0.0002870810102 | S21: 0.02086333375 | T21: 0.0001305836085 | U21: 0.0007805973008 | V21: 0.0009111809093 | W21: 0.01064999985 | X21: 1.701337452e-07 | Y21: 1.701337452e-07 | Z21: 0.008774720746 | AA21: 2.309871725e-07 | AB21: 2.309871725e-07 | AC21: 0.01122856738 | AD21: 0.0002521614509 | AE21: 0.001733735579 | AF21: 20 | AG21: 9.942523463 | AH21: 0.0004323377546 | AI21: 0.0004854459622 | AJ21: 0.001169945168 | AK21: 0.01758402598 | AL21: 0.0003091979695 | AM21: 0.0007223898247 | AN21: 0 | AO21: 0.0001747527778 | AP21: 0.0004839507474 | AQ21: 0.003491578628 | AR21: 0.006930154194 | AS21: 0.002456125404 | AT21: 0.01104017551 | AU21: 0.01195175754 | AV21: 0.0544665 | AW21: 0.8200531302 | AX21: 0.003796568296 | AY21: 0.004655315887 | AZ21: 0.08875121372 | BA21: 0.006509320939 | BB21: 0 | BC21: 0.002631095489 | BD21: 0.001966080011 | BE21: 0.01175275187 | BF21: 6.039317088e-06 | BG21: 0.0525695608 | BH21: 0.1799468698 | BI21: 0.8200531302 | BJ21: 82.00531302 | BK21: =CHOOSE(MODE, I21*1000, 'PFM Efficiency'!BI21) -> 16.5 | BL21: 87.30059273 | BM21: 0.8730059273 | BN21: 192.6372866 | BP21: 0.007308923483 | BR21: 11.04017551 | BS21: 6.930154194 | BT21: 0.9111809093 | BW21: =IF(MODE=1, BJ21, 'PFM Efficiency'!BH21) -> 82.00531302 | BX21: =IF(MODE=1, BR21, 'PFM Efficiency'!BN21) -> 11.04017551 | BY21: =IF(MODE=1, BS21, 'PFM Efficiency'!BO21) -> 6.930154194 | BZ21: =IF(MODE=1, BT21, 'PFM Efficiency'!BP21) -> 0.9111809093
A22: Tr | B22: 20 | C22: ns | D22: =B22/1000000000 -> 2e-08 | E22: Switch rise time | H22: 16 | I22: 0.0176 | J22: 0.04326521062 | K22: 0.04326521062 | L22: 0 | M22: 2.859115776e-06 | N22: 0.2260962429 | O22: 205479.7724 | P22: 4.86665908e-06 | Q22: 0 | R22: 0.0003 | S22: 0.02154755844 | T22: 0.0001392891824 | U22: 0.0008326371209 | V22: 0.0009719263033 | W22: 0.01099927255 | X22: 1.814759949e-07 | Y22: 1.814759949e-07 | Z22: 0.009371356318 | AA22: 2.634669577e-07 | AB22: 2.634669577e-07 | AC22: 0.01159681453 | AD22: 0.0002689722143 | AE22: 0.001849317951 | AF22: 20 | AG22: 9.942523463 | AH22: 0.0004746439887 | AI22: 0.0005178090264 | AJ22: 0.001261425229 | AK22: 0.01816070394 | AL22: 0.0003298111675 | AM22: 0.0007705491464 | AN22: 0 | AO22: 0.0001918793958 | AP22: 0.0005216905633 | AQ22: 0.003646606506 | AR22: 0.007314420442 | AS22: 0.002619867098 | AT22: 0.01171740333 | AU22: 0.01268977458 | AV22: 0.0580976 | AW22: 0.8207339281 | AX22: 0.00379972016 | AY22: 0.004659180673 | AZ22: 0.08882489387 | BA22: 0.006705206847 | BB22: 0 | BC22: 0.002710644333 | BD22: 0.001967712226 | BE22: 0.01176250886 | BF22: 6.285625866e-06 | BG22: 0.05151492801 | BH22: 0.1792660719 | BI22: 0.8207339281 | BJ22: 82.07339281 | BK22: =CHOOSE(MODE, I22*1000, 'PFM Efficiency'!BI22) -> 17.6 | BL22: 87.31614411 | BM22: 0.8731614411 | BN22: 205.4797724 | BP22: 0.00731499126 | BR22: 11.71740333 | BS22: 7.314420442 | BT22: 0.9719263033 | BW22: =IF(MODE=1, BJ22, 'PFM Efficiency'!BH22) -> 82.07339281 | BX22: =IF(MODE=1, BR22, 'PFM Efficiency'!BN22) -> 11.71740333 | BY22: =IF(MODE=1, BS22, 'PFM Efficiency'!BO22) -> 7.314420442 | BZ22: =IF(MODE=1, BT22, 'PFM Efficiency'!BP22) -> 0.9719263033
A23: Tf | B23: 20 | C23: ns | D23: =B23/1000000000 -> 2e-08 | E23: Switch fall time | H23: 17 | I23: 0.0187 | J23: 0.04326521062 | K23: 0.04326521062 | L23: 0 | M23: 2.859115776e-06 | N23: 0.240227258 | O23: 218322.2581 | P23: 4.580385017e-06 | Q23: 0 | R23: 0.0003 | S23: 0.02221071485 | T23: 0.0001479947563 | U23: 0.0008846769409 | V23: 0.001032671697 | W23: 0.01133779063 | X23: 1.928182446e-07 | Y23: 1.928182446e-07 | Z23: 0.009977356087 | AA23: 2.986429034e-07 | AB23: 2.986429034e-07 | AC23: 0.0119537228 | AD23: 0.0002857829777 | AE23: 0.001964900323 | AF23: 20 | AG23: 9.942523463 | AH23: 0.0005186356876 | AI23: 0.0005501720905 | AJ23: 0.001354590756 | AK23: 0.01871962514 | AL23: 0.0003504243655 | AM23: 0.000818708468 | AN23: 0 | AO23: 0.0002096921528 | AP23: 0.0005601165183 | AQ23: 0.003646606506 | AR23: 0.007543658813 | AS23: 0.002783608791 | AT23: 0.01224197488 | AU23: 0.01327513804 | AV23: 0.0617287 | AW23: 0.8230072169 | AX23: 0.003810244717 | AY23: 0.004672085784 | AZ23: 0.08907092322 | BA23: 0.006914788645 | BB23: 0 | BC23: 0.002795752302 | BD23: 0.001973162443 | BE23: 0.01179508895 | BF23: 6.552479992e-06 | BG23: 0.04861893206 | BH23: 0.1769927831 | BI23: 0.8230072169 | BJ23: 82.30072169 | BK23: =CHOOSE(MODE, I23*1000, 'PFM Efficiency'!BI23) -> 18.7 | BL23: 87.32970635 | BM23: 0.8732970635 | BN23: 218.3222581 | BP23: 0.007335252501 | BR23: 12.24197488 | BS23: 7.543658813 | BT23: 1.032671697 | BW23: =IF(MODE=1, BJ23, 'PFM Efficiency'!BH23) -> 82.30072169 | BX23: =IF(MODE=1, BR23, 'PFM Efficiency'!BN23) -> 12.24197488 | BY23: =IF(MODE=1, BS23, 'PFM Efficiency'!BO23) -> 7.543658813 | BZ23: =IF(MODE=1, BT23, 'PFM Efficiency'!BP23) -> 1.032671697
H24: 18 | I24: 0.0198 | J24: 0.04326521062 | K24: 0.04326521062 | L24: 0 | M24: 2.859115776e-06 | N24: 0.2543582732 | O24: 231164.7439 | P24: 4.325919182e-06 | Q24: 0 | R24: 0.0003 | S24: 0.02285463703 | T24: 0.0001567003302 | U24: 0.000936716761 | V24: 0.001093417091 | W24: 0.01166649031 | X24: 2.041604943e-07 | Y24: 2.041604943e-07 | Z24: 0.01059143898 | AA24: 3.365357392e-07 | AB24: 3.365357392e-07 | AC24: 0.01230027929 | AD24: 0.0003025937411 | AE24: 0.002080482695 | AF24: 20 | AG24: 9.942523463 | AH24: 0.0005643128511 | AI24: 0.0005825351547 | AJ24: 0.001449441747 | AK24: 0.01926233536 | AL24: 0.0003710375634 | AM24: 0.0008668677897 | AN24: 0 | AO24: 0.0002281913287 | AP24: 0.0005992288922 | AQ24: 0.003646606506 | AR24: 0.007772897184 | AS24: 0.002947350485 | AT24: 0.01276891831 | AU24: 0.0138628761 | AV24: 0.0653598 | AW24: 0.8250137867 | AX24: 0.003819534456 | AY24: 0.004683476774 | AZ24: 0.0892880866 | BA24: 0.007123122809 | BB24: 0 | BC24: 0.002880378952 | BD24: 0.001977973201 | BE24: 0.01182384649 | BF24: 6.825018544e-06 | BG24: 0.04602983243 | BH24: 0.1749862133 | BI24: 0.8250137867 | BJ24: 82.50137867 | BK24: =CHOOSE(MODE, I24*1000, 'PFM Efficiency'!BI24) -> 19.8 | BL24: 87.34161001 | BM24: 0.8734161001 | BN24: 231.1647439 | BP24: 0.007353136543 | BR24: 12.76891831 | BS24: 7.772897184 | BT24: 1.093417091 | BW24: =IF(MODE=1, BJ24, 'PFM Efficiency'!BH24) -> 82.50137867 | BX24: =IF(MODE=1, BR24, 'PFM Efficiency'!BN24) -> 12.76891831 | BY24: =IF(MODE=1, BS24, 'PFM Efficiency'!BO24) -> 7.772897184 | BZ24: =IF(MODE=1, BT24, 'PFM Efficiency'!BP24) -> 1.093417091
A25: Components | B25: Input Value | C25: Units | D25: Std Units | E25: Description | H25: 19 | I25: 0.0209 | J25: 0.04326521062 | K25: 0.04326521062 | L25: 0 | M25: 2.859115776e-06 | N25: 0.2684892884 | O25: 244007.2297 | P25: 4.098239225e-06 | Q25: 0 | R25: 0.0003 | S25: 0.02348090743 | T25: 0.0001654059041 | U25: 0.000988756581 | V25: 0.001154162485 | W25: 0.01198617937 | X25: 2.15502744e-07 | Y25: 2.15502744e-07 | Z25: 0.01121232652 | AA25: 3.771487978e-07 | AB25: 3.771487978e-07 | AC25: 0.01263733565 | AD25: 0.0003194045045 | AE25: 0.002196065067 | AF25: 20 | AG25: 9.942523463 | AH25: 0.0006116754792 | AI25: 0.0006148982188 | AJ25: 0.001545978203 | AK25: 0.0197901683 | AL25: 0.0003916507614 | AM25: 0.0009150271113 | AN25: 0 | AO25: 0.0002473772032 | AP25: 0.0006390279646 | AQ25: 0.003646606506 | AR25: 0.008002135556 | AS25: 0.003111092179 | AT25: 0.0132982339 | AU25: 0.01445298904 | AV25: 0.0689909 | AW25: 0.8267939186 | AX25: 0.003827775864 | AY25: 0.004693582309 | AZ25: 0.08948074346 | BA25: 0.007330380766 | BB25: 0 | BC25: 0.002964593405 | BD25: 0.001982241072 | BE25: 0.0118493588 | BF25: 7.102395977e-06 | BG25: 0.04370130093 | BH25: 0.1732060814 | BI25: 0.8267939186 | BJ25: 82.67939186 | BK25: =CHOOSE(MODE, I25*1000, 'PFM Efficiency'!BI25) -> 20.9 | BL25: 87.3521162 | BM25: 0.873521162 | BN25: 244.0072297 | BP25: 0.007369002403 | BR25: 13.2982339 | BS25: 8.002135556 | BT25: 1.154162485 | BW25: =IF(MODE=1, BJ25, 'PFM Efficiency'!BH25) -> 82.67939186 | BX25: =IF(MODE=1, BR25, 'PFM Efficiency'!BN25) -> 13.2982339 | BY25: =IF(MODE=1, BS25, 'PFM Efficiency'!BO25) -> 8.002135556 | BZ25: =IF(MODE=1, BT25, 'PFM Efficiency'!BP25) -> 1.154162485
A26: L | B26: ='Design Regulator'!E18 -> 220 | C26: µH | D26: =B26/1000000 -> 0.00022 | E26: Filter inductance | H26: 20 | I26: 0.022 | J26: 0.04325510364 | K26: 0.04350529794 | L26: 0.0004961411163 | M26: 2.858037842e-06 | N26: 0.2779762899 | O26: 252629.1638 | P26: 3.958371176e-06 | Q26: 0 | R26: 0.0003 | S26: 0.02515361786 | T26: 0.0001898113474 | U26: 0.001023694046 | V26: 0.001213505393 | W26: 0.0121944451 | X26: 2.23056737e-07 | Y26: 2.23056737e-07 | Z26: 0.01176765785 | AA26: 4.154333139e-07 | AB26: 4.154333139e-07 | AC26: 0.01326185685 | AD26: 0.0003517536942 | AE26: 0.002273662474 | AF26: 20 | AG26: 9.739943851 | AH26: 0.0006632607366 | AI26: 0.0006366254927 | AJ26: 0.001651639923 | AK26: 0.02076817348 | AL26: 0.0004313170297 | AM26: 0.0009473593641 | AN26: 5.327048785e-05 | AO26: 0.0002681862397 | AP26: 0.0007527737573 | AQ26: 0.003646606506 | AR26: 0.008156037079 | AS26: 0.003221021838 | AT26: 0.0137814726 | AU26: 0.01499561648 | AV26: 0.072622 | AW26: 0.8288515816 | AX26: 0.004014645779 | AY26: 0.004922720419 | AZ26: 0.08822943058 | BA26: 0.007569947269 | BB26: 0.0006079883246 | BC26: 0.003060871209 | BD26: 0.002166360545 | BE26: 0.01168365549 | BF26: 7.287233738e-06 | BG26: 0.04161955839 | BH26: 0.1711484184 | BI26: 0.8288515816 | BJ26: 82.88515816 | BK26: =CHOOSE(MODE, I26*1000, 'PFM Efficiency'!BI26) -> 22 | BL26: 87.36143397 | BM26: 0.8736143397 | BN26: 252.6291638 | BP26: 0.007265953107 | BR26: 13.7814726 | BS26: 8.156037079 | BT26: 1.213505393 | BW26: =IF(MODE=1, BJ26, 'PFM Efficiency'!BH26) -> 82.88515816 | BX26: =IF(MODE=1, BR26, 'PFM Efficiency'!BN26) -> 13.7814726 | BY26: =IF(MODE=1, BS26, 'PFM Efficiency'!BO26) -> 8.156037079 | BZ26: =IF(MODE=1, BT26, 'PFM Efficiency'!BP26) -> 1.213505393
A27: Rdcr | B27: ='Design Regulator'!E19 -> 300 | C27: mW | D27: =B27/1000 -> 0.3 | E27: Inductor DCR at 25°C | H27: 21 | I27: 0.0231 | J27: 0.0432424498 | K27: 0.04460537072 | L27: 0.001602468452 | M27: 2.855975166e-06 | N27: 0.2781212167 | O27: 252760.8755 | P27: 3.956308499e-06 | Q27: 0 | R27: 0.0003 | S27: 0.02612115027 | T27: 0.0002046943474 | U27: 0.001024227763 | V27: 0.001228922111 | W27: 0.0121944451 | X27: 2.23056737e-07 | Y27: 2.23056737e-07 | Z27: 0.01218567396 | AA27: 4.454719499e-07 | AB27: 4.454719499e-07 | AC27: 0.01377556302 | AD27: 0.000379532273 | AE27: 0.00227484788 | AF27: 20 | AG27: 9.497664352 | AH27: 0.0006969709724 | AI27: 0.0006369574063 | AJ27: 0.001713460652 | AK27: 0.02157264144 | AL27: 0.0004653788585 | AM27: 0.0009478532831 | AN27: 0.0001200271323 | AO27: 0.0002817470733 | AP27: 0.0008671530641 | AQ27: 0.003646606506 | AR27: 0.008158388133 | AS27: 0.003222701163 | AT27: 0.01396170301 | AU27: 0.01519129365 | AV27: 0.0762531 | AW27: 0.8338739747 | AX27: 0.004150415983 | AY27: 0.005089200551 | AZ27: 0.08458126826 | BA27: 0.007621801016 | BB27: 0.001312569612 | BC27: 0.003081075417 | BD27: 0.002238457047 | BE27: 0.01120055284 | BF27: 7.310767344e-06 | BG27: 0.03987785757 | BH27: 0.1661260253 | BI27: 0.8338739747 | BJ27: 83.38739747 | BK27: =CHOOSE(MODE, I27*1000, 'PFM Efficiency'!BI27) -> 23.1 | BL27: 87.36973261 | BM27: 0.8736973261 | BN27: 252.7608755 | BP27: 0.00696551621 | BR27: 13.96170301 | BS27: 8.158388133 | BT27: 1.228922111 | BW27: =IF(MODE=1, BJ27, 'PFM Efficiency'!BH27) -> 83.38739747 | BX27: =IF(MODE=1, BR27, 'PFM Efficiency'!BN27) -> 13.96170301 | BY27: =IF(MODE=1, BS27, 'PFM Efficiency'!BO27) -> 8.158388133 | BZ27: =IF(MODE=1, BT27, 'PFM Efficiency'!BP27) -> 1.228922111
A28: Kcore | B28: 5e-13 | D28: =B28 -> 5e-13 | E28: Core loss constant - consult inductor vendor | H28: 22 | I28: 0.0242 | J28: 0.04322979597 | K28: 0.0457054435 | L28: 0.002708795787 | M28: 2.85391426e-06 | N28: 0.2782661701 | O28: 252892.6114 | P28: 3.954247593e-06 | Q28: 0 | R28: 0.0003 | S28: 0.02709879133 | T28: 0.0002203033474 | U28: 0.001024761578 | V28: 0.001245064926 | W28: 0.0121944451 | X28: 2.23056737e-07 | Y28: 2.23056737e-07 | Z28: 0.0126093583 | AA28: 4.769877501e-07 | AB28: 4.769877501e-07 | AC28: 0.01429486723 | AD28: 0.0004086864583 | AE28: 0.002276033503 | AF28: 20 | AG28: 9.267145632 | AH28: 0.00073071605 | AI28: 0.0006372893808 | AJ28: 0.001776691889 | AK28: 0.02238587597 | AL28: 0.0005011274429 | AM28: 0.0009483472929 | AN28: 0.0001868533384 | AO28: 0.0002953255944 | AP28: 0.0009833063757 | AQ28: 0.003646606506 | AR28: 0.00816073962 | AS28: 0.003224380796 | AT28: 0.01414511868 | AU28: 0.01539088365 | AV28: 0.0798842 | AW28: 0.8384584609 | AX28: 0.004289541847 | AY28: 0.00525979536 | AZ28: 0.08122285086 | BA28: 0.007669539842 | BB28: 0.001961198366 | BC28: 0.003099714879 | BD28: 0.002312287105 | BE28: 0.01075581925 | BF28: 7.34761346e-06 | BG28: 0.03827450332 | BH28: 0.1615415391 | BI28: 0.8384584609 | BJ28: 83.84584609 | BK28: =CHOOSE(MODE, I28*1000, 'PFM Efficiency'!BI28) -> 24.2 | BL28: 87.37715072 | BM28: 0.8737715072 | BN28: 252.8926114 | BP28: 0.006688940659 | BR28: 14.14511868 | BS28: 8.16073962 | BT28: 1.245064926 | BW28: =IF(MODE=1, BJ28, 'PFM Efficiency'!BH28) -> 83.84584609 | BX28: =IF(MODE=1, BR28, 'PFM Efficiency'!BN28) -> 14.14511868 | BY28: =IF(MODE=1, BS28, 'PFM Efficiency'!BO28) -> 8.16073962 | BZ28: =IF(MODE=1, BT28, 'PFM Efficiency'!BP28) -> 1.245064926
A29: Cin | B29: ='Design Regulator'!E30 -> 4.7 | C29: µF | D29: =B29/1000000 -> 4.7e-06 | E29: Input capacitance | H29: 23 | I29: 0.0253 | J29: 0.04321714214 | K29: 0.04680551628 | L29: 0.003815123122 | M29: 2.851855121e-06 | N29: 0.2784111502 | O29: 253024.3716 | P29: 3.952188455e-06 | Q29: 0 | R29: 0.0003 | S29: 0.02808548542 | T29: 0.0002366383474 | U29: 0.001025295492 | V29: 0.001261933839 | W29: 0.0121944451 | X29: 2.23056737e-07 | Y29: 2.23056737e-07 | Z29: 0.01303817601 | AA29: 5.099821007e-07 | AB29: 5.099821007e-07 | AC29: 0.01481921663 | AD29: 0.0004392183632 | AE29: 0.002277219344 | AF29: 20 | AG29: 9.04755164 | AH29: 0.000764495979 | AI29: 0.0006376214163 | AJ29: 0.001841335759 | AK29: 0.02320701131 | AL29: 0.0005385653739 | AM29: 0.0009488413934 | AN29: 0.0002537491254 | AO29: 0.0003089218125 | AP29: 0.001101236312 | AQ29: 0.003646606506 | AR29: 0.008163091538 | AS29: 0.003226060737 | AT29: 0.01433172435 | AU29: 0.01559439122 | AV29: 0.0835153 | AW29: 0.8426552335 | AX29: 0.004431638902 | AY29: 0.005434033415 | AZ29: 0.0781209756 | BA29: 0.007713634959 | BB29: 0.002560285702 | BC29: 0.003116968772 | BD29: 0.00238764085 | BE29: 0.01034505788 | BF29: 7.39623773e-06 | BG29: 0.03679364208 | BH29: 0.1573447665 | BI29: 0.8426552335 | BJ29: 84.26552335 | BK29: =CHOOSE(MODE, I29*1000, 'PFM Efficiency'!BI29) -> 25.3 | BL29: 87.38380281 | BM29: 0.8738380281 | BN29: 253.0243716 | BP29: 0.006433492108 | BR29: 14.33172435 | BS29: 8.163091538 | BT29: 1.261933839 | BW29: =IF(MODE=1, BJ29, 'PFM Efficiency'!BH29) -> 84.26552335 | BX29: =IF(MODE=1, BR29, 'PFM Efficiency'!BN29) -> 14.33172435 | BY29: =IF(MODE=1, BS29, 'PFM Efficiency'!BO29) -> 8.163091538 | BZ29: =IF(MODE=1, BT29, 'PFM Efficiency'!BP29) -> 1.261933839
A30: RCinESR | B30: ='Design Regulator'!E31 -> 3 | C30: mW | D30: =B30/1000 -> 0.003 | E30: Input capacitor ESR | H30: 24 | I30: 0.0264 | J30: 0.0432044883 | K30: 0.04790558906 | L30: 0.004921450457 | M30: 2.849797749e-06 | N30: 0.2785561569 | O30: 253156.1559 | P30: 3.950131082e-06 | Q30: 0 | R30: 0.0003 | S30: 0.02908031106 | T30: 0.0002536993474 | U30: 0.001025829503 | V30: 0.00127952885 | W30: 0.0121944451 | X30: 2.23056737e-07 | Y30: 2.23056737e-07 | Z30: 0.01347165403 | AA30: 5.444563868e-07 | AB30: 5.444563868e-07 | AC30: 0.01534812857 | AD30: 0.0004711301014 | AE30: 0.002278405403 | AF30: 20 | AG30: 8.838123738 | AH30: 0.000798310769 | AI30: 0.0006379535129 | AJ30: 0.001907394383 | AK30: 0.02403529162 | AL30: 0.0005776952434 | AM30: 0.0009493355846 | AN30: 0.0003207145123 | AO30: 0.0003225357373 | AP30: 0.001220945493 | AQ30: 0.003646606506 | AR30: 0.008165443888 | AS30: 0.003227740988 | AT30: 0.01452152475 | AU30: 0.01580182112 | AV30: 0.0871464 | AW30: 0.846507099 | AX30: 0.004576379235 | AY30: 0.005611512634 | AZ30: 0.07524732615 | BA30: 0.007754488231 | BB30: 0.003115299214 | BC30: 0.003132989903 | BD30: 0.002464339302 | BE30: 0.009964518978 | BF30: 7.455331578e-06 | BG30: 0.03542175344 | BH30: 0.153492901 | BI30: 0.846507099 | BJ30: 84.6507099 | BK30: =CHOOSE(MODE, I30*1000, 'PFM Efficiency'!BI30) -> 26.4 | BL30: 87.38978439 | BM30: 0.8738978439 | BN30: 253.1561559 | BP30: 0.006196838624 | BR30: 14.52152475 | BS30: 8.165443888 | BT30: 1.27952885 | BW30: =IF(MODE=1, BJ30, 'PFM Efficiency'!BH30) -> 84.6507099 | BX30: =IF(MODE=1, BR30, 'PFM Efficiency'!BN30) -> 14.52152475 | BY30: =IF(MODE=1, BS30, 'PFM Efficiency'!BO30) -> 8.165443888 | BZ30: =IF(MODE=1, BT30, 'PFM Efficiency'!BP30) -> 1.27952885
A31: Cout | B31: ='Design Regulator'!E25 -> 100 | C31: µF | D31: =B31/1000000 -> 0.0001 | E31: Output capacitance | H31: 25 | I31: 0.0275 | J31: 0.04319183447 | K31: 0.04900566184 | L31: 0.006027777793 | M31: 2.847742139e-06 | N31: 0.2787011902 | O31: 253287.9645 | P31: 3.948075473e-06 | Q31: 0 | R31: 0.0003 | S31: 0.03008246152 | T31: 0.0002714863474 | U31: 0.001026363613 | V31: 0.00129784996 | W31: 0.0121944451 | X31: 2.23056737e-07 | Y31: 2.23056737e-07 | Z31: 0.01390937324 | AA31: 5.804119921e-07 | AB31: 5.804119921e-07 | AC31: 0.01588118049 | AD31: 0.0005044237877 | AE31: 0.00227959168 | AF31: 20 | AG31: 8.638171938 | AH31: 0.0008321604297 | AI31: 0.0006382856704 | AJ31: 0.001974869888 | AK31: 0.02487005517 | AL31: 0.0006185196444 | AM31: 0.0009498298667 | AN31: 0.0003877495185 | AO31: 0.0003361673783 | AP31: 0.001342436541 | AQ31: 0.003646606506 | AR31: 0.008167796671 | AS31: 0.003229421547 | AT31: 0.01471452465 | AU31: 0.01601317808 | AV31: 0.0907775 | AW31: 0.8500507875 | AX31: 0.004723481457 | AY31: 0.005791887977 | AZ31: 0.07257760558 | BA31: 0.007792444478 | BB31: 0.003630930391 | BC31: 0.00314790939 | BD31: 0.002542228894 | BE31: 0.00961098507 | BF31: 7.523772146e-06 | BG31: 0.03414723618 | BH31: 0.1499492125 | BI31: 0.8500507875 | BJ31: 85.00507875 | BK31: =CHOOSE(MODE, I31*1000, 'PFM Efficiency'!BI31) -> 27.5 | BL31: 87.39517568 | BM31: 0.8739517568 | BN31: 253.2879645 | BP31: 0.005976979283 | BR31: 14.71452465 | BS31: 8.167796671 | BT31: 1.29784996 | BW31: =IF(MODE=1, BJ31, 'PFM Efficiency'!BH31) -> 85.00507875 | BX31: =IF(MODE=1, BR31, 'PFM Efficiency'!BN31) -> 14.71452465 | BY31: =IF(MODE=1, BS31, 'PFM Efficiency'!BO31) -> 8.167796671 | BZ31: =IF(MODE=1, BT31, 'PFM Efficiency'!BP31) -> 1.29784996
A32: RCoutESR | B32: ='Design Regulator'!E27 -> 1.5 | C32: mW | D32: =B32/1000 -> 0.0015 | E32: Output capacitor ESR | H32: 26 | I32: 0.0286 | J32: 0.04317918064 | K32: 0.05010573463 | L32: 0.007134105128 | M32: 2.845688291e-06 | N32: 0.2788462502 | O32: 253419.7972 | P32: 3.946021625e-06 | Q32: 0 | R32: 0.0003 | S32: 0.03109122853 | T32: 0.0002899993474 | U32: 0.00102689782 | V32: 0.001316897168 | W32: 0.0121944451 | X32: 2.23056737e-07 | Y32: 2.23056737e-07 | Z32: 0.01435096163 | AA32: 6.17850299e-07 | AB32: 6.17850299e-07 | AC32: 0.01641800136 | AD32: 0.0005391015373 | AE32: 0.002280778175 | AF32: 20 | AG32: 8.447067315 | AH32: 0.0008660449706 | AI32: 0.000638617889 | AJ32: 0.002043764397 | AK32: 0.02571072093 | AL32: 0.0006610411707 | AM32: 0.0009503242396 | AN32: 0.0004548541631 | AO32: 0.0003498167451 | AP32: 0.001465712079 | AQ32: 0.003646606506 | AR32: 0.008170149886 | AS32: 0.003231102415 | AT32: 0.01491072878 | AU32: 0.01622846685 | AV32: 0.0944086 | AW32: 0.8533179945 | AX32: 0.004872702726 | AY32: 0.005974861676 | AZ32: 0.07009084764 | BA32: 0.007827801254 | BB32: 0.004111227603 | BC32: 0.003161840377 | BD32: 0.002621177112 | BE32: 0.009281679725 | BF32: 7.60059047e-06 | BG32: 0.03296007938 | BH32: 0.1466820055 | BI32: 0.8533179945 | BJ32: 85.33179945 | BK32: =CHOOSE(MODE, I32*1000, 'PFM Efficiency'!BI32) -> 28.6 | BL32: 87.4000446 | BM32: 0.874000446 | BN32: 253.4197972 | BP32: 0.005772187452 | BR32: 14.91072878 | BS32: 8.170149886 | BT32: 1.316897168 | BW32: =IF(MODE=1, BJ32, 'PFM Efficiency'!BH32) -> 85.33179945 | BX32: =IF(MODE=1, BR32, 'PFM Efficiency'!BN32) -> 14.91072878 | BY32: =IF(MODE=1, BS32, 'PFM Efficiency'!BO32) -> 8.170149886 | BZ32: =IF(MODE=1, BT32, 'PFM Efficiency'!BP32) -> 1.316897168
A33: Controller | C33: Units | D33: Std Units | E33: Description | H33: 27 | I33: 0.0297 | J33: 0.0431665268 | K33: 0.05120580741 | L33: 0.008240432463 | M33: 2.843636202e-06 | N33: 0.2789913369 | O33: 253551.6542 | P33: 3.943969535e-06 | Q33: 0 | R33: 0.0003 | S33: 0.0321059884 | T33: 0.0003092383474 | U33: 0.001027432126 | V33: 0.001336670473 | W33: 0.0121944451 | X33: 2.23056737e-07 | Y33: 2.23056737e-07 | Z33: 0.01479608832 | AA33: 6.567726884e-07 | AB33: 6.567726884e-07 | AC33: 0.01695826445 | AD33: 0.0005751654664 | AE33: 0.002281964888 | AF33: 20 | AG33: 8.264235391 | AH33: 0.0008999644013 | AI33: 0.0006389501687 | AJ33: 0.002114080036 | AK33: 0.02655677724 | AL33: 0.0007052624171 | AM33: 0.0009508187034 | AN33: 0.0005220284653 | AO33: 0.0003634838474 | AP33: 0.00159077473 | AQ33: 0.003646606506 | AR33: 0.008172503534 | AS33: 0.003232783592 | AT33: 0.01511014189 | AU33: 0.01644769219 | AV33: 0.0980397 | AW33: 0.8563362142 | AX33: 0.005023832366 | AY33: 0.006160175401 | AZ33: 0.06776886495 | BA33: 0.007860816672 | BB33: 0.004559702647 | BC33: 0.003174881011 | BD33: 0.002701069013 | BE33: 0.008974194506 | BF33: 7.684945989e-06 | BG33: 0.03185159899 | BH33: 0.1436637858 | BI33: 0.8563362142 | BJ33: 85.63362142 | BK33: =CHOOSE(MODE, I33*1000, 'PFM Efficiency'!BI33) -> 29.7 | BL33: 87.40444902 | BM33: 0.8740444902 | BN33: 253.5516542 | BP33: 0.005580965349 | BR33: 15.11014189 | BS33: 8.172503534 | BT33: 1.336670473 | BW33: =IF(MODE=1, BJ33, 'PFM Efficiency'!BH33) -> 85.63362142 | BX33: =IF(MODE=1, BR33, 'PFM Efficiency'!BN33) -> 15.11014189 | BY33: =IF(MODE=1, BS33, 'PFM Efficiency'!BO33) -> 8.172503534 | BZ33: =IF(MODE=1, BT33, 'PFM Efficiency'!BP33) -> 1.336670473
A34: Deadtime1 | B34: 30 | C34: ns | D34: =B34/1000000000 -> 3e-08 | E34: PMOS off to NMOS on deadtime | H34: 28 | I34: 0.0308 | J34: 0.04315387297 | K34: 0.05230588019 | L34: 0.009346759799 | M34: 2.841585869e-06 | N34: 0.2791364502 | O34: 253683.5355 | P34: 3.941919203e-06 | Q34: 0 | R34: 0.0003 | S34: 0.03312619041 | T34: 0.0003292033474 | U34: 0.00102796653 | V34: 0.001357169877 | W34: 0.0121944451 | X34: 2.23056737e-07 | Y34: 2.23056737e-07 | Z34: 0.01524445845 | AA34: 6.971805401e-07 | AB34: 6.971805401e-07 | AC34: 0.01750168123 | AD34: 0.000612617692 | AE34: 0.002283151819 | AF34: 20 | AG34: 8.089150375 | AH34: 0.0009339187316 | AI34: 0.0006392825094 | AJ34: 0.002185818933 | AK34: 0.02740777224 | AL34: 0.0007511859794 | AM34: 0.0009513132581 | AN34: 0.0005892724442 | AO34: 0.0003771686948 | AP34: 0.001717627118 | AQ34: 0.003646606506 | AR34: 0.008174857614 | AS34: 0.003234465078 | AT34: 0.01531276874 | AU34: 0.01667085886 | AV34: 0.1016708 | AW34: 0.8591294138 | AX34: 0.005176686704 | AY34: 0.006347603935 | AZ34: 0.06559580338 | BA34: 0.007891715737 | BB34: 0.0049794168 | BC34: 0.003187116849 | BD34: 0.002781804401 | BE34: 0.008686429952 | BF34: 7.776105946e-06 | BG34: 0.03081422502 | BH34: 0.1408705862 | BI34: 0.8591294138 | BJ34: 85.91294138 | BK34: =CHOOSE(MODE, I34*1000, 'PFM Efficiency'!BI34) -> 30.8 | BL34: 87.40843857 | BM34: 0.8740843857 | BN34: 253.6835355 | BP34: 0.005402007337 | BR34: 15.31276874 | BS34: 8.174857614 | BT34: 1.357169877 | BW34: =IF(MODE=1, BJ34, 'PFM Efficiency'!BH34) -> 85.91294138 | BX34: =IF(MODE=1, BR34, 'PFM Efficiency'!BN34) -> 15.31276874 | BY34: =IF(MODE=1, BS34, 'PFM Efficiency'!BO34) -> 8.174857614 | BZ34: =IF(MODE=1, BT34, 'PFM Efficiency'!BP34) -> 1.357169877
A35: Deadtime2 | B35: 30 | C35: ns | D35: =B35/1000000000 -> 3e-08 | E35: NMOS off to PMOS on deadtime | H35: 29 | I35: 0.0319 | J35: 0.04314121914 | K35: 0.05340595297 | L35: 0.01045308713 | M35: 2.839537291e-06 | N35: 0.2792815902 | O35: 253815.441 | P35: 3.939870625e-06 | Q35: 0 | R35: 0.0003 | S35: 0.03415134684 | T35: 0.0003498943474 | U35: 0.001028501032 | V35: 0.00137839538 | W35: 0.0121944451 | X35: 2.23056737e-07 | Y35: 2.23056737e-07 | Z35: 0.0156958087 | AA35: 7.390752323e-07 | AB35: 7.390752323e-07 | AC35: 0.01804799617 | AD35: 0.0006514603317 | AE35: 0.002284338969 | AF35: 20 | AG35: 7.921330104 | AH35: 0.0009679079709 | AI35: 0.0006396149113 | AJ35: 0.002258983214 | AK35: 0.02826330579 | AL35: 0.0007988144543 | AM35: 0.0009518079037 | AN35: 0.0006565861192 | AO35: 0.0003908712969 | AP35: 0.00184627187 | AQ35: 0.003646606506 | AR35: 0.008177212127 | AS35: 0.003236146873 | AT35: 0.01551861408 | AU35: 0.0168979716 | AV35: 0.1053019 | AW35: 0.8617185814 | AX35: 0.005331104879 | AY35: 0.00653695003 | AZ35: 0.0635577795 | BA35: 0.007920695482 | BB35: 0.005373050811 | BC35: 0.003198622812 | BD35: 0.002863295541 | BE35: 0.00841654757 | BF35: 7.873428644e-06 | BG35: 0.02984132846 | BH35: 0.1382814186 | BI35: 0.8617185814 | BJ35: 86.17185814 | BK35: =CHOOSE(MODE, I35*1000, 'PFM Efficiency'!BI35) -> 31.9 | BL35: 87.41205602 | BM35: 0.8741205602 | BN35: 253.815441 | BP35: 0.005234170077 | BR35: 15.51861408 | BS35: 8.177212127 | BT35: 1.37839538 | BW35: =IF(MODE=1, BJ35, 'PFM Efficiency'!BH35) -> 86.17185814 | BX35: =IF(MODE=1, BR35, 'PFM Efficiency'!BN35) -> 15.51861408 | BY35: =IF(MODE=1, BS35, 'PFM Efficiency'!BO35) -> 8.177212127 | BZ35: =IF(MODE=1, BT35, 'PFM Efficiency'!BP35) -> 1.37839538
A36: Sleep delay | B36: 1 | C36: µs | D36: =B36/1000000 -> 1e-06 | E36: Delay time to enter sleep mode | H36: 30 | I36: 0.033 | J36: 0.0431285653 | K36: 0.05450602575 | L36: 0.01155941447 | M36: 2.837490465e-06 | N36: 0.2794267569 | O36: 253947.3707 | P36: 3.937823799e-06 | Q36: 0 | R36: 0.0003 | S36: 0.03518102459 | T36: 0.0003713113474 | U36: 0.001029035633 | V36: 0.00140034698 | W36: 0.0121944451 | X36: 2.23056737e-07 | Y36: 2.23056737e-07 | Z36: 0.01614990343 | AA36: 7.824581422e-07 | AB36: 7.824581422e-07 | AC36: 0.01859698234 | AD36: 0.0006916955041 | AE36: 0.002285526336 | AF36: 20 | AG36: 7.76033162 | AH36: 0.001001932129 | AI36: 0.0006399473742 | AJ36: 0.002333575007 | AK36: 0.0291230225 | AL36: 0.0008481504395 | AM36: 0.0009523026402 | AN36: 0.0007239695094 | AO36: 0.0004045916634 | AP36: 0.001976711612 | AQ36: 0.003646606506 | AR36: 0.008179567073 | AS36: 0.003237828977 | AT36: 0.01572768267 | AU36: 0.01712903516 | AV36: 0.108933 | AW36: 0.8641221749 | AX36: 0.005486945401 | AY36: 0.006728040194 | AZ36: 0.06164258362 | BA36: 0.007947929189 | BB36: 0.005742962253 | BC36: 0.003209464791 | BD36: 0.002945465278 | BE36: 0.008162930509 | BF36: 7.976349722e-06 | BG36: 0.02892707944 | BH36: 0.1358778251 | BI36: 0.8641221749 | BJ36: 86.41221749 | BK36: =CHOOSE(MODE, I36*1000, 'PFM Efficiency'!BI36) -> 33 | BL36: 87.41533847 | BM36: 0.8741533847 | BN36: 253.9473707 | BP36: 0.005076448063 | BR36: 15.72768267 | BS36: 8.179567073 | BT36: 1.40034698 | BW36: =IF(MODE=1, BJ36, 'PFM Efficiency'!BH36) -> 86.41221749 | BX36: =IF(MODE=1, BR36, 'PFM Efficiency'!BN36) -> 15.72768267 | BY36: =IF(MODE=1, BS36, 'PFM Efficiency'!BO36) -> 8.179567073 | BZ36: =IF(MODE=1, BT36, 'PFM Efficiency'!BP36) -> 1.40034698
A37: IQ(active) | B37: 300 | C37: µA | D37: =B37/1000000 -> 0.0003 | E37: LM5165 quiescent current - active state | H37: 31 | I37: 0.0341 | J37: 0.04311591147 | K37: 0.05560609853 | L37: 0.0126657418 | M37: 2.835445389e-06 | N37: 0.2795719503 | O37: 254079.3247 | P37: 3.935778722e-06 | Q37: 0 | R37: 0.0003 | S37: 0.036214838 | T37: 0.0003934543474 | U37: 0.001029570332 | V37: 0.001423024679 | W37: 0.0121944451 | X37: 2.23056737e-07 | Y37: 2.23056737e-07 | Z37: 0.0166065313 | AA37: 8.273306454e-07 | AB37: 8.273306454e-07 | AC37: 0.01914843764 | AD37: 0.0007333253283 | AE37: 0.002286713922 | AF37: 20 | AG37: 7.605747256 | AH37: 0.001035991215 | AI37: 0.0006402798983 | AJ37: 0.002409596442 | AK37: 0.0299866059 | AL37: 0.0008991965336 | AM37: 0.0009527974677 | AN37: 0.0007914226341 | AO37: 0.0004183298038 | AP37: 0.002108948971 | AQ37: 0.003646606506 | AR37: 0.008181922452 | AS37: 0.00323951139 | AT37: 0.01593997926 | AU37: 0.01736405432 | AV37: 0.1125641 | AW37: 0.8663564921 | AX37: 0.005644083318 | AY37: 0.006920721211 | AZ37: 0.05983943493 | BA37: 0.00797356986 | BB37: 0.006091232791 | BC37: 0.003219700965 | BD37: 0.00302824549 | BE37: 0.007924151136 | BF37: 8.084370842e-06 | BG37: 0.02806633039 | BH37: 0.1336435079 | BI37: 0.8663564921 | BJ37: 86.63564921 | BK37: =CHOOSE(MODE, I37*1000, 'PFM Efficiency'!BI37) -> 34.1 | BL37: 87.41831824 | BM37: 0.8741831824 | BN37: 254.0793247 | BP37: 0.004927953465 | BR37: 15.93997926 | BS37: 8.181922452 | BT37: 1.423024679 | BW37: =IF(MODE=1, BJ37, 'PFM Efficiency'!BH37) -> 86.63564921 | BX37: =IF(MODE=1, BR37, 'PFM Efficiency'!BN37) -> 15.93997926 | BY37: =IF(MODE=1, BS37, 'PFM Efficiency'!BO37) -> 8.181922452 | BZ37: =IF(MODE=1, BT37, 'PFM Efficiency'!BP37) -> 1.423024679
A38: IQ(sleep) | B38: 10.5 | C38: µA | D38: =B38/1000000 -> 1.05e-05 | E38: LM5165 quiescent current - sleep state | H38: 32 | I38: =IF(PLOT_TYPE=1, H38/100*Iout_maxload_COT, min_I*EXP(H38*rr/100)) -> 0.0352 | J38: =IF(I38<Icrit, (Vin-(Rdcr+RdsonTop)*Iripple/2-Vout)/L*OnTime, (Vin-(Rdcr+RdsonTop)*I38-Vout)/L*OnTime) -> 0.04310325764 | K38: =IF(I38<Icrit, (Vin-(Rdcr+RdsonTop)*Iripple/2-Vout)/L*OnTime, I38+((Vin-(Rdcr+RdsonTop)*J38-Vout)/L*OnTime)/2) -> 0.05670617132 | L38: =IF(I38<Icrit, 0, I38-((Vin-(Rdcr+RdsonTop)*K38-Vout)/L*OnTime)/2) -> 0.01377206914 | M38: =IF(I38<Icrit, L*J38/(Vout+J38/2*(RdsonBot+Rdcr)), L*J38/(Vout+I38*(RdsonBot+Rdcr))) -> 2.833402061e-06 | N38: 0.2797171704 | O38: =IF(I38<Icrit,I38/((OnTime+M38)*J38/2),1/(OnTime+M38)) -> 254211.303 | P38: 3.933735394e-06 | Q38: 0 | R38: 0.0003 | S38: 0.03725244276 | T38: 0.0004163233474 | U38: 0.001030105129 | V38: 0.001446428476 | W38: 0.0121944451 | X38: 2.23056737e-07 | Y38: 2.23056737e-07 | Z38: 0.0170655024 | AA38: 8.736941161e-07 | AB38: 8.736941161e-07 | AC38: 0.01970218166 | AD38: 0.0007763519246 | AE38: 0.002287901727 | AF38: 20 | AG38: =IF(I38<Icrit, Csw*Vin/Iripple*1000000000, Csw*Vin/(I38+Iripple/2)*1000000000) -> 7.457201193 | AH38: =IF(I38<Icrit, Vin*(I38+Iripple/2)*AG38/1000000000/2*O38, Vin*(I38-Iripple/2)*AF38/1000000000/2*O38+Vin*(I38+Iripple/2)*AG38/1000000000/2*O38) -> 0.00107008524 | AI38: =IF(I38<Icrit, Csw*(Vin)^2*O38/2, Csw*Vin^2*O38/2) -> 0.0006406124835 | AJ38: =AD38+AH38+AI38 -> 0.002487049648 | AK38: =IF(I38<Icrit,Iripple*SQRT((OffTime)*O38/3), SQRT(OffTime*O38*(I38^2+Iripple^2/12))) -> 0.03085377345 | AL38: 0.0009519553361 | AM38: =QgBot*O38*Vdd -> 0.0009532923861 | AN38: =IF(I38<Icrit, Vin*Idss*N38, QrrBot*(I38-Iripple/2)/0.1*O38*Vin+Vin*Idss*N38) -> 0.0008589455124 | AO38: =IF(I38<Icrit, dead1*O38*(I38+Iripple/2)*((I38+Iripple/2)*BDserR+VSD), dead1*O38*(I38+Iripple/2)*((I38+Iripple/2)*BDserR+VSD)+dead2*O38*(I38-Iripple/2)*((I38-Iripple/2)*BDserR+VSD)) -> 0.0004320857279 | AP38: 0.002242986576 | AQ38: =Vin*R38+Vout*Ifb/0.7 -> 0.003646606506 | AR38: =(Vin-Vdd)*(O38*QgBot+O38*QgTop)+AQ38 -> 0.008184278264 | AS38: =AE38+AM38 -> 0.003241194113 | AT38: 0.0161555086 | AU38: =SUM(V38,Y38,AB38,AT38) -> 0.01760303383 | AV38: =Vout*I38 -> 0.1161952 | AW38: 0.8684359776 | AX38: =AD38/($AV38+$AU38) -> 0.005802407867 | AY38: 0.007114857266 | AZ38: =Vin*O38*(QgBot+QgTop)/($AV38+$AU38) -> 0.05813877843 | BA38: 0.007997753102 | BB38: 0.006419707405 | BC38: 0.003229382896 | BD38: =T38/($AV38+$AU38) -> 0.003111575807 | BE38: =U38/($AV38+$AU38) -> 0.007698944144 | BF38: =(Y38+AB38)/($AV38+$AU38) -> 8.197050303e-06 | BG38: 0.027254519 | BH38: 0.1315640224 | BI38: 0.8684359776 | BJ38: 86.84359776 | BK38: =CHOOSE(MODE, I38*1000, 'PFM Efficiency'!BI38) -> 35.2 | BL38: 87.4210236 | BM38: 0.874210236 | BN38: 254.211303 | BP38: 0.0047878994 | BR38: 16.1555086 | BS38: 8.184278264 | BT38: =1000*V38 -> 1.446428476 | BW38: =IF(MODE=1, BJ38, 'PFM Efficiency'!BH38) -> 86.84359776 | BX38: =IF(MODE=1, BR38, 'PFM Efficiency'!BN38) -> 16.1555086 | BY38: =IF(MODE=1, BS38, 'PFM Efficiency'!BO38) -> 8.184278264 | BZ38: =IF(MODE=1, BT38, 'PFM Efficiency'!BP38) -> 1.446428476
A39: High-side P-ch MOSFET | C39: Units | D39: Std Units | E39: Description | H39: 33 | I39: 0.0363 | J39: 0.0430906038 | K39: 0.0578062441 | L39: 0.01487839648 | M39: 2.831360477e-06 | N39: 0.2798624171 | O39: 254343.3055 | P39: =IF(1/O39-OnTime-M39>Tsleep, OnTime+M39+Tsleep, 1/O39) -> 3.931693811e-06 | Q39: =IF(1/O39-OnTime-M39>Tsleep, 1/O39-OnTime-M39-Tsleep, 0) -> 0 | R39: =P39*O39*Iq_active+Q39*O39*Iq_sleep -> 0.0003 | S39: =IF(I39<Icrit,Iripple*SQRT((OnTime+OffTime)*O39/3), SQRT(I39^2+Iripple^2/12)) -> 0.03829353067 | T39: =S39^2*Rdcr -> 0.0004399183474 | U39: =(O39/Fsw)*Fsw^2.5*(Iripple/2)^2.5*k_core -> 0.001030640024 | V39: 0.001470558372 | W39: =Iripple/SQRT(12)*SQRT((OnTime+M39)*O39) -> 0.0121944451 | X39: 2.23056737e-07 | Y39: 2.23056737e-07 | Z39: =SQRT($N39)*SQRT($I39^2*(1-N39)+(Iripple^2)/12) -> 0.01752664569 | AA39: 9.215499275e-07 | AB39: 9.215499275e-07 | AC39: =IF(I39<Icrit,Iripple*SQRT((OnTime)*O39/3), SQRT(OnTime*O39*(I39^2+Iripple^2/12))) -> 0.02025805289 | AD39: =RdsonTop*AC39^2 -> 0.0008207774137 | AE39: =QgTop*O39*Vdd -> 0.002289089749 | AF39: 20 | AG39: 7.314346412 | AH39: 0.001104214212 | AI39: 0.0006409451298 | AJ39: 0.002565936755 | AK39: 0.03172427222 | AL39: =RdsonBot*AK39^2 -> 0.001006429448 | AM39: 0.0009537873956 | AN39: 0.0009265381637 | AO39: 0.0004458594451 | AP39: 0.002378827057 | AQ39: 0.003646606506 | AR39: 0.008186634509 | AS39: 0.003242877145 | AT39: 0.01637427547 | AU39: 0.01784597844 | AV39: 0.1198263 | AW39: 0.8703734794 | AX39: 0.005961820513 | AY39: 0.007310327533 | AZ39: 0.05653211551 | BA39: 0.008020599529 | BB39: 0.006730027092 | BC39: 0.003238556448 | BD39: 0.003195402534 | BE39: 0.007486184118 | BF39: 8.313995217e-06 | BG39: 0.02648758738 | BH39: 0.1296265206 | BI39: 0.8703734794 | BJ39: 87.03734794 | BK39: =CHOOSE(MODE, I39*1000, 'PFM Efficiency'!BI39) -> 36.3 | BL39: 87.42347942 | BM39: 0.8742347942 | BN39: 254.3433055 | BP39: 0.004655585984 | BR39: 16.37427547 | BS39: 8.186634509 | BT39: 1.470558372 | BW39: =IF(MODE=1, BJ39, 'PFM Efficiency'!BH39) -> 87.03734794 | BX39: =IF(MODE=1, BR39, 'PFM Efficiency'!BN39) -> 16.37427547 | BY39: =IF(MODE=1, BS39, 'PFM Efficiency'!BO39) -> 8.186634509 | BZ39: =IF(MODE=1, BT39, 'PFM Efficiency'!BP39) -> 1.470558372
A40: RdsonTop | B40: 2000 | C40: mW | D40: =B40/1000 -> 2 | E40: Drain-source resistance of high-side MOSFET @ VDD, 25°C | H40: 34 | I40: 0.0374 | J40: 0.04307794997 | K40: 0.05890631688 | L40: 0.01598472381 | M40: 2.829320637e-06 | N40: 0.2800076906 | O40: 254475.3323 | P40: 3.929653971e-06 | Q40: 0 | R40: 0.0003 | S40: 0.0393378252 | T40: 0.0004642393474 | U40: 0.001031175018 | V40: 0.001495414366 | W40: 0.0121944451 | X40: 2.23056737e-07 | Y40: 2.23056737e-07 | Z40: 0.01798980685 | AA40: 9.708994511e-07 | AB40: 9.708994511e-07 | AC40: 0.02081590638 | AD40: 0.0008666039171 | AE40: 0.002290277991 | AF40: 20 | AG40: 7.176861983 | AH40: 0.001138378141 | AI40: 0.0006412778374 | AJ40: 0.002646259895 | AK40: 0.03259787523 | AL40: 0.00106262147 | AM40: 0.0009542824961 | AN40: 0.0009942006072 | AO40: 0.0004596509653 | AP40: 0.002516473042 | AQ40: 0.003646606506 | AR40: 0.008188991187 | AS40: 0.003244560487 | AT40: 0.01659628461 | AU40: 0.01809289293 | AV40: 0.1234574 | AW40: 0.8721804628 | AX40: 0.006122233301 | AY40: 0.007507024166 | AZ40: 0.05501186191 | BA40: 0.008042216779 | BB40: 0.007023656303 | BC40: 0.003247262551 | BD40: 0.003279677758 | BE40: 0.00728486672 | BF40: 8.434854943e-06 | BG40: 0.02576191423 | BH40: 0.1278195372 | BI40: 0.8721804628 | BJ40: 87.21804628 | BK40: =CHOOSE(MODE, I40*1000, 'PFM Efficiency'!BI40) -> 37.4 | BL40: 87.42570764 | BM40: 0.8742570764 | BN40: 254.4753323 | BP40: 0.004530388628 | BR40: 16.59628461 | BS40: 8.188991187 | BT40: 1.495414366 | BW40: =IF(MODE=1, BJ40, 'PFM Efficiency'!BH40) -> 87.21804628 | BX40: =IF(MODE=1, BR40, 'PFM Efficiency'!BN40) -> 16.59628461 | BY40: =IF(MODE=1, BS40, 'PFM Efficiency'!BO40) -> 8.188991187 | BZ40: =IF(MODE=1, BT40, 'PFM Efficiency'!BP40) -> 1.495414366
A41: FOM | C41: mΩ*nC | E41: FOM | H41: 35 | I41: 0.0385 | J41: 0.04306529614 | K41: 0.06000638966 | L41: 0.01709105115 | M41: 2.827282538e-06 | N41: 0.2801529908 | O41: 254607.3834 | P41: 3.927615872e-06 | Q41: 0 | R41: 0.0003 | S41: 0.04038507758 | T41: 0.0004892863474 | U41: 0.00103171011 | V41: 0.001520996458 | W41: 0.0121944451 | X41: 2.23056737e-07 | Y41: 2.23056737e-07 | Z41: 0.01845484631 | AA41: 1.021744057e-06 | AB41: 1.021744057e-06 | AC41: 0.02137561177 | AD41: 0.0009138335574 | AE41: 0.00229146645 | AF41: 20 | AG41: 7.044450662 | AH41: 0.001172577037 | AI41: 0.0006416106061 | AJ41: 0.002728021201 | AK41: 0.03347437833 | AL41: 0.001120534005 | AM41: 0.0009547776877 | AN41: 0.001061932862 | AO41: 0.000473460298 | AP41: 0.002655927165 | AQ41: 0.003646606506 | AR41: 0.008191348299 | AS41: 0.003246244138 | AT41: 0.0168215408 | AU41: 0.01834378206 | AV41: 0.1270885 | AW41: 0.8738671923 | AX41: 0.006283567475 | AY41: 0.007704850594 | AZ41: 0.05357122794 | BA41: 0.008062701214 | BB41: 0.007301906062 | BC41: 0.003255537844 | BD41: 0.00336435859 | BE41: 0.007094092837 | BF41: 8.559315556e-06 | BG41: 0.02507425761 | BH41: 0.1261328077 | BI41: 0.8738671923 | BJ41: 87.38671923 | BK41: =CHOOSE(MODE, I41*1000, 'PFM Efficiency'!BI41) -> 38.5 | BL41: 87.42772768 | BM41: 0.8742772768 | BN41: 254.6073834 | BP41: 0.004411748183 | BR41: 16.8215408 | BS41: 8.191348299 | BT41: 1.520996458 | BW41: =IF(MODE=1, BJ41, 'PFM Efficiency'!BH41) -> 87.38671923 | BX41: =IF(MODE=1, BR41, 'PFM Efficiency'!BN41) -> 16.8215408 | BY41: =IF(MODE=1, BS41, 'PFM Efficiency'!BO41) -> 8.191348299 | BZ41: =IF(MODE=1, BT41, 'PFM Efficiency'!BP41) -> 1.520996458
A42: QgTop | B42: 1.8 | C42: nC | D42: =B42/1000000000 -> 1.8e-09 | E42: Gate charge of high-side MOSFET @ VDD | H42: 36 | I42: 0.0396 | J42: 0.0430526423 | K42: 0.06110646244 | L42: 0.01819737848 | M42: 2.825246178e-06 | N42: 0.2802983178 | O42: 254739.4588 | P42: 3.925579511e-06 | Q42: 0 | R42: 0.0003 | S42: 0.04143506355 | T42: 0.0005150593474 | U42: 0.001032245301 | V42: 0.001547304649 | W42: 0.0121944451 | X42: 2.23056737e-07 | Y42: 2.23056737e-07 | Z42: 0.01892163766 | AA42: 1.074085115e-06 | AB42: 1.074085115e-06 | AC42: 0.02193705151 | AD42: 0.0009624684576 | AE42: 0.002292655129 | AF42: 20 | AG42: 6.916836741 | AH42: 0.00120681091 | AI42: 0.0006419434361 | AJ42: 0.002811222803 | AK42: 0.03435359743 | AL42: 0.001180169656 | AM42: 0.0009552729703 | AN42: 0.001129734948 | AO42: 0.0004872874528 | AP42: 0.002797192057 | AQ42: 0.003646606506 | AR42: 0.008193705844 | AS42: 0.003247928099 | AT42: 0.0170500488 | AU42: 0.01859865059 | AV42: 0.1307196 | AW42: 0.8754428844 | AX42: 0.006445752302 | AY42: 0.007903720085 | AZ42: 0.05220411709 | BA42: 0.008082139357 | BB42: 0.007565953546 | BC42: 0.003263415228 | BD42: 0.003449406522 | BE42: 0.006913055149 | BF42: 8.687095159e-06 | BG42: 0.0244217066 | BH42: 0.1245571156 | BI42: 0.8754428844 | BJ42: 87.54428844 | BK42: =CHOOSE(MODE, I42*1000, 'PFM Efficiency'!BI42) -> 39.6 | BL42: 87.42955684 | BM42: 0.8742955684 | BN42: 254.7394588 | BP42: 0.004299162584 | BR42: 17.0500488 | BS42: 8.193705844 | BT42: 1.547304649 | BW42: =IF(MODE=1, BJ42, 'PFM Efficiency'!BH42) -> 87.54428844 | BX42: =IF(MODE=1, BR42, 'PFM Efficiency'!BN42) -> 17.0500488 | BY42: =IF(MODE=1, BS42, 'PFM Efficiency'!BO42) -> 8.193705844 | BZ42: =IF(MODE=1, BT42, 'PFM Efficiency'!BP42) -> 1.547304649
A43: Coss | B43: 35 | C43: pF | D43: =B43/1000000000000 -> 3.5e-11 | E43: Capacitance (Coss) | H43: 37 | I43: 0.0407 | J43: 0.04303998847 | K43: 0.06220653522 | L43: 0.01930370582 | M43: 2.823211554e-06 | N43: 0.2804436715 | O43: 254871.5584 | P43: 3.923544887e-06 | Q43: 0 | R43: 0.0003 | S43: 0.04248758044 | T43: 0.0005415583474 | U43: 0.00103278059 | V43: 0.001574338938 | W43: 0.0121944451 | X43: 2.23056737e-07 | Y43: 2.23056737e-07 | Z43: 0.01939006611 | AA43: 1.127923992e-06 | AB43: 1.127923992e-06 | AC43: 0.02250011935 | AD43: 0.001012510742 | AE43: 0.002293844026 | AF43: 20 | AG43: 6.793764138 | AH43: 0.001241079769 | AI43: 0.0006422763272 | AJ43: 0.002895866838 | AK43: 0.03523536616 | AL43: 0.001241531028 | AM43: 0.0009557683441 | AN43: 0.001197606883 | AO43: 0.0005011324395 | AP43: 0.002940270351 | AQ43: 0.003646606506 | AR43: 0.008196063823 | AS43: 0.00324961237 | AT43: 0.01728181338 | AU43: 0.0188575033 | AV43: 0.1343507 | AW43: 0.8769158381 | AX43: 0.006608724075 | AY43: 0.008103554521 | AZ43: 0.05090503981 | BA43: 0.008100609119 | BB43: 0.007816858741 | BC43: 0.003270924328 | BD43: 0.003534786883 | BE43: 0.006741026708 | BF43: 8.817939898e-06 | BG43: 0.02380164004 | BH43: 0.1230841619 | BI43: 0.8769158381 | BJ43: 87.69158381 | BK43: =CHOOSE(MODE, I43*1000, 'PFM Efficiency'!BI43) -> 40.7 | BL43: 87.43121052 | BM43: 0.8743121052 | BN43: 254.8715584 | BP43: 0.004192179749 | BR43: 17.28181338 | BS43: 8.196063823 | BT43: 1.574338938 | BW43: =IF(MODE=1, BJ43, 'PFM Efficiency'!BH43) -> 87.69158381 | BX43: =IF(MODE=1, BR43, 'PFM Efficiency'!BN43) -> 17.28181338 | BY43: =IF(MODE=1, BS43, 'PFM Efficiency'!BO43) -> 8.196063823 | BZ43: =IF(MODE=1, BT43, 'PFM Efficiency'!BP43) -> 1.574338938
A44: Low-side N-ch MOSFET | C44: Units | D44: Std Units | E44: Description | H44: 38 | I44: 0.0418 | J44: 0.04302733464 | K44: 0.06330660801 | L44: 0.02041003315 | M44: 2.821178664e-06 | N44: 0.2805890519 | O44: 255003.6824 | P44: 3.921511998e-06 | Q44: 0 | R44: 0.0003 | S44: 0.04354244471 | T44: 0.0005687833474 | U44: 0.001033315978 | V44: 0.001602099325 | W44: 0.0121944451 | X44: 2.23056737e-07 | Y44: 2.23056737e-07 | Z44: 0.01986002731 | AA44: 1.183262054e-06 | AB44: 1.183262054e-06 | AC44: 0.0230647191 | AD44: 0.001063962534 | AE44: 0.002295033142 | AF44: 20 | AG44: 6.674994678 | AH44: 0.001275383624 | AI44: 0.0006426092796 | AJ44: 0.002981955438 | AK44: 0.03611953387 | AL44: 0.001304620727 | AM44: 0.000956263809 | AN44: 0.001265548688 | AO44: 0.0005149952676 | AP44: 0.003085164682 | AQ44: 0.003646606506 | AR44: 0.008198422236 | AS44: 0.003251296951 | AT44: 0.01751683931 | AU44: 0.01912034495 | AV44: 0.1379818 | AW44: 0.8782935462 | AX44: 0.006772425257 | AY44: 0.008304283351 | AZ44: 0.04966903974 | BA44: 0.008118180844 | BB44: 0.008055578671 | BC44: 0.003278091892 | BD44: 0.003620468375 | BE44: 0.006577351176 | BF44: 8.951620559e-06 | BG44: 0.02321169139 | BH44: 0.1217064538 | BI44: 0.8782935462 | BJ44: 87.82935462 | BK44: =CHOOSE(MODE, I44*1000, 'PFM Efficiency'!BI44) -> 41.8 | BL44: 87.43270252 | BM44: 0.8743270252 | BN44: 255.0036824 | BP44: 0.004090391508 | BR44: 17.51683931 | BS44: 8.198422236 | BT44: 1.602099325 | BW44: =IF(MODE=1, BJ44, 'PFM Efficiency'!BH44) -> 87.82935462 | BX44: =IF(MODE=1, BR44, 'PFM Efficiency'!BN44) -> 17.51683931 | BY44: =IF(MODE=1, BS44, 'PFM Efficiency'!BO44) -> 8.198422236 | BZ44: =IF(MODE=1, BT44, 'PFM Efficiency'!BP44) -> 1.602099325
A45: RdsonBot | B45: 1000 | C45: mW | D45: =B45/1000 -> 1 | E45: Drain-source resistance of low-side MOSFET @ VDD, 25°C | H45: 39 | I45: 0.0429 | J45: 0.0430146808 | K45: 0.06440668079 | L45: 0.02151636049 | M45: 2.819147507e-06 | N45: 0.280734459 | O45: 255135.8307 | P45: 3.91948084e-06 | Q45: 0 | R45: 0.0003 | S45: 0.04459948981 | T45: 0.0005967343474 | U45: 0.001033851464 | V45: 0.001630585811 | W45: 0.0121944451 | X45: 2.23056737e-07 | Y45: 2.23056737e-07 | Z45: 0.02033142613 | AA45: 1.240100666e-06 | AB45: 1.240100666e-06 | AC45: 0.02363076344 | AD45: 0.001116825961 | AE45: 0.002296222476 | AF45: 20 | AG45: 6.560306553 | AH45: 0.001309722484 | AI45: 0.0006429422933 | AJ45: 0.003069490739 | AK45: 0.03700596381 | AL45: 0.001369441357 | AM45: 0.000956759365 | AN45: 0.001333560381 | AO45: 0.0005288759469 | AP45: 0.003231877686 | AQ45: 0.003646606506 | AR45: 0.008200781083 | AS45: 0.003252981841 | AT45: 0.01775513135 | AU45: 0.01938718032 | AV45: 0.1416129 | AW45: 0.879582791 | AX45: 0.006936803753 | AY45: 0.008505842697 | AZ45: 0.04849163058 | BA45: 0.008134918202 | BB45: 0.008282979602 | BC45: 0.003284942131 | BD45: 0.003706422669 | BE45: 0.006421434461 | BF45: 9.087929646e-06 | BG45: 0.02264971855 | BH45: 0.120417209 | BI45: 0.879582791 | BJ45: 87.9582791 | BK45: =CHOOSE(MODE, I45*1000, 'PFM Efficiency'!BI45) -> 42.9 | BL45: 87.43404523 | BM45: 0.8743404523 | BN45: 255.1358307 | BP45: 0.003993428401 | BR45: 17.75513135 | BS45: 8.200781083 | BT45: 1.630585811 | BW45: =IF(MODE=1, BJ45, 'PFM Efficiency'!BH45) -> 87.9582791 | BX45: =IF(MODE=1, BR45, 'PFM Efficiency'!BN45) -> 17.75513135 | BY45: =IF(MODE=1, BS45, 'PFM Efficiency'!BO45) -> 8.200781083 | BZ45: =IF(MODE=1, BT45, 'PFM Efficiency'!BP45) -> 1.630585811
A46: FOM | C46: mΩ*nC | E46: FOM | H46: 40 | I46: 0.044 | J46: 0.04300202697 | K46: 0.06550675357 | L46: 0.02262268782 | M46: 2.817118079e-06 | N46: 0.2808798929 | O46: 255268.0033 | P46: 3.917451412e-06 | Q46: 0 | R46: 0.0003 | S46: 0.04565856427 | T46: 0.0006254113474 | U46: 0.001034387049 | V46: 0.001659798396 | W46: 0.0121944451 | X46: 2.23056737e-07 | Y46: 2.23056737e-07 | Z46: 0.0208041758 | AA46: 1.298441192e-06 | AB46: 1.298441192e-06 | AC46: 0.02419817295 | AD46: 0.001171103149 | AE46: 0.00229741203 | AF46: 20 | AG46: 6.449492944 | AH46: 0.001344096359 | AI46: 0.0006432753683 | AJ46: 0.003158474876 | AK46: 0.03789453163 | AL46: 0.001435995528 | AM46: 0.0009572550123 | AN46: 0.001401641982 | AO46: 0.000542774487 | AP46: 0.003380411997 | AQ46: 0.003646606506 | AR46: 0.008203140364 | AS46: 0.003254667042 | AT46: 0.01799669428 | AU46: 0.01965801417 | AV46: 0.145244 | AW46: 0.8807897267 | AX46: 0.007101812276 | AY46: 0.008708174577 | AZ46: 0.04736874161 | BA46: 0.00815087897 | BB46: 0.008499847557 | BC46: 0.003291497013 | BD46: 0.003792624065 | BE46: 0.006272737503 | BF46: 9.226678866e-06 | BG46: 0.02211377783 | BH46: 0.1192102733 | BI46: 0.8807897267 | BJ46: 88.07897267 | BK46: =CHOOSE(MODE, I46*1000, 'PFM Efficiency'!BI46) -> 44 | BL46: 87.43524978 | BM46: 0.8743524978 | BN46: 255.2680033 | BP46: 0.003900955191 | BR46: 17.99669428 | BS46: 8.203140364 | BT46: 1.659798396 | BW46: =IF(MODE=1, BJ46, 'PFM Efficiency'!BH46) -> 88.07897267 | BX46: =IF(MODE=1, BR46, 'PFM Efficiency'!BN46) -> 17.99669428 | BY46: =IF(MODE=1, BS46, 'PFM Efficiency'!BO46) -> 8.203140364 | BZ46: =IF(MODE=1, BT46, 'PFM Efficiency'!BP46) -> 1.659798396
A47: QgBot | B47: 0.75 | C47: nC | D47: =B47/1000000000 -> 7.5e-10 | E47: Gate charge of low-side MOSFET at VDD | H47: 41 | I47: 0.0451 | J47: 0.04298937314 | K47: 0.06660682635 | L47: 0.02372901516 | M47: 2.815090379e-06 | N47: 0.2810253536 | O47: 255400.2002 | P47: 3.915423712e-06 | Q47: 0 | R47: 0.0003 | S47: 0.04671953008 | T47: 0.0006548143474 | U47: 0.001034922732 | V47: 0.001689737079 | W47: 0.0121944451 | X47: 2.23056737e-07 | Y47: 2.23056737e-07 | Z47: 0.02127819693 | AA47: 1.358284994e-06 | AB47: 1.358284994e-06 | AC47: 0.02476687529 | AD47: 0.001226796224 | AE47: 0.002298601802 | AF47: 20 | AG47: 6.342360772 | AH47: 0.00137850526 | AI47: 0.0006436085045 | AJ47: 0.003248909988 | AK47: 0.03878512402 | AL47: 0.001504285846 | AM47: 0.0009577507508 | AN47: 0.001469793511 | AO47: 0.0005566908976 | AP47: 0.003530770254 | AQ47: 0.003646606506 | AR47: 0.008205500079 | AS47: 0.003256352553 | AT47: 0.01824153287 | AU47: 0.01993285129 | AV47: 0.1488751 | AW47: 0.8819199502 | AX47: 0.00726740781 | AY47: 0.008911226243 | AZ47: 0.04629667066 | BA47: 0.008166115691 | BB47: 0.00870689739 | BC47: 0.003297776517 | BD47: 0.003879049194 | BE47: 0.006130770049 | BF47: 9.367696955e-06 | BG47: 0.02160210155 | BH47: 0.1180800498 | BI47: 0.8819199502 | BJ47: 88.19199502 | BK47: =CHOOSE(MODE, I47*1000, 'PFM Efficiency'!BI47) -> 45.1 | BL47: 87.43632625 | BM47: 0.8743632625 | BN47: 255.4002002 | BP47: 0.003812666996 | BR47: 18.24153287 | BS47: 8.205500079 | BT47: 1.689737079 | BW47: =IF(MODE=1, BJ47, 'PFM Efficiency'!BH47) -> 88.19199502 | BX47: =IF(MODE=1, BR47, 'PFM Efficiency'!BN47) -> 18.24153287 | BY47: =IF(MODE=1, BS47, 'PFM Efficiency'!BO47) -> 8.205500079 | BZ47: =IF(MODE=1, BT47, 'PFM Efficiency'!BP47) -> 1.689737079
A48: VSD | B48: 0.8 | C48: V | D48: =B48 -> 0.8 | E48: Body diode forward voltage | H48: 42 | I48: 0.0462 | J48: 0.0429767193 | K48: 0.06770689913 | L48: 0.02483534249 | M48: 2.813064404e-06 | N48: 0.2811708411 | O48: 255532.4215 | P48: 3.913397738e-06 | Q48: 0 | R48: 0.0003 | S48: 0.04778226126 | T48: 0.0006849433474 | U48: 0.001035458514 | V48: 0.001720401861 | W48: 0.0121944451 | X48: 2.23056737e-07 | Y48: 2.23056737e-07 | Z48: 0.02175341685 | AA48: 1.419633433e-06 | AB48: 1.419633433e-06 | AC48: 0.02533680439 | AD48: 0.001283907314 | AE48: 0.002299791793 | AF48: 20 | AG48: 6.238729579 | AH48: 0.001412949195 | AI48: 0.0006439417021 | AJ48: 0.003340798211 | AK48: 0.03967763754 | AL48: 0.001574314921 | AM48: 0.0009582465804 | AN48: 0.001538014985 | AO48: 0.0005706251883 | AP48: 0.003682955094 | AQ48: 0.003646606506 | AR48: 0.008207860228 | AS48: 0.003258038374 | AT48: 0.01848965191 | AU48: 0.02021169646 | AV48: 0.1525062 | AW48: 0.8829785629 | AX48: 0.007433551127 | AY48: 0.009114949596 | AZ48: 0.04527204335 | BA48: 0.008180676257 | BB48: 0.008904780667 | BC48: 0.003303798853 | BD48: 0.003965676756 | BE48: 0.005995085251 | BF48: 9.510827795e-06 | BG48: 0.0211130785 | BH48: 0.1170214371 | BI48: 0.8829785629 | BJ48: 88.29785629 | BK48: =CHOOSE(MODE, I48*1000, 'PFM Efficiency'!BI48) -> 46.2 | BL48: 87.43728373 | BM48: 0.8743728373 | BN48: 255.5324215 | BP48: 0.003728285923 | BR48: 18.48965191 | BS48: 8.207860228 | BT48: 1.720401861 | BW48: =IF(MODE=1, BJ48, 'PFM Efficiency'!BH48) -> 88.29785629 | BX48: =IF(MODE=1, BR48, 'PFM Efficiency'!BN48) -> 18.48965191 | BY48: =IF(MODE=1, BS48, 'PFM Efficiency'!BO48) -> 8.207860228 | BZ48: =IF(MODE=1, BT48, 'PFM Efficiency'!BP48) -> 1.720401861
A49: BDserR | B49: 100 | C49: mW | D49: =B49*0.001 -> 0.1 | E49: Series resistance of body diode | H49: 43 | I49: 0.0473 | J49: 0.04296406547 | K49: 0.06880697191 | L49: 0.02594166983 | M49: 2.811040153e-06 | N49: 0.2813163553 | O49: 255664.667 | P49: 3.911373486e-06 | Q49: 0 | R49: 0.0003 | S49: 0.04884664258 | T49: 0.0007157983474 | U49: 0.001035994394 | V49: 0.001751792741 | W49: 0.0121944451 | X49: 2.23056737e-07 | Y49: 2.23056737e-07 | Z49: 0.02222976885 | AA49: 1.482487869e-06 | AB49: 1.482487869e-06 | AC49: 0.02590789984 | AD49: 0.001342438548 | AE49: 0.002300982003 | AF49: 20 | AG49: 6.13843051 | AH49: 0.001447428174 | AI49: 0.0006442749609 | AJ49: 0.003434141683 | AK49: 0.04057197755 | AL49: 0.001646085363 | AM49: 0.0009587425014 | AN49: 0.001606306426 | AO49: 0.0005845773688 | AP49: 0.003836969157 | AQ49: 0.003646606506 | AR49: 0.008210220812 | AS49: 0.003259724505 | AT49: 0.01874105616 | AU49: 0.02049455444 | AV49: 0.1561373 | AW49: 0.8839702244 | AX49: 0.007600206386 | AY49: 0.009319300688 | AZ49: 0.04429177759 | BA49: 0.008194604412 | BB49: 0.009094092516 | BC49: 0.003309580656 | BD49: 0.004052487303 | BE49: 0.005865274966 | BF49: 9.655928774e-06 | BG49: 0.02064523705 | BH49: 0.1160297756 | BI49: 0.8839702244 | BJ49: 88.39702244 | BK49: =CHOOSE(MODE, I49*1000, 'PFM Efficiency'!BI49) -> 47.3 | BL49: 87.43813049 | BM49: 0.8743813049 | BN49: 255.664667 | BP49: 0.003647558154 | BR49: 18.74105616 | BS49: 8.210220812 | BT49: 1.751792741 | BW49: =IF(MODE=1, BJ49, 'PFM Efficiency'!BH49) -> 88.39702244 | BX49: =IF(MODE=1, BR49, 'PFM Efficiency'!BN49) -> 18.74105616 | BY49: =IF(MODE=1, BS49, 'PFM Efficiency'!BO49) -> 8.210220812 | BZ49: =IF(MODE=1, BT49, 'PFM Efficiency'!BP49) -> 1.751792741
A50: QrrBot | B50: 2 | C50: nC | D50: =B50*0.000000001 -> 2e-09 | E50: Reverse recovery charge of body diode at 100mA | H50: 44 | I50: 0.0484 | J50: 0.04295141164 | K50: 0.0699070447 | L50: 0.02704799716 | M50: 2.809017622e-06 | N50: 0.2814618963 | O50: 255796.937 | P50: 3.909350956e-06 | Q50: 0 | R50: 0.0003 | S50: 0.04991256847 | T50: 0.0007473793474 | U50: 0.001036530373 | V50: 0.001783909721 | W50: 0.0121944451 | X50: 2.23056737e-07 | Y50: 2.23056737e-07 | Z50: 0.02270719166 | AA50: 1.546849659e-06 | AB50: 1.546849659e-06 | AC50: 0.02648010627 | AD50: 0.001402392056 | AE50: 0.002302172433 | AF50: 20 | AG50: 6.041305399 | AH50: 0.001481942207 | AI50: 0.0006446082812 | AJ50: 0.003528942544 | AK50: 0.04146805738 | AL50: 0.001719599783 | AM50: 0.0009592385136 | AN50: 0.001674667851 | AO50: 0.0005985474488 | AP50: 0.003992815083 | AQ50: 0.003646606506 | AR50: 0.008212581831 | AS50: 0.003261410946 | AT50: 0.0189957504 | AU50: 0.02078143003 | AV50: 0.1597684 | AW50: 0.8848991991 | AX50: 0.00776734077 | AY50: 0.009524239278 | AZ50: 0.04335305256 | BA50: 0.008207940193 | BB50: 0.00927537761 | BC50: 0.003315137149 | BD50: 0.004139463035 | BE50: 0.005740965655 | BF50: 9.802869353e-06 | BG50: 0.02019723034 | BH50: 0.1151008009 | BI50: 0.8848991991 | BJ50: 88.48991991 | BK50: =CHOOSE(MODE, I50*1000, 'PFM Efficiency'!BI50) -> 48.4 | BL50: 87.43887403 | BM50: 0.8743887403 | BN50: 255.796937 | BP50: 0.003570251387 | BR50: 18.9957504 | BS50: 8.212581831 | BT50: 1.783909721 | BW50: =IF(MODE=1, BJ50, 'PFM Efficiency'!BH50) -> 88.48991991 | BX50: =IF(MODE=1, BR50, 'PFM Efficiency'!BN50) -> 18.9957504 | BY50: =IF(MODE=1, BS50, 'PFM Efficiency'!BO50) -> 8.212581831 | BZ50: =IF(MODE=1, BT50, 'PFM Efficiency'!BP50) -> 1.783909721
A51: TrrBot | B51: 10 | C51: ns | D51: =B51*0.000000001 -> 1e-08 | E51: Reverse recovery time of body diode (not used) | H51: 45 | I51: 0.0495 | J51: 0.0429387578 | K51: 0.07100711748 | L51: 0.0281543245 | M51: 2.806996811e-06 | N51: 0.2816074641 | O51: 255929.2313 | P51: 3.907330144e-06 | Q51: 0 | R51: 0.0003 | S51: 0.05097994205 | T51: 0.0007796863474 | U51: 0.001037066451 | V51: 0.001816752798 | W51: 0.0121944451 | X51: 2.23056737e-07 | Y51: 2.23056737e-07 | Z51: 0.02318562888 | AA51: 1.61272016e-06 | AB51: 1.61272016e-06 | AC51: 0.02705337287 | AD51: 0.001463769967 | AE51: 0.002303363081 | AF51: 20 | AG51: 5.947205932 | AH51: 0.001516491303 | AI51: 0.0006449416628 | AJ51: 0.003625202933 | AK51: 0.04236579745 | AL51: 0.001794860793 | AM51: 0.0009597346172 | AN51: 0.001743099281 | AO51: 0.0006125354379 | AP51: 0.004150495512 | AQ51: 0.003646606506 | AR51: 0.008214943283 | AS51: 0.003263097698 | AT51: 0.01925373943 | AU51: 0.021072328 | AV51: 0.1633995 | AW51: 0.8857693978 | AX51: 0.007934924173 | AY51: 0.009729728451 | AZ51: 0.04245328168 | BA51: 0.00822072031 | BB51: 0.009449135403 | BC51: 0.00332048229 | BD51: 0.004226587636 | BE51: 0.005621814789 | BF51: 9.951529816e-06 | BG51: 0.01976782333 | BH51: 0.1142306022 | BI51: 0.8857693978 | BJ51: 88.57693978 | BK51: =CHOOSE(MODE, I51*1000, 'PFM Efficiency'!BI51) -> 49.5 | BL51: 87.4395212 | BM51: 0.874395212 | BN51: 255.9292313 | BP51: 0.003496152609 | BR51: 19.25373943 | BS51: 8.214943283 | BT51: 1.816752798 | BW51: =IF(MODE=1, BJ51, 'PFM Efficiency'!BH51) -> 88.57693978 | BX51: =IF(MODE=1, BR51, 'PFM Efficiency'!BN51) -> 19.25373943 | BY51: =IF(MODE=1, BS51, 'PFM Efficiency'!BO51) -> 8.214943283 | BZ51: =IF(MODE=1, BT51, 'PFM Efficiency'!BP51) -> 1.816752798
A52: Idss | B52: 0 | C52: μA | D52: =B52/1000000 -> 0 | E52: Leakage current of low-side device | H52: 46 | I52: 0.0506 | J52: 0.04292610397 | K52: 0.07210719026 | L52: 0.02926065183 | M52: 2.804977716e-06 | N52: 0.2817530587 | O52: 256061.5499 | P52: 3.905311049e-06 | Q52: 0 | R52: 0.0003 | S52: 0.05204867425 | T52: 0.0008127193474 | U52: 0.001037602627 | V52: 0.001850321975 | W52: 0.0121944451 | X52: 2.23056737e-07 | Y52: 2.23056737e-07 | Z52: 0.02366502854 | AA52: 1.680100727e-06 | AB52: 1.680100727e-06 | AC52: 0.02762765294 | AD52: 0.001526574413 | AE52: 0.002304553949 | AF52: 20 | AG52: 5.855992896 | AH52: 0.001551075473 | AI52: 0.0006452751057 | AJ52: 0.003722924992 | AK52: 0.0432651246 | AL52: 0.001871871007 | AM52: 0.0009602308121 | AN52: 0.001811600734 | AO52: 0.0006265413459 | AP52: 0.004310013087 | AQ52: 0.003646606506 | AR52: 0.008217305171 | AS52: 0.003264784761 | AT52: 0.01951502801 | AU52: 0.02136725314 | AV52: 0.1670306 | AW52: 0.8865844128 | AX52: 0.008102928924 | AY52: 0.009935734276 | AZ52: 0.04159008872 | BA52: 0.008232978492 | BB52: 0.009615824724 | BC52: 0.003325628904 | BD52: 0.004313846118 | BE52: 0.005507507702 | BF52: 1.010180017e-05 | BG52: 0.01935588142 | BH52: 0.1134155872 | BI52: 0.8865844128 | BJ52: 88.65844128 | BK52: =CHOOSE(MODE, I52*1000, 'PFM Efficiency'!BI52) -> 50.6 | BL52: 87.44007824 | BM52: 0.8744007824 | BN52: 256.0615499 | BP52: 0.00342506613 | BR52: 19.51502801 | BS52: 8.217305171 | BT52: 1.850321975 | BW52: =IF(MODE=1, BJ52, 'PFM Efficiency'!BH52) -> 88.65844128 | BX52: =IF(MODE=1, BR52, 'PFM Efficiency'!BN52) -> 19.51502801 | BY52: =IF(MODE=1, BS52, 'PFM Efficiency'!BO52) -> 8.217305171 | BZ52: =IF(MODE=1, BT52, 'PFM Efficiency'!BP52) -> 1.850321975
A53: Csw | B53: 35 | C53: pF | D53: =B53/1000000000000 -> 3.5e-11 | E53: Effective SW node capacitance (CossHS + CossLS) | H53: 47 | I53: 0.0517 | J53: 0.04291345014 | K53: 0.07320726304 | L53: 0.03036697917 | M53: 2.802960335e-06 | N53: 0.2818986801 | O53: 256193.8929 | P53: 3.903293668e-06 | Q53: 0 | R53: 0.0003 | S53: 0.05311868307 | T53: 0.0008464783474 | U53: 0.001038138902 | V53: 0.00188461725 | W53: 0.0121944451 | X53: 2.23056737e-07 | Y53: 2.23056737e-07 | Z53: 0.02414534265 | AA53: 1.748992716e-06 | AB53: 1.748992716e-06 | AC53: 0.02820290345 | AD53: 0.001590807526 | AE53: 0.002305745036 | AF53: 20 | AG53: 5.767535487 | AH53: 0.001585694725 | AI53: 0.0006456086101 | AJ53: 0.003822110862 | AK53: 0.04416597149 | AL53: 0.001950633038 | AM53: 0.0009607270984 | AN53: 0.001880172231 | AO53: 0.0006405651825 | AP53: 0.004471370451 | AQ53: 0.003646606506 | AR53: 0.008219667494 | AS53: 0.003266472134 | AT53: 0.01977962094 | AU53: 0.02166621024 | AV53: 0.1706617 | AW53: 0.8873475503 | AX53: 0.008271329544 | AY53: 0.01014222551 | AZ53: 0.04076128687 | BA53: 0.008244745775 | BB53: 0.009775867831 | BC53: 0.003330588793 | BD53: 0.004401224691 | BE53: 0.005397754809 | BF53: 1.025357916e-05 | BG53: 0.01896036046 | BH53: 0.1126524497 | BI53: 0.8873475503 | BJ53: 88.73475503 | BK53: =CHOOSE(MODE, I53*1000, 'PFM Efficiency'!BI53) -> 51.7 | BL53: 87.44055088 | BM53: 0.8744055088 | BN53: 256.1938929 | BP53: 0.00335681186 | BR53: 19.77962094 | BS53: 8.219667494 | BT53: 1.88461725 | BW53: =IF(MODE=1, BJ53, 'PFM Efficiency'!BH53) -> 88.73475503 | BX53: =IF(MODE=1, BR53, 'PFM Efficiency'!BN53) -> 19.77962094 | BY53: =IF(MODE=1, BS53, 'PFM Efficiency'!BO53) -> 8.219667494 | BZ53: =IF(MODE=1, BT53, 'PFM Efficiency'!BP53) -> 1.88461725
H54: 48 | I54: 0.0528 | J54: 0.0429007963 | K54: 0.07430733582 | L54: 0.0314733065 | M54: 2.800944667e-06 | N54: 0.2820443284 | O54: 256326.2603 | P54: 3.901278e-06 | Q54: 0 | R54: 0.0003 | S54: 0.05418989289 | T54: 0.0008809633474 | U54: 0.001038675276 | V54: 0.001919638624 | W54: 0.0121944451 | X54: 2.23056737e-07 | Y54: 2.23056737e-07 | Z54: 0.02462652687 | AA54: 1.819397477e-06 | AB54: 1.819397477e-06 | AC54: 0.02877908475 | AD54: 0.001656471438 | AE54: 0.002306936342 | AF54: 20 | AG54: 5.68171069 | AH54: 0.001620349071 | AI54: 0.0006459421759 | AJ54: 0.003922762684 | AK54: 0.04506827599 | AL54: 0.002031149501 | AM54: 0.000961223476 | AN54: 0.00194881379 | AO54: 0.0006546069572 | AP54: 0.004634570248 | AQ54: 0.003646606506 | AR54: 0.008222030251 | AS54: 0.003268159818 | AT54: 0.020047523 | AU54: 0.02196920408 | AV54: 0.1742928 | AW54: 0.888061858 | AX54: 0.008440102532 | AY54: 0.01034917334 | AZ54: 0.03996486024 | BA54: 0.008256050774 | BB54: 0.009929653978 | BC54: 0.003335372836 | BD54: 0.004488710647 | BE54: 0.005292289158 | BF54: 1.040677346e-05 | BG54: 0.01858029792 | BH54: 0.111938142 | BI54: 0.888061858 | BJ54: 88.8061858 | BK54: =CHOOSE(MODE, I54*1000, 'PFM Efficiency'!BI54) -> 52.8 | BL54: 87.46221105 | BM54: 0.8746221105 | BN54: 256.3262603 | BP54: 0.003291223785 | BR54: 20.047523 | BS54: 8.222030251 | BT54: 1.919638624 | BW54: =IF(MODE=1, BJ54, 'PFM Efficiency'!BH54) -> 88.8061858 | BX54: =IF(MODE=1, BR54, 'PFM Efficiency'!BN54) -> 20.047523 | BY54: =IF(MODE=1, BS54, 'PFM Efficiency'!BO54) -> 8.222030251 | BZ54: =IF(MODE=1, BT54, 'PFM Efficiency'!BP54) -> 1.919638624
H55: 49 | I55: 0.0539 | J55: 0.04288814247 | K55: 0.0754074086 | L55: 0.03257963384 | M55: 2.798930708e-06 | N55: 0.2821900034 | O55: 256458.652 | P55: 3.899264042e-06 | Q55: 0 | R55: 0.0003 | S55: 0.05526223386 | T55: 0.0009161743474 | U55: 0.001039211749 | V55: 0.001955386096 | W55: 0.0121944451 | X55: 2.23056737e-07 | Y55: 2.23056737e-07 | Z55: 0.02510854014 | AA55: 1.891316364e-06 | AB55: 1.891316364e-06 | AC55: 0.02935616018 | AD55: 0.001723568282 | AE55: 0.002308127868 | AF55: 20 | AG55: 5.598402702 | AH55: 0.001655038518 | AI55: 0.0006462758031 | AJ55: 0.004024882603 | AK55: 0.04597198073 | AL55: 0.002113423012 | AM55: 0.0009617199451 | AN55: 0.00201752543 | AO55: 0.0006686666799 | AP55: 0.004799615122 | AQ55: 0.003646606506 | AR55: 0.008224393444 | AS55: 0.003269847813 | AT55: 0.02031873898 | AU55: 0.02227623945 | AV55: 0.1779239 | AW55: 0.8887301502 | AX55: 0.008609226179 | AY55: 0.01055655115 | AZ55: 0.03919894748 | BA55: 0.008266919907 | BB55: 0.01007754258 | BC55: 0.00333999108 | BD55: 0.004576292254 | BE55: 0.005190864261 | BF55: 1.056129684e-05 | BG55: 0.01821480502 | BH55: 0.1112698498 | BI55: 0.8887301502 | BJ55: 88.87301502 | BK55: =CHOOSE(MODE, I55*1000, 'PFM Efficiency'!BI55) -> 53.9 | BL55: 87.5008095 | BM55: 0.875008095 | BN55: 256.458652 | BP55: 0.003228148616 | BR55: 20.31873898 | BS55: 8.224393444 | BT55: 1.955386096 | BW55: =IF(MODE=1, BJ55, 'PFM Efficiency'!BH55) -> 88.87301502 | BX55: =IF(MODE=1, BR55, 'PFM Efficiency'!BN55) -> 20.31873898 | BY55: =IF(MODE=1, BS55, 'PFM Efficiency'!BO55) -> 8.224393444 | BZ55: =IF(MODE=1, BT55, 'PFM Efficiency'!BP55) -> 1.955386096
H56: 50 | I56: 0.055 | J56: 0.04287548864 | K56: 0.07650748138 | L56: 0.03368596117 | M56: 2.796918458e-06 | N56: 0.2823357053 | O56: 256591.0681 | P56: 3.897251791e-06 | Q56: 0 | R56: 0.0003 | S56: 0.05633564139 | T56: 0.0009521113474 | U56: 0.001039748321 | V56: 0.001991859668 | W56: 0.0121944451 | X56: 2.23056737e-07 | Y56: 2.23056737e-07 | Z56: 0.0255913444 | AA56: 1.964750725e-06 | AB56: 1.964750725e-06 | AC56: 0.02993409588 | AD56: 0.001792100192 | AE56: 0.002309319613 | AF56: 20 | AG56: 5.517502415 | AH56: 0.001689763078 | AI56: 0.0006466094917 | AJ56: 0.004128472762 | AK56: 0.04687703263 | AL56: 0.002197456188 | AM56: 0.0009622165055 | AN56: 0.002086307172 | AO56: 0.0006827443602 | AP56: 0.00496650772 | AQ56: 0.003646606506 | AR56: 0.008226757072 | AS56: 0.003271536119 | AT56: 0.02059327367 | AU56: 0.02258732115 | AV56: 0.181555 | AW56: 0.8893550293 | AX56: 0.008778680393 | AY56: 0.01076433429 | AZ56: 0.03846182722 | BA56: 0.008277377607 | BB56: 0.01021986602 | BC56: 0.003344452813 | BD56: 0.004663958664 | BE56: 0.005093252172 | BF56: 1.071706959e-05 | BG56: 0.01786305987 | BH56: 0.1106449707 | BI56: 0.8893550293 | BJ56: 88.93550293 | BK56: =CHOOSE(MODE, I56*1000, 'PFM Efficiency'!BI56) -> 55 | BL56: 87.53783879 | BM56: 0.8753783879 | BN56: 256.5910681 | BP56: 0.003167444595 | BR56: 20.59327367 | BS56: 8.226757072 | BT56: 1.991859668 | BW56: =IF(MODE=1, BJ56, 'PFM Efficiency'!BH56) -> 88.93550293 | BX56: =IF(MODE=1, BR56, 'PFM Efficiency'!BN56) -> 20.59327367 | BY56: =IF(MODE=1, BS56, 'PFM Efficiency'!BO56) -> 8.226757072 | BZ56: =IF(MODE=1, BT56, 'PFM Efficiency'!BP56) -> 1.991859668
H57: 51 | I57: 0.0561 | J57: 0.0428628348 | K57: 0.07760755417 | L57: 0.03479228851 | M57: 2.794907914e-06 | N57: 0.282481434 | O57: 256723.5087 | P57: 3.895241247e-06 | Q57: 0 | R57: 0.0003 | S57: 0.05741005566 | T57: 0.0009887743474 | U57: 0.001040284991 | V57: 0.002029059338 | W57: 0.0121944451 | X57: 2.23056737e-07 | Y57: 2.23056737e-07 | Z57: 0.02607490434 | AA57: 2.039701909e-06 | AB57: 2.039701909e-06 | AC57: 0.03051286044 | AD57: 0.001862069304 | AE57: 0.002310511578 | AF57: 20 | AG57: 5.438906938 | AH57: 0.001724522759 | AI57: 0.0006469432418 | AJ57: 0.004233535305 | AK57: 0.04778338254 | AL57: 0.002283251647 | AM57: 0.0009627131575 | AN57: 0.002155159034 | AO57: 0.0006968400078 | AP57: 0.005135250689 | AQ57: 0.003646606506 | AR57: 0.008229121135 | AS57: 0.003273224736 | AT57: 0.02087113186 | AU57: 0.02290245396 | AV57: 0.1851861 | AW57: 0.8899389057 | AX57: 0.008948446556 | AY57: 0.01097249994 | AZ57: 0.03775190521 | BA57: 0.008287446504 | BB57: 0.01035693215 | BC57: 0.003348766641 | BD57: 0.004751699834 | BE57: 0.00499924177 | BF57: 1.087401783e-05 | BG57: 0.01752430125 | BH57: 0.1100610943 | BI57: 0.8899389057 | BJ57: 88.99389057 | BK57: =CHOOSE(MODE, I57*1000, 'PFM Efficiency'!BI57) -> 56.1 | BL57: 87.57338927 | BM57: 0.8757338927 | BN57: 256.7235087 | BP57: 0.003108980429 | BR57: 20.87113186 | BS57: 8.229121135 | BT57: 2.029059338 | BW57: =IF(MODE=1, BJ57, 'PFM Efficiency'!BH57) -> 88.99389057 | BX57: =IF(MODE=1, BR57, 'PFM Efficiency'!BN57) -> 20.87113186 | BY57: =IF(MODE=1, BS57, 'PFM Efficiency'!BO57) -> 8.229121135 | BZ57: =IF(MODE=1, BT57, 'PFM Efficiency'!BP57) -> 2.029059338
H58: 52 | I58: 0.0572 | J58: 0.04285018097 | K58: 0.07870762695 | L58: 0.03589861585 | M58: 2.792899072e-06 | N58: 0.2826271896 | O58: 256855.9736 | P58: 3.893232406e-06 | Q58: 0 | R58: 0.0003 | S58: 0.05848542119 | T58: 0.001026163347 | U58: 0.00104082176 | V58: 0.002066985107 | W58: 0.0121944451 | X58: 2.23056737e-07 | Y58: 2.23056737e-07 | Z58: 0.02655918713 | AA58: 2.116171264e-06 | AB58: 2.116171264e-06 | AC58: 0.03109242474 | AD58: 0.001933477753 | AE58: 0.002311703762 | AF58: 20 | AG58: 5.36251916 | AH58: 0.001759317572 | AI58: 0.0006472770534 | AJ58: 0.004340072378 | AK58: 0.04869098486 | AL58: 0.002370812007 | AM58: 0.000963209901 | AN58: 0.002224081036 | AO58: 0.0007109536324 | AP58: 0.005305846675 | AQ58: 0.003646606506 | AR58: 0.008231485634 | AS58: 0.003274913663 | AT58: 0.02115231835 | AU58: 0.02322164269 | AV58: 0.1888172 | AW58: 0.8904840151 | AX58: 0.009118507385 | AY58: 0.01118102691 | AZ58: 0.03706770275 | BA58: 0.008297147585 | BB58: 0.01048902648 | BC58: 0.003352940543 | BD58: 0.004839506453 | BE58: 0.004908637242 | BF58: 1.103207304e-05 | BG58: 0.01719782309 | BH58: 0.1095159849 | BI58: 0.8904840151 | BJ58: 89.04840151 | BK58: =CHOOSE(MODE, I58*1000, 'PFM Efficiency'!BI58) -> 57.2 | BL58: 87.60754444 | BM58: 0.8760754444 | BN58: 256.8559736 | BP58: 0.003052634344 | BR58: 21.15231835 | BS58: 8.231485634 | BT58: 2.066985107 | BW58: =IF(MODE=1, BJ58, 'PFM Efficiency'!BH58) -> 89.04840151 | BX58: =IF(MODE=1, BR58, 'PFM Efficiency'!BN58) -> 21.15231835 | BY58: =IF(MODE=1, BS58, 'PFM Efficiency'!BO58) -> 8.231485634 | BZ58: =IF(MODE=1, BT58, 'PFM Efficiency'!BP58) -> 2.066985107
H59: 53 | I59: 0.0583 | J59: 0.04283752714 | K59: 0.07980769973 | L59: 0.03700494318 | M59: 2.790891933e-06 | N59: 0.282772972 | O59: 256988.4629 | P59: 3.891225266e-06 | Q59: 0 | R59: 0.0003 | S59: 0.05956168644 | T59: 0.001064278347 | U59: 0.001041358628 | V59: 0.002105636975 | W59: 0.0121944451 | X59: 2.23056737e-07 | Y59: 2.23056737e-07 | Z59: 0.02704416224 | AA59: 2.194160134e-06 | AB59: 2.194160134e-06 | AC59: 0.03167276177 | AD59: 0.002006327676 | AE59: 0.002312896166 | AF59: 20 | AG59: 5.288247349 | AH59: 0.001794147525 | AI59: 0.0006476109265 | AJ59: 0.004448086128 | AK59: 0.04959979726 | AL59: 0.002460139888 | AM59: 0.0009637067359 | AN59: 0.002293073198 | AO59: 0.0007250852438 | AP59: 0.005478298329 | AQ59: 0.003646606506 | AR59: 0.008233850569 | AS59: 0.003276602902 | AT59: 0.02143683793 | AU59: 0.02354489212 | AV59: 0.1924483 | AW59: 0.8909924341 | AX59: 0.00928884682 | AY59: 0.01138989551 | AZ59: 0.03640784641 | BA59: 0.008306500347 | BB59: 0.01061641423 | BC59: 0.003356981934 | BD59: 0.004927369872 | BE59: 0.004821256716 | BF59: 1.119117157e-05 | BG59: 0.01688296964 | BH59: 0.1090075659 | BI59: 0.8909924341 | BJ59: 89.09924341 | BK59: =CHOOSE(MODE, I59*1000, 'PFM Efficiency'!BI59) -> 58.3 | BL59: 87.64038167 | BM59: 0.8764038167 | BN59: 256.9884629 | BP59: 0.002998293234 | BR59: 21.43683793 | BS59: 8.233850569 | BT59: 2.105636975 | BW59: =IF(MODE=1, BJ59, 'PFM Efficiency'!BH59) -> 89.09924341 | BX59: =IF(MODE=1, BR59, 'PFM Efficiency'!BN59) -> 21.43683793 | BY59: =IF(MODE=1, BS59, 'PFM Efficiency'!BO59) -> 8.233850569 | BZ59: =IF(MODE=1, BT59, 'PFM Efficiency'!BP59) -> 2.105636975
H60: 54 | I60: 0.0594 | J60: 0.0428248733 | K60: 0.08090777251 | L60: 0.03811127052 | M60: 2.788886492e-06 | N60: 0.2829187813 | O60: 257120.9766 | P60: 3.889219826e-06 | Q60: 0 | R60: 0.0003 | S60: 0.06063880351 | T60: 0.001103119347 | U60: 0.001041895595 | V60: 0.002145014942 | W60: 0.0121944451 | X60: 2.23056737e-07 | Y60: 2.23056737e-07 | Z60: 0.02752980122 | AA60: 2.273669866e-06 | AB60: 2.273669866e-06 | AC60: 0.03225384635 | AD60: 0.002080621209 | AE60: 0.00231408879 | AF60: 20 | AG60: 5.216004788 | AH60: 0.00182901263 | AI60: 0.0006479448611 | AJ60: 0.0045575787 | AK60: 0.05050978035 | AL60: 0.002551237911 | AM60: 0.0009642036624 | AN60: 0.002362135537 | AO60: 0.0007392348516 | AP60: 0.0056526083 | AQ60: 0.003646606506 | AR60: 0.008236215939 | AS60: 0.003278292452 | AT60: 0.02172469539 | AU60: 0.02387220706 | AV60: 0.1960794 | AW60: 0.8914660939 | AX60: 0.009459449909 | AY60: 0.01159908739 | AZ60: 0.03577105887 | BA60: 0.00831552292 | BB60: 0.01073934203 | BC60: 0.003360897706 | BD60: 0.005015282053 | BE60: 0.004736931041 | BF60: 1.13512542e-05 | BG60: 0.01657913099 | BH60: 0.1085339061 | BI60: 0.8914660939 | BJ60: 89.14660939 | BK60: =CHOOSE(MODE, I60*1000, 'PFM Efficiency'!BI60) -> 59.4 | BL60: 87.67197269 | BM60: 0.8767197269 | BN60: 257.1209766 | BP60: 0.002945851907 | BR60: 21.72469539 | BS60: 8.236215939 | BT60: 2.145014942 | BW60: =IF(MODE=1, BJ60, 'PFM Efficiency'!BH60) -> 89.14660939 | BX60: =IF(MODE=1, BR60, 'PFM Efficiency'!BN60) -> 21.72469539 | BY60: =IF(MODE=1, BS60, 'PFM Efficiency'!BO60) -> 8.236215939 | BZ60: =IF(MODE=1, BT60, 'PFM Efficiency'!BP60) -> 2.145014942
H61: 55 | I61: 0.0605 | J61: 0.04281221947 | K61: 0.08200784529 | L61: 0.03921759785 | M61: 2.786882749e-06 | N61: 0.2830646174 | O61: 257253.5148 | P61: 3.887216083e-06 | Q61: 0 | R61: 0.0003 | S61: 0.06171672781 | T61: 0.001142686347 | U61: 0.001042432661 | V61: 0.002185119008 | W61: 0.0121944451 | X61: 2.23056737e-07 | Y61: 2.23056737e-07 | Z61: 0.02801607753 | AA61: 2.354701801e-06 | AB61: 2.354701801e-06 | AC61: 0.0328356551 | AD61: 0.002156360492 | AE61: 0.002315281633 | AF61: 20 | AG61: 5.145709432 | AH61: 0.001863912895 | AI61: 0.0006482788573 | AJ61: 0.004668552244 | AK61: 0.05142089749 | AL61: 0.002644108698 | AM61: 0.0009647006805 | AN61: 0.002431268075 | AO61: 0.0007534024656 | AP61: 0.005828779239 | AQ61: 0.003646606506 | AR61: 0.008238581745 | AS61: 0.003279982314 | AT61: 0.02201589554 | AU61: 0.02420359231 | AV61: 0.1997105 | AW61: 0.8919067931 | AX61: 0.009630302719 | AY61: 0.01180858548 | AZ61: 0.03515615061 | BA61: 0.00832423219 | BB61: 0.01085803957 | BC61: 0.00336469428 | BD61: 0.005103235512 | BE61: 0.004655502699 | BF61: 1.151226576e-05 | BG61: 0.01628573918 | BH61: 0.1080932069 | BI61: 0.8919067931 | BJ61: 89.19067931 | BK61: =CHOOSE(MODE, I61*1000, 'PFM Efficiency'!BI61) -> 60.5 | BL61: 87.70238411 | BM61: 0.8770238411 | BN61: 257.2535148 | BP61: 0.002895212403 | BR61: 22.01589554 | BS61: 8.238581745 | BT61: 2.185119008 | BW61: =IF(MODE=1, BJ61, 'PFM Efficiency'!BH61) -> 89.19067931 | BX61: =IF(MODE=1, BR61, 'PFM Efficiency'!BN61) -> 22.01589554 | BY61: =IF(MODE=1, BS61, 'PFM Efficiency'!BO61) -> 8.238581745 | BZ61: =IF(MODE=1, BT61, 'PFM Efficiency'!BP61) -> 2.185119008
H62: 56 | I62: 0.0616 | J62: 0.04279956564 | K62: 0.08310791807 | L62: 0.04032392519 | M62: 2.784880701e-06 | N62: 0.2832104805 | O62: 257386.0774 | P62: 3.885214034e-06 | Q62: 0 | R62: 0.0003 | S62: 0.06279541776 | T62: 0.001182979347 | U62: 0.001042969826 | V62: 0.002225949173 | W62: 0.0121944451 | X62: 2.23056737e-07 | Y62: 2.23056737e-07 | Z62: 0.02850296641 | AA62: 2.437257282e-06 | AB62: 2.437257282e-06 | AC62: 0.03341816619 | AD62: 0.002233547662 | AE62: 0.002316474696 | AF62: 20 | AG62: 5.077283601 | AH62: 0.00189884833 | AI62: 0.000648612915 | AJ62: 0.004781008908 | AK62: 0.05233311449 | AL62: 0.002738754872 | AM62: 0.0009651977901 | AN62: 0.002500470831 | AO62: 0.0007675880954 | AP62: 0.006006813798 | AQ62: 0.003646606506 | AR62: 0.008240947987 | AS62: 0.003281672486 | AT62: 0.02231044318 | AU62: 0.02453905267 | AV62: 0.2033416 | AW62: 0.8923162086 | AX62: 0.009801392247 | AY62: 0.01201837383 | AZ62: 0.03456201251 | BA62: 0.0083326439 | BB62: 0.01097272103 | BC62: 0.003368377642 | BD62: 0.005191223272 | BE62: 0.004576824815 | BF62: 1.167415482e-05 | BG62: 0.01600226462 | BH62: 0.1076837914 | BI62: 0.8923162086 | BJ62: 89.23162086 | BK62: =CHOOSE(MODE, I62*1000, 'PFM Efficiency'!BI62) -> 61.6 | BL62: 87.73167789 | BM62: 0.8773167789 | BN62: 257.3860774 | BP62: 0.002846283383 | BR62: 22.31044318 | BS62: 8.240947987 | BT62: 2.225949173 | BW62: =IF(MODE=1, BJ62, 'PFM Efficiency'!BH62) -> 89.23162086 | BX62: =IF(MODE=1, BR62, 'PFM Efficiency'!BN62) -> 22.31044318 | BY62: =IF(MODE=1, BS62, 'PFM Efficiency'!BO62) -> 8.240947987 | BZ62: =IF(MODE=1, BT62, 'PFM Efficiency'!BP62) -> 2.225949173
B63: 1500 | F63: Eff (%) | G63: Iout (mA) | H63: 57 | I63: 0.0627 | J63: 0.0427869118 | K63: 0.08420799086 | L63: 0.04143025252 | M63: 2.782880345e-06 | N63: 0.2833563704 | O63: 257518.6644 | P63: 3.883213679e-06 | Q63: 0 | R63: 0.0003 | S63: 0.06387483457 | T63: 0.001223998347 | U63: 0.00104350709 | V63: 0.002267505437 | W63: 0.0121944451 | X63: 2.23056737e-07 | Y63: 2.23056737e-07 | Z63: 0.02899044468 | AA63: 2.521337648e-06 | AB63: 2.521337648e-06 | AC63: 0.03400135924 | AD63: 0.00231218486 | AE63: 0.002317667979 | AF63: 20 | AG63: 5.010653695 | AH63: 0.001933818946 | AI63: 0.0006489470342 | AJ63: 0.00489495084 | AK63: 0.05324639946 | AL63: 0.002835179055 | AM63: 0.0009656949914 | AN63: 0.002569743823 | AO63: 0.0007817917509 | AP63: 0.006186714629 | AQ63: 0.003646606506 | AR63: 0.008243314665 | AS63: 0.003283362971 | AT63: 0.0226083431 | AU63: 0.02487859294 | AV63: 0.2069727 | AW63: 0.892695906 | AX63: 0.009972706346 | AY63: 0.01222843754 | AZ63: 0.03398760917 | BA63: 0.008340772748 | BB63: 0.01108358634 | BC63: 0.00337195338 | BD63: 0.005279238825 | BE63: 0.004500760279 | BF63: 1.183687333e-05 | BG63: 0.01572821294 | BH63: 0.107304094 | BI63: 0.892695906 | BJ63: 89.2695906 | BK63: =CHOOSE(MODE, I63*1000, 'PFM Efficiency'!BI63) -> 62.7 | BL63: 87.75991173 | BM63: 0.8775991173 | BN63: 257.5186644 | BP63: 0.002798979579 | BR63: 22.6083431 | BS63: 8.243314665 | BT63: 2.267505437 | BW63: =IF(MODE=1, BJ63, 'PFM Efficiency'!BH63) -> 89.2695906 | BX63: =IF(MODE=1, BR63, 'PFM Efficiency'!BN63) -> 22.6083431 | BY63: =IF(MODE=1, BS63, 'PFM Efficiency'!BO63) -> 8.243314665 | BZ63: =IF(MODE=1, BT63, 'PFM Efficiency'!BP63) -> 2.267505437
F64: =BJ56 -> 88.93550293 | G64: =I56*1000 -> 55 | H64: 58 | I64: 0.0638 | J64: 0.04277425797 | K64: 0.08530806364 | L64: 0.04253657986 | M64: 2.78088168e-06 | N64: 0.2835022872 | O64: 257651.2758 | P64: 3.881215014e-06 | Q64: 0 | R64: 0.0003 | S64: 0.06495494201 | T64: 0.001265743347 | U64: 0.001044044453 | V64: 0.0023097878 | W64: 0.0121944451 | X64: 2.23056737e-07 | Y64: 2.23056737e-07 | Z64: 0.02947849069 | AA64: 2.60694424e-06 | AB64: 2.60694424e-06 | AC64: 0.03458521524 | AD64: 0.002392274226 | AE64: 0.002318861482 | AF64: 20 | AG64: 4.945749923 | AH64: 0.001968824751 | AI64: 0.0006492812151 | AJ64: 0.005010380192 | AK64: 0.0541607226 | AL64: 0.002933383873 | AM64: 0.0009661922843 | AN64: 0.002639087071 | AO64: 0.0007960134417 | AP64: 0.006368484386 | AQ64: 0.003646606506 | AR64: 0.008245681779 | AS64: 0.003285053767 | AT64: 0.02290960012 | AU64: 0.02522221792 | AV64: 0.2106038 | AW64: 0.8930473484 | AX64: 0.01014423365 | AY64: 0.01243876269 | AZ64: 0.0334319729 | BA64: 0.008348632471 | BB64: 0.01119082235 | BC64: 0.003375426718 | BD64: 0.00536727609 | BE64: 0.004427180944 | BF64: 1.200037639e-05 | BG64: 0.01546312208 | BH64: 0.1069526516 | BI64: 0.8930473484 | BJ64: 89.30473484 | BK64: =CHOOSE(MODE, I64*1000, 'PFM Efficiency'!BI64) -> 63.8 | BL64: 87.78713939 | BM64: 0.8778713939 | BN64: 257.6512758 | BP64: 0.002753221298 | BR64: 22.90960012 | BS64: 8.245681779 | BT64: 2.3097878 | BW64: =IF(MODE=1, BJ64, 'PFM Efficiency'!BH64) -> 89.30473484 | BX64: =IF(MODE=1, BR64, 'PFM Efficiency'!BN64) -> 22.90960012 | BY64: =IF(MODE=1, BS64, 'PFM Efficiency'!BO64) -> 8.245681779 | BZ64: =IF(MODE=1, BT64, 'PFM Efficiency'!BP64) -> 2.3097878
F65: =BJ81 -> 89.57540707 | G65: =I81*1000 -> 82.5 | H65: 59 | I65: 0.0649 | J65: 0.04276160414 | K65: 0.08640813642 | L65: 0.04364290719 | M65: 2.778884704e-06 | N65: 0.2836482308 | O65: 257783.9117 | P65: 3.879218037e-06 | Q65: 0 | R65: 0.0003 | S65: 0.06603570618 | T65: 0.001308214347 | U65: 0.001044581915 | V65: 0.002352796262 | W65: 0.0121944451 | X65: 2.23056737e-07 | Y65: 2.23056737e-07 | Z65: 0.02996708413 | AA65: 2.694078393e-06 | AB65: 2.694078393e-06 | AC65: 0.03516971639 | AD65: 0.002473817901 | AE65: 0.002320055205 | AF65: 20 | AG65: 4.882506067 | AH65: 0.002003865755 | AI65: 0.0006496154575 | AJ65: 0.005127299114 | AK65: 0.05507605605 | AL65: 0.003033371951 | AM65: 0.0009666896689 | AN65: 0.002708500595 | AO65: 0.0008102531775 | AP65: 0.006552125723 | AQ65: 0.003646606506 | AR65: 0.00824804933 | AS65: 0.003286744874 | AT65: 0.02321421904 | AU65: 0.02556993244 | AV65: 0.2142349 | AW65: 0.8933719051 | AX65: 0.01031596351 | AY65: 0.01264933621 | AZ65: 0.03289419824 | BA65: 0.008356235923 | BB65: 0.0112946039 | BC65: 0.003378802542 | BD65: 0.005455329378 | BE65: 0.004355966909 | BF65: 1.216462196e-05 | BG65: 0.01520655972 | BH65: 0.1066280949 | BI65: 0.8933719051 | BJ65: 89.33719051 | BK65: =CHOOSE(MODE, I65*1000, 'PFM Efficiency'!BI65) -> 64.9 | BL65: 87.75221099 | BM65: 0.8775221099 | BN65: 257.7839117 | BP65: 0.002708933973 | BR65: 23.21421904 | BS65: 8.24804933 | BT65: 2.352796262 | BW65: =IF(MODE=1, BJ65, 'PFM Efficiency'!BH65) -> 89.33719051 | BX65: =IF(MODE=1, BR65, 'PFM Efficiency'!BN65) -> 23.21421904 | BY65: =IF(MODE=1, BS65, 'PFM Efficiency'!BO65) -> 8.24804933 | BZ65: =IF(MODE=1, BT65, 'PFM Efficiency'!BP65) -> 2.352796262
F66: =BJ106 -> 89.32224488 | G66: =I106*1000 -> 110 | H66: 60 | I66: 0.066 | J66: 0.0427489503 | K66: 0.0875082092 | L66: 0.04474923453 | M66: 2.776889414e-06 | N66: 0.2837942014 | O66: 257916.572 | P66: 3.877222747e-06 | Q66: 0 | R66: 0.0003 | S66: 0.06711709537 | T66: 0.001351411347 | U66: 0.001045119476 | V66: 0.002396530823 | W66: 0.0121944451 | X66: 2.23056737e-07 | Y66: 2.23056737e-07 | Z66: 0.03045620597 | AA66: 2.782741445e-06 | AB66: 2.782741445e-06 | AC66: 0.03575484602 | AD66: 0.002556818028 | AE66: 0.002321249148 | AF66: 20 | AG66: 4.820859253 | AH66: 0.002038941969 | AI66: 0.0006499497616 | AJ66: 0.005245709758 | AK66: 0.05599237372 | AL66: 0.003135145915 | AM66: 0.0009671871452 | AN66: 0.002777984415 | AO66: 0.0008245109681 | AP66: 0.006737641298 | AQ66: 0.003646606506 | AR66: 0.008250417317 | AS66: 0.003288436294 | AT66: 0.02352220467 | AU66: 0.02592174129 | AV66: 0.217866 | AW66: 0.8936708583 | AX66: 0.01048788595 | AY66: 0.01286014587 | AZ66: 0.03237343708 | BA66: 0.008363595143 | BB66: 0.01139509477 | BC66: 0.003382085431 | BD66: 0.005543393364 | BE66: 0.004287005861 | BF66: 1.232957066e-05 | BG66: 0.01495812089 | BH66: 0.1063291417 | BI66: 0.8936708583 | BJ66: 89.36708583 | BK66: =CHOOSE(MODE, I66*1000, 'PFM Efficiency'!BI66) -> 66 | BL66: 87.80698305 | BM66: 0.8780698305 | BN66: 257.916572 | BP66: 0.00266604776 | BR66: 23.52220467 | BS66: 8.250417317 | BT66: 2.396530823 | BW66: =IF(MODE=1, BJ66, 'PFM Efficiency'!BH66) -> 89.36708583 | BX66: =IF(MODE=1, BR66, 'PFM Efficiency'!BN66) -> 23.52220467 | BY66: =IF(MODE=1, BS66, 'PFM Efficiency'!BO66) -> 8.250417317 | BZ66: =IF(MODE=1, BT66, 'PFM Efficiency'!BP66) -> 2.396530823
H67: 61 | I67: 0.0671 | J67: 0.04273629647 | K67: 0.08860828198 | L67: 0.04585556186 | M67: 2.774895808e-06 | N67: 0.2839401989 | O67: 258049.2568 | P67: 3.875229141e-06 | Q67: 0 | R67: 0.0003 | S67: 0.06819907984 | T67: 0.001395334347 | U67: 0.001045657136 | V67: 0.002440991483 | W67: 0.0121944451 | X67: 2.23056737e-07 | Y67: 2.23056737e-07 | Z67: 0.03094583834 | AA67: 2.872934731e-06 | AB67: 2.872934731e-06 | AC67: 0.03634058852 | AD67: 0.002641276748 | AE67: 0.002322443312 | AF67: 20 | AG67: 4.760749741 | AH67: 0.002074053401 | AI67: 0.0006502841272 | AJ67: 0.005365614277 | AK67: 0.05690965114 | AL67: 0.003238708393 | AM67: 0.0009676847132 | AN67: 0.002847538548 | AO67: 0.0008387868233 | AP67: 0.006925033765 | AQ67: 0.003646606506 | AR67: 0.00825278574 | AS67: 0.003290128025 | AT67: 0.02383356181 | AU67: 0.02627764928 | AV67: 0.2214971 | AW67: 0.8939454107 | AX67: 0.01065999161 | AY67: 0.01307118019 | AZ67: 0.03186889416 | BA67: 0.008370721421 | BB67: 0.01149244851 | BC67: 0.003385279677 | BD67: 0.005631463058 | BE67: 0.004220192489 | BF67: 1.249518555e-05 | BG67: 0.01471742587 | BH67: 0.1060545893 | BI67: 0.8939454107 | BJ67: 89.39454107 | BK67: =CHOOSE(MODE, I67*1000, 'PFM Efficiency'!BI67) -> 67.1 | BL67: 87.85926193 | BM67: 0.8785926193 | BN67: 258.0492568 | BP67: 0.002624497166 | BR67: 23.83356181 | BS67: 8.25278574 | BT67: 2.440991483 | BW67: =IF(MODE=1, BJ67, 'PFM Efficiency'!BH67) -> 89.39454107 | BX67: =IF(MODE=1, BR67, 'PFM Efficiency'!BN67) -> 23.83356181 | BY67: =IF(MODE=1, BS67, 'PFM Efficiency'!BO67) -> 8.25278574 | BZ67: =IF(MODE=1, BT67, 'PFM Efficiency'!BP67) -> 2.440991483
H68: 62 | I68: 0.0682 | J68: 0.04272364264 | K68: 0.08970835476 | L68: 0.0469618892 | M68: 2.772903884e-06 | N68: 0.2840862234 | O68: 258181.9661 | P68: 3.873237217e-06 | Q68: 0 | R68: 0.0003 | S68: 0.0692816317 | T68: 0.001439983347 | U68: 0.001046194895 | V68: 0.002486178243 | W68: 0.0121944451 | X68: 2.23056737e-07 | Y68: 2.23056737e-07 | Z68: 0.03143596445 | AA68: 2.964659583e-06 | AB68: 2.964659583e-06 | AC68: 0.03692692924 | AD68: 0.002727196206 | AE68: 0.002323637695 | AF68: 20 | AG68: 4.702120736 | AH68: 0.002109200063 | AI68: 0.0006506185546 | AJ68: 0.005487014823 | AK68: 0.05782786538 | AL68: 0.003344062014 | AM68: 0.0009681823729 | AN68: 0.002917163016 | AO68: 0.0008530807527 | AP68: 0.007114305783 | AQ68: 0.003646606506 | AR68: 0.008255154601 | AS68: 0.003291820068 | AT68: 0.02414829527 | AU68: 0.02663766123 | AV68: 0.2251282 | AW68: 0.8941966909 | AX68: 0.01083227167 | AY68: 0.01328242836 | AZ68: 0.031379823 | BA68: 0.008377625355 | BB68: 0.01158680928 | BC68: 0.003388389309 | BD68: 0.005719533778 | BE68: 0.004155427944 | BF68: 1.266143195e-05 | BG68: 0.01448411825 | BH68: 0.1058033091 | BI68: 0.8941966909 | BJ68: 89.41966909 | BK68: =CHOOSE(MODE, I68*1000, 'PFM Efficiency'!BI68) -> 68.2 | BL68: 87.90915684 | BM68: 0.8790915684 | BN68: 258.1819661 | BP68: 0.002584220718 | BR68: 24.14829527 | BS68: 8.255154601 | BT68: 2.486178243 | BW68: =IF(MODE=1, BJ68, 'PFM Efficiency'!BH68) -> 89.41966909 | BX68: =IF(MODE=1, BR68, 'PFM Efficiency'!BN68) -> 24.14829527 | BY68: =IF(MODE=1, BS68, 'PFM Efficiency'!BO68) -> 8.255154601 | BZ68: =IF(MODE=1, BT68, 'PFM Efficiency'!BP68) -> 2.486178243
H69: 63 | I69: 0.0693 | J69: 0.0427109888 | K69: 0.09080842755 | L69: 0.04806821653 | M69: 2.77091364e-06 | N69: 0.2842322747 | O69: 258314.6998 | P69: 3.871246974e-06 | Q69: 0 | R69: 0.0003 | S69: 0.07036472477 | T69: 0.001485358347 | U69: 0.001046732754 | V69: 0.002532091101 | W69: 0.0121944451 | X69: 2.23056737e-07 | Y69: 2.23056737e-07 | Z69: 0.03192656853 | AA69: 3.057917334e-06 | AB69: 3.057917334e-06 | AC69: 0.03751385441 | AD69: 0.002814578546 | AE69: 0.002324832299 | AF69: 20 | AG69: 4.644918206 | AH69: 0.002144381962 | AI69: 0.0006509530436 | AJ69: 0.005609913552 | AK69: 0.05874699488 | AL69: 0.003451209407 | AM69: 0.0009686801244 | AN69: 0.002986857837 | AO69: 0.0008673927661 | AP69: 0.007305460011 | AQ69: 0.003646606506 | AR69: 0.008257523898 | AS69: 0.003293512423 | AT69: 0.02446640988 | AU69: 0.02700178196 | AV69: 0.2287593 | AW69: 0.8944257596 | AX69: 0.01100471786 | AY69: 0.01349388023 | AZ69: 0.03090552227 | BA69: 0.008384316902 | BB69: 0.01167831249 | BC69: 0.003391418114 | BD69: 0.005807601125 | BE69: 0.004092619352 | BF69: 1.282827726e-05 | BG69: 0.01425786315 | BH69: 0.1055742404 | BI69: 0.8944257596 | BJ69: 89.44257596 | BK69: =CHOOSE(MODE, I69*1000, 'PFM Efficiency'!BI69) -> 69.3 | BL69: 87.95677057 | BM69: 0.8795677057 | BN69: 258.3146998 | BP69: 0.002545160658 | BR69: 24.46640988 | BS69: 8.257523898 | BT69: 2.532091101 | BW69: =IF(MODE=1, BJ69, 'PFM Efficiency'!BH69) -> 89.44257596 | BX69: =IF(MODE=1, BR69, 'PFM Efficiency'!BN69) -> 24.46640988 | BY69: =IF(MODE=1, BS69, 'PFM Efficiency'!BO69) -> 8.257523898 | BZ69: =IF(MODE=1, BT69, 'PFM Efficiency'!BP69) -> 2.532091101
H70: 64 | I70: =IF(PLOT_TYPE=1, H70/100*Iout_maxload_COT, min_I*EXP(H70*rr/100)) -> 0.0704 | J70: =IF(I70<Icrit, (Vin-(Rdcr+RdsonTop)*Iripple/2-Vout)/L*OnTime, (Vin-(Rdcr+RdsonTop)*I70-Vout)/L*OnTime) -> 0.04269833497 | K70: =IF(I70<Icrit, (Vin-(Rdcr+RdsonTop)*Iripple/2-Vout)/L*OnTime, I70+((Vin-(Rdcr+RdsonTop)*J70-Vout)/L*OnTime)/2) -> 0.09190850033 | L70: =IF(I70<Icrit, 0, I70-((Vin-(Rdcr+RdsonTop)*K70-Vout)/L*OnTime)/2) -> 0.04917454387 | M70: =IF(I70<Icrit, L*J70/(Vout+J70/2*(RdsonBot+Rdcr)), L*J70/(Vout+I70*(RdsonBot+Rdcr))) -> 2.768925074e-06 | N70: 0.284378353 | O70: =IF(I70<Icrit,I70/((OnTime+M70)*J70/2),1/(OnTime+M70)) -> 258447.458 | P70: 3.869258408e-06 | Q70: 0 | R70: 0.0003 | S70: 0.07144833442 | T70: 0.001531459347 | U70: 0.001047270711 | V70: 0.002578730059 | W70: 0.0121944451 | X70: 2.23056737e-07 | Y70: 2.23056737e-07 | Z70: 0.03241763571 | AA70: 3.152709314e-06 | AB70: 3.152709314e-06 | AC70: 0.03810135111 | AD70: 0.002903425913 | AE70: 0.002326027122 | AF70: 20 | AG70: =IF(I70<Icrit, Csw*Vin/Iripple*1000000000, Csw*Vin/(I70+Iripple/2)*1000000000) -> 4.589090715 | AH70: =IF(I70<Icrit, Vin*(I70+Iripple/2)*AG70/1000000000/2*O70, Vin*(I70-Iripple/2)*AF70/1000000000/2*O70+Vin*(I70+Iripple/2)*AG70/1000000000/2*O70) -> 0.00217959911 | AI70: =IF(I70<Icrit, Csw*(Vin)^2*O70/2, Csw*Vin^2*O70/2) -> 0.0006512875943 | AJ70: =AD70+AH70+AI70 -> 0.005734312617 | AK70: =IF(I70<Icrit,Iripple*SQRT((OffTime)*O70/3), SQRT(OffTime*O70*(I70^2+Iripple^2/12))) -> 0.05966701939 | AL70: 0.003560153202 | AM70: =QgBot*O70*Vdd -> 0.0009691779677 | AN70: =IF(I70<Icrit, Vin*Idss*N70, QrrBot*(I70-Iripple/2)/0.1*O70*Vin+Vin*Idss*N70) -> 0.003056623031 | AO70: =IF(I70<Icrit, dead1*O70*(I70+Iripple/2)*((I70+Iripple/2)*BDserR+VSD), dead1*O70*(I70+Iripple/2)*((I70+Iripple/2)*BDserR+VSD)+dead2*O70*(I70-Iripple/2)*((I70-Iripple/2)*BDserR+VSD)) -> 0.0008817228733 | AP70: 0.007498499107 | AQ70: =Vin*R70+Vout*Ifb/0.7 -> 0.003646606506 | AR70: =(Vin-Vdd)*(O70*QgBot+O70*QgTop)+AQ70 -> 0.008259893632 | AS70: =AE70+AM70 -> 0.00329520509 | AT70: 0.02478791045 | AU70: =SUM(V70,Y70,AB70,AT70) -> 0.02737001627 | AV70: =Vout*I70 -> 0.2323904 | AW70: 0.8946336141 | AX70: =AD70/($AV70+$AU70) -> 0.01117732237 | AY70: 0.01370552624 | AZ70: =Vin*O70*(QgBot+QgTop)/($AV70+$AU70) -> 0.03044533239 | BA70: 0.008390805425 | BB70: 0.01176708551 | BC70: 0.00339436965 | BD70: =T70/($AV70+$AU70) -> 0.005895660969 | BE70: =U70/($AV70+$AU70) -> 0.004031679369 | BF70: =(Y70+AB70)/($AV70+$AU70) -> 1.29956908e-05 | BG70: 0.01403834563 | BH70: 0.1053663859 | BI70: 0.8946336141 | BJ70: 89.46336141 | BK70: =CHOOSE(MODE, I70*1000, 'PFM Efficiency'!BI70) -> 70.4 | BL70: 88.00219996 | BM70: 0.8800219996 | BN70: =O70/1000 -> 258.447458 | BP70: 0.002507262668 | BR70: 24.78791045 | BS70: 8.259893632 | BT70: =1000*V70 -> 2.578730059 | BW70: =IF(MODE=1, BJ70, 'PFM Efficiency'!BH70) -> 89.46336141 | BX70: =IF(MODE=1, BR70, 'PFM Efficiency'!BN70) -> 24.78791045 | BY70: =IF(MODE=1, BS70, 'PFM Efficiency'!BO70) -> 8.259893632 | BZ70: =IF(MODE=1, BT70, 'PFM Efficiency'!BP70) -> 2.578730059
H71: 65 | I71: 0.0715 | J71: 0.04268568114 | K71: 0.09300857311 | L71: 0.0502808712 | M71: 2.766938184e-06 | N71: 0.2845244582 | O71: 258580.2407 | P71: =IF(1/O71-OnTime-M71>Tsleep, OnTime+M71+Tsleep, 1/O71) -> 3.867271517e-06 | Q71: =IF(1/O71-OnTime-M71>Tsleep, 1/O71-OnTime-M71-Tsleep, 0) -> 0 | R71: =P71*O71*Iq_active+Q71*O71*Iq_sleep -> 0.0003 | S71: =IF(I71<Icrit,Iripple*SQRT((OnTime+OffTime)*O71/3), SQRT(I71^2+Iripple^2/12)) -> 0.07253243751 | T71: =S71^2*Rdcr -> 0.001578286347 | U71: =(O71/Fsw)*Fsw^2.5*(Iripple/2)^2.5*k_core -> 0.001047808768 | V71: 0.002626095116 | W71: =Iripple/SQRT(12)*SQRT((OnTime+M71)*O71) -> 0.0121944451 | X71: =RCoutEsr*W71^2 -> 2.23056737e-07 | Y71: 2.23056737e-07 | Z71: =SQRT($N71)*SQRT($I71^2*(1-N71)+(Iripple^2)/12) -> 0.03290915199 | AA71: =RCinEsr*Z71^2 -> 3.249036853e-06 | AB71: 3.249036853e-06 | AC71: =IF(I71<Icrit,Iripple*SQRT((OnTime)*O71/3), SQRT(OnTime*O71*(I71^2+Iripple^2/12))) -> 0.03868940716 | AD71: =RdsonTop*AC71^2 -> 0.002993740453 | AE71: =QgTop*O71*Vdd -> 0.002327222167 | AF71: 20 | AG71: 4.534589273 | AH71: 0.002214851516 | AI71: 0.0006516222067 | AJ71: 0.005860214175 | AK71: 0.06058791985 | AL71: =RdsonBot*AK71^2 -> 0.003670896031 | AM71: 0.0009696759028 | AN71: 0.003126458618 | AO71: 0.000896071084 | AP71: 0.007693425733 | AQ71: 0.003646606506 | AR71: 0.008262263803 | AS71: 0.003296898069 | AT71: 0.02511280178 | AU71: 0.02774236899 | AV71: 0.2360215 | AW71: 0.8948211933 | AX71: 0.01135007787 | AY71: 0.01391735739 | AZ71: 0.02999863248 | BA71: =AH71/($AV71+$AU71) -> 0.00839709974 | BB71: =AN71/(AU71+AV71) -> 0.01185324825 | BC71: =AO71/($AV71+$AU71) -> 0.003397247271 | BD71: 0.005983709419 | BE71: 0.003972525775 | BF71: 1.316364369e-05 | BG71: 0.01382526924 | BH71: =AU71/($AV71+$AU71) -> 0.1051788067 | BI71: 0.8948211933 | BJ71: 89.48211933 | BK71: =CHOOSE(MODE, I71*1000, 'PFM Efficiency'!BI71) -> 71.5 | BL71: 88.04553634 | BM71: =BL71/100 -> 0.8804553634 | BN71: 258.5802407 | BP71: 0.002470475616 | BR71: 25.11280178 | BS71: 8.262263803 | BT71: 2.626095116 | BW71: =IF(MODE=1, BJ71, 'PFM Efficiency'!BH71) -> 89.48211933 | BX71: =IF(MODE=1, BR71, 'PFM Efficiency'!BN71) -> 25.11280178 | BY71: =IF(MODE=1, BS71, 'PFM Efficiency'!BO71) -> 8.262263803 | BZ71: =IF(MODE=1, BT71, 'PFM Efficiency'!BP71) -> 2.626095116
H72: 66 | I72: 0.0726 | J72: 0.0426730273 | K72: 0.09410864589 | L72: 0.05138719854 | M72: 2.764952967e-06 | N72: =OnTime*O72 -> 0.2846705904 | O72: 258713.0479 | P72: 3.865286301e-06 | Q72: 0 | R72: 0.0003 | S72: 0.07361701224 | T72: 0.001625839347 | U72: 0.001048346924 | V72: =T72+U72 -> 0.002674186272 | W72: 0.0121944451 | X72: 2.23056737e-07 | Y72: =X72 -> 2.23056737e-07 | Z72: 0.03340110417 | AA72: 3.346901279e-06 | AB72: =AA72 -> 3.346901279e-06 | AC72: 0.03927801111 | AD72: 0.003085524313 | AE72: 0.002328417431 | AF72: 20 | AG72: 4.481367188 | AH72: 0.002250139189 | AI72: 0.0006519568808 | AJ72: 0.005987620383 | AK72: 0.06150967832 | AL72: 0.003783440526 | AM72: 0.0009701739297 | AN72: 0.003196364616 | AO72: 0.000910437408 | AP72: =AL72+AN72+AO72 -> 0.007890242551 | AQ72: 0.003646606506 | AR72: 0.008264634411 | AS72: 0.003298591361 | AT72: =AJ72+AP72+AR72+AS72 -> 0.02544108871 | AU72: 0.02811884494 | AV72: 0.2396526 | AW72: 0.8949893819 | AX72: 0.01152297742 | AY72: =AL72/($AV72+$AU72) -> 0.01412936517 | AZ72: 0.02956483754 | BA72: 0.008403208152 | BB72: 0.01193691365 | BC72: 0.003400054133 | BD72: 0.006071742817 | BE72: 0.003915081104 | BF72: 1.333210872e-05 | BG72: =AQ72/($AV72+$AU72) -> 0.01361835466 | BH72: 0.1050106181 | BI72: =AW72 -> 0.8949893819 | BJ72: =100*BI72 -> 89.49893819 | BK72: =CHOOSE(MODE, I72*1000, 'PFM Efficiency'!BI72) -> 72.6 | BL72: 88.08686593 | BM72: 0.8808686593 | BN72: 258.7130479 | BP72: =AI72/($AV72+$AU72) -> 0.002434751327 | BR72: =1000*AT72 -> 25.44108871 | BS72: =1000*AR72 -> 8.264634411 | BT72: 2.674186272 | BW72: =IF(MODE=1, BJ72, 'PFM Efficiency'!BH72) -> 89.49893819 | BX72: =IF(MODE=1, BR72, 'PFM Efficiency'!BN72) -> 25.44108871 | BY72: =IF(MODE=1, BS72, 'PFM Efficiency'!BO72) -> 8.264634411 | BZ72: =IF(MODE=1, BT72, 'PFM Efficiency'!BP72) -> 2.674186272
H73: 67 | I73: 0.0737 | J73: 0.04266037347 | K73: 0.09520871867 | L73: 0.05249352587 | M73: 2.762969422e-06 | N73: 0.2848167495 | O73: 258845.8796 | P73: 3.863302756e-06 | Q73: 0 | R73: 0.0003 | S73: 0.07470203807 | T73: 0.001674118347 | U73: 0.00104888518 | V73: 0.002723003527 | W73: 0.0121944451 | X73: 2.23056737e-07 | Y73: 2.23056737e-07 | Z73: 0.03389347979 | AA73: 3.446303918e-06 | AB73: 3.446303918e-06 | AC73: 0.03986715214 | AD73: 0.00317877964 | AE73: 0.002329612917 | AF73: 20 | AG73: 4.429379937 | AH73: 0.00228546214 | AI73: 0.0006522916166 | AJ73: 0.006116533397 | AK73: 0.06243227788 | AL73: 0.003897789321 | AM73: 0.0009706720486 | AN73: 0.003266341046 | AO73: 0.000924821855 | AP73: 0.008088952222 | AQ73: 0.003646606506 | AR73: 0.008267005457 | AS73: 0.003300284965 | AT73: 0.02577277604 | AU73: 0.02849944893 | AV73: 0.2432837 | AW73: =AV73/(AV73+AU73) -> 0.8951390142 | AX73: 0.01169601446 | AY73: 0.01434154154 | AZ73: 0.02914339593 | BA73: 0.008409138494 | BB73: 0.01201818825 | BC73: 0.003402793215 | BD73: 0.006159757711 | BE73: 0.003859272305 | BF73: 1.35010602e-05 | BG73: 0.01341733849 | BH73: 0.1048609858 | BI73: 0.8951390142 | BJ73: 89.51390142 | BK73: =CHOOSE(MODE, I73*1000, 'PFM Efficiency'!BI73) -> 73.7 | BL73: 88.12627015 | BM73: 0.8812627015 | BN73: 258.8458796 | BP73: 0.002400044371 | BR73: 25.77277604 | BS73: 8.267005457 | BT73: 2.723003527 | BW73: =IF(MODE=1, BJ73, 'PFM Efficiency'!BH73) -> 89.51390142 | BX73: =IF(MODE=1, BR73, 'PFM Efficiency'!BN73) -> 25.77277604 | BY73: =IF(MODE=1, BS73, 'PFM Efficiency'!BO73) -> 8.267005457 | BZ73: =IF(MODE=1, BT73, 'PFM Efficiency'!BP73) -> 2.723003527
H74: 68 | I74: 0.0748 | J74: 0.04264771964 | K74: 0.09630879145 | L74: 0.05359985321 | M74: 2.760987546e-06 | N74: 0.2849629356 | O74: 258978.7358 | P74: 3.86132088e-06 | Q74: 0 | R74: 0.0003 | S74: 0.07578749561 | T74: 0.001723123347 | U74: 0.001049423534 | V74: 0.002772546882 | W74: 0.0121944451 | X74: 2.23056737e-07 | Y74: 2.23056737e-07 | Z74: 0.0343862671 | AA74: 3.547246094e-06 | AB74: 3.547246094e-06 | AC74: 0.04045682009 | AD74: 0.003273508584 | AE74: 0.002330808622 | AF74: 20 | AG74: 4.378585036 | AH74: 0.002320820377 | AI74: 0.0006526264142 | AJ74: 0.006246955375 | AK74: 0.06335570258 | AL74: 0.004013945049 | AM74: 0.0009711702593 | AN74: 0.003336387926 | AO74: 0.0009392244348 | AP74: 0.00828955741 | AQ74: 0.003646606506 | AR74: 0.00826937694 | AS74: 0.003301978882 | AT74: 0.02610786861 | AU74: 0.02888418579 | AV74: 0.2469148 | AW74: 0.8952708774 | AX74: 0.01186918282 | AY74: 0.01455387893 | AZ74: 0.02873378701 | BA74: 0.008414898158 | BB74: 0.01209717257 | BC74: 0.003405467326 | BD74: 0.006247750848 | BE74: 0.003805030433 | BF74: 1.367047388e-05 | BG74: 0.01322197214 | BH74: 0.1047291226 | BI74: 0.8952708774 | BJ74: 89.52708774 | BK74: =CHOOSE(MODE, I74*1000, 'PFM Efficiency'!BI74) -> 74.8 | BL74: 88.16382601 | BM74: 0.8816382601 | BN74: 258.9787358 | BP74: 0.002366311872 | BR74: 26.10786861 | BS74: 8.26937694 | BT74: 2.772546882 | BW74: =IF(MODE=1, BJ74, 'PFM Efficiency'!BH74) -> 89.52708774 | BX74: =IF(MODE=1, BR74, 'PFM Efficiency'!BN74) -> 26.10786861 | BY74: =IF(MODE=1, BS74, 'PFM Efficiency'!BO74) -> 8.26937694 | BZ74: =IF(MODE=1, BT74, 'PFM Efficiency'!BP74) -> 2.772546882
